Workbook

Sheet BMP Sizing Instructions
A2: MUNICIPAL SEPARATE STORM SEWER SYSTEM (MS4) BMP SIZING CALCULATOR INSTRUCTIONS
A3: • This worksheet provides instructions on how to use the Municipal Separate Storm Sewer System (MS4) Best Management Practice (BMP) Sizing Calculator.
A4: • The MS4 BMP Sizing Calculator (Sizing Calculator) was developed to assist San Francisco developers in selecting and sizing stormwater BMPs that will enable them to meet the MS4 stormwater performance requirements.
A5: • The MS4 performance requirements are based on requirements laid out in section E.12 of Water Quality Order No. 2013-0001-DWQ of the California State Water Quality Control Board's (SWRCB) National Pollutant Discharge Elimination System (NPDES) General Permit No. CAS00004 (Permit) and are intended to improve receiving water quality.
A6: • New and redevelopment projects under the jurisdiction of the Port of San Francisco or the San Francisco Public Utilities Commission that create and/or replace 2,500 sq ft or more of impervious surface are required to comply with the MS4 performance requirements. This calculator is intended for sites that create and/or replace 5,000 sq ft or more of impervious surface. Sites that create and/or replace less than 5,000 sq ft of impervious surface should use the State's SMARTS calculator to show compliance (www.waterboards.ca.gov/phaseIIpermit/).
A7: • Complying with the MS4 performance measures can be achieved by implementing stormwater BMPs included in the Sizing Calculator. Runoff reduction (1st priority) BMPs must be implemented to the maximum extent feasible, prior to using flow-through treatment (2nd or 3rd priority) BMPs. For more information, refer to the Separate Sewer Area BMP Hierarchy found in the Stormwater Management Requirements and Design Guidelines (SMR).
A8: Separate Sewer Area BMP Hierarchy quick reference: • 1st Priority: rainwater harvesting, unlined bioretention, subsurface infiltration system/infiltration trench, infiltration basin, permeable pavement, vegetated roof • 2nd Priority: lined bioretention, constructed wetland • 3rd Priority: media filter (for small portions of site only, SFPUC pre-approval required)
A9: • The Sizing Calculator is intended for sites (or site subwatersheds) less than 2 acres. Multiple Sizing Calculators may be used for project sites with multiple subwatershed discharges up to or equal to 5 acres. Larger sites or sites with complex stormwater management systems should use other SFPUC accepted hydrologic modeling software. Refer to the "SFPUC Accepted Hydrologic Calculation Methods" memorandum available for download through the SFPUC stormwater website (http://sfwater.org/smr).
A10: • Additional calculations may be required to supplement the intended capabilities and output of the Sizing Calculator.
A12: CALCULATION APPROACH
A14: • The Sizing Calculator calculates the site's pre-project and post-project runoff hydrographs using the Santa Barbara Urban Hydrograph (SBUH) method.
A15: • The SBUH method was developed by the Santa Barbara County Flood Control and Water Conservation District to determine runoff hydrographs for small and medium-sized urban areas.
A16: • The SBUH method is based on the Soil Conservation Service (SCS) curve number (CN) approach, but is generally easier to implement in spreadsheet calculations than SCS because it computes the runoff hydrograph directly without going through the intermediate steps of generating unit hydrographs.
A17: • For more detailed information about SBUH and the calculation method employed in the Sizer refer to the "Combined Sewer System (CSS) and Municipal Separate Storm Sewer System (MS4) BMP Sizing Calculators: Calculation Approach Using the Santa Barbara Urban Hydrograph Method" memorandum available for download through the SFPUC stormwater website (http://sfwater.org/smr).
A19: SUMMARY OF WORKSHEETS
A21: Sizing Calculator: The user enters the site design and stormwater control plan information in this worksheet. The worksheet calculates the runoff treated by the BMPs and indicates whether the performance requirements have been met.
A22: DMA Summary: The user enters the proposed conventional surfaces and surface BMP areas for each Drainage Management Area. This worksheet must be submitted as part of the project's Stormwater Control Plan.
A23: RWH Calculator (only for sites using rainwater harvesting): This worksheet calculates a site's annual non-potable demand and estimates the annual runoff reused from the cistern. Data input into the "RWH Calculator" are automatically populated into the "Sizing Calculator" sheet. Additional Cistern calculations may be required.
A24: Swale Calculator (only for sites using bioretention swales or other sloped bioretention): This worksheet calculates a bioretention swale's total area, infiltration area, and storage volume based on the inputs. Data input into the "Swale Calculator" are automatically populated into the "Sizing Calculator" sheet.
A25: Media Filter Calculator (only for sites that have been approved for high-rate filtration BMPs due to severe site constraints): This worksheet provides extra guidance on media filter requirements. Calculations use flow-based sizing and are distinct from the SBUH calculations in the "Sizing Calculator" tab. Data input into the "Media Filter Calculator" are automatically populated into the "Sizing Calculator" sheet.
A26: Rainfall and Hydrographs: This worksheet is for informational purposes only. It displays the 85th or 90th percentile rainfall events for San Francisco. This worksheet also includes graphs of the site's existing and proposed runoff hydrographs based on the user-entered data in the "Sizing Calculator" tab.
A28: LEGEND
A30: User Input = | C30: Blue-shaded cells accept user-entered data.
A31: Default Value = | C31: Gray-shaded cells include default values that can be revised by the user if supporting documentation is provided.
A32: Locked Cell = | C32: White cells contain calculations or instructions. These cells are locked to prevent modification.
A33: Note/Comment = | C33: Red triangles indicate that there is a comment on the cell that provides additional explanation.
A36: STEPS FOR COMPLETING THE "SIZING CALCULATOR" WORKSHEET
A38: • Unless you are using rainwater harvesting, bioretention swales, or media filters, only the "Sizing Calculator" and "DMA Summary" worksheets are required. Enter data on page 1 of the "Sizing Calculator"; results are summarized on page 2.
A39: • "Clear Input Cells" macro button: This macro will clear all "User Input" cells and allow the user to start over.
A40: • "Restore Defaults" macro button: This macro will restore "Default Value" cells if user elects to change the default values during the design process.
A45: General: Project Name, Address, Project Site Area
A46: > Enter the general information for the project.
A47: Choose jurisdiction for performance requirements from the drop-down menu: 1) SF Public Utilities Commission, 2) Port of San Francisco
A48: > Enter the total area of the project and the amount of impervious areas created and/or replaced during the project. The Sizer is only recommended for sites (or site subwatersheds) less than 2 acres.
A49: Small Projects - Projects that create and/or replace between 2,500 and 5,000 square feet, even if there is no net increase in impervious area, must implement one or more stormwater BMPs to reduce project site runoff. Note: if a project falls within the "Small Projects" limits, do not use this Sizing Calculator; use the State's SMARTS calculator to show compliance (www.waterboards.ca.gov/phaseIIpermit/).
A50: Large Projects - Projects that create and/or replace 5,000 square feet or more, even if there is no net increase in impervious area, must implement stormwater BMPs to evapotranspire, infiltrate, harvest/use, and treat the volume of runoff from an 85th or 90th percentile rainfall event, depending on project location.
A51: Note: The Permit also includes hydromodification requirements for large projects. However, all projects under jurisdiction of the Port of San Francisco or the SF Public Utilities Commission are currently exempt from meeting hydromodification requirements.
A53: Step 1: Enter the site's infiltration characteristics
A54: > Select the hydrologic soil group (HSG) of the native soils at the site based on findings and boring logs from the Geotechnical Investigation Report.
A55: The HSG is a Natural Resources Conservation Service classification system in which soils are categorized into four runoff potential groups.
A56: The groups range from A soils, with high permeability and little runoff production, to D soils, which have low permeability rates and produce much more runoff.
A57: > Select "Yes" if the site meets San Francisco's infiltration constraints, and BMPs will be at-grade and unlined. Select "No" if it does not, no infiltration BMPs are proposed, or if the BMPs will be lined.
A58: >Select the reason that infiltration is not feasible at the site. Infiltration feasibility is dependent upon the "Special Site Conditions" outlined in section E.12.e(ii)(h) of the MS4 Permit and detailed in the SMR Chapter 6.
A59: > Enter Measured Infiltration Rate, if applicable. (Refer to SMR Appendix C for more information on infiltration testing requirements.)
A60: If a field infiltration test has been conducted, entered the measured infiltration rate here; otherwise, leave blank.
A61: > Select Infiltration Testing Method, if any.
A62: Choose one of the following options from the drop-down menu: 1) Not Conducted, 2) Pilot Infiltration Test, 3) Double-Ring Infiltrometer, 4) Soil Grain Size Analysis, 5) Alternate Approved Method (e.g., Borehole test) .
A63: Based on the type of test conducted, a correction factor is automatically applied to the measured infiltration rate to calculate a Design Infiltration Rate.
A64: See http://sfwater.org/smr for more information on infiltration testing requirements.
A65: The max allowable Design Infiltration Rate for the MS4 Sizer is 5 in/hr.
A67: Step 2: Enter the site's Time of Concentration (Tc) information
A68: Note: The data entered in Step 2 affect the site's time of concentration. Increasing the time of concentration helps slow and dissipate runoff before it leaves the site.
A69: > Select the means by which runoff is conveyed from the site to BMPs.
A70: If the runoff flows over land, enter "overland."
A71: If the runoff is collected by an area drain on site and piped, enter "pipe."
A72: If the runoff flows by a local channel, enter "channel."
A73: > Enter the site's average slope in the direction of flow.
A74: > Enter the maximum length that runoff has to travel to BMPs.
A75: > If conveyance swales are used for pretreatment prior to bioretention BMPs, select "Yes". Within the Sizing Calculator, there is a factor of safety applied to the hydraulic conductivity of the bioretention soil, resulting in an effective rate of 4 in/hr. However, for approved conveyance swale to bioretention designs, the factor of safety is removed, resulting in an effective rate of 5 in/hr. The conveyance swale should be entered as a pervious surface in Step 3a.
A76: Step 3a: Enter the existing and proposed areas of pervious, impervious, and BMP surfaces
A77: > Enter area of existing pervious and impervious surfaces at the site.
A78: > Enter area of proposed pervious and impervious surfaces at the site. The runoff curve numbers (CN) are populated automatically based on the surface and HSG soil type.
A79: CNs are used to estimate the amount of rainfall that becomes runoff. The methodology and values are based on the Soil Conservation Service's Urban Hydrology for Small Watershed, TR-55.
A80: • Landscaped areas with less than 50% plant coverage should be entered in the Grass/Lawn Area category.
A81: • Landscaped areas that are 50 to 75% covered by landscape plantings (e.g., shrubs, trees, and other native plants) should be entered in the Landscape Areas (Lower Density) category.
A82: • Landscaped areas with greater than 75% coverage should be entered in the Landscaped Areas (Higher Density) category.
A83: > Enter BMP areas. These areas will likely have to be adjusted as part of an iterative process to achieve the required treatment summarized in Step 4.
A84: With the exception of cisterns, dry wells/infiltration galleries, and cartridge filters, BMPs are treated as surface BMPs (i.e., open to the atmosphere) that take up real surface space at the site.
A85: If the area of a proposed BMP needs to be increased to meet the runoff requirements, the area of the conventional surfaces at the site must be decreased accordingly. The sum of the conventional and BMP areas should equal the total site area from the existing conditions.
A86: The Bioretention Swale and Media Filter areas will be auto-populated from values entered in the Swale Calculator and Media Filter Calculator, as applicable.
A87: Note: Refer to the Separate Sewer Area BMP Hierarchy presented in Chapter 6 of the SMR for further guidance on the preference and priority of stormwater BMPs. High-rate filtration BMPs, such as cartridge and tree box filters, are only allowed at highly constrained sites and require pre-approval. These flow-based BMPs are not part of the hydrograph-based calculations, but are included in the "Media Filter" tab. See the SMR for more guidance.
A89: Step 3b: Enter the BMP design information AND conventional areas from Step 3a that drain to each BMP measure
A90: The information to be entered in Step 3b is grouped into three categories, as explained below:
A92: Drainage Areas
A93: > Enter the portion of the impervious and pervious conventional areas from Step 3a that drain to each BMP. Include only the area of the conventional surfaces, not the BMP surfaces.
A94: The impervious and pervious areas entered in Step 3a serve as the possible drainage areas in Step 3b.
A95: The total drainage areas entered in Step 3b should be less than or equal to the total proposed conventional areas listed in Step 3a.
A96: Drainage areas for RWH systems, bioretention swales, or media filters will be autopopulated by values entered in the RWH, Swale, or Media Filter Calculators.
A98: BMP Depths and Volumes
A99: Note 1: Refer to Appendix A (Typical BMP Schematics) of the Combined Sewer System (CSS) and Municipal Separate Storm Sewer System (MS4) BMP Sizing Calculators: Calculation Approach Memo (available at www.sfwater.org/smr) for more information regarding BMP depth and volume descriptions.
A100: Note 2: Default depths are provided in the Sizing Calculator but can be replaced with site-specific design values. Values should be entered in feet.
A101: > Enter "BMP Ponding Depth": refers to the ponding area above the soil media in swales and bioretention systems (e.g., rain gardens, flow-through planters, etc.) including the mulch layer. For cisterns with dual detention and retention functionality, the "Depth of Additional Detention" from the RWH Calculator autopopulates the ponding depth cell. For open chamber dry wells, ponding depth refers to live storage volume depth.
A102: > Enter "BMP Media Depth": refers to the depth of the primary medium (soils medium) in the BMP that is located above the underdrain or native soil sub-grade.
A103: For bioretention systems (e.g., rain gardens, flow-through planters, bioretention swales, etc.) and vegetated roofs, media depth refers to the depth of the planting soil media. For all other BMPs, media depth should not be used.
A104: > Enter "Gravel Storage Depth": refers to the total depth of the gravel storage, including the choking course (bioretention) or leveling course (permeable pavement), base course, and reservoir course.
A105: > Enter "Height of Underdrain Above BMP Base": refers to the portion of the gravel storage layer that is between the underdrain and the native soil sub-grade or liner. Note that a layer of minimum 2-inch thickness is required for most unlined systems with an underdrain. Where the soil type and site characteristics allow for infiltration, the underdrain should be placed near the top of the gravel storage layer to maximize infiltration.
A106: > Enter "Storage Volume": refers to the effective volume of a dry well or infiltration gallery.
A108: Outlet Design
A109: > Enter the diameter of the outlet pipe. Outlet control to restrict discharge rates, such as use of an orifice, is generally not applicable in MS4 areas as flow reduction is not required. However, if a cistern with added detention is used, enter the diameter of restricted outlet into the RWH Calculator.
A110: For underdrained BMPs, the drawdown rate is estimated based on the outlet diameter entered. The drawdown time is the time it takes for the BMP drain the volume above the underdrain.
A111: The recommended min. diameter for orifices is 1-inch. The allowed min. diameter in the Sizing Calculator is 0.5-inch. Designs with orifice diameters less than 1-inch should include measures to prevent orifice clogging. (Note: Outlet Control Structure details are required if default values are adjusted.)
A112: Drawdown rates for infiltration BMPs are based on the site's Design Infiltration Rate and are thus not subject to outlet modifications.
A113: > Drawdown Time: All BMPs must drain within 48 hours with the exception of cisterns. Rainwater harvesting cisterns do not have a maximum drawdown time as they are designed for longer-term storage and reuse. For plant health, it is recommended that the ponding depth and soil media of vegetated systems drain within 24 hours or less.
A118: BMPs in Series
A119: BMPs in Series allow for enhanced design of stormwater BMPs. The use of BMPs in Series must be proposed and approved by SFPUC staff at a SCP Pre-application meeting, or via written approval.
A120: > If BMPs in Series are proposed at the site, the user should select "Yes" from the corresponding drop-down menu. If a series of BMPs is not proposed, leave as this as the default "No".
A121: > After selecting "Yes", select the First BMP and Receiving BMP of the BMPs in Series from the corresponding drop-down menus.
A122: The calculator will add the outflow from the First BMP to the inflow for the Receiving BMP. The Receiving BMP is allowed to have its own separate drainage area un-associated with the First BMP of the BMPs in Series.
A123: > The Overflow and Detained Discharge from the First BMP that flows into the Receiving BMP is shown in the far right table of Step 6. If there is Untreated Overflow shown in Step 5, this means that the Receiving BMP is overflowing to the sewer. To correct this, adjust the size of the First BMP to reduce Overflow and Discharge into the Receiving BMP and/or the size of the Receiving BMP to reduce Overflow to the sewer.
A125: Steps 4, 5, and 6 do not require user input. They are included as a summary of checks, overall SMR performance, and BMP performance.
A127: Step 4: Check that the site and drainage management areas are entered correctly
A128: • Step 4 summarizes the site's drainage management plan and checks the feasibility of areas input in Step 3a.
A129: • Ensure that the "Check of Areas" column does not include any "ERROR" responses. If the column does include "ERROR," check areas and drainage areas in Step 3.
A130: • Runoff from impervious areas should be treated. If "UNCAPTURED" is returned, check drainage areas in Step 3. Note: Any uncaptured areas must be justified to the SFPUC.
A132: Step 5: Compare if the SMR runoff reduction requirements are met
A133: • Step 5 summarizes the information needed to check compliance with the MS4 performance requirements.
A134: • The "Requirement Met?" column in the table returns a "PASS" or "NO," indicating whether or not the stormwater requirement has been met. If the treatment requirement has not been met, a note will be generated that suggests using additional or different BMPs. Note: Any uncaptured areas must be justified to the SFPUC.
A136: Step 6: Review BMP performance
A137: • Step 6 summarizes the runoff reduction performance during the 85th or 90th percentile storm for each BMP at the site. Untreated volumes are shown in red.
A138: • The table displays the peak flow in and out of each BMP measure, as well as the total runoff volume to each BMP, the volume retained (through infiltration, evapotranspiration, or reuse), and the volume discharged to the sewer.
A139: • Retained volume also includes "volume remaining in storage," which equals the total volume left in the BMP measure 48 hours after the end of the storm event. With the exception of cisterns, all volume captured by the BMPs should have been drawn down by this time, and thus, this value should be zero. For cisterns, the value presented is the positive net change in storage and does not include the starting volume of the cistern.
A140: • The table to the far right summarizes the volumes going to a Receiving BMP from the First BMP in series. This is only applicable if BMPs in Series are used.
A141: • If Step 5 indicates that the proposed stormwater plan does not meet the requirements, Step 6 can be used to assess the performance of each BMP type and determine necessary adjustments.
A142: Iterative Adjustments: If adjustments are required, return to Step 3a and 3b to make the necessary changes.

Sheet MS4 BMP Sizing Calculator
C1: MS4 BMP SIZING CALCULATOR - Only use for subwatersheds less than 2 acres, and sites less than 5 acres. | J1: Project Requirement: | O1: LEGEND: | Q1: Supporting Calculations - Hide all Columns when Finished
C2: Project Address: | F2: Applicant Name: | J2: Project Size: | L2: =IF(D7=0," ",IF(D7<2500,"N/A",IF(AND(D7>=2500,D7<5000),"Small Project","Large Project"))) ->  | O2: User Input | Q2: Hide Column | R2: Hide Column | S2: Hide Column | T2: Hide Column | U2: Hide Column | V2: Hide Column | W2: Hide Column | X2: Hide Column | Y2: Hide Column | Z2: Hide Column | AA2: Hide Column | AB2: Hide Column | AC2: Hide Column | AD2: Hide Column | AE2: Hide Column
C3: Project Name (Alias): | F3: Company: | J3: =IF(D7=0," ", IF(D5=0, " ", IF(D5="SF Public Utilities Commission", IF(L2="Small Project","Projects shall use SMARTS calculator to estimate runoff reduction from stormwater BMPs (www.waterboards.ca.gov/phaseIIpermit/).", IF(L2="Large Project", "Implement stormwater BMPs to capture and treat all impervious area runoff from rain events up to the 90th percentile event.", "There are no runoff requirements for this project.")), IF(D5="Port of San Francisco", IF(L2="Small Project", "Projects shall use SMARTS calculator to estimate runoff reduction from stormwater BMPs (www.waterboards.ca.gov/phaseIIpermit/).", IF(L2="Large Project", "Implement stormwater BMPs to capture and treat all impervious area runoff from rain events up to the 85th percentile event.", "There are no runoff requirements for this project.")))))) ->  | O3: Default Value | T3: Summary of Site Infiltration Characteristics
C4: Subwatershed Name (if applicable): | F4: Date: | O4: Locked | T4: Soil Type | U4: =IF(D11="", "", D11) ->  | AB4: Evapotranspiration Factors
C5: Jurisdiction: | O5: Comment | T5: HSG Est. Inf. Rate (in/hr) | U5: =IF(U4="", "", HLOOKUP(U4,W10:Z11,2)) ->  | AB5: Flow-Thru Planter (lined) | AD5: Flow-Thru Planter (unlined) | AF5: Vegetated Roof | AH5: Vegetated Swale
C6: Total Project Site Area (ft2): | E6: =IF(D6>2*43560,"The Sizing Calculator is not recommend for large or complex sites. See 'BMP Sizing Instructions' worksheet for site size restrictions.", " ") ->  | AD6: Vegetated Swale
C7: Impervious Area Created or Replaced (ft2):
R8: =" " -> 
Q9: Not Conducted | R9: =" " ->  | T9: Unconstrained Inf. Rate (in/hr) | U9: =IF($D$12="No",0,IF(ISBLANK(D14),U5,IF($D$16=" ",U5,$D$14*$D$16))) ->  | W9: HSG Soil Type | AB9: Soil Depth (ft) | AC9: All Soil Types | AD9: Soil Type D | AE9: Soil Type C | AF9: Soil Depth | AG9: Loss | AH9: Soil Depth (ft) | AI9: No Inf | AJ9: Soil Type D | AK9: Soil Type C
C10: STEP 1 - Enter the site's infiltration characteristics | Q10: Pilot Infiltration Test | R10: 0.5 | T10: Design Inf. Rate (in/hr) | U10: =D17 ->  | W10: A | X10: B | Y10: C | Z10: D | AA10: Not Feas. | AB10: (ft) | AC10: (in/hr) | AD10: in/hr | AE10: in/hr | AF10: (ft) | AG10: (in/hr) | AH10: (ft) | AI10: (in/hr) | AJ10: in/hr | AK10: in/hr
C11: HSG Soil Type: | Q11: Double-Ring Infiltrometer | R11: 0.33 | V11: Estimated Infiltration Rate (in/hr) | W11: 0.5 | X11: 0.35 | Y11: 0.2 | Z11: 0.1 | AA11: 0 | AB11: 1.5 | AC11: 0.11 | AD11: 0.02 | AE11: 0.0025 | AF11: 0.25 | AG11: 0.02 | AH11: 1.5 | AI11: 0.11 | AJ11: 0.02 | AK11: 0.0025
C12: Is Infiltration Feasible or Proposed? | Q12: Soil Grain Size Analysis | R12: 0.33 | V12: Expected BMP as % of DMA | W12: 0.07 | X12: 0.09 | Y12: 0.13 | Z12: 0.17 | AA12: 0.2 | AB12: 1.75 | AC12: 0.115 | AD12: 0.025 | AE12: 0.005 | AF12: 0.33 | AG12: 0.025 | AH12: 1.75 | AI12: 0.115 | AJ12: 0.025 | AK12: 0.005
C13: If No, Please Select Why: | Q13: Alternate (e.g., Borehole) | R13: 0.25
C14: Measured Infiltration Rate (in/hr): | Q14: For E17 Note: | AB14: 2 | AC14: 0.12 | AD14: 0.03 | AE14: 0.01 | AF14: 0.5 | AG14: 0.03 | AH14: 2 | AI14: 0.12 | AJ14: 0.03 | AK14: 0.01
C15: Infiltration Testing Method: | Q15: =D17+1 ->  | T15: Tree Canopy Credit (ft2) | AB15: 2.5 | AC15: 0.125 | AD15: 0.035 | AE15: 0.015 | AF15: 0.75 | AG15: 0.04 | AH15: 2.5 | AI15: 0.125 | AJ15: 0.035 | AK15: 0.015
C16: Infiltration Rate Correction Factor: | D16: =IF(D12="No",0,IF(ISBLANK(D15)," ",VLOOKUP(D15,Q8:R13,2,FALSE))) ->  | T16: 100 | AB16: 3 | AC16: 0.13 | AD16: 0.04 | AE16: 0.02 | AF16: 1 | AG16: 0.05 | AH16: 3 | AI16: 0.13 | AJ16: 0.04 | AK16: 0.02
C17: Design Infiltration Rate (in/hr): | D17: =IF(U9="","", IF(U9>5, 5, U9)) ->  | E17: =IF(ISERR(Q15)," ", IF(ISBLANK(D12),"Select Yes or No above for infiltration feasibility"," ")) ->  | Q17: High Concentration of Pollution | W17: CN | X17: S | Y17: Ia | AD17: Adjustment for Unlined with no Sub-U/D Storage | AF17: 1.25 | AG17: 0.06
Q18: Geotechnical Hazard | V18: Undeveloped (Natural) Conditions | W18: =F34 ->  | X18: =1000/W18-10 ->  | Y18: =X18*0.2 ->  | AD18: in/hr
C19: STEP 2 - Enter the site's runoff pathway information to estimate the Time of Concentration (Tc) | Q19: Elevated Plaza or Structure | AD19: 0
C20: Means of Conveying Runoff to BMPs: | Q20: Shallow Bedrock | W20: Site Weighted Averages - Existing Conditions | Z20: Site Weighted Averages - Proposed Conditions | AE20: ET Rate Used in FTP (Unlined) (in/hr) | AF20: =IF(J53>0, IF(U10=0,VLOOKUP(J53,AB11:AC16,2),IF(U4="D",VLOOKUP(J53,AB11:AE16,3),VLOOKUP(J53,AB11:AE16,4)))+IF(AND(U10>0,L53=0),AD19,0), 0) -> 0.0025
C21: Ave. Site Slope in Direction of Flow (%): | Q21: High Groundwater | W21: CN | X21: Sheet n | Y21: Shallow Ks | Z21: CN | AA21: Sheet n | AB21: Shallow Ks | AE21: ET Rate Used for "FTP (Underdrained + Lined)" (in/hr) | AF21: =IF(J54>0, VLOOKUP(J$54,AB$11:AC$16,2), 0) -> 0.11
C22: Maximum Flow Length (ft): | W22: =IF($D$61>0,(W27*$X$29+W34*$X$39)/$D61,0) -> 0 | X22: =IF($D$61>0,(X27*$X$29+X34*$X$39)/$D61,0) -> 0 | Y22: =IF($D$61>0,(Y27*$X$29+Y34*$X$39)/$D61,0) -> 0 | Z22: =IF($AA$29+$AA$39>0,(Z27*$AA$29+Z34*$AA$39)/($AA$29+$AA$39),0) -> 0 | AA22: =IF($AA$29+$AA$39>0,(AA27*$AA$29+AA34*$AA$39)/($AA$29+$AA$39),0) -> 0 | AB22: =IF($AA$29+$AA$39>0,(AB27*$AA$29+AB34*$AA$39)/($AA$29+$AA$39),0) -> 0
C23: Pretreatment Conveyance Swale U/S of Bioretention? | D23: No
Q24: 2nd BMP | R24: 1st BMP | S24: Existing | T24: Proposed | AE24: ET Rate Used for Vegetated Roof | AF24: =IF(J51>0, VLOOKUP($J$51,AF$11:AG$17,2), 0) -> 0.03 | AI24: Swale | AJ24: No Swale
C25: STEP 3a - Enter the sites EXSITING and PROPOSED areas of impervious, pervious, and BMP surfaces. | K25: BMPs in Series | Q25: Bioretention/FTP (Underdrain No Liner) | R25: Cistern | S25: Impervious Surfaces | T25: Impervious Surfaces | U25: Value for Surfaces | W25: Weighted Values - Existing | Z25: Weighted Values - Proposed | AE25: ET Rate Used for Vegetated Swale | AF25: =IF(J48>0, IF(E48=0, 0, IF('Swale Calculator'!C19 = "No", IF(U10=0,VLOOKUP(J48,AH11:AK16,2),IF(U4="D",VLOOKUP(J48,AH11:AK16,3),VLOOKUP(J48,AH11:AK16,4)))+IF(AND(U10>0,L48=0),AD19,0), 0)), 0) -> 0 | AH25: BMP Min Ratio | AI25: 0.025 | AJ25: 0.03
A26: Conventional Surfaces | B26: Impervious | C26: Surface Type | D26: Existing (ft2) | E26: Proposed (ft2) | F26: Curve Number | L26: Are BMPs in Series Proposed? | M26: No | Q26: Bioretention/FTP (Underdrain Liner) | S26: Effective Imp Area | T26: Effective Imp Area | U26: Sheet n | V26: Shallow Ks | W26: CN | X26: Sheet n | Y26: Shallow Ks | Z26: Proj CN | AA26: Sheet n | AB26: Shallow Ks | AE26: ET Rate Used for Vegetated Swale with Underdrain | AF26: =IF(J55>0, IF(E55=0, 0, IF('Swale Calculator'!C19="Yes", IF(U10=0,VLOOKUP(J55,AH11:AK16,2),IF(U4="D",VLOOKUP(J55,AH11:AK16,3),VLOOKUP(J55,AH11:AK16,4)))+IF(AND(U10>0,L55=0),AD19,0),0)), 0) -> 0 | AH26: Run-On Ratio | AI26: =(1-AI25)/AI25 -> 39 | AJ26: =(1-AJ25)/AJ25 -> 32.33333333
C27: Pavement (Conventional) | F27: =HLOOKUP('MS4 BMP Sizing Calculator'!$D$11,'Tc Calcs'!$O$3:$R$14,3) ->  | L27: First BMP in Series | Q27: Bioretention Swale (Underdrain) | S27: =D27 -> 0 | T27: 0 | U27: ='Tc Calcs'!S5 -> 0.011 | V27: ='Tc Calcs'!T5 -> 20.33 | W27: =IF(X29>0,SUMPRODUCT(S27:S31,F27:F31)/X29,0) -> 0 | X27: =IF(X29>0,SUMPRODUCT(S27:S31,U27:U31)/X29,0) -> 0 | Y27: =IF(X29>0,SUMPRODUCT(S27:S31,V27:V31)/X29,0) -> 0 | Z27: =IF(AA29>0,SUMPRODUCT($T27:$T31,F27:F31)/AA29,98) -> 98 | AA27: =IF(AA29>0,SUMPRODUCT(T27:T31,U27:U31)/AA29,0.012) -> 0.012 | AB27: =IF(AA29>0,SUMPRODUCT(T27:T31,V27:V31)/AA29,20.3) -> 20.3 | AD27: Aggregate Porosity | AF27: 0.4
C28: Roof (Conventional) | F28: =HLOOKUP('MS4 BMP Sizing Calculator'!$D$11,'Tc Calcs'!$O$3:$R$14,4) ->  | L28: Receiving BMP in Series | S28: 0 | T28: 0 | U28: ='Tc Calcs'!S6 -> 0.013 | V28: ='Tc Calcs'!T6 -> 20.33 | AD28: Media Porosity | AF28: 0.3 | AG28: Design Long-Term K | AH28: Factor of Safety | AI28: Run-On Ratio
C29: Gravel on Soils | F29: =HLOOKUP('MS4 BMP Sizing Calculator'!$D$11,'Tc Calcs'!$O$3:$R$14,5) ->  | K29: =IF(AND(M26="Yes",OR(ISBLANK(M27), ISBLANK(M28))),"Select First BMP and Receiving BMP or change answer to No"," ") ->  | S29: 0 | T29: 0 | U29: ='Tc Calcs'!S7 -> 0.05 | V29: ='Tc Calcs'!T7 -> 16.13 | W29: Total Area = | X29: =SUM(S27:S31) -> 0 | Z29: Total Area = | AA29: =SUM(T27:T31) -> 0 | AD29: Media Conductivity | AF29: =AG29*AH29 -> 4 | AG29: 5 | AH29: =IF(D23="Yes",1,0.8) -> 0.8 | AI29: =IF($D$23="Yes", AI26, AJ26) -> 32.33333333
C30: Water | S30: 0 | T30: 0
C31: Other: | S31: 0 | T31: 0 | U31: 0.011 | V31: 20.33 | W31: Weighted Values - Existing | Z31: Weighted Values - Proposed | AD31: FTP-UL Weighted Porosity | AF31: =(J53*$AF$28+K53*$AF$27)/(J53+K53) -> 0.3
C32: Impervious Areas Subtotal | D32: =SUM(D27:D31) -> 0 | E32: =SUM(E27:E31) -> 0 | AD32: FTP-L Weighted Porosity | AF32: =(J54*$AF$28+K54*$AF$27)/(J54+K54) -> 0.3
C33: Pervious Areas | D33: Existing (ft2) | E33: Proposed (ft2) | F33: CN | U33: Sheet n | V33: Shallow Ks | W33: CN | X33: Sheet n | Y33: Shallow Ks | Z33: Proj CN | AA33: Sheet n | AB33: Shallow Ks
B34: Pervious | C34: Grass/Lawn | F34: =HLOOKUP('MS4 BMP Sizing Calculator'!$D$11,'Tc Calcs'!$O$3:$R$14,9) ->  | U34: ='Tc Calcs'!S11 -> 0.15 | V34: ='Tc Calcs'!T11 -> 7 | W34: =IF($X$39>0,SUMPRODUCT($D34:$D39,F34:F39)/$X$39,0) -> 0 | X34: =IF($X$39>0,SUMPRODUCT($D34:$D39,U34:U39)/$X$39,0) -> 0 | Y34: =IF($X$39>0,SUMPRODUCT($D34:$D39,V34:V39)/$X$39,0) -> 0 | Z34: =IF(AA39>0,SUMPRODUCT($E34:$E39,F34:F39)/AA39,0) -> 0 | AA34: =IF(AA39>0,SUMPRODUCT($E34:$E39,U34:U39)/AA39,0) -> 0 | AB34: =IF(AA39>0,SUMPRODUCT($E34:$E39,V34:V39)/AA39,0) -> 0 | AD34: Veg. Roof Weighted Porosity | AF34: =(J51*$AF$28)/(J51) -> 0.3
C35: Landscaping at Grade (Low Density) / SIA | F35: =HLOOKUP('MS4 BMP Sizing Calculator'!$D$11,'Tc Calcs'!$O$3:$R$14,10) ->  | G35: STEP 3b - Enter stormwater BMP design information AND the conventional areas from Step 3a that drain to each BMP. | U35: ='Tc Calcs'!S12 -> 0.24 | V35: ='Tc Calcs'!T12 -> 6 | AD35: PP with Drain Weighted Porosity | AF35: =S50 -> 0.4
C36: Landscaping at Grade (High Density) | F36: =HLOOKUP('MS4 BMP Sizing Calculator'!$D$11,'Tc Calcs'!$O$3:$R$14,11) ->  | U36: ='Tc Calcs'!S13 -> 0.4 | V36: ='Tc Calcs'!T13 -> 5 | AD36: Media Filter Weighted Porosity | AF36: =AF28 -> 0.3
C37: Tree Well | F37: =HLOOKUP('MS4 BMP Sizing Calculator'!$D$11,'Tc Calcs'!$O$3:$R$14,12) ->  | G37: Drainage Areas | I37: BMP Depths and Volumes | N37: Outlet Design | U37: 0.4 | V37: 5 | AD37: Tree Box Weighted Porosity | AF37: =(I59*1+J59*$AF$28+K59*$AF$27)/(I59+J59+K59) -> 0.4561797753
C38: Traditional Planter on Podium | F38: =HLOOKUP('MS4 BMP Sizing Calculator'!$D$11,'Tc Calcs'!$O$3:$R$15,13) ->  | G38: Impervious Area Draining to BMP (ft2) | H38: Pervious Area Draining to BMP (ft2) | I38: BMP Ponding Depth (ft) | J38: BMP Media Depth (ft) | K38: Gravel Storage Depth (ft) | L38: Height of Underdrain Above Base (ft) | M38: Storage Volume (gallons) | N38: Outlet Diameter (in) | O38: Approx. Drawdown Time (hrs)
C39: Other: | U39: 0.24 | V39: 6 | W39: Total Area = | X39: =D40 -> 0 | Z39: Total Area = | AA39: =E40 -> 0 | AD39: Veg Swale Weighted Porosity | AF39: =IF('Swale Calculator'!C19="No", IF(E48=0, 1, (J48*$AF$28+K48*$AF$27)/(J48+K48)), IF(E55=0, 1, (J55*$AF$28+K55*$AF$27)/(J55+K55))) -> 1
C40: Pervious Areas Subtotal | D40: =SUM(D34:D39) -> 0 | E40: =SUM(E34:E39) -> 0 | F40: --
C41: Subtotal of Conventional Areas | D41: =SUM(D32,D40) -> 0 | E41: =SUM(E32,E40) -> 0 | F41: -- | AD41: RAINWATER HARVESTER DATA
D42: Existing BMP Area (ft2) | E42: Proposed BMP Area (ft2) | R42: Dry Well Area (ft2) | S42: Porosity of Media Area | T42: Available Storage Volume (ft3) | U42: Default K (in/hr) | V42: f (in/hr) | W42: Sub-UD storage (ft3) | X42: Orifice Area (ft2) | Y42: Orifice Ave Q (cfs) | Z42: Orifice Drawdown (hrs) | AA42: Media Drawdown (hrs) | AB42: Drawdown Used (hrs) | AC42: Storage Above Underdrain (ft3) | AD42: Average Reuse Rate (gpd) | AE42: Average Starting Volume (ft3) | AF42: Total Cistern Volume (ft3) | AG42: Drawdown (Orifice Controls Rate) (hrs) | AH42: Drawdown (Media Controls Rate) (days) | AI42: Winter Reuse Rate (gpd) | AJ42: Detention Storage (cf) | AK42: BMP Area (sf) | AL42: Annual % Reuse
C43: 1st Priority - Reduction Measures
A44: Stormwater BMPs | B44: Reduce | C44: Rainwater Harvesting Cistern | D44: -- | E44: -- | F44: -- | G44: ='RWH Calculator'!C62 -> 0 | H44: ='RWH Calculator'!C63 -> 0 | I44: ='RWH Calculator'!C70 -> 0 | J44: -- | K44: ='RWH Calculator'!C69 -> 0 | L44: -- | M44: ='RWH Calculator'!C77 -> 0 | N44: ='RWH Calculator'!C71 -> 0 | O44: =AH44&" days" -> 0 days | Q44: =C44 -> Rainwater Harvesting Cistern | S44: 1 | T44: =AF44-AE44 -> 0 | X44: =PI()*(N44/2/12)^2 -> 0 | Y44: =0.66*X44*(2*32.17*(I44)/2)^0.5 -> 0 | AD44: ='RWH Performance Evaluation'!D7/3651 -> 0 | AE44: ='RWH Calculator'!C79/7.48 -> 0 | AF44: =M44/7.48 -> 0 | AG44: =IF(Y44>0,AJ44/ Y44/3600,0) -> 0 | AH44: =IF($AI44>0,ROUND(M44/$AI44,1),0) -> 0 | AI44: =SUM('RWH 10-yr Simulation'!AE25:AE29,'RWH 10-yr Simulation'!AE34:AE36)/10/SUM('RWH Calculator'!M27:M31,'RWH Calculator'!M36:M38) -> 0 | AJ44: ='RWH Calculator'!C78/7.48 -> 0 | AK44: ='RWH Calculator'!C75 -> 0 | AL44: =IF('RWH Calculator'!F159>0,'RWH Calculator'!F159,0) -> 0
C45: Bioretention (No Underdrain, No Liner) | D45: -- | F45: -- | I45: 0.5 | J45: 1.5 | L45: -- | M45: =T45*7.48 -> 0 | N45: -- | O45: =AB45 -> 0 | Q45: =C45 -> Bioretention (No Underdrain, No Liner) | S45: =AF28 -> 0.3 | T45: =E45*(I45+J45*S45+K45*AF27) -> 0 | U45: =IF($D$12="Yes", IF($U$10<$AF$29, $U$10, IF($D$23="Yes", $AG$29, $AF$29)),0) -> 0 | V45: =U45 -> 0 | W45: -- | AA45: =IF(T45>0,(E45*(I45+J45*S45))/((U45/12)*E45),0) -> 0 | AB45: =IF(E45>0,AA45,0) -> 0 | AC45: --
C46: Infiltration Trench | D46: -- | F46: -- | I46: -- | J46: -- | K46: 3.5 | L46: -- | M46: =T46*7.48 -> 0 | N46: -- | O46: 0 | Q46: =C46 -> Infiltration Trench | S46: =$AF$27 -> 0.4 | T46: =E46*(K46*$AF$27) -> 0 | U46: =IF($D$12="Yes", $U$10, 0) -> 0 | V46: =U46 -> 0 | W46: -- | AA46: =IF(T46>0,T46/(U46/12*E46),0) -> 0 | AB46: =IF(E46>0,AA46,0) -> 0 | AC46: --
C47: Dry Well / Infiltration Gallery | D47: -- | E47: -- | F47: -- | I47: 0 | J47: -- | K47: 3.5 | L47: -- | N47: -- | O47: 0 | Q47: =C47 -> Dry Well / Infiltration Gallery | R47: =IF($I47+$K47>0,$M47/7.48/($AF$27*$K47+$I47),0) -> 0 | S47: =$AF$27 -> 0.4 | T47: =M47/7.48 -> 0 | U47: =IF($D$12="Yes", $U$10, 0) -> 0 | V47: =U47 -> 0 | W47: -- | AA47: =IF(T47>0,T47/(U47/12*R47),0) -> 0 | AB47: =IF(M47>0,AA47,0) -> 0 | AC47: --
C48: Bioretention Swale (No Underdrain) | D48: -- | E48: =IF('Swale Calculator'!$C$19="No",ROUND('Swale Calculator'!$C25, 0),0) -> 0 | F48: -- | G48: =IF('Swale Calculator'!$C$19="No", 'Swale Calculator'!$C9,0) -> 0 | H48: =IF('Swale Calculator'!$C$19="No", 'Swale Calculator'!$C10, 0) -> 0 | I48: =IF('Swale Calculator'!$C$19="No", 'Swale Calculator'!$C16,0) -> 0 | J48: =IF('Swale Calculator'!$C$19="No", 'Swale Calculator'!$C17, 0) -> 0 | K48: =IF('Swale Calculator'!$C$19="No", 'Swale Calculator'!$C18,0) -> 0 | L48: -- | M48: =IF('Swale Calculator'!$C$19="No", 'Swale Calculator'!$C36*7.48, 0) -> 0 | N48: -- | O48: 0 | Q48: =C48 -> Bioretention Swale (No Underdrain) | S48: =AF28 -> 0.3 | T48: =M48/7.48 -> 0 | U48: =IF($D$12="Yes", IF($U$10<$AF$29, $U$10, IF($D$23="Yes", $AG$29, $AF$29)),0) -> 0 | W48: -- | AA48: =IF(T48>0,(E48*(I48+J48*S48))/((U48/12)*E48),0) -> 0 | AB48: =IF(E48>0,AA48,0) -> 0 | AC48: --
C49: Permeable Pavement (No Underdrain) | D49: -- | F49: -- | H49: 0 | I49: -- | J49: -- | K49: 1 | L49: -- | M49: =T49*7.48 -> 0 | N49: -- | O49: 0 | Q49: =C49 -> Permeable Pavement (No Underdrain) | S49: =$AF$27 -> 0.4 | T49: =E49*(K49*$AF$27) -> 0 | U49: =IF($D$12="Yes", $U$10, 0) -> 0 | V49: =U49 -> 0 | W49: -- | AA49: =IF(T49>0,T49/(U49/12*E49),0) -> 0 | AB49: =IF(E49>0,AA49,0) -> 0 | AC49: --
C50: Permeable Pavement (Underdrain) | D50: -- | F50: -- | H50: 0 | I50: -- | J50: -- | K50: 1 | L50: 0.167 | M50: =T50*7.48 -> 0 | N50: 4 | O50: 0 | Q50: =C50 -> Permeable Pavement (Underdrain) | S50: =$AF$27 -> 0.4 | T50: =E50*K50*$AF$27 -> 0 | U50: =IF($D$12="Yes", $U$10, 0) -> 0 | W50: =L50*E50*S50 -> 0 | X50: =PI()*(N50/12/2)^2 -> 0.0872664626 | Y50: =0.66*X50*(2*32.17*(IF(K50>L50,K50-L50,0))/2)^0.5 -> 0.2981531065 | Z50: =IF(Y50>0,AC50/Y50/3600,0) -> 0 | AA50: =IF(T50>0,T50/(U50/12*E50),0) -> 0 | AB50: =IF(E50>0,Z50,0) -> 0 | AC50: =E50*(IF(K50>L50,K50-L50,0)*$AF$27) -> 0
C51: Vegetated Roof | D51: -- | F51: -- | I51: -- | J51: 0.5 | K51: -- | L51: -- | M51: =T51*7.48 -> 0 | N51: 4 | O51: 0 | Q51: =C51 -> Vegetated Roof | S51: =$AF$28 -> 0.3 | T51: =E51*(J51*S51)+1/24*E51 -> 0 | U51: 1 | V51: =IF(T51>0,T51/E51/AB51*12,0) -> 0 | W51: 0 | X51: =PI()*(N51/12/2)^2 -> 0.0872664626 | Y51: =0.66*X51*(2*32.17*(IJ51*S51)/2)^0.5 -> 0 | Z51: =IF(Y51>0,T51/Y51/3600,0) -> 0 | AA51: =IF(T51>0,T51*(J51)/(U51/12*(J51)*E51),0) -> 0 | AB51: =IF(E51>0,IF(AA51>=Z51,AA51,Z51),0) -> 0 | AC51: =E51*(J51*S51) -> 0
C52: 2nd Priority - Detention and Treatment Measures | Q52: 2nd Priority - Detention and Treatment Measures | T52: Available Storage Volume (ft3) | U52: Default K (in/hr) | V52: Calc'd f (in/hr) | W52: Sub-UD storage (ft3) | X52: Orifice Area (ft2) | Y52: Orifice Ave Q (cfs) | Z52: Orifice Drawdown (hrs) | AA52: Media Drawdown (hrs) | AB52: Drawdown Used (hrs) | AC52: Storage Above Underdrain (ft3)
B53: Biotreat | C53: Bioretention/FTP (Underdrain, No Liner) | D53: -- | F53: -- | I53: 0.5 | J53: 1.5 | L53: 0.167 | M53: =T53*7.48 -> 0 | N53: 4 | O53: =AB53 -> 0 | Q53: Bioretention/FTP (Underdrain, No Liner) | S53: =$AF$28 -> 0.3 | T53: =E53*(I53+J53*S53+K53*$AF$27) -> 0 | U53: =IF($D$23="Yes", $AG$29, $AF$29) -> 4 | V53: =IF(AC53>0,AC53/E53/AB53*12,0) -> 0 | W53: =L53*E53*$AF$27 -> 0 | X53: =PI()*(N53/12/2)^2 -> 0.0872664626 | Y53: =0.66*X53*(2*32.17*(I53+J53+IF(K53>L53,K53-L53,0))/2)^0.5 -> 0.4619892135 | Z53: =IF(Y53>0,AC53/Y53/3600,0) -> 0 | AA53: =IF(T53>0,(E53*(I53+J53*S53))*(J53)/(U53/12*(I53/2+J53)*E53),0) -> 0 | AB53: =IF(E53>0,IF(AA53>=Z53,AA53,Z53),0) -> 0 | AC53: =E53*(I53+J53*S53+IF(K53>L53,K53-L53,0)*$AF$27) -> 0
C54: Bioretention/FTP (Underdrain, Liner) | D54: -- | F54: -- | I54: 0.5 | J54: 1.5 | L54: -- | M54: =T54*7.48 -> 0 | N54: 4 | O54: 0 | Q54: Bioretention/FTP (Underdrain, Liner) | S54: =$AF$28 -> 0.3 | T54: =E54*(I54+J54*S54+K54*$AF$27) -> 0 | U54: =IF($D$23="Yes", $AG$29, $AF$29) -> 4 | V54: =IF(AC54>0,AC54/E54/AB54*12,0) -> 0 | W54: 0 | X54: 0.0872664626 | Y54: =0.66*X54*(2*32.17*(I54+J54+K54)/2)^0.5 -> 0.4619892135 | Z54: =IF(Y54>0,AC54/Y54/3600,0) -> 0 | AA54: =IF(T54>0,(E54*(I54+J54*S54))*(J54)/(U54/12*(I54/2+J54)*E54),0) -> 0 | AB54: =IF(E54>0,IF(AA54>=Z54,AA54,Z54),0) -> 0 | AC54: =E54*(I54+J54*S54+K54*$AF$27) -> 0
C55: Bioretention Swale (Underdrain) | D55: -- | E55: =IF('Swale Calculator'!$C$19="Yes", ROUND('Swale Calculator'!$C25,0), 0) -> 0 | F55: -- | G55: =IF('Swale Calculator'!$C$19="Yes", 'Swale Calculator'!$C9, 0) -> 0 | H55: =IF('Swale Calculator'!$C$19="Yes", 'Swale Calculator'!$C10, 0) -> 0 | I55: =IF('Swale Calculator'!$C$19="Yes", 'Swale Calculator'!$C16, 0) -> 0 | J55: =IF('Swale Calculator'!$C$19="Yes", 'Swale Calculator'!$C17, 0) -> 0 | K55: =IF('Swale Calculator'!$C$19="Yes", 'Swale Calculator'!$C18, 0) -> 0 | L55: =IF('Swale Calculator'!$C$19="Yes", 'Swale Calculator'!$C20, 0) -> 0 | M55: =IF('Swale Calculator'!$C$19="Yes", 'Swale Calculator'!$C36*7.48, 0) -> 0 | N55: =IF('Swale Calculator'!$C$19="Yes", 'Swale Calculator'!$C21, 0) -> 0 | O55: =AB55 -> 0 | Q55: =C55 -> Bioretention Swale (Underdrain) | S55: =$AF$28 -> 0.3 | T55: =M55/7.48 -> 0 | U55: =IF($D$23="Yes", $AG$29, $AF$29) -> 4 | W55: =L55*'Swale Calculator'!C12*'Swale Calculator'!C13*AF27 -> 0 | X55: =PI()*(N55/2/12)^2 -> 0 | Y55: =0.66*X55*(2*32.17*(I55+J55+IF(K55>L55,K55-L55,0))/2)^0.5 -> 0 | Z55: =IF(Y55>0,AC55/Y55/3600,0) -> 0 | AA55: =IF(T55>0,(E55*(I55+J55*S55))*(J55)/(U55/12*(I55/2+J55)*E55),0) -> 0 | AB55: =IF(E55>0,IF(AA55>=Z55,AA55,Z55),0) -> 0 | AC55: =T55-(L55*'Swale Calculator'!C13*'Swale Calculator'!C12*AF27) -> 0
C56: Detention Vault | D56: -- | E56: 0 | F56: -- | I56: 3 | J56: -- | K56: -- | L56: -- | N56: 1.5 | O56: 0 | Q56: Detention Vault | R56: =IF(T56>0, T56/I56, 0) -> 0 | S56: 1 | T56: =M56/7.48 -> 0 | W56: -- | X56: 0.0122718463 | Y56: =0.66*X56*(2*32.17*(I56)/2)^0.5 -> 0.0795682856 | Z56: =IF(Y56>0,T56/Y56/3600,0) -> 0 | AA56: -- | AB56: =IF(M56>0,Z56,0) -> 0 | AC56: --
C57: 3rd Priority - Treatment Measures | Q57: =C57 -> 3rd Priority - Treatment Measures | T57: Available Storage Volume (ft3) | U57: Default K (in/hr) | V57: Calc'd f (in/hr) | W57: Sub-UD storage (ft3) | X57: Orifice Area (ft2) | Y57: Orifice Ave Q (cfs) | Z57: Orifice Drawdown (hrs) | AA57: Media Drawdown (hrs) | AB57: Drawdown Used (hrs) | AC57: Storage Above Underdrain (ft3)
C58: Media Filter (pre-approval required) | D58: -- | E58: ='Media Filter Calculator'!C11 -> 0 | F58: -- | G58: ='Media Filter Calculator'!C10 -> 0 | H58: -- | I58: -- | J58: -- | K58: -- | L58: -- | M58: -- | N58: -- | O58: -- | Q58: Media Filter (pre-approval required) | S58: =$AF$28 -> 0.3 | T58: =S58*E58 -> 0 | U58: 25 | W58: 0 | X58: 0 | Y58: 0 | Z58: 0 | AA58: 0 | AB58: 0 | AC58: 0
C59: Tree-Box Filter (pre-approval required) | D59: -- | F59: -- | I59: 0.5 | J59: 1.5 | K59: 0.67 | L59: -- | M59: =T59*7.48 -> 0 | N59: 4 | O59: 0 | Q59: Tree-Box Filter (pre-approval required) | S59: =$AF$28 -> 0.3 | T59: =E59*(I59+J59*S59+K59*$AF$27) -> 0 | U59: 25 | W59: 0 | X59: 0.0872664626 | Y59: =0.66*X59*(2*32.17*(I59+J59+K59)/2)^0.5 -> 0.5337925014 | Z59: =IF(Y59>0,AC59/Y59/3600,0) -> 0 | AA59: =IF(T59>0,AC59*(J59+K59)/(U59/12*(I59/2+J59+K59)*E59),0) -> 0 | AB59: =IF(E59>0,IF(AA59>=Z59,AA59,Z59),0) -> 0 | AC59: =E59*(I59+J59*S59+K59*$AF$27) -> 0
C60: BMP Areas Subtotals | D60: 0 | E60: =SUM(E44:E59) -> 0 | F60: -- | T60: =SUM(T48:T59) -> 0
C61: Total Project Site Areas | D61: =D60+D41 -> 0 | E61: =E60+E41 -> 0 | F61: -- | G61: =SUM(G44:G59) -> 0 | H61: =SUM(H44:H59) -> 0 | M61: =SUM(M44:M59) -> 0
C63: STEP 4 - Check that site and drainage management areas are entered correctly. (Note: MS4 = municipal separate storm sewer systems.)
C64: Project Site Surfaces | D64: Existing Area (ft2) | E64: Proposed Area (ft2) | F64: % of Total Project Area | G64: CHECK OF AREAS
C65: Impervious Area Draining to BMP | D65: 0 | E65: =T68 -> 0 | F65: =IF($E$70<>0, E65/$E$70, 0) -> 0 | G65: =IF(E65>E32,"ERROR","OK") -> OK | H65: =IF(G65="ERROR", "Area should be less than or equal to total proposed impervious area"," ") ->  | Q65: Summary of Site Areas
C66: Impervious Area Draining Directly to MS4 | D66: =R68 -> 0 | E66: =U68 -> 0 | F66: =IF($E$70<>0, E66/$E$70, 0) -> 0 | G66: =IF(E66>0, "UNCAPTURED", "") ->  | H66: =IF(E66>0, "The proposed project contains uncaptured impervious areas with runoff that will flow directly to the MS4.", "") ->  | Q66: Site Surfaces | R66: Existing | S66: Proposed Areas (ft2)
C67: Pervious Area Draining to BMP | D67: 0 | E67: =T69 -> 0 | F67: 0 | G67: =IF(E67>E40,"ERROR","OK") -> OK | H67: =IF(G67="ERROR", "Area should be less than or equal to total proposed pervious area"," ") ->  | Q67: Surfaces | R67: Area (ft2) | S67: Total Area | T67: Portion Draining to BMP | U67: Portion Draining Directly to Sewer
C68: Pervious Area Draining Directly to MS4 | D68: =R69 -> 0 | E68: =U69 -> 0 | F68: 0 | G68: =IF(E68>0, "OK", "") ->  | Q68: Impervious Areas | R68: =D32 -> 0 | S68: =E32 -> 0 | T68: =G61 -> 0 | U68: =IF(S68-T68>0,S68-T68,0) -> 0
C69: BMP Area | D69: 0 | E69: =T70 -> 0 | F69: 0 | Q69: Pervious Areas | R69: =D40 -> 0 | S69: =E40 -> 0 | T69: =H61 -> 0 | U69: =S69-T69 -> 0
C70: Total Area | D70: =SUM(D65:D69) -> 0 | E70: =SUM(E65:E69) -> 0 | G70: =IF(D70=E70,"OK", "ERROR") -> OK | H70: =IF(G70="ERROR", "Total areas should be equal"," ") ->  | Q70: BMP Areas | R70: 0 | S70: =T70 -> 0 | T70: =E60 -> 0 | U70: =S70-T70 -> 0
Q71: Totals | R71: =SUM(R68:R70) -> 0 | S71: =SUM(S68:S70) -> 0 | T71: =SUM(T68:T70) -> 0 | U71: =SUM(U68:U70) -> 0
C72: STEP 5 - Check if the performance requirements are met. If not, review stormwater BMP performance output in Step 7, then return to Step 3 to adjust stormwater strategies.
C73: Rain Event | D73: Runoff Volume Requiring Treatment (ft3) | E73: TREATED Volume Captured & Treated (ft3) | F73: UNTREATED Volume of BMP Overflow (ft3) | G73: UNTREATED Vol from Imperv Area Direct to Sewer (ft3) | H73: Percent of Treatment Volume Captured (%) | I73: Requirement Met?
C74: =IF(D5="SF Public Utilities Commission", "90th Percentile Rainfall Event", "85th Percentile Rainfall Event") -> 85th Percentile Rainfall Event | D74: =IF(M26="Yes", '85th SBUH TT'!IM4, '85th SBUH'!IO4) ->  | E74: =IF(M26="Yes", '85th SBUH TT'!IM12,'85th SBUH'!IO12) -> 0 | F74: =IF(M26="Yes", '85th SBUH TT'!IM13,'85th SBUH'!IO13) -> 0 | G74: =IF(M26="Yes", IF(AND(M27<>"", M28<>""), '85th SBUH TT'!IM5,'85th SBUH'!IO5),'85th SBUH'!IO5) -> 0 | H74: =E74/D74 ->  | I74: =IF(OR(D5="SF Public Utilities Commission",D5="Port of San Francisco"),IF(L2="Large Project", IF( AND((D74/E74)<=1.01, G74=0, F74=0),"PASS", "NO --->"), "N/A")," ") ->  | J74: =IF(I74="NO --->", IF(L2="Small Project", "Use site design measures to reduce runoff.", IF(G74>0, "Should treat 100% of impervious areas. Direct uncaptured DMA to stormwater BMPs.", "Adjust BMP parameters or add BMPs to eliminate overflow"))," ") ->  | Q74: Check of Stormwater Management Strategy
I76: =IF(H76="FAIL", "Use Site Design and BMP measures to reduce runoff volume"," ") -> 
C77: Quantity Control Parameter | D77: Existing Conditions | E77: Proposed Conditions | F77: % Reduction From Existing Conditions | G77: Target % Reduction | H77: Requirement Met? | T77: Change in % Impervious from Existing to Proposed Conditions: | U77: =(S68+S70-R68)/R71 -> 
C78: 2-yr, 24 hr: Peak Flow (cfs) | D78: ='2-yr SBUH'!K10 ->  | E78: =IF(M26="Yes", IF(AND(M27<>"", M28<>""),'2-yr SBUH TT'!HX9,'2-yr SBUH'!HW9),'2-yr SBUH'!HW9) -> 0 | F78: =ROUND((D78-E78)/D78,2) ->  | G78: =IF(L$2="Tier III",0,"N/A") -> N/A | H78: =IF(G78="N/A","N/A",IF(F78>=G78,"PASS", "FAIL")) -> N/A | I78: =IF(H78="FAIL", "Use reduction, detention, and treatment measures to reduce peak flow"," ") ->  | T78: Expected BMP Area Required as Percent of Impervious Project Drainage Area: | U78: =IF(U77<-0.3,0,HLOOKUP(D11,W10:Z12,3)+0.2*U77) -> 
C79: 2-yr, 24 hr: Runoff Volume (cf) | D79: ='2-yr SBUH'!K9 ->  | E79: =IF(M26="Yes", IF(AND(M27<>"", M28<>""), '2-yr SBUH TT'!HX6, '2-yr SBUH'!HW6), '2-yr SBUH'!HW6) -> 0 | F79: =ROUND((D79-E79)/D79,2) ->  | G79: =IF(L$2="Tier III", 0, "N/A") -> N/A | H79: =IF(G79="N/A","N/A",IF(F79>=G79,"PASS", "FAIL")) -> N/A | I79: =IF(H79="FAIL", "Use reduction, detention, and treatment measures to reduce runoff volume"," ") ->  | T79: Actual BMP Area as Percent of Impervious Project Drainage Area: | U79: =IF(SUM(E27:E31)>0,SUM(E45:E59)/SUM(E27:E31,E49, E51, E50)," ") -> 
C81: STEP 6 - Review the table below to see how each BMP performs during the water quality design storm. The site's runoff hydrographs are shown in the "Rainfall and Hydrographs" tab. | N81: For BMPs in Series Only
B82: Stormwater BMPs | D82: Inflows | E82: Outflows | G82: Volume In | H82: Volume Retained | K82: Volume Out to MS4 | N82: Volume to Receiving BMP
D83: Peak Flow to BMP (cfs) | E83: Peak Rate of Discharged Flow (cfs) | F83: Peak Rate of Overflow (cfs) | G83: Total Runoff to BMP (ft3) | H83: Infiltration + E/T (ft3) | I83: Reuse (ft3) | J83: Volume Remaining in Storage (ft3) | K83: Detained Discharge Volume (ft3) | L83: Overflow Volume (ft3) | N83: Detained Discharge Volume (ft3) | O83: Overflow Volume (ft3) | R83: Small Projects: SDM Results
B84: Reduce | C84: Reduction Measures | Q84: Total | R84: Site Design Measure | S84: Runoff Reduction (ft3)
C85: Rainwater Harvesting Cistern | D85: =IF($M$26="Yes", IF(OR($M$27="Cistern", $M$28="Cistern"), '85th SBUH TT'!$AU$8,'85th SBUH'!$AY$8),'85th SBUH'!$AY$8) -> 0 | E85: =IF($M$26="Yes", IF($M$27="Cistern", 0, IF($M$28="Cistern", '85th SBUH TT'!$AU$9,'85th SBUH'!$AY$9)),'85th SBUH'!$AY$9) -> 0 | F85: =IF($M$26="Yes", IF($M$27="Cistern", 0, IF($M$28="Cistern", '85th SBUH TT'!$AU$10,'85th SBUH'!$AY$10)),'85th SBUH'!$AY$10) -> 0 | G85: =IF($M$26="Yes", IF(OR($M$27="Cistern", $M$28="Cistern"), '85th SBUH TT'!$AU$2,'85th SBUH'!$AY$2),'85th SBUH'!$AY$2) -> 0 | H85: =IF($M$26="Yes", IF(OR($M$27="Cistern", $M$28="Cistern"), '85th SBUH TT'!$AU$3,'85th SBUH'!$AY$3),'85th SBUH'!$AY$3) -> 0 | I85: =IF($M$26="Yes", IF(OR($M$27="Cistern", $M$28="Cistern"), IF('85th SBUH TT'!$AU$4<'85th SBUH TT'!AU2, '85th SBUH TT'!AU4, '85th SBUH TT'!AU2),IF('85th SBUH'!$AY$4<'85th SBUH'!AY2, '85th SBUH'!AY4, '85th SBUH'!AY2)),IF('85th SBUH'!$AY$4<'85th SBUH'!AY2, '85th SBUH'!AY4, '85th SBUH'!AY2)) -> 0 | J85: =IF($M$26="Yes", IF(OR($M$27="Cistern", $M$28="Cistern"), IF('85th SBUH TT'!$AU$5-'85th SBUH TT'!$AO$8>0,'85th SBUH TT'!$AU$5-'85th SBUH TT'!$AO$8, 0),IF('85th SBUH'!$AY$5-'85th SBUH'!$AS$8>0,'85th SBUH'!$AY$5-'85th SBUH'!$AS$8,0)),IF('85th SBUH'!$AY$5-'85th SBUH'!$AS$8>0,'85th SBUH'!$AY$5-'85th SBUH'!$AS$8,0)) -> 0 | K85: =IF($M$26="Yes", IF($M$27="Cistern", 0, IF($M$28="Cistern", '85th SBUH TT'!$AU$6,'85th SBUH'!$AY$6)),'85th SBUH'!$AY$6) -> 0 | L85: =IF($M$26="Yes", IF($M$27="Cistern", 0, IF($M$28="Cistern", '85th SBUH TT'!$AU$7,'85th SBUH'!$AY$7)),'85th SBUH'!$AY$7) -> 0 | N85: ='85th SBUH TT'!AU6 -> 0 | O85: ='85th SBUH TT'!AU7 -> 0 | Q85: =SUM(H85:L85) -> 0 | R85: Cistern | S85: =IF($M$26="Yes", IF(OR($M$27="Cistern", $M$28="Cistern"), '85th SBUH TT'!$AU$4+'85th SBUH TT'!$AU$5-'85th SBUH TT'!$AN$16,'85th SBUH'!$AY$4+'85th SBUH'!$AY$5-'85th SBUH'!$AR$16),'85th SBUH'!$AY$4+'85th SBUH'!$AY$5-'85th SBUH'!$AR$16) -> 0
C86: Bioretention (No Underdrain, No Liner) | D86: =IF($M$26="Yes", IF(OR($M$27="Bioretention (No Underdrain No Liner)", $M$28="Bioretention (No Underdrain No Liner)"), '85th SBUH TT'!$AJ$8,'85th SBUH'!$AN$8),'85th SBUH'!$AN$8) -> 0 | E86: =IF($M$26="Yes", IF($M$27="Bioretention (No Underdrain No Liner)", 0, IF($M$28="Bioretention (No Underdrain No Liner)", '85th SBUH TT'!$AJ$9,'85th SBUH'!$AN$9)),'85th SBUH'!$AN$9) -> 0 | F86: =IF($M$26="Yes", IF($M$27="Bioretention (No Underdrain No Liner)", 0, IF($M$28="Bioretention (No Underdrain No Liner)", '85th SBUH TT'!$AJ$10,'85th SBUH'!$AN$10)),'85th SBUH'!$AN$10) -> 0 | G86: =IF($M$26="Yes", IF(OR($M$27="Bioretention (No Underdrain No Liner)", $M$28="Bioretention (No Underdrain No Liner)"), '85th SBUH TT'!$AJ$2,'85th SBUH'!$AN$2),'85th SBUH'!$AN$2) -> 0 | H86: =IF($M$26="Yes", IF(OR($M$27="Bioretention (No Underdrain No Liner)", $M$28="Bioretention (No Underdrain No Liner)"), '85th SBUH TT'!$AJ$3,'85th SBUH'!$AN$3),'85th SBUH'!$AN$3) -> 0 | I86: =IF($M$26="Yes", IF(OR($M$27="Bioretention (No Underdrain No Liner)", $M$28="Bioretention (No Underdrain No Liner)"), '85th SBUH TT'!$AJ$4,'85th SBUH'!$AN$4),'85th SBUH'!$AN$4) -> 0 | J86: =IF($M$26="Yes", IF(OR($M$27="Bioretention (No Underdrain No Liner)", $M$28="Bioretention (No Underdrain No Liner)"), '85th SBUH TT'!$AJ$5,'85th SBUH'!$AN$5),'85th SBUH'!$AN$5) -> 0 | K86: =IF($M$26="Yes", IF($M$27="Bioretention (No Underdrain No Liner)", 0, IF($M$28="Bioretention (No Underdrain No Liner)", '85th SBUH TT'!$AJ$6,'85th SBUH'!$AN$6)),'85th SBUH'!$AN$6) -> 0 | L86: =IF($M$26="Yes", IF($M$27="Bioretention (No Underdrain No Liner)", 0, IF($M$28="Bioretention (No Underdrain No Liner)", '85th SBUH TT'!$AJ$7,'85th SBUH'!$AN$7)),'85th SBUH'!$AN$7) -> 0 | N86: ='85th SBUH TT'!AJ6 -> 0 | O86: ='85th SBUH TT'!AJ7 -> 0 | Q86: =SUM(H86:L86) -> 0
C87: Infiltration Trench | D87: =IF($M$26="Yes", IF(OR($M$27="Infiltration Trench", $M$28="Infiltration Trench"), '85th SBUH TT'!$BI$11,'85th SBUH'!$BM$11),'85th SBUH'!$BM$11) -> 0 | E87: =IF($M$26="Yes", IF($M$27="Infiltration Trench", 0, IF($M$28="Infiltration Trench", '85th SBUH TT'!$BI$12,'85th SBUH'!$BM$12)),'85th SBUH'!$BM$12) -> 0 | F87: =IF($M$26="Yes", IF($M$27="Infiltration Trench", 0, IF($M$28="Infiltration Trench", '85th SBUH TT'!$BI$13,'85th SBUH'!$BM$13)),'85th SBUH'!$BM$13) -> 0 | G87: =IF($M$26="Yes", IF(OR($M$27="Infiltration Trench", $M$28="Infiltration Trench"), '85th SBUH TT'!$BI$2,'85th SBUH'!$BM$2),'85th SBUH'!$BM$2) -> 0 | H87: =IF($M$26="Yes", IF(OR($M$27="Infiltration Trench", $M$28="Infiltration Trench"), '85th SBUH TT'!$BI$3,'85th SBUH'!$BM$3),'85th SBUH'!$BM$3) -> 0 | I87: =IF($M$26="Yes", IF(OR($M$27="Infiltration Trench", $M$28="Infiltration Trench"), '85th SBUH TT'!$BI$4,'85th SBUH'!$BM$4),'85th SBUH'!$BM$4) -> 0 | J87: =IF($M$26="Yes", IF(OR($M$27="Infiltration Trench", $M$28="Infiltration Trench"), '85th SBUH TT'!$BI$5,'85th SBUH'!$BM$5),'85th SBUH'!$BM$5) -> 0 | K87: =IF($M$26="Yes", IF($M$27="Infiltration Trench", 0, IF($M$28="Infiltration Trench", '85th SBUH TT'!$BI$6,'85th SBUH'!$BM$6)),'85th SBUH'!$BM$6) -> 0 | L87: =IF($M$26="Yes", IF($M$27="Infiltration Trench", 0, IF($M$28="Infiltration Trench", '85th SBUH TT'!$BI$7,'85th SBUH'!$BM$7)),'85th SBUH'!$BM$7) -> 0 | N87: -- | O87: -- | Q87: =SUM(H87:L87) -> 0 | R87: Vegetated Roof | S87: =IF($M$26="Yes", IF(OR($M$27="Vegetated Roof", $M$28="Vegetated Roof"), '85th SBUH TT'!$EC$3,'85th SBUH'!$EG$3),'85th SBUH'!$EG$3) -> 0
C88: Dry Well / Infiltration Gallery | D88: =IF($M$26="Yes", IF(OR($M$27="Dry Well/Infiltration Gallery", $M$28="Dry Well/Infiltration Gallery"), '85th SBUH TT'!$BT$8,'85th SBUH'!$BX$8),'85th SBUH'!$BX$8) -> 0 | E88: =IF($M$26="Yes", IF($M$27="Dry Well/Infiltration Gallery", 0, IF($M$28="Dry Well/Infiltration Gallery", '85th SBUH TT'!$BT$9,'85th SBUH'!$BX$9)),'85th SBUH'!$BX$9) -> 0 | F88: =IF($M$26="Yes", IF($M$27="Dry Well/Infiltration Gallery", 0, IF($M$28="Dry Well/Infiltration Gallery", '85th SBUH TT'!$BT$10,'85th SBUH'!$BX$10)),'85th SBUH'!$BX$10) -> 0 | G88: =IF($M$26="Yes", IF(OR($M$27="Dry Well/Infiltration Gallery", $M$28="Dry Well/Infiltration Gallery"), '85th SBUH TT'!$BT$2,'85th SBUH'!$BX$2),'85th SBUH'!$BX$2) -> 0 | H88: =IF($M$26="Yes", IF(OR($M$27="Dry Well/Infiltration Gallery", $M$28="Dry Well/Infiltration Gallery"), '85th SBUH TT'!$BT$3,'85th SBUH'!$BX$3),'85th SBUH'!$BX$3) -> 0 | I88: =IF($M$26="Yes", IF(OR($M$27="Dry Well/Infiltration Gallery", $M$28="Dry Well/Infiltration Gallery"), '85th SBUH TT'!$BT$4,'85th SBUH'!$BX$4),'85th SBUH'!$BX$4) -> 0 | J88: =IF($M$26="Yes", IF(OR($M$27="Dry Well/Infiltration Gallery", $M$28="Dry Well/Infiltration Gallery"), '85th SBUH TT'!$BT$5,'85th SBUH'!$BX$5),'85th SBUH'!$BX$5) -> 0 | K88: =IF($M$26="Yes", IF($M$27="Dry Well/Infiltration Gallery", 0, IF($M$28="Dry Well/Infiltration Gallery", '85th SBUH TT'!$BT$6,'85th SBUH'!$BX$6)),'85th SBUH'!$BX$6) -> 0 | L88: =IF($M$26="Yes", IF($M$27="Dry Well/Infiltration Gallery", 0, IF($M$28="Dry Well/Infiltration Gallery", '85th SBUH TT'!$BT$7,'85th SBUH'!$BX$7)),'85th SBUH'!$BX$7) -> 0 | N88: -- | O88: -- | Q88: =SUM(H88:L88) -> 0
C89: Bioretention Swale (No Underdrain) | D89: =IF($M$26="Yes", IF(OR($M$27="Vegetated Swale (No Underdrain)", $M$28="Vegetated Swale (No Underdrain)"), '85th SBUH TT'!$FW$9,'85th SBUH'!$GA$9),'85th SBUH'!$GA$9) -> 0 | E89: =IF($M$26="Yes", IF($M$27="Vegetated Swale (No Underdrain)", 0, IF($M$28="Vegetated Swale (No Underdrain)", '85th SBUH TT'!$FW$10,'85th SBUH'!$GA$10)),'85th SBUH'!$GA$10) -> 0 | F89: =IF($M$26="Yes", IF($M$27="Vegetated Swale (No Underdrain)", 0, IF($M$28="Vegetated Swale (No Underdrain)", '85th SBUH TT'!$FW$11,'85th SBUH'!$GA$11)),'85th SBUH'!$GA$11) -> 0 | G89: =IF($M$26="Yes", IF(OR($M$27="Bioretention Swale (No Underdrain)", $M$28="Bioretention Swale (No Underdrain)"), '85th SBUH TT'!$FW$2,'85th SBUH'!$GA$2),'85th SBUH'!$GA$2) -> 0 | H89: =IF($M$26="Yes", IF(OR($M$27="Bioretention Swale (No Underdrain)", $M$28="Bioretention Swale (No Underdrain)"), '85th SBUH TT'!$FW$3+'85th SBUH TT'!$FW$4,'85th SBUH'!$GA$3+'85th SBUH'!$GA$4),'85th SBUH'!$GA$3+'85th SBUH'!$GA$4) -> 0 | I89: =IF($M$26="Yes", IF(OR($M$27="Bioretention Swale (No Underdrain)", $M$28="Bioretention Swale (No Underdrain)"), '85th SBUH TT'!$FW$5,'85th SBUH'!$GA$5),'85th SBUH'!$GA$5) -> 0 | J89: =IF($M$26="Yes", IF(OR($M$27="Bioretention Swale (No Underdrain)", $M$28="Bioretention Swale (No Underdrain)"), '85th SBUH TT'!$FW$6,'85th SBUH'!$GA$6),'85th SBUH'!$GA$6) -> 0 | K89: =IF($M$26="Yes", IF($M$27="Bioretention Swale (No Underdrain)", 0, IF($M$28="Bioretention Swale (No Underdrain)", '85th SBUH TT'!$FW$7,'85th SBUH'!$GA$7)),'85th SBUH'!$GA$7) -> 0 | L89: =IF($M$26="Yes", IF($M$27="Bioretention Swale (No Underdrain)", 0, IF($M$28="Bioretention Swale (No Underdrain)", '85th SBUH TT'!$FW$8,'85th SBUH'!$GA$8)),'85th SBUH'!$GA$8) -> 0 | N89: ='85th SBUH TT'!FW7 -> 0 | O89: ='85th SBUH TT'!FW8 -> 0 | Q89: =SUM(H89:L89) -> 0 | R89: Vegetated Swale (No Underdrain) | S89: =IF($M$26="Yes", IF(OR($M$27="Vegetated Swale (No Underdrain)", $M$28="Vegetated Swale (No Underdrain)"), '85th SBUH TT'!$FW$3+'85th SBUH TT'!$FW$4,'85th SBUH'!$GA$3+'85th SBUH'!$GA$4),'85th SBUH'!$GA$3+'85th SBUH'!$GA$4) -> 0
C90: Permeable Pavement (No Underdrain) | D90: =IF($M$26="Yes", IF(OR($M$27="Permeable Pavement (No Underdrain)", $M$28="Permeable Pavement (No Underdrain)"), '85th SBUH TT'!$CE$8,'85th SBUH'!$CI$8),'85th SBUH'!$CI$8) -> 0 | E90: =IF($M$26="Yes", IF($M$27="Permeable Pavement (No Underdrain)", 0, IF($M$28="Permeable Pavement (No Underdrain)", '85th SBUH TT'!$CE$9,'85th SBUH'!$CI$9)),'85th SBUH'!$CI$9) -> 0 | F90: =IF($M$26="Yes", IF($M$27="Permeable Pavement (No Underdrain)", 0, IF($M$28="Permeable Pavement (No Underdrain)", '85th SBUH TT'!$CE$10,'85th SBUH'!$CI$10)),'85th SBUH'!$CI$10) -> 0 | G90: =IF($M$26="Yes", IF(OR($M$27="Permeable Pavement (No Underdrain)", $M$28="Permeable Pavement (No Underdrain)"), '85th SBUH TT'!$CE$2,'85th SBUH'!$CI$2),'85th SBUH'!$CI$2) -> 0 | H90: =IF($M$26="Yes", IF(OR($M$27="Permeable Pavement (No Underdrain)", $M$28="Permeable Pavement (No Underdrain)"), '85th SBUH TT'!$CE$3,'85th SBUH'!$CI$3),'85th SBUH'!$CI$3) -> 0 | I90: =IF($M$26="Yes", IF(OR($M$27="Permeable Pavement (No Underdrain)", $M$28="Permeable Pavement (No Underdrain)"), '85th SBUH TT'!$CE$4,'85th SBUH'!$CI$4),'85th SBUH'!$CI$4) -> 0 | J90: =IF($M$26="Yes", IF(OR($M$27="Permeable Pavement (No Underdrain)", $M$28="Permeable Pavement (No Underdrain)"), '85th SBUH TT'!$CE$5,'85th SBUH'!$CI$5),'85th SBUH'!$CI$5) -> 0 | K90: =IF($M$26="Yes", IF($M$27="Permeable Pavement (No Underdrain)", 0, IF($M$28="Permeable Pavement (No Underdrain)", '85th SBUH TT'!$CE$6,'85th SBUH'!$CI$6)),'85th SBUH'!$CI$6) -> 0 | L90: =IF($M$26="Yes", IF($M$27="Permeable Pavement (No Underdrain)", 0, IF($M$28="Permeable Pavement (No Underdrain)", '85th SBUH TT'!$CE$7,'85th SBUH'!$CI$7)),'85th SBUH'!$CI$7) -> 0 | N90: -- | O90: -- | Q90: 0
C91: Permeable Pavement (Underdrain) | D91: =IF($M$26="Yes", IF(OR($M$27="Permeable Pavement (Underdrain)", $M$28="Permeable Pavement (Underdrain)"), '85th SBUH TT'!$EQ$8,'85th SBUH'!$EU$8),'85th SBUH'!$EU$8) -> 0 | E91: =IF($M$26="Yes", IF($M$27="Permeable Pavement (Underdrain)", 0, IF($M$28="Permeable Pavement (Underdrain)", '85th SBUH TT'!$EQ$9,'85th SBUH'!$EU$9)),'85th SBUH'!$EU$9) -> 0 | F91: =IF($M$26="Yes", IF($M$27="Permeable Pavement (Underdrain)", 0, IF($M$28="Permeable Pavement (Underdrain)", '85th SBUH TT'!$EQ$10,'85th SBUH'!$EU$10)),'85th SBUH'!$EU$10) -> 0 | G91: =IF($M$26="Yes", IF(OR($M$27="Permeable Pavement (Underdrain)", $M$28="Permeable Pavement (Underdrain)"), '85th SBUH TT'!$EQ$2,'85th SBUH'!$EU$2),'85th SBUH'!$EU$2) -> 0 | H91: =IF($M$26="Yes", IF(OR($M$27="Permeable Pavement (Underdrain)", $M$28="Permeable Pavement (Underdrain)"), '85th SBUH TT'!$EQ$3,'85th SBUH'!$EU$3),'85th SBUH'!$EU$3) -> 0 | I91: =IF($M$26="Yes", IF(OR($M$27="Permeable Pavement (Underdrain)", $M$28="Permeable Pavement (Underdrain)"), '85th SBUH TT'!$EQ$4,'85th SBUH'!$EU$4),'85th SBUH'!$EU$4) -> 0 | J91: =IF($M$26="Yes", IF(OR($M$27="Permeable Pavement (Underdrain)", $M$28="Permeable Pavement (Underdrain)"), '85th SBUH TT'!$EQ$5,'85th SBUH'!$EU$5),'85th SBUH'!$EU$5) -> 0 | K91: =IF($M$26="Yes", IF($M$27="Permeable Pavement (Underdrain)", 0, IF($M$28="Permeable Pavement (Underdrain)", '85th SBUH TT'!$EQ$6,'85th SBUH'!$EU$6)),'85th SBUH'!$EU$6) -> 0 | L91: =IF($M$26="Yes", IF($M$27="Permeable Pavement (Underdrain)", 0, IF($M$28="Permeable Pavement (Underdrain)", '85th SBUH TT'!$EQ$7,'85th SBUH'!$EU$7)),'85th SBUH'!$EU$7) -> 0 | N91: -- | O91: -- | Q91: =SUM(H91:L91) -> 0 | R91: Perm. Pavement (No Underdrain) | S91: =IF($M$26="Yes", IF(OR($M$27="Permeable Pavement (No Underdrain)", $M$28="Permeable Pavement (No Underdrain)"), '85th SBUH TT'!$CE$3,'85th SBUH'!$CI$3),'85th SBUH'!$CI$3) -> 0
C92: Vegetated Roof | D92: =IF($M$26="Yes", IF(OR($M$27="Vegetated Roof", $M$28="Vegetated Roof"), '85th SBUH TT'!$EC$8,'85th SBUH'!$EG$8),'85th SBUH'!$EG$8) -> 0 | E92: =IF($M$26="Yes", IF($M$27="Vegetated Roof", 0, IF($M$28="Vegetated Roof", '85th SBUH TT'!$EC$9,'85th SBUH'!$EG$9)),'85th SBUH'!$EG$9) -> 0 | F92: =IF($M$26="Yes", IF($M$27="Vegetated Roof", 0, IF($M$28="Vegetated Roof", '85th SBUH TT'!$EC$10,'85th SBUH'!$EG$10)),'85th SBUH'!$EG$10) -> 0 | G92: =IF($M$26="Yes", IF(OR($M$27="Vegetated Roof", $M$28="Vegetated Roof"), '85th SBUH TT'!$EC$2,'85th SBUH'!$EG$2),'85th SBUH'!$EG$2) -> 0 | H92: =IF($M$26="Yes", IF(OR($M$27="Vegetated Roof", $M$28="Vegetated Roof"), '85th SBUH TT'!$EC$3,'85th SBUH'!$EG$3),'85th SBUH'!$EG$3) -> 0 | I92: =IF($M$26="Yes", IF(OR($M$27="Vegetated Roof", $M$28="Vegetated Roof"), '85th SBUH TT'!$EC$4,'85th SBUH'!$EG$4),'85th SBUH'!$EG$4) -> 0 | J92: =IF($M$26="Yes", IF(OR($M$27="Vegetated Roof", $M$28="Vegetated Roof"), '85th SBUH TT'!$EC$5,'85th SBUH'!$EG$5),'85th SBUH'!$EG$5) -> 0 | K92: =IF($M$26="Yes", IF($M$27="Vegetated Roof", 0, IF($M$28="Vegetated Roof", '85th SBUH TT'!$EC$6,'85th SBUH'!$EG$6)),'85th SBUH'!$EG$6) -> 0 | L92: =IF($M$26="Yes", IF($M$27="Vegetated Roof", 0, IF($M$28="Vegetated Roof", '85th SBUH TT'!$EC$7,'85th SBUH'!$EG$7)),'85th SBUH'!$EG$7) -> 0 | N92: -- | O92: -- | Q92: =SUM(H92:L92) -> 0
B93: Biotreat | C93: Biotreatment Measures | R93: Reduced Impervious Area | S93: =IF('85th SBUH'!J4-'85th SBUH'!U4>0, '85th SBUH'!J4-'85th SBUH'!U4,0) -> 
B94: Biotreat | C94: Bioretention/FTP (Underdrain, No Liner) | D94: =IF($M$26="Yes", IF(OR($M$27="Bioretention/FTP (Underdrain No Liner)", $M$28="Bioretention/FTP (Underdrain No Liner)"), '85th SBUH TT'!$CT$9,'85th SBUH'!$CX$9),'85th SBUH'!$CX$9) -> 0 | E94: =IF($M$26="Yes", IF($M$27="Bioretention/FTP (Underdrain No Liner)", 0, IF($M$28="Bioretention/FTP (Underdrain No Liner)", '85th SBUH TT'!$CT$10,'85th SBUH'!$CX$10)),'85th SBUH'!$CX$10) -> 0 | F94: =IF($M$26="Yes", IF($M$27="Bioretention/FTP (Underdrain No Liner)", 0, IF($M$28="Bioretention/FTP (Underdrain No Liner)", '85th SBUH TT'!$CT$11,'85th SBUH'!$CX$11)),'85th SBUH'!$CX$11) -> 0 | G94: =IF($M$26="Yes", IF(OR($M$27="Bioretention/FTP (Underdrain No Liner)", $M$28="Bioretention/FTP (Underdrain No Liner)"), '85th SBUH TT'!$CT$2,'85th SBUH'!$CX$2),'85th SBUH'!$CX$2) -> 0 | H94: =IF($M$26="Yes", IF(OR($M$27="Bioretention/FTP (Underdrain No Liner)", $M$28="Bioretention/FTP (Underdrain No Liner)"), '85th SBUH TT'!$CT$3+'85th SBUH TT'!$CT$4,'85th SBUH'!$CX$3+'85th SBUH'!$CX$4),'85th SBUH'!$CX$3+'85th SBUH'!$CX$4) -> 0 | I94: =IF($M$26="Yes", IF(OR($M$27="Bioretention/FTP (Underdrain No Liner)", $M$28="Bioretention/FTP (Underdrain No Liner)"), '85th SBUH TT'!$CT$5,'85th SBUH'!$CX$5),'85th SBUH'!$CX$5) -> 0 | J94: =IF($M$26="Yes", IF(OR($M$27="Bioretention/FTP (Underdrain No Liner)", $M$28="Bioretention/FTP (Underdrain No Liner)"), '85th SBUH TT'!$CT$6,'85th SBUH'!$CX$6),'85th SBUH'!$CX$6) -> 0 | K94: =IF($M$26="Yes", IF($M$27="Bioretention/FTP (Underdrain No Liner)", 0, IF($M$28="Bioretention/FTP (Underdrain No Liner)", '85th SBUH TT'!$CT$7,'85th SBUH'!$CX$7)),'85th SBUH'!$CX$7) -> 0 | L94: =IF($M$26="Yes", IF($M$27="Bioretention/FTP (Underdrain No Liner)", 0, IF($M$28="Bioretention/FTP (Underdrain No Liner)", '85th SBUH TT'!$CT$8,'85th SBUH'!$CX$8)),'85th SBUH'!$CX$8) -> 0 | N94: -- | O94: -- | Q94: 0
C95: Bioretention/FTP (Underdrain, Liner) | D95: =IF($M$26="Yes", IF(OR($M$27="Bioretention/FTP (Underdrain Liner)", $M$28="Bioretention/FTP (Underdrain Liner)"), '85th SBUH TT'!$DL$9,'85th SBUH'!$DP$9),'85th SBUH'!$DP$9) -> 0 | E95: =IF($M$26="Yes", IF($M$27="Bioretention/FTP (Underdrain Liner)", 0, IF($M$28="Bioretention/FTP (Underdrain Liner)", '85th SBUH TT'!$DL$10,'85th SBUH'!$DP$10)),'85th SBUH'!$DP$10) -> 0 | F95: =IF($M$26="Yes", IF($M$27="Bioretention/FTP (Underdrain Liner)", 0, IF($M$28="Bioretention/FTP (Underdrain Liner)", '85th SBUH TT'!$DL$11,'85th SBUH'!$DP$11)),'85th SBUH'!$DP$11) -> 0 | G95: =IF($M$26="Yes", IF(OR($M$27="Bioretention/FTP (Underdrain Liner)", $M$28="Bioretention/FTP (Underdrain Liner)"), '85th SBUH TT'!$DL$2,'85th SBUH'!$DP$2),'85th SBUH'!$DP$2) -> 0 | H95: =IF($M$26="Yes", IF(OR($M$27="Bioretention/FTP (Underdrain Liner)", $M$28="Bioretention/FTP (Underdrain Liner)"), '85th SBUH TT'!$DL$3+'85th SBUH TT'!$DL$4,'85th SBUH'!$DP$3+'85th SBUH'!$DP$4),'85th SBUH'!$DP$3+'85th SBUH'!$DP$4) -> 0 | I95: =IF($M$26="Yes", IF(OR($M$27="Bioretention/FTP (Underdrain Liner)", $M$28="Bioretention/FTP (Underdrain Liner)"), '85th SBUH TT'!$DL$5,'85th SBUH'!$DP$5),'85th SBUH'!$DP$5) -> 0 | J95: =IF($M$26="Yes", IF(OR($M$27="Bioretention/FTP (Underdrain Liner)", $M$28="Bioretention/FTP (Underdrain Liner)"), '85th SBUH TT'!$DL$6,'85th SBUH'!$DP$6),'85th SBUH'!$DP$6) -> 0 | K95: =IF($M$26="Yes", IF($M$27="Bioretention/FTP (Underdrain Liner)", 0, IF($M$28="Bioretention/FTP (Underdrain Liner)", '85th SBUH TT'!$DL$7,'85th SBUH'!$DP$7)),'85th SBUH'!$DP$7) -> 0 | L95: =IF($M$26="Yes", IF($M$27="Bioretention/FTP (Underdrain Liner)", 0, IF($M$28="Bioretention/FTP (Underdrain Liner)", '85th SBUH TT'!$DL$8,'85th SBUH'!$DP$8)),'85th SBUH'!$DP$8) -> 0 | N95: -- | O95: -- | Q95: 0 | R95: Improved Pervious Area | S95: =IF('85th SBUH'!O9-'85th SBUH'!Z9>0, IF(('85th SBUH'!O9-'85th SBUH'!Z9)-S93>0, ('85th SBUH'!O9-'85th SBUH'!Z9)-S93, 0), 0) -> 
C96: Bioretention Swale (Underdrain) | D96: =IF($M$26="Yes", IF(OR($M$27="Vegetated Swale (Underdrain)", $M$28="Vegetated Swale (Underdrain)"), '85th SBUH TT'!$GL$9,'85th SBUH'!$GP$9),'85th SBUH'!$GP$9) -> 0 | E96: =IF($M$26="Yes", IF($M$27="Vegetated Swale (Underdrain)", 0, IF($M$28="Vegetated Swale (Underdrain)", '85th SBUH TT'!$GL$10,'85th SBUH'!$GP$10)),'85th SBUH'!$GP$10) -> 0 | F96: =IF($M$26="Yes", IF($M$27="Vegetated Swale (Underdrain)", 0, IF($M$28="Vegetated Swale (Underdrain)", '85th SBUH TT'!$GL$11,'85th SBUH'!$GP$11)),'85th SBUH'!$GP$11) -> 0 | G96: =IF($M$26="Yes", IF(OR($M$27="Bioretention Swale (Underdrain)", $M$28="Bioretention Swale (Underdrain)"), '85th SBUH TT'!$GL$2,'85th SBUH'!$GP$2),'85th SBUH'!$GP$2) -> 0 | H96: =IF($M$26="Yes", IF(OR($M$27="Bioretention Swale (Underdrain)", $M$28="Bioretention Swale (Underdrain)"), '85th SBUH TT'!$GL$3+'85th SBUH TT'!$GL$4,'85th SBUH'!$GP$3+'85th SBUH'!$GP$4),'85th SBUH'!$GP$3+'85th SBUH'!$GP$4) -> 0 | I96: =IF($M$26="Yes", IF(OR($M$27="Bioretention Swale (Underdrain)", $M$28="Bioretention Swale (Underdrain)"), '85th SBUH TT'!$GL$5,'85th SBUH'!$GP$5),'85th SBUH'!$GP$5) -> 0 | J96: =IF($M$26="Yes", IF(OR($M$27="Bioretention Swale (Underdrain)", $M$28="Bioretention Swale (Underdrain)"), '85th SBUH TT'!$GL$6,'85th SBUH'!$GP$6),'85th SBUH'!$GP$6) -> 0 | K96: =IF($M$26="Yes", IF($M$27="Bioretention Swale (Underdrain)", 0, IF($M$28="Bioretention Swale (Underdrain)", '85th SBUH TT'!$GL$7,'85th SBUH'!$GP$7)),'85th SBUH'!$GP$7) -> 0 | L96: =IF($M$26="Yes", IF($M$27="Bioretention Swale (Underdrain)", 0, IF($M$28="Bioretention Swale (Underdrain)", '85th SBUH TT'!$GL$8,'85th SBUH'!$GP$8)),'85th SBUH'!$GP$8) -> 0 | N96: -- | O96: -- | Q96: =SUM(H96:L96) -> 0
R97: Total Runoff Reduction | S97: =SUM(S85:S95) -> 
C98: Detention Vault | D98: =IF($M$26="Yes", IF(OR($M$27="Detention Vault", $M$28="Detention Vault"), '85th SBUH TT'!$FE$8,'85th SBUH'!$FI$8),'85th SBUH'!$FI$8) -> 0 | E98: =IF($M$26="Yes", IF($M$27="Detention Vault", 0, IF($M$28="Detention Vault", '85th SBUH TT'!$FE$9,'85th SBUH'!$FI$9)),'85th SBUH'!$FI$9) -> 0 | F98: =IF($M$26="Yes", IF($M$27="Detention Vault", 0, IF($M$28="Detention Vault", '85th SBUH TT'!$FE$10,'85th SBUH'!$FI$10)),'85th SBUH'!$FI$10) -> 0 | G98: =IF($M$26="Yes", IF(OR($M$27="Detention Vault", $M$28="Detention Vault"), '85th SBUH TT'!$FE$2,'85th SBUH'!$FI$2),'85th SBUH'!$FI$2) -> 0 | H98: =IF($M$26="Yes", IF(OR($M$27="Detention Vault", $M$28="Detention Vault"), '85th SBUH TT'!$FE$3,'85th SBUH'!$FI$3),'85th SBUH'!$FI$3) -> 0 | I98: =IF($M$26="Yes", IF(OR($M$27="Detention Vault", $M$28="Detention Vault"), '85th SBUH TT'!$FE$4,'85th SBUH'!$FI$4),'85th SBUH'!$FI$4) -> 0 | J98: =IF($M$26="Yes", IF(OR($M$27="Detention Vault", $M$28="Detention Vault"), '85th SBUH TT'!$FE$5,'85th SBUH'!$FI$5),'85th SBUH'!$FI$5) -> 0 | K98: =IF($M$26="Yes", IF($M$27="Detention Vault", 0, IF($M$28="Detention Vault", '85th SBUH TT'!$FE$6,'85th SBUH'!$FI$6)),'85th SBUH'!$FI$6) -> 0 | L98: =IF($M$26="Yes", IF($M$27="Detention Vault", 0, IF($M$28="Detention Vault", '85th SBUH TT'!$FE$7,'85th SBUH'!$FI$7)),'85th SBUH'!$FI$7) -> 0 | Q98: 0
C99: Treatment Measures
C100: Media Filter | D100: =IF(G100>0,'Media Filter Calculator'!C15,0) -> 0 | E100: -- | F100: -- | G100: =IF($M$26="Yes", IF(OR($M$27="Media Filter", $M$28="Media Filter"), '85th SBUH TT'!$HA$2,'85th SBUH'!$HE$2),'85th SBUH'!$HE$2) -> 0 | H100: =IF(G100>0,"See Media Filter Calculator tab for flow-based requirements","--") -> -- | N100: -- | O100: -- | Q100: 0
C101: Tree-Box Filter | D101: =IF($M$26="Yes", IF(OR($M$27="Tree-Box Filter", $M$28="Tree-Box Filter"), '85th SBUH TT'!$HP$9,'85th SBUH'!$HT$9),'85th SBUH'!$HT$9) -> 0 | E101: =IF($M$26="Yes", IF($M$27="Tree-Box Filter", 0, IF($M$28="Tree-Box Filter", '85th SBUH TT'!$HP$10,'85th SBUH'!$HT$10)),'85th SBUH'!$HT$10) -> 0 | F101: =IF($M$26="Yes", IF($M$27="Tree-Box Filter", 0, IF($M$28="Tree-Box Filter", '85th SBUH TT'!$HP11,'85th SBUH'!$HT$11)),'85th SBUH'!$HT$11) -> 0 | G101: =IF($M$26="Yes", IF(OR($M$27="Tree-Box Filter", $M$28="Tree-Box Filter"), '85th SBUH TT'!$HP$2,'85th SBUH'!$HT$2),'85th SBUH'!$HT$2) -> 0 | H101: =IF($M$26="Yes", IF(OR($M$27="Tree-Box Filter", $M$28="Tree-Box Filter"), '85th SBUH TT'!$HP$3+'85th SBUH TT'!$HP$4,'85th SBUH'!$HT$3+'85th SBUH'!$HT$4),'85th SBUH'!$HT$3+'85th SBUH'!$HT$4) -> 0 | I101: =IF($M$26="Yes", IF(OR($M$27="Tree-Box Filter", $M$28="Tree-Box Filter"), '85th SBUH TT'!$HP$5,'85th SBUH'!$HT$5),'85th SBUH'!$HT$5) -> 0 | J101: =IF($M$26="Yes", IF(OR($M$27="Tree-Box Filter", $M$28="Tree-Box Filter"), '85th SBUH TT'!$HP$6,'85th SBUH'!$HT$6),'85th SBUH'!$HT$6) -> 0 | K101: =IF($M$26="Yes", IF($M$27="Tree-Box Filter", 0, IF($M$28="Tree-Box Filter", '85th SBUH TT'!$HP$7,'85th SBUH'!$HT$7)),'85th SBUH'!$HT$7) -> 0 | L101: =IF($M$26="Yes", IF($M$27="Tree-Box Filter", 0, IF($M$28="Tree-Box Filter", '85th SBUH TT'!$HP$8,'85th SBUH'!$HT$8)),'85th SBUH'!$HT$8) -> 0 | Q101: 0
B102: Totals | G102: =SUM(G85:G101) -> 0 | H102: 0 | I102: 0 | J102: 0 | K102: 0 | L102: 0 | N102: =SUM(N85:N96) -> 0 | O102: =SUM(O85:O96) -> 0 | Q102: 0
B103: NOTE: With the exception of Cisterns, BMPs should not have any "Volume Remaining In Storage". There should also not be any "Untreated" runoff. Untreated volumes are indicated in the table by red font.
C105: Review the summary table below to see how each BMP measure performs during the 2-yr 24 hour storm. The site's runoff hydrographs are shown in the "Rainfall and Hydrographs" tab.
D106: Inflows | E106: Outflows | G106: Volume In | H106: Volume Retained | K106: Volume Out to MS4
D107: Peak Flow to BMP (cfs) | E107: Peak Rate of Discharged Flow (cfs) | F107: Peak Rate of Overflow (cfs) | G107: Total Runoff to BMP (ft3) | H107: Infiltration + E/T (ft3) | I107: Reuse (ft3) | J107: Volume Remaining in Storage (ft3) | K107: Detained Discharge Volume (ft3) | L107: Overflow Volume (ft3)
C108: Reduction Measures | Q108: Total
C109: Rainwater Harvesting Cistern | D109: =IF($M$26="Yes", IF(OR($M$27="Cistern", $M$28="Cistern"), '2-yr SBUH TT'!$AU$8,'2-yr SBUH'!$AU$8),'2-yr SBUH'!$AU$8) -> 0 | E109: =IF($M$26="Yes", IF($M$27="Cistern", 0, IF($M$28="Cistern", '2-yr SBUH TT'!$AU$9,'2-yr SBUH'!$AU$9)),'2-yr SBUH'!$AU$9) -> 0 | F109: =IF($M$26="Yes", IF($M$27="Cistern", 0, IF($M$28="Cistern", '2-yr SBUH TT'!$AU$10,'2-yr SBUH'!$AU$10)),'2-yr SBUH'!$AU$10) -> 0 | Q109: =SUM(H109:L109) -> 0
C110: Bioretention (No Underdrain, No Liner) | D110: =IF($M$26="Yes", IF(OR($M$27="Bioretention (No Underdrain No Liner)", $M$28="Bioretention (No Underdrain No Liner)"), '2-yr SBUH TT'!$AJ$8,'2-yr SBUH'!$AJ$8),'2-yr SBUH'!$AJ$8) -> 0 | E110: =IF($M$26="Yes", IF($M$27="Bioretention (No Underdrain No Liner)", 0, IF($M$28="Bioretention (No Underdrain No Liner)", '2-yr SBUH TT'!$AJ$9,'2-yr SBUH'!$AJ$9)),'2-yr SBUH'!$AJ$9) -> 0 | F110: =IF($M$26="Yes", IF($M$27="Bioretention (No Underdrain No Liner)", 0, IF($M$28="Bioretention (No Underdrain No Liner)", '2-yr SBUH TT'!$AJ$10,'2-yr SBUH'!$AJ$10)),'2-yr SBUH'!$AJ$10) -> 0 | Q110: =SUM(H110:L110) -> 0
C111: Infiltration Trench | D111: =IF($M$26="Yes", IF(OR($M$27="Infiltration Trench", $M$28="Infiltration Trench"), '2-yr SBUH TT'!$BI$11,'2-yr SBUH'!$BI$11),'2-yr SBUH'!$BI$11) -> 0 | E111: =IF($M$26="Yes", IF($M$27="Infiltration Trench", 0, IF($M$28="Infiltration Trench", '2-yr SBUH TT'!$BI$12,'2-yr SBUH'!$BI$12)),'2-yr SBUH'!$BI$12) -> 0 | F111: =IF($M$26="Yes", IF($M$27="Infiltration Trench", 0, IF($M$28="Infiltration Trench", '2-yr SBUH TT'!$BI$13,'2-yr SBUH'!$BI$13)),'2-yr SBUH'!$BI$13) -> 0 | Q111: =SUM(H111:L111) -> 0
C112: Dry Well / Infiltration Gallery | D112: =IF($M$26="Yes", IF(OR($M$27="Dry Well", $M$28="Dry Well"), '2-yr SBUH TT'!$BT$8,'2-yr SBUH'!$BT$8),'2-yr SBUH'!$BT$8) -> 0 | E112: =IF($M$26="Yes", IF($M$27="Dry Well", 0, IF($M$28="Dry Well", '2-yr SBUH TT'!$BT$9,'2-yr SBUH'!$BT$9)),'2-yr SBUH'!$BT$9) -> 0 | F112: =IF($M$26="Yes", IF($M$27="Dry Well", 0, IF($M$28="Dry Well", '2-yr SBUH TT'!$BT$10,'2-yr SBUH'!$BT$10)),'2-yr SBUH'!$BT$10) -> 0 | Q112: =SUM(H112:L112) -> 0
C113: Vegetated Swale (No Underdrain) | D113: =IF($M$26="Yes", IF(OR($M$27="Vegetated Swale (No Underdrain)", $M$28="Vegetated Swale (No Underdrain)"), '2-yr SBUH TT'!$FW$9,'2-yr SBUH'!$FW$9),'2-yr SBUH'!$FW$9) -> 0 | E113: =IF($M$26="Yes", IF($M$27="Vegetated Swale (No Underdrain)", 0, IF($M$28="Vegetated Swale (No Underdrain)", '2-yr SBUH TT'!$FW$10,'2-yr SBUH'!$FW$10)),'2-yr SBUH'!$FW$10) -> 0 | F113: =IF($M$26="Yes", IF($M$27="Vegetated Swale (No Underdrain)", 0, IF($M$28="Vegetated Swale (No Underdrain)", '2-yr SBUH TT'!$FW$11,'2-yr SBUH'!$FW$11)),'2-yr SBUH'!$FW$11) -> 0 | Q113: =SUM(H113:L113) -> 0
C114: Permeable Pavement (Underdrain) | D114: =IF($M$26="Yes", IF(OR($M$27="Permeable Pavement (Underdrain)", $M$28="Permeable Pavement (Underdrain)"), '2-yr SBUH TT'!$EQ$8,'2-yr SBUH'!$EQ$8),'2-yr SBUH'!$EQ$8) -> 0 | E114: =IF($M$26="Yes", IF($M$27="Permeable Pavement (Underdrain)", 0, IF($M$28="Permeable Pavement (Underdrain)", '2-yr SBUH TT'!$EQ$9,'2-yr SBUH'!$EQ$9)),'2-yr SBUH'!$EQ$9) -> 0 | F114: =IF($M$26="Yes", IF($M$27="Permeable Pavement (Underdrain)", 0, IF($M$28="Permeable Pavement (Underdrain)", '2-yr SBUH TT'!$EQ$10,'2-yr SBUH'!$EQ$10)),'2-yr SBUH'!$EQ$10) -> 0 | Q114: =SUM(H114:L114) -> 0
C115: Permeable Pavement (No Underdrain) | D115: =IF($M$26="Yes", IF(OR($M$27="Permeable Pavement (No Underdrain)", $M$28="Permeable Pavement (No Underdrain)"), '2-yr SBUH TT'!$CE$8,'2-yr SBUH'!$CE$8),'2-yr SBUH'!$CE$8) -> 0 | E115: =IF($M$26="Yes", IF($M$27="Permeable Pavement (No Underdrain)", 0, IF($M$28="Permeable Pavement (No Underdrain)", '2-yr SBUH TT'!$CE$9,'2-yr SBUH'!$CE$9)),'2-yr SBUH'!$CE$9) -> 0 | F115: =IF($M$26="Yes", IF($M$27="Permeable Pavement (No Underdrain)", 0, IF($M$28="Permeable Pavement (No Underdrain)", '2-yr SBUH TT'!$CE$10,'2-yr SBUH'!$CE$10)),'2-yr SBUH'!$CE$10) -> 0 | Q115: 0
C116: Vegetated Roof | D116: =IF($M$26="Yes", IF(OR($M$27="Vegetated Roof", $M$28="Vegetated Roof"), '2-yr SBUH TT'!$EC$8,'2-yr SBUH'!$EC$8),'2-yr SBUH'!$EC$8) -> 0 | E116: =IF($M$26="Yes", IF($M$27="Vegetated Roof", 0, IF($M$28="Vegetated Roof", '2-yr SBUH TT'!$EC$9,'2-yr SBUH'!$EC$9)),'2-yr SBUH'!$EC$9) -> 0 | F116: =IF($M$26="Yes", IF($M$27="Vegetated Roof", 0, IF($M$28="Vegetated Roof", '2-yr SBUH TT'!$EC$10,'2-yr SBUH'!$EC$10)),'2-yr SBUH'!$EC$10) -> 0 | Q116: =SUM(H116:L116) -> 0
C117: Detention and Treatment Measures
C118: Bioretention/FTP (Underdrain, No Liner) | D118: =IF($M$26="Yes", IF(OR($M$27="Bioretention/FTP (Underdrain No Liner)", $M$28="Bioretention/FTP (Underdrain No Liner)"), '2-yr SBUH TT'!$CT$9,'2-yr SBUH'!$CT$9),'2-yr SBUH'!$CT$9) -> 0 | E118: =IF($M$26="Yes", IF($M$27="Bioretention/FTP (Underdrain No Liner)", 0, IF($M$28="Bioretention/FTP (Underdrain No Liner)", '2-yr SBUH TT'!$CT$10,'2-yr SBUH'!$CT$10)),'2-yr SBUH'!$CT$10) -> 0 | F118: =IF($M$26="Yes", IF($M$27="Bioretention/FTP (Underdrain No Liner)", 0, IF($M$28="Bioretention/FTP (Underdrain No Liner)", '2-yr SBUH TT'!$CT$11,'2-yr SBUH'!$CT$11)),'2-yr SBUH'!$CT$11) -> 0 | Q118: 0
C119: Bioretention/FTP (Underdrain, Liner) | D119: =IF($M$26="Yes", IF(OR($M$27="Bioretention/FTP (Underdrain Liner)", $M$28="Bioretention/FTP (Underdrain Liner)"), '2-yr SBUH TT'!$DL$9,'2-yr SBUH'!$DL$9),'2-yr SBUH'!$DL$9) -> 0 | E119: =IF($M$26="Yes", IF($M$27="Bioretention/FTP (Underdrain Liner)", 0, IF($M$28="Bioretention/FTP (Underdrain Liner)", '2-yr SBUH TT'!$DL$10,'2-yr SBUH'!$DL$10)),'2-yr SBUH'!$DL$10) -> 0 | F119: =IF($M$26="Yes", IF($M$27="Bioretention/FTP (Underdrain Liner)", 0, IF($M$28="Bioretention/FTP (Underdrain Liner)", '2-yr SBUH TT'!$DL$11,'2-yr SBUH'!$DL$11)),'2-yr SBUH'!$DL$11) -> 0 | Q119: 0
C120: Vegetated Swale (Underdrain) | D120: =IF($M$26="Yes", IF(OR($M$27="Vegetated Swale (Underdrain)", $M$28="Vegetated Swale (Underdrain)"), '2-yr SBUH TT'!$GL$9,'2-yr SBUH'!$GL$9),'2-yr SBUH'!$GL$9) -> 0 | E120: =IF($M$26="Yes", IF($M$27="Vegetated Swale (Underdrain)", 0, IF($M$28="Vegetated Swale (Underdrain)", '2-yr SBUH TT'!$GL$10,'2-yr SBUH'!$GL$10)),'2-yr SBUH'!$GL$10) -> 0 | F120: =IF($M$26="Yes", IF($M$27="Vegetated Swale (Underdrain)", 0, IF($M$28="Vegetated Swale (Underdrain)", '2-yr SBUH TT'!$GL$11,'2-yr SBUH'!$GL$11)),'2-yr SBUH'!$GL$11) -> 0 | Q120: =SUM(H120:L120) -> 0
C121: Detention Vault | D121: =IF($M$26="Yes", IF(OR($M$27="Detention Vault", $M$28="Detention Vault"), '2-yr SBUH TT'!$FE$8,'2-yr SBUH'!$FE$8),'2-yr SBUH'!$FE$8) -> 0 | E121: =IF($M$26="Yes", IF($M$27="Detention Vault", 0, IF($M$28="Detention Vault", '2-yr SBUH TT'!$FE$9,'2-yr SBUH'!$FE$9)),'2-yr SBUH'!$FE$9) -> 0 | F121: =IF($M$26="Yes", IF($M$27="Detention Vault", 0, IF($M$28="Detention Vault", '2-yr SBUH TT'!$FE$10,'2-yr SBUH'!$FE$10)),'2-yr SBUH'!$FE$10) -> 0 | Q121: 0
C122: Treatment Measures
C123: Media Filter | D123: =IF($M$26="Yes", IF(OR($M$27="Media Filter", $M$28="Media Filter"), '2-yr SBUH TT'!$HA8,'2-yr SBUH'!$HA$8),'2-yr SBUH'!$HA$8) -> 0 | E123: =IF($M$26="Yes", IF($M$27="Media Filter", 0, IF($M$28="Media Filter", '2-yr SBUH TT'!$HA$9,'2-yr SBUH'!$HA$9)),'2-yr SBUH'!$HA$9) -> 0 | F123: =IF($M$26="Yes", IF($M$27="Media Filter", 0, IF($M$28="Media Filter", '2-yr SBUH TT'!$HA$10,'2-yr SBUH'!$HA$10)),'2-yr SBUH'!$HA$10) -> 0 | Q123: 0
C124: Tree-Box Filter | D124: =IF($M$26="Yes", IF(OR($M$27="Tree-Box Filter", $M$28="Tree-Box Filter"), '2-yr SBUH TT'!$HP$9,'2-yr SBUH'!$HP$9),'2-yr SBUH'!$HP$9) -> 0 | E124: =IF($M$26="Yes", IF($M$27="Tree-Box Filter", 0, IF($M$28="Tree-Box Filter", '2-yr SBUH TT'!$HP$10,'2-yr SBUH'!$HP$10)),'2-yr SBUH'!$HP$10) -> 0 | F124: =IF($M$26="Yes", IF($M$27="Tree-Box Filter", 0, IF($M$28="Tree-Box Filter", '2-yr SBUH TT'!$HP$11,'2-yr SBUH'!$HP$11)),'2-yr SBUH'!$HP$11) -> 0 | Q124: 0
B125: Totals | G125: =SUM(G113:G124) -> 0 | H125: 0 | I125: 0 | J125: 0 | K125: 0 | L125: 0 | Q125: 0
R127: Removed from SDM Table
R128: Perm. Pavement (Underdrain) | S128: =IF($M$26="Yes", IF(OR($M$27="Permeable Pavement (Underdrain)", $M$28="Permeable Pavement (Underdrain)"), '85th SBUH TT'!$EQ$3,'85th SBUH'!$EU$3),'85th SBUH'!$EU$3) -> 0
R130: Vegetated Swale (Underdrain) | S130: =IF($M$26="Yes", IF(OR($M$27="Vegetated Swale (Underdrain)", $M$28="Vegetated Swale (Underdrain)"), '85th SBUH TT'!$GL$3+'85th SBUH TT'!$GL$4,'85th SBUH'!$GP$3+'85th SBUH'!$GP$4),'85th SBUH'!$GP$3+'85th SBUH'!$GP$4) -> 0

Sheet DMA Summary
A1: Drainage Management Area (DMA) Summary Table | S1: LEGEND:
A2: A DMA summary table is to be submitted as part of the project's Stormwater Control Plan. | S2: User Input
A3: Enter the information for each DMA in the table below. | S3: Default Value
A4: The totals should match the information entered in the Sizing Calculator worksheets. The HSG Soil Type must be selected in Step 1 of the MS4 BMP Sizing Calculator to enable the "effective impervious area" calculation. | S4: Locked
A6: Drainage Management Areas | C6: Area of Proposed Conventional Surfaces (ft2) | M6: Area of Surface BMPs (ft2) | Q6: Non-Surface BMPs | R6: TOTAL AREA (ft2) | S6: EFFECTIVE IMPERVIOUS AREA (ft2) | T6: SIZING RATIO | W6: Eff Perv
C7: Impervious | G7: Pervious | M7: BMP Type (BR = bioretention, PP = permeable pavement, U/D = underdrain) | AG7: P = | AH7: 2.852
C8: Pavement | D8: Roof | E8: Gravel | F8: Other: | G8: Grass / Lawn | H8: Landscape (Low) / SIA | I8: Landscape (High ) | J8: Tree Well | K8: Traditional Planter | L8: Other: | M8: Select BMP | N8: Select BMP | O8: Select BMP | P8: Select BMP | X8: Select BMP | Y8: Select BMP | Z8: AREA | AE8: CN | AF8: S | AG8: Q
R9: =IF(SUM(C9:P9)>0, SUM(C9:P9), "") ->  | S9: =IF(SUM(M9:P9)+SUM(C9:F9)+W9>0, SUM(M9:P9)+SUM(C9:F9)+W9, "") ->  | T9: =IF(SUM(M9:P9)>0, SUM(M9:P9)/S9,"") ->  | W9: =IF(SUM(G9:L9)>0,(G9*$AH$10)+(H9*$AH$11)+(I9*$AH$32)+(J9*$AH$13)+(K9*$AH$14)+(L9*$AH$15),0) -> 0 | X9: BR (No U/D, No Liner) | Y9: Bioretention (No Underdrain, No Liner) | Z9: ='MS4 BMP Sizing Calculator'!E45 -> 0 | AD9: Pervious Areas
S10: =IF(SUM(M10:P10)+SUM(C10:F10)+W10>0, SUM(M10:P10)+SUM(C10:F10)+W10, "") ->  | W10: =IF(SUM(G10:L10)>0,(G10*$AH$10)+(H10*$AH$11)+(I10*$AH$32)+(J10*$AH$13)+(K10*$AH$14)+(L10*$AH$15),0) -> 0 | X10: Infiltration Trench | Y10: Infiltration Trench | Z10: ='MS4 BMP Sizing Calculator'!E46 -> 0 | AC10: Grass/Lawn Areas | AE10: ='MS4 BMP Sizing Calculator'!F34 ->  | AF10: =(1000/AE10)-10 ->  | AG10: =IF($AH$7-(0.2*AF10)>0,(($AH$7-(0.2*AF10))^2)/($AH$7+(0.8*AF10)),0) ->  | AH10: =AG10/$AH$7 -> 
W11: 0 | X11: BR Swale (No U/D) | Y11: Bioretention Swale (No Underdrain) | Z11: ='MS4 BMP Sizing Calculator'!E48 -> 0 | AC11: Landscaped (Lower Dens.) | AE11: ='MS4 BMP Sizing Calculator'!F35 ->  | AG11: =IF($AH$7-(0.2*AF11)>0,(($AH$7-(0.2*AF11))^2)/($AH$7+(0.8*AF11)),0) -> 
W12: 0 | X12: PP (No U/D) | Y12: Permeable Pavement (No Underdrain) | Z12: ='MS4 BMP Sizing Calculator'!E49 -> 0 | AC12: Landscaped (Higher Dens.) | AE12: ='MS4 BMP Sizing Calculator'!F36 ->  | AI12: =$AH$7-(0.2*AF12) -> 
W13: 0 | X13: PP (U/D) | Y13: Permeable Pavement (Underdrain) | Z13: ='MS4 BMP Sizing Calculator'!E50 -> 0 | AC13: Tree Well*** | AE13: ='MS4 BMP Sizing Calculator'!F37 ->  | AF13: =(1000/AE13)-10 ->  | AH13: =AG13/$AH$7 -> 
W14: 0 | X14: Vegetated Roof | Y14: Vegetated Roof | Z14: ='MS4 BMP Sizing Calculator'!E51 -> 0 | AC14: Traditional Planter on Podium | AE14: ='MS4 BMP Sizing Calculator'!F38 ->  | AF14: =(1000/AE14)-10 ->  | AH14: =AG14/$AH$7 -> 
R15: =IF(SUM(C15:P15)>0, SUM(C15:P15), "") ->  | S15: =IF(SUM(M15:P15)+SUM(C15:F15)+W15>0, SUM(M15:P15)+SUM(C15:F15)+W15, "") ->  | T15: =IF(SUM(M15:P15)>0, SUM(M15:P15)/S15,"") ->  | W15: 0 | X15: BR/FTP (U/D, No Liner) | Y15: Bioretention/FTP (Underdrain, No Liner) | Z15: ='MS4 BMP Sizing Calculator'!E53 -> 0 | AC15: Other | AE15: =IF('MS4 BMP Sizing Calculator'!F39>0,'MS4 BMP Sizing Calculator'!F39,AE10) ->  | AF15: =IF(AE15=0, 0, (1000/AE15)-10) ->  | AH15: =AG15/$AH$7 -> 
W16: 0 | X16: BR/FTP (U/D, Liner) | Y16: Bioretention/FTP (Underdrain, Liner) | Z16: ='MS4 BMP Sizing Calculator'!E54 -> 0
R17: =IF(SUM(C17:P17)>0, SUM(C17:P17), "") ->  | S17: =IF(SUM(M17:P17)+SUM(C17:F17)+W17>0, SUM(M17:P17)+SUM(C17:F17)+W17, "") ->  | T17: =IF(SUM(M17:P17)>0, SUM(M17:P17)/S17,"") ->  | W17: 0 | X17: BR Swale (U/D) | Y17: Bioretention Swale (Underdrain) | Z17: ='MS4 BMP Sizing Calculator'!E55 -> 0
W18: 0 | X18: Media Filter (Vegetated) | Y18: Media Filter (Vegetated) | Z18: ='MS4 BMP Sizing Calculator'!E58 -> 0
W19: 0 | X19: Media Filter (Cartridge) | Y19: Media Filter (Cartridge) | Z19: --
W20: 0 | X20: RWH Cistern | Y20: Rainwater Harvesting Cistern | Z20: ='MS4 BMP Sizing Calculator'!E44 -> --
R21: =IF(SUM(C21:P21)>0, SUM(C21:P21), "") ->  | S21: =IF(SUM(M21:P21)+SUM(C21:F21)+W21>0, SUM(M21:P21)+SUM(C21:F21)+W21, "") ->  | T21: =IF(SUM(M21:P21)>0, SUM(M21:P21)/S21,"") ->  | W21: 0 | X21: Dry Well / Infiltration Gallery | Y21: Dry Well / Infiltration Gallery | Z21: ='MS4 BMP Sizing Calculator'!E47 -> --
W22: 0
W23: 0
W24: 0
W25: 0
W26: 0
W27: 0
R28: =IF(SUM(C28:P28)>0, SUM(C28:P28), "") ->  | S28: =IF(SUM(M28:P28)+SUM(C28:F28)+W28>0, SUM(M28:P28)+SUM(C28:F28)+W28, "") ->  | T28: =IF(SUM(M28:P28)>0, SUM(M28:P28)/S28,"") ->  | W28: 0
W29: 0
R30: =IF(SUM(C30:P30)>0, SUM(C30:P30), "") ->  | S30: =IF(SUM(M30:P30)+SUM(C30:F30)+W30>0, SUM(M30:P30)+SUM(C30:F30)+W30, "") ->  | T30: =IF(SUM(M30:P30)>0, SUM(M30:P30)/S30,"") ->  | W30: 0
W31: 0
W32: 0
W33: 0
W34: 0
W35: 0
W36: 0
A37: Total | C37: =IF(SUM(C9:C36)>0, SUM(C9:C36), "") ->  | R37: =IF(SUM(R9:R36)>0, SUM(R9:R36), "") ->  | S37: =SUM(S9:S36) -> 0
A38: Total (from Sizer) | C38: =IF('MS4 BMP Sizing Calculator'!E27>0, 'MS4 BMP Sizing Calculator'!E27, "") ->  | D38: =IF('MS4 BMP Sizing Calculator'!E28>0, 'MS4 BMP Sizing Calculator'!E28, "") ->  | E38: =IF('MS4 BMP Sizing Calculator'!E29>0, 'MS4 BMP Sizing Calculator'!E29, "") ->  | F38: =IF('MS4 BMP Sizing Calculator'!E31>0, 'MS4 BMP Sizing Calculator'!E31, "") ->  | G38: =IF('MS4 BMP Sizing Calculator'!E34>0, 'MS4 BMP Sizing Calculator'!E34, "") ->  | H38: =IF('MS4 BMP Sizing Calculator'!E35>0, 'MS4 BMP Sizing Calculator'!E35, "") ->  | I38: =IF('MS4 BMP Sizing Calculator'!E36>0, 'MS4 BMP Sizing Calculator'!E36, "") ->  | J38: =IF('MS4 BMP Sizing Calculator'!E37>0, 'MS4 BMP Sizing Calculator'!E37, "") ->  | K38: =IF('MS4 BMP Sizing Calculator'!E38>0, 'MS4 BMP Sizing Calculator'!E38, "") ->  | L38: =IF('MS4 BMP Sizing Calculator'!E39>0, 'MS4 BMP Sizing Calculator'!E39, "") ->  | M38: =VLOOKUP(M8,$X$9:$Z$21,3,FALSE) ->  | N38: =VLOOKUP(N8,$X$9:$Z$21,3,FALSE) ->  | O38: =VLOOKUP(O8,$X$9:$Z$21,3,FALSE) ->  | P38: =VLOOKUP(P8,$X$9:$Z$21,3,FALSE) ->  | R38: =IF('MS4 BMP Sizing Calculator'!E61>0, 'MS4 BMP Sizing Calculator'!E61, "") ->  | S38: =IF(ISERROR(S37),"Must select HSG type in BMP Sizing Calculator", " ") -> 
A39: Check | C39: =IF(C37=C38, "", "Check Area") ->  | M39: =IF(M8="Select BMP", " ", IF(M37=M38,"", "Check Area")) ->  | P39: =IF(P8="Select BMP", " ", IF(P37=P38,"", "Check Area")) ->  | R39: =IF(R37=R38, "", "Check Area") -> 
A41: Notes:
A42: • Confirm that all areas entered above are coordinated with the Area Summary Table on the SCP Stormwater Management Plan.
A43: • Confirm that total areas for all surface area types are coordinated with the "MS4 BMP Sizing Calculator" tab.

Sheet RWH Instructions
A2: RAINWATER HARVESTING CALCULATOR INSTRUCTIONS
A3: NOTE: | B3: This Rainwater Harvesting (RWH) calculator is intended for the conceptual design of both simple cisterns as well as those that include a dual-stage detention component. The RWH calculator simulates the performance of the design over 10 years of historical rainfall data to determine how much volume is available in the cistern on average prior to a storm event. This volume becomes the cistern's available storage volume used to evaluate performance during the water quality design storm.
A7: Part 1 - Calculating Irrigation Demand
A8: 1 | B8: Enter the square footage of the area to be irrigated that is covered by turfgrass or crops. If no turf, skip to Step 3. [1 acre = 43,560 sq ft]
A9: 2 | B9: Enter the crop coefficient for your site. Cool season grasses= 0.8, warm season=0.6. Please see the linked CIMIS publication if more information is needed.
A10: 3 | B10: Enter the square footage of the landscaped area to be irrigated. If no landscaped area, skip to Step 8. [1 acre = 43,560 sq ft]
A11: 4 | B11: Enter species factor based on type of plants used. Please see pages 62-99 of: A Guide to Estimating Irrigation Water Needs of Landscape Plantings in California (Guide) (Department of Water Resources 2000) for more info.
A12: 5 | B12: Enter density factor based on plant coverage. Full coverage of one vegetation type is considered average. Please see p. 18 of Guide for more info.
A13: 6 | B13: Enter microclimate factor based on site's exposure to sun and wind. Open-field without extraordinary winds or heat inputs is considered average (e.g., a park). Please see p. 19 of Guide for more info.
A14: 7 | B14: The landscape coefficient is calculated here. It is a product of the species, density, and microclimate factors.
A15: 8 | B15: Enter irrigation efficiency. Generally ranges from 0.7 to 0.95, with subsurface drip being the most efficient and spray irrigation the least efficient. Current San Francisco regulations require that harvested rainwater be treated prior to use in spray irrigation.
A16: 9 | B16: Select whether the site is located in western or eastern San Francisco. Sites located in the foggier western half of the city will have lower evapotranspiration values.
B17: >NOTE: Other conditions not included in the Sizer may also effect irrigation water demand, such as soil salt concentration, soil evaporation rate, trees in turf, etc. If you feel these special conditions may apply to your site, please see Chapter 7 and 8 of the Guide.
A18: 10 | B18: The monthly irrigation demand is shown in the table. Reference evapotranspiration rates are from CIMIS (DWR 2005).
A20: Part 2 - Calculating Indoor Non-Potable Demand
A21: 11 | B21: Enter the number of residential units at the site and the average people per unit. People per unit typically ranges from 2 to 3.
A22: 12 | B22: For commercial and industrial sites, enter the number of full-time equivalents (FTEs) located on site. An 8-hr/day occupant has an FTE of 1.
B23: Part-time occupants have an FTE = # hrs per day/8 hrs.
A24: 13 | B24: For facilities such as schools, museums, and churches, enter the number of students or visitors (per day).
A25: 14 | B25: For retail buildings, enter the number of customers (per day).
A26: 15 | B26: The default values for toilet flushes per day are given here.
A27: 16 | B27: The default value for gallons per flush is given here.
A28: 17 | B28: Enter the washing machine loads and gallons per load. The default gallons per load is 36.9.
A29: 18 | B29: Enter any additional non-potable demand in gallons per day. This includes industrial uses, heating/cooling, and all other permitted indoor uses.
A30: 19 | B30: The indoor non-potable demand is calculated here.
A31: Part III - Calculate Cistern Size to Meet Desired Percent Capture
A32: 20 | B32: Enter the runoff coefficient for the area draining to the cistern. A value of 0.85 is recommended for roofs.
A33: 21 | B33: Enter the square footage of the area draining to the cistern.
A34: 22 | B34: Enter a volume for the cistern. Adjust the volume until the desired percent capture is met (typically at least 80%) or when 100% of non-potable demand is met.
A35: 23 | B35: If the cistern cannot capture the required percentage of annual runoff (typically at least 80%), then additional BMPs will be needed to manage runoff from the drainage area.
A36: 24 | B36: Enter the depth of the cistern to find the surface area covered by the cistern.
A37: 25 | B37: The estimated monthly runoff captured and reused by the cistern is shown in the table.
A39: Part 3 - Entering Cistern Dimensions
A40: 20 | B40: Enter the impervious and pervious areas that drain to the cistern. The total drainage area to the cistern is then calculated. Note: Please submit a Non-potable Project Program Application to the SFPUC to initiate guidance on reuse and treatment based on SFDPH requirements.
A41: 21 | B41: Enter the runoff coefficient of the area draining to the cistern. A value of 0.85 is recommended for roofs. Please see the SMR for other values.
A42: 22 | B42: Enter the shape and dimensions of the cistern. For cisterns with atypical geometries, such as spherical, oblong, or pyramidal cisterns designed to fit beneath ramps, normalize the volume of the cistern to fit within a circular or rectangular footprint.
A43: 22A | B43: Enter the depth of additional detention storage used to control discharge from large storm events. Use only when cistern is First BMP in Series.
A45: Part 4 - Calculating Cistern Performance
A46: 23 | B46: The surface area and volume of the cistern and detention space are calculated here.
A47: 24 | B47: The average volume of rainwater remaining in the cistern and the average cistern volume available prior to a storm event are shown here. These volumes are calculated from the results of a 10-year daily simulation of RWH performance.
A48: 25 | B48: The percent captured from the water quality rain event (i.e., 85th or 90th percentile storm) and the percent of the average annual non-potable demand met are shown here. These volumes are calculated from the results of the 10-year daily simulation and the SBUH calculations.
A50: NOTE: | B50: The RWH Calculator does not consider treatment requirements for the various non-potable demands. The designer will need to coordinate with SF Department of Public Health, SF Department of Building Inspection and SF Public Utilities Commission for the specific treatment requirement per each proposed use. Additional review may be required based on the proposed use.

Sheet RWH Calculator
L1: HIDE ROWS
A2: RAINWATER HARVESTING (RWH) CALCULATOR | I2: LEGEND:
A3: The RWH Calculator simulates the performance of a cistern over 10 years of historical rainfall data to determine how much volume is available in the cistern on average prior to a storm event. This volume becomes the available storage volume used to evaluate performance during the water quality design storm. | I3: User Input | T3: SF Downtown Gauge | AA3: Estimate of Available Cistern Volume
I4: Default Value | N4: ETo Values (DWR 2005 - CIMIS) | T4: 24 hour curves | V4: C=1 | X4: 48 hour curves | Y4: C =1 | AA4: 48 hour % Capture Curves
A5: The RWH calculator is intended for conceptual design and determining compliance with the MS4 performance requirements; | I5: Locked | N5: Zone 1 | O5: Zone 2 | P5: Zone 1 | Q5: Zone 2 | T5: Unit Storage | U5: Percent | V5: Percent | X5: Unit Storage | Y5: Percent | AA5: Annual | AB5: Equivalent
A6: construction documents and Stormwater Control Plan shall include further engineering evaluation and system configuration for the cistern design. | I6: Comment | N6: (in/mo) | O6: (In/mo) | P6: (in/day) | Q6: (in/day) | T6: (inches) | U6: Capture | V6: Capture | X6: (inches) | Y6: Capture | AA6: Reuse % | AB6: Rainfall Depth (in)
M7: Jan | N7: 0.93 | O7: 1.24 | P7: =N7/31 -> 0.03 | Q7: =O7/31 -> 0.04
M8: Feb | N8: 1.4 | O8: 1.68 | P8: =N8/28 -> 0.05 | Q8: =O8/28 -> 0.06 | T8: 0 | U8: =V8/100 -> 0 | V8: 0 | X8: 0 | Y8: 0 | AA8: 0 | AB8: 0
M9: Mar | N9: 2.48 | O9: 3.1 | P9: =N9/31 -> 0.08 | Q9: =O9/31 -> 0.1 | T9: 0.03 | U9: 0.06 | V9: 6 | X9: 0.03 | Y9: 6 | AA9: 0.06 | AB9: 0.03
A10: PART 1 - Calculate Irrigation Demand | M10: Apr | N10: 3.3 | O10: 3.9 | P10: =N10/30 -> 0.11 | Q10: =O10/30 -> 0.13 | T10: 0.06 | U10: 0.13 | V10: 13 | X10: 0.06 | Y10: 13 | AA10: 0.1 | AB10: 0.05
M11: May | N11: 4.03 | O11: 4.65 | P11: =N11/31 -> 0.13 | Q11: =O11/31 -> 0.15 | T11: 0.12 | U11: 0.2823 | V11: 28.23 | X11: 0.12 | Y11: 21.54 | AA11: 0.13 | AB11: 0.06
A12: 1 | B12: Turf/Crop Area to be Irrigated | D12: ft2 | M12: Jun | N12: 4.5 | O12: 5.1 | P12: =N12/30 -> 0.15 | Q12: =O12/30 -> 0.17 | T12: 0.24 | U12: 0.4922 | V12: 49.22 | X12: 0.24 | Y12: 38.76 | AA12: 0.15 | AB12: 0.08
A13: 2 | B13: Crop Coefficient - Kc | D13: cool season grasses = 0.8, warm season grasses = 0.6. Please see CIMIS publication for more information. | M13: Jul | N13: 4.65 | O13: 4.96 | P13: =N13/31 -> 0.15 | Q13: =O13/31 -> 0.16 | T13: 0.36 | U13: 0.6458 | V13: 64.58 | X13: 0.36 | Y13: 52.69 | AA13: 0.2154 | AB13: 0.12
A14: 3 | B14: Landscape Area to be Irrigated | D14: ft2 | M14: Aug | N14: 4.03 | O14: 4.65 | P14: =N14/31 -> 0.13 | Q14: =O14/31 -> 0.15 | T14: 0.48 | U14: 0.7571 | V14: 75.71 | X14: 0.48 | Y14: 63.74 | AA14: 0.28 | AB14: 0.16
A15: 4 | B15: Species Factor - ks | D15: <0.1 for very low, 0.1-0.3 for low, 0.4-0.6 for medium, 0.7-0.9 for high. See p. 62-99 of Guide (DWR 2000). | M15: Sep | N15: 3.3 | O15: 3.9 | P15: =N15/30 -> 0.11 | Q15: =O15/30 -> 0.13 | T15: 0.6 | U15: 0.8345 | V15: 83.45 | X15: 0.6 | Y15: 72.51 | AA15: 0.3 | AB15: 0.17
A16: 5 | B16: Density Factor - kd | D16: 0.5-0.9 for low, 1 for average, 1.1-1.3 for high. See p. 18 of Guide (DWR 2000). | M16: Oct | N16: 2.48 | O16: 2.79 | P16: =N16/31 -> 0.08 | Q16: =O16/31 -> 0.09 | T16: 0.72 | U16: 0.8878 | V16: 88.78 | X16: 0.72 | Y16: 79.28 | AA16: 0.335 | AB16: 0.2
A17: 6 | B17: Microclimate Factor - kmc | D17: 0.5-0.9 for low, 1 for average, 1.1-1.4 for high. See p. 19 of Guide (DWR 2000). | M17: Nov | N17: 1.2 | O17: 1.8 | P17: =N17/30 -> 0.04 | Q17: =O17/30 -> 0.06 | T17: 0.84 | U17: 0.9251 | V17: 92.51 | X17: 0.84 | Y17: 84.49 | AA17: 0.3876 | AB17: 0.24
A18: 7 | B18: Landscape Coefficient - KL | C18: =C15*C16*C17 -> 0 | D18: KL = ks*kd*kmc | M18: Dec | N18: 0.62 | O18: 1.24 | P18: =N18/31 -> 0.02 | Q18: =O18/31 -> 0.04 | T18: 0.96 | U18: 0.9502 | V18: 95.02 | X18: 0.96 | Y18: 88.46 | AA18: 0.44 | AB18: 0.28
B19: Total Irrigation Area | C19: =SUM(C14,C12) -> 0 | D19: ft2 | M19: Total | N19: 32.9 | O19: 39 | T19: 1.08 | U19: 0.9663 | V19: 96.63 | X19: 1.08 | Y19: 91.49 | AA19: 0.46 | AB19: 0.3
B20: Average Coefficient | C20: =IF(C19>0,(C12*C13+C14*C18)/C19,0) -> 0 | T20: 1.2 | U20: 0.9774 | V20: 97.74 | X20: 1.2 | Y20: 93.71 | AA20: 0.49 | AB20: 0.33
A21: 8 | B21: Irrigation Efficiency | D21: Estimated efficiencies are 0.70 to 0.85 for spray, 0.9 for drip, 0.95 for subsurface drip. | T21: 1.32 | U21: 0.9846 | V21: 98.46 | X21: 1.32 | Y21: 95.35 | AA21: 0.5269 | AB21: 0.36
A22: 9 | B22: Site Location (ETo Zone) | D22: Select Western if located in the Richmond, Sunset, or Lake Merced areas of San Francisco | T22: 1.44 | U22: 0.9892 | V22: 98.92 | X22: 1.44 | Y22: 96.52 | AA22: 0.57 | AB22: 0.4
T23: 1.56 | U23: 0.9923 | V23: 99.23 | X23: 1.56 | Y23: 97.4 | AA23: 0.6374 | AB23: 0.48
A24: 10 | B24: Month | C24: Ave. Monthly | D24: Reference | E24: Actual | F24: Irrigation Demand | T24: 1.68 | U24: 0.9948 | V24: 99.48 | X24: 1.68 | Y24: 98.04 | AA24: 0.67 | AB24: 0.52
C25: Rainfall | D25: Evapotranspiration | E25: Evapotranspiration | I25: % of | T25: 1.8 | U25: 0.9963 | V25: 99.63 | X25: 1.8 | Y25: 98.49 | AA25: 0.7251 | AB25: 0.6
C26: in/month | D26: ETo | E26: ETL | F26: ft3/month | G26: gal/mo | H26: gpd | I26: annual | L26: (in/unit area) | M26: days/mo | T26: 1.92 | U26: 0.9972 | V26: 99.72 | X26: 1.92 | Y26: 98.82 | AA26: 0.75 | AB26: 0.64
B27: January | C27: ='RWH 10-yr Simulation'!X25/10 -> 3.656 | D27: ='RWH 10-yr Simulation'!AA25/10 -> 1.24 | E27: =D27*$C$20 -> 0 | F27: ='RWH 10-yr Simulation'!AC25/10/7.48 -> 0 | G27: =F27*7.48 -> 0 | H27: =(G27)/M27 -> 0 | I27: =G27/$G$39 ->  | L27: =IF(E27-C27>0, (E27-C27)/$C$21,0) -> 0 | M27: 31 | T27: 2.04 | U27: 0.9977 | V27: 99.77 | X27: 2.04 | Y27: 99.1 | AA27: 0.7928 | AB27: 0.72
B28: February | C28: ='RWH 10-yr Simulation'!X26/10 -> 4.379 | D28: ='RWH 10-yr Simulation'!AA26/10 -> 1.692 | E28: 0 | F28: ='RWH 10-yr Simulation'!AC26/10/7.48 -> 0 | G28: =F28*7.48 -> 0 | H28: 0 | I28: =G28/$G$39 ->  | L28: 0 | M28: 28 | T28: 2.16 | U28: 0.998 | V28: 99.8 | X28: 2.16 | Y28: 99.34 | AA28: 0.82 | AB28: 0.78
B29: March | C29: ='RWH 10-yr Simulation'!X27/10 -> 2.568 | D29: ='RWH 10-yr Simulation'!AA27/10 -> 3.1 | E29: 0 | F29: ='RWH 10-yr Simulation'!AC27/10/7.48 -> 0 | G29: 0 | H29: 0 | I29: =G29/$G$39 ->  | L29: 0 | M29: 31 | T29: 2.28 | U29: 0.9982 | V29: 99.82 | X29: 2.28 | Y29: 99.52 | AA29: 0.8449 | AB29: 0.84
B30: April | C30: ='RWH 10-yr Simulation'!X28/10 -> 1.436 | D30: ='RWH 10-yr Simulation'!AA28/10 -> 3.9 | E30: 0 | F30: ='RWH 10-yr Simulation'!AC28/10/7.48 -> 0 | G30: 0 | H30: 0 | I30: =G30/$G$39 ->  | L30: 0 | M30: 30 | T30: 2.4 | U30: 0.9985 | V30: 99.85 | X30: 2.4 | Y30: 99.64 | AA30: 0.8846 | AB30: 0.96
B31: May | C31: ='RWH 10-yr Simulation'!X29/10 -> 0.49 | D31: ='RWH 10-yr Simulation'!AA29/10 -> 4.65 | E31: 0 | F31: ='RWH 10-yr Simulation'!AC29/10/7.48 -> 0 | G31: 0 | H31: 0 | L31: 0 | M31: 31 | T31: 2.52 | U31: 0.9987 | V31: 99.87 | X31: 2.52 | Y31: 99.7 | AA31: 0.9149 | AB31: 1.08
B32: June | C32: ='RWH 10-yr Simulation'!X30/10 -> 0.119 | D32: ='RWH 10-yr Simulation'!AA30/10 -> 5.1 | E32: 0 | F32: ='RWH 10-yr Simulation'!AC30/10/7.48 -> 0 | G32: 0 | H32: 0 | L32: 0 | M32: 30 | T32: 2.64 | U32: 0.9989 | V32: 99.89 | X32: 2.64 | Y32: 99.74 | AA32: 0.9371 | AB32: 1.2
B33: July | C33: ='RWH 10-yr Simulation'!X31/10 -> 0.005 | D33: ='RWH 10-yr Simulation'!AA31/10 -> 4.96 | E33: 0 | F33: ='RWH 10-yr Simulation'!AC31/10/7.48 -> 0 | G33: 0 | H33: 0 | L33: 0 | M33: 31 | T33: 2.76 | U33: 0.9992 | V33: 99.92 | X33: 2.76 | Y33: 99.77 | AA33: 0.9535 | AB33: 1.32
B34: August | C34: ='RWH 10-yr Simulation'!X32/10 -> 0.013 | D34: ='RWH 10-yr Simulation'!AA32/10 -> 4.65 | E34: 0 | F34: ='RWH 10-yr Simulation'!AC32/10/7.48 -> 0 | G34: 0 | H34: 0 | L34: 0 | M34: 31 | T34: 2.88 | U34: 0.9994 | V34: 99.94 | X34: 2.88 | Y34: 99.8 | AA34: 0.9652 | AB34: 1.44
B35: September | C35: ='RWH 10-yr Simulation'!X33/10 -> 0.062 | D35: ='RWH 10-yr Simulation'!AA33/10 -> 3.9 | E35: 0 | F35: ='RWH 10-yr Simulation'!AC33/10/7.48 -> 0 | G35: 0 | H35: 0 | L35: 0 | M35: 30 | T35: 3 | U35: 0.9996 | V35: 99.96 | X35: 3 | Y35: 99.82 | AA35: 0.974 | AB35: 1.56
B36: October | C36: ='RWH 10-yr Simulation'!X34/10 -> 1.153 | D36: ='RWH 10-yr Simulation'!AA34/10 -> 2.79 | E36: 0 | F36: ='RWH 10-yr Simulation'!AC34/10/7.48 -> 0 | G36: 0 | H36: 0 | L36: 0 | M36: 31 | T36: 3.12 | U36: 0.9998 | V36: 99.98 | X36: 3.12 | Y36: 99.84 | AA36: 0.9804 | AB36: 1.68
B37: November | C37: ='RWH 10-yr Simulation'!X35/10 -> 2.354 | D37: ='RWH 10-yr Simulation'!AA35/10 -> 1.8 | E37: 0 | F37: ='RWH 10-yr Simulation'!AC35/10/7.48 -> 0 | G37: 0 | H37: 0 | L37: 0 | M37: 30 | T37: 3.24 | U37: 0.9999 | V37: 99.99 | X37: 3.24 | Y37: 99.86 | AA37: 0.9849 | AB37: 1.8
B38: December | C38: ='RWH 10-yr Simulation'!X36/10 -> 7.038 | D38: ='RWH 10-yr Simulation'!AA36/10 -> 1.24 | E38: 0 | F38: ='RWH 10-yr Simulation'!AC36/10/7.48 -> 0 | G38: 0 | H38: 0 | L38: 0 | M38: 31 | T38: 3.36 | U38: 1 | V38: 100 | X38: 3.36 | Y38: 99.88 | AA38: 0.9882 | AB38: 1.92
B39: Totals | C39: =SUM(C27:C38) -> 23.273 | D39: =SUM(D27:D38) -> 39.022 | E39: =SUM(E27:E38) -> 0 | F39: =SUM(F27:F38) -> 0 | G39: =SUM(G27:G38) -> 0 | L39: =SUM(L27:L38) -> 0 | M39: =SUM(M27:M38) -> 365 | T39: 3.48 | U39: 1 | V39: 100 | X39: 3.48 | Y39: 99.91 | AA39: 0.991 | AB39: 2.04
X40: 3.6 | Y40: 99.93 | AA40: 0.9934 | AB40: 2.16
A41: PART 2 - Calculate Indoor Non-Potable Demand | X41: 3.72 | Y41: 99.95 | AA41: 0.9952 | AB41: 2.28
X42: 3.84 | Y42: 99.97 | AA42: 0.9964 | AB42: 2.4
A43: 11 | B43: No. of Residential Units | X43: 3.96 | Y43: 99.98 | AA43: 0.997 | AB43: 2.52
B44: Persons per Unit | C44: 2.01 | D44: Recommend 2.0 for multi-family, 3.1 for single family. See 2010 SFPUC Appendix D | X44: 4.08 | Y44: 99.99 | AA44: 0.9974 | AB44: 2.64
A45: 12 | B45: Number of Full Time Equivalents | D45: Use for commercial and industrial facilities. An 8-hr a day occupant has an FTE of 1. | X45: 4.2 | Y45: 100 | AA45: 0.9977 | AB45: 2.76
A46: 13 | B46: Number of Students/Visitors | D46: Use for schools, museums, libraries, etc. | AA46: 0.998 | AB46: 2.88
A47: 14 | B47: Number of Retail Customers | D47: Use for retail stores | AA47: 0.9982 | AB47: 3
A48: 15 | B48: Freq. of Residential Toilet Use | C48: 4.75 | D48: flush/person/day | E48: See SFPUC Urban Water Management Plan (UWMP) | AA48: 0.9984 | AB48: 3.12
B49: Freq. of FTE Toilet Use | C49: 1.74 | D49: flush/person/day | E49: See SFPUC UWMP | AA49: 0.9986 | AB49: 3.24
B50: Freq. of Student/Visitor Toilet Use | C50: 0.5 | D50: flush/person/day | E50: See SFPUC UWMP | AA50: 0.9988 | AB50: 3.36
B51: Freq. of Customer Toilet Use | C51: 0.5 | D51: flush/person/day | E51: See SFPUC UWMP | AA51: 0.9991 | AB51: 3.48
A52: 16 | B52: Volume per Flush | C52: 1.28 | D52: gal/flush | E52: See California Green Building Standards Code 5.303.2. | AA52: 0.9993 | AB52: 3.6
A53: 17 | B53: Washing Machine Use | D53: cycles/person/day | AA53: 0.9995 | AB53: 3.72
B54: Volume per Load | C54: 36.9 | D54: gal/cycle | E54: See SFPUC UWMP | AA54: 0.9997 | AB54: 3.84
A55: 18 | B55: Other Non-Potable Demand | D55: gal/day | E55: Additional non-potable demand (e.g. cooling water) per supporting documentation | AA55: 0.9998 | AB55: 3.96
A56: 19 | B56: Daily Reuse Demand | C56: =C52*(C43*C44*C48+C45*C49+C46*C50+C47*C51)+C55+C53*C54*C43*C44 -> 0 | D56: gal/day | AA56: 0.9999 | AB56: 4.08
B57: Monthly Reuse Demand | C57: =(365/12)*C56 -> 0 | D57: gal/month | AA57: 1 | AB57: 4.2
B58: Annual Reuse Demand | C58: =C56*365/1000000 -> 0 | D58: MG/yr
A60: PART 3 - Enter Cistern Design Information and the Conventional Areas that drain to the Cistern
A62: 20 | B62: Impervious Drainage Area | D62: ft2 (Enter roof area, paved area, etc. that drain to cistern. Value will populate Step 3b of "BMP Sizing Calculator".)
B63: Pervious Drainage Area | D63: ft2 (Enter allowed pervious areas that drain to cistern. Value will populate Step 3b of "BMP Sizing Calculator".)
B64: Total Area Draining to Cistern | C64: =SUM(C62:C63) -> 0 | D64: ft2
A65: 21 | B65: Ave. Runoff Coefficient | C65: 0.85 | D65: Recommend 0.85 for roofs. Typical values are between 0.85 to 0.95. | K65: Unit Size (in/DMA)
A66: 22 | B66: Shape of Cistern Footprint | D66: Select Circular or Rectangular | K66: 0.25 | L66: =ROUNDUP(0.25/12*C62*7.48,0) -> 0 | M66: gal
B67: =IF(C$66="Circular","Cistern Diameter", "Cistern Length") -> Cistern Length | D67: ft | E67: =IF(C76=0," ",IF(C76<(0.25/12)*C62, "The recommended minimum cistern size is sufficient volume to store 0.25 inches of rainfall per square foot of impervious drainage area. Please increase the cistern size or provide justification for the design.", "")) ->  | K67: 0.5 | L67: =ROUNDUP(0.5/12*C62*7.48,0) -> 0 | M67: gal
B68: =IF(C$66="Circular","N/A", "Cistern Width") -> Cistern Width | D68: ft | K68: 0.75 | L68: =ROUNDUP(0.75/12*C62*7.48,0) -> 0 | M68: gal
B69: Cistern Depth | D69: ft
A70: 22A | B70: Depth of Additional Detention | D70: ft (Use only when cistern is First BMP in Series)
B71: Detention Outlet Diameter | D71: in
A73: PART 4 - Calculate Cistern Performance in 10-year Simulation Based on Inputs
A75: 23 | B75: Cistern Surface Area | C75: =IF(C66="Rectangular",C67*C68,PI()*C67^2/4) -> 0 | D75: square ft | E75: Adjust the cistern size until the desired performance is achieved (e.g., MS4 performance measures met or 100% of demand met). Cistern performance during the design storm is summarized in step 24 while cistern performance during the ten year simulation is shown in the subsequent graphs. The "Average Volume in Cistern prior to Rainy-Season Storm Event" is used as the starting volume for the calculations to evaluated performance during the design storms in the "MS4 BMP Sizing Calculator". Check results in Steps 5 and 6 of the "MS4 BMP Sizing Calculator".
B76: Cistern Volume | C76: =C69*C75 -> 0 | D76: ft3
B77: Cistern Volume | C77: =C76*7.48 -> 0 | D77: gallons
B78: Detention Volume | C78: =C75*C70*7.48 -> 0 | D78: gallons
B79: Ave. Volume in Cistern prior to Rainy-Season Storm Event | C79: ='RWH Performance Evaluation'!D17 -> 0 | D79: gallons
B80: Available Cistern Volume prior to Design Storm Event | C80: =ROUND(C77-C79,0) -> 0 | D80: gallons
A81: 24 | B81: Percent of Design Storm Volume Captured | C81: =F170 ->  | D81: Percent of runoff to the cistern from the WQ design storm that is captured (i.e., is reused or remains in storage). Should be 100% to meet requirements. Steps 1-3 of "MS4 BMP Sizing Calculator" tab must be complete for results to populate correctly. See that tab for full site results.
B82: Average Annual Non-Potable Demand Met by Rainwater Harvesting | C82: ='RWH Performance Evaluation'!D9 ->  | D82: Average annual percentage of non-potable water demand supplied by water captured in the cistern for reuse.
A84: Daily Precipitation Data used to evaluate RWH performance
C98: 0.85
A119: RWH Performance Metrics
C152: Rainwater Harvester Performance from Part 4 | F152: (gallons) | G152: (%)
C153: Total Cistern Volume | F153: =C77 -> 0
C154: Ave. Volume Available in Cistern prior to Storm Event | F154: =ROUND(C80,0) -> 0 | G154: =IF(F153>0,F154/F153," ") -> 
C155: Design Storm Runoff Volume (from contributing area) | F155: =ROUND('MS4 BMP Sizing Calculator'!G85*7.48052,0) -> 0
C156: Design Storm Runoff Captured & Reused | F156: =ROUND(('MS4 BMP Sizing Calculator'!G85-'MS4 BMP Sizing Calculator'!K85-'MS4 BMP Sizing Calculator'!L85-'MS4 BMP Sizing Calculator'!N85-'MS4 BMP Sizing Calculator'!O85)*7.48052,0) -> 0 | G156: =IF(F155>0,F156/F155," ") ->  | H156: =IF(G156<0.99, "Should be 100% to meet MS4 rqmts", "") -> 
C157: Ave. Annual Runoff Volume (from contributing area) | F157: ='RWH Performance Evaluation'!D2/10 -> 0
C158: Ave. Annual Runoff Captured & Reused | F158: ='RWH Performance Evaluation'!D4/10 -> 0 | G158: =IF(F157>0,F158/F157," ") -> 
C159: Annual Non-Potable Demand Volume | F159: ='RWH Performance Evaluation'!D7/10 -> 0
C160: Annual Non-Potable Demand Met | F160: ='RWH Performance Evaluation'!D8/10 -> 0 | G160: =IF(F159>0,F160/F159," ") -> 
A162: References
A163: California Department of Water Resources (DWR). 2005. CIMIS Reference Evapotranspiration Zones. http://wwwcimis.water.ca.gov/cimis/pdf/CimisRefEvapZones.pdf
A164: San Francisco Public Utilities Commission (SFPUC). 2004. Water Use Estimates. Source files: "householdcons.xls", "nonresconsump.xls".
A165: University of California Cooperative Extension and California Department of Water Resources (DWR). 2000. A Guide to Estimating Landscape Planting Needs in California. http://www.owue.water.ca.gov/docs/wucols00.pdf. August 2000.
A166: United States Green Building Council. 2007. LEED New Construction v2.2 Reference Manual. Third Edition October 2007.
A168: Part I calculates the monthly irrigation demand, Part II calculates the indoor non-potable demand, and Part III sizes the cistern.
C170: Percent of Design Storm Volume Captured | F170: =('MS4 BMP Sizing Calculator'!G85-'MS4 BMP Sizing Calculator'!L85-'MS4 BMP Sizing Calculator'!K85-'MS4 BMP Sizing Calculator'!N85-'MS4 BMP Sizing Calculator'!O85)/'MS4 BMP Sizing Calculator'!G85 -> 

Sheet Swale Calculator
A1: VOLUME-BASED BIORETENTION SWALE CALCULATOR | F1: LEGEND:
A2: This calculator sizes vegetated swales or sloped bioretention systems. | F2: User Input
A3: Complete Steps 1-3 on the "MS4 BMP Sizing Calculator" tab to enable performance tabulation. | F3: Default Values
F4: Locked
F5: Comment
A8: Drainage Management Areas
B9: Impervious Area Draining to Swale | D9: square feet (entered value will automatically populate in Step 3 of "MS4 BMP Sizing Calculator" tab)
B10: Pervious Area Draining to Swale | D10: square feet (entered value will automatically populate in Step 3 of "MS4 BMP Sizing Calculator" tab)
A11: Vegetated Swale Calculator
A12: 1 | B12: Swale Base Length | D12: feet | Q12: =0.9*0.75/12*1*43560 -> 2450.25
A13: 2 | B13: Swale Base Width | D13: feet (trapezoidal channel - minimum 2 ft and maximum 10 ft allowed)
A14: 3 | B14: Swale Side Slope (Horizontal/Vertical) | D14: 3:1 or flatter (enter ratio of horizontal to vertical, for example, 3 for 3H:1V)
A15: 4 | B15: Swale Slope | C15: 0.02 | D15: (should be 0.5% or greater, maximum allowed is 5%)
A16: 5 | B16: Ponding Depth | D16: feet (depth should be equal to check dam height, typically < 0.5 ft)
A17: 6 | B17: Media Depth | D17: feet (recommend 1.5 ft)
A18: 7 | B18: Gravel Storage Depth | D18: feet (if underdrained, recommend 0.67 ft or deeper)
A19: 8 | B19: Does the swale have an underdrain? | C19: No | D19: Swale should have underdrain in Type C or D soils
A20: 9 | B20: Height of Underdrain Above Base | D20: feet (minimum 0.167 ft)
A21: 10 | B21: Outlet Diameter | C21: 4 | D21: inches (default is 4 inches)
A22: 11 | B22: Check Dam Spacing | D22: ="feet (horizontal spacing between check dams). Max distance is Ponding Depth / Swale Slope"&IF(AND(C16>0,C15>0)," (i.e., < "&ROUND(C16/C15,1)&" ft)","") -> feet (horizontal spacing between check dams). Max distance is Ponding Depth / Swale Slope
A23: 12 | B23: Freeboard above Ponding | D23: feet (minimum 0.167 ft)
A24: 13 | B24: Total Swale Width | C24: =2*(C23+C16)*C14+C13 -> 0
A25: 14 | B25: Swale LID Area | C25: =C24*C12 -> 0 | D25: ft2 (entered value will automatically populate in Step 3 of "MS4 BMP Sizing Calculator" tab)
A26: 15 | B26: Upstream Depth | C26: =IF(C22<>0,IF(C16-(C22*C15)>=0, C16-(C22*C15), "Reduce Check Dam Spacing"),IF(C16-(C12*C15)>=0,C16-(C12*C15),"Use Check Dams")) -> 0 | D26: feet
A27: 16 | B27: Downstream Width | C27: =2*C16*C14+C13 -> 0 | D27: feet (at ponding depth)
A28: 17 | B28: Upstream Width | C28: =2*C26*C14+C13 -> 0 | D28: feet (at ponding depth)
A29: 18 | B29: Average Width | C29: =(C27+C28)/2 -> 0 | D29: feet (at ponding depth) | E29: Performance Summary for Swale Only
A30: 19 | B30: Swale Infiltration Area | C30: =C12*C29 -> 0 | D30: ft2 | E30: (See "MS4 BMP Sizing Calculator" tab for full site results)
A31: 20 | B31: Upstream Cross-Section Area | C31: =(C28+C13)/2*C26 -> 0 | D31: ft2 | E31: Runoff to Swale from DMA (ft3) | F31: =IF(C19="Yes",'MS4 BMP Sizing Calculator'!G96,'MS4 BMP Sizing Calculator'!G89) -> 0
A32: 21 | B32: Downstream Cross-Section Area | C32: =(C27+C13)/2*C16 -> 0 | D32: ft2 | E32: Runoff from 1st BMP (ft3) | F32: =IF(OR('MS4 BMP Sizing Calculator'!M28="Bioretention Swale (Underdrain)",'MS4 BMP Sizing Calculator'!M28="Bioretention Swale (No Underdrain)"),SUM('MS4 BMP Sizing Calculator'!N102:O102),0) -> 0
A33: 22 | B33: Ponding Volume | C33: =((C32+C31)/2)*C12 -> 0 | D33: ft3 | E33: Runoff Captured and Treated (ft3) | F33: =IF(C19="Yes",SUM('MS4 BMP Sizing Calculator'!H96:K96),SUM('MS4 BMP Sizing Calculator'!H89:J89)) -> 0
A34: 23 | B34: Media Storage Volume | C34: =(C29*C17*C12)*'MS4 BMP Sizing Calculator'!AF28 -> 0 | D34: ft3 | E34: Percent of WQ Runoff Captured | F34: =IF(OR(F31>0,F32>0),F33/(F31+F32)," ") -> 
A35: 24 | B35: Gravel Storage Volume | C35: =(C13*C18*C12)*'MS4 BMP Sizing Calculator'!AF27 -> 0 | D35: ft3 | E35: Must complete steps 1-3 on BMP Sizing Calculator
A36: 25 | B36: Storage Volume | C36: =((C32+C31)/2*C12)+((C29*C17*C12)*'MS4 BMP Sizing Calculator'!AF28)+((C13*C18*C12)*'MS4 BMP Sizing Calculator'!AF27) -> 0 | D36: ft3 | E36: worksheet for above results to be accurate
A38: INSTRUCTIONS
A39: Use the steps below to determine the swale dimensions and length such that the water quality storm is captured.
A41: Step
A42: 1 | B42: Enter the proposed base length of the swale.
A43: 2 | B43: Enter the proposed base width of the swale. The sizer assumes the swale is trapezoidal. Base width should be between 2 to 10 feet.
A44: 3 | B44: Enter the side slope of the swale. The slope of earthen side walls should be no steeper than 3:1 (i.e., at least 3 feet horizontal for each 1 foot vertical). Enter 0 for vertical walls.
A45: 4 | B45: Enter the longitudinal slope of the swale. The maximum slope for swale design is 5%, and less than or equal to 2% is preferred. Consider using a meandering design, terraces, or check dams to create a satisfactory slope.
A46: 5 | B46: Enter the ponding depth above the swale. This is typically 6 inches or less. The depth should be equal to the check dam height.
A47: 6 | B47: Enter the depth of the bioretention media. Should be 1.5 ft or greater and is generally between 1.5 and 2.5 ft.
A48: 7 | B48: Enter the depth of the gravel storage layer. Gravel storage layers are not required in non-underdrained swales, but can be used to increase storage in all swale types.
A49: 8 | B49: Indicate if the swale is to have an underdrain. Underdrains should be used in Type C or D soils or where subsurface field-tested infiltration rate is less than 0.5 in/hr.
A50: 9 | B50: Enter the height of the underdrain above the sub-grade, if underdrains are used. Underdrains should be located near the top of the gravel storage layer to maximize infiltration.
A51: 10 | B51: Enter the outlet diameter of the underdrain, if used. The typical underdrain is 4 inches in diameter.
A52: 11 | B52: Enter the spacing between check dams. The spacing should be based on the swale slope and design ponding depth.
A53: 12 | B53: Enter the freeboard above the ponding depth. A free board of at least 2" is recommended for hardwall systems and 6" for natural side-sloped swales.
A54: 13 | B54: Total swale width is calculated based on the ponding depth, freeboard, base width, and side slopes.
A55: 14 | B55: Swale BMP area is calculated based on the total length and width of the swale.
A56: 15 | B56: Upstream depth is calculated based on the check dam spacing, ponding depth, swale slope, and length.
A57: 16 | B57: Downstream width at the ponding depth is calculated based on the ponding depth, base width, and side slopes.
A58: 17 | B58: Upstream width at the ponding depth is calculated based on the upstream depth, base width, and side slopes.
A59: 18 | B59: The average of the downstream and upstream widths at the ponding depth is calculated.
A60: 19 | B60: Swale infiltration area is calculated based on the average width at the ponding depth and the swale length.
A61: 20 | B61: Upstream cross-section area is calculated based on ponding depth, swale slope, length, base width, and side slopes.
A62: 21 | B62: Downstream cross-section area is calculated based on ponding depth, base width and side slopes
A63: 22 | B63: Ponding volume is calculated based on the average of the upstream and downstream cross-section areas based on ponding depth and swale slope.
A64: 23 | B64: Media volume is calculated based on the average of the upstream and downstream widths based on ponding depth and swale slope.
A65: 24 | B65: Gravel storage volume is calculated based on the base width.
A66: 25 | B66: Storage volume is the total of ponding volume, media storage volume, and gravel storage volume.
A69: Notes
A70: Check dams are assumed to have no length above ponding depth (i.e., check dam areas are included within the overall swale surface area, and not subtracted from the total footprint).

Sheet Media Filter Calculator
A1: FLOW-BASED MEDIA FILTER CALCULATOR | E1: LEGEND:
A2: For sites where high-rate filtration has been approved due to site constraints. | E2: User Input
A3: This calculator provides the necessary information to size the media filter based on the design flow rate and proprietary media filtration rates. | E3: Default Values
A4: The flow-based sizing approach for media filters is distinct from the hydrograph calculations used to size the other BMPs in the MS4 BMP Sizing Calculator. | E4: Locked
E5: Comment
A8: Media Filter Design Approach
A9: 1 | B9: Proprietary Media Filter Type | D9: =IF(C9=H15, "(E.g., modular wetlands)",IF(C9=H14,"(E.g., Filterra, BioMod, TreePod, etc.)", " ")) -> 
A10: 2 | B10: Impervious Area Draining to Filter | D10: sf (entered value will automatically populate in Step 3 of MS4 BMP Sizing Calculator tab)
A11: 3 | B11: =IF(C9="Cartridge Filter","N/A","Surface Footprint of Filter BMP") -> Surface Footprint of Filter BMP | D11: =IF(C9="Cartridge Filter", "N/A", "sf (entered value will automatically populate in Step 3 of MS4 BMP Sizing Calculator tab)") -> sf (entered value will automatically populate in Step 3 of MS4 BMP Sizing Calculator tab)
A12: 4 | B12: =IF(C9="Cartridge Filter", "SFPUC Max Allowed Filtration Rate", "SFPUC Max Allowed Filtration Rate") -> SFPUC Max Allowed Filtration Rate | C12: =IF(C9="Tree Box Filter",25,IF(C9="Cartridge Filter",1, IF(C9="Horizontal Subsurface Flow",1,""))) ->  | D12: =IF(C9="Horizontal Subsurface Flow","gpm/sf (Actual rate used must be ≤ GULD approved rate for Enhanced Treatment)",IF(C9="Tree Box Filter","in/hr (Actual rate used must be ≤ GULD approved rate for Enhanced Treatment)","gpm/sf (Enter info in Steps 7 - 9)")) -> gpm/sf (Enter info in Steps 7 - 9)
A13: Required Design Flow Rate
A14: 5 | B14: Rainfall Intensity | C14: =IF('MS4 BMP Sizing Calculator'!$D$5 = "Port of San Francisco", 0.2, IF('MS4 BMP Sizing Calculator'!$D$5 = "SF Public Utilities Commission", 0.24, "")) ->  | D14: =IF(OR(C14=0.2,C14=0.24), "in/hr", "Select jurisdiction on MS4 BMP Sizing Calculator worksheet") -> Select jurisdiction on MS4 BMP Sizing Calculator worksheet | H14: Tree Box Filter
A15: 6 | B15: Design Flow Rate | C15: =1*(C14/12/60/60)*(C10+C11) ->  | D15: cfs (Using the allowed filtration rate, filter must be sized to treat the design flow rate) | H15: Horizontal Subsurface Flow
H16: Cartridge Filter
A17: Cartridge Filter Information (If Proposed)
A18: 7 | B18: =IF(C9="Cartridge Filter", "Cartridge Manufacturer and Model", "N/A") -> N/A | D18: =IF(C9="Cartridge Filter", "(E.g., StormFilter MetalRx, PerkFilter ZPC, etc.)"," ") -> 
A19: 8 | B19: =IF(C9="Cartridge Filter","Media Surface Loading Rate","N/A") -> N/A | D19: =IF(C9="Cartridge Filter","gpm/sf (max 1 gpm/sf, should be less than or equal to GULD certified rate)"," ") -> 
A20: 9 | B20: =IF(C$9="Cartridge Filter","Actual Treated Flow Rate", "N/A") -> N/A | D20: =IF(C$9="Cartridge Filter", "cfs (Per manufacturer's calculations in Appendix B of SCP submittal)", " ") -> 
A21: Hide | B21: Est. Minimum Media Filter Area | C21: =IF(C9="Tree Box Filter", C15/(C12/12/60/60), IF(C9="Cartridge Filter", C15/(1/7.48052/60), IF(C9="Horizontal Subsurface Flow", C15/(C12/7.48052/60), ""))) ->  | D21: sf (Based on 1 gpm/sf for cartridge and SSF, 25 in/hr for tree box)
A22: Hide | B22: Sizing Ratio | C22: =C21/C10 -> 
A24: INSTRUCTIONS
A25: Step | E25: Link to TAPE list.
A26: 1 | B26: Choose the proprietary media filter type that is proposed at the site. Modular wetlands are typically horizontal subsurface flow filters.
A27: 2 | B27: Enter the proposed impervious area draining to the media filter. This value will automatically be entered into Step 3b on the MS4 BMP Sizing Calculator tab.
A28: 3 | B28: For filters taking up surface space at the site (e.g., filters with vegetation), enter the proposed footprint area of the filter. This value will automatically be entered into Step 3a of the MS4 BMP Sizing Calculator tab.
A29: 4 | B29: Unless otherwise approved by the SFPUC, the selected proprietary product must be certified by the Washington State Technical Assistance Protocol - Ecology (TAPE) program under the General Use Level Designation (GULD) for Basic Treatment (cartridge filters) or Enhanced Treatment (tree box and horizontal subsurface flow filters). See link to TAPE list. Where available, the basis for SFPUC's max allowed rate is the GULD approved rate for Enhanced Treatment in Western Washington. High-rate vegetated filters not certified by the TAPE program may be approved by SFPUC on a case by case basis (e.g., BioMod, TreePod).
A30: 5 | B30: Design rainfall intensity will automatically be populated based on the jurisdiction entered in Step 1 of the MS4 BMP Sizing Calculator.
A31: 6 | B31: Design flow rate will be calculated based on the impervious drainage area and design rainfall intensity.
A32: 7 | B32: Enter the cartridge manufacturer and model. Unless otherwise approved by the SFPUC, the selected proprietary product must be certified by the TAPE program under GULD for Basic Treatment (see link above).
A33: 8 | B33: Enter the media surface loading rate per the manufacturer. The max rate allowed is 1 gpm/sf; however, the rate must also be ≤ the product's GULD certified rate for Basic Treatment.
A34: 9 | B34: Enter the treated flow rate per the manufacturer's calculations. For the calculations, assume high pollutant loading rates for pretreatment sizing. Implementation of the product shall comply with the conditions noted by the TAPE GULD certification for Basic Treatment.

Sheet Rainfall and Hydrographs
A1: ="San Francisco"& IF('MS4 BMP Sizing Calculator'!D5="SF Public Utilities Commission", " 90th Percentile", " 85th Percentile")&" Storm Event" -> San Francisco 85th Percentile Storm Event | G1: San Francisco's Design Storm Hyetographs: | K1: Project Site Runoff Hydrographs:
K2: (Based on information entered in the "Sizing Calculator" worksheet.) | S2: =IF('MS4 BMP Sizing Calculator'!D5="SF Public Utilities Commission", "90th Percentile Rainfall Hyetograph", "85th Percentile Rainfall Hyetograph") -> 85th Percentile Rainfall Hyetograph
B3: Intensities (in/hr) | D3: Depths (in) | S3: =IF('MS4 BMP Sizing Calculator'!D5="SF Public Utilities Commission", "90th Percentile Runoff Hydrograph", "85th Percentile Runoff Hydrograph") -> 85th Percentile Runoff Hydrograph
A4: Hour | B4: =IF('MS4 BMP Sizing Calculator'!$D$5="SF Public Utilities Commission", "90th%", "85th %") -> 85th % | C4: 2yr | D4: =IF('MS4 BMP Sizing Calculator'!$D$5="SF Public Utilities Commission", "90th%", "85th %") -> 85th % | E4: 2yr
A5: 00:00:00 | B5: ='85th SBUH'!B16 ->  | C5: 0 | D5: ='85th SBUH'!C16 -> 0 | E5: 0
A6: 00:05:00 | B6: ='85th SBUH'!B17 ->  | C6: 0.0547 | D6: ='85th SBUH'!C17 ->  | E6: =C6*5/60 -> 0.004558333333
A7: 00:10:00 | B7: ='85th SBUH'!B18 ->  | C7: 0.0549 | D7: ='85th SBUH'!C18 ->  | E7: =C7*5/60 -> 0.004575
A8: 00:15:00 | B8: ='85th SBUH'!B19 ->  | C8: 0.0551 | D8: ='85th SBUH'!C19 ->  | E8: 0.004591666667
A9: 00:20:00 | B9: ='85th SBUH'!B20 ->  | C9: 0.0553 | D9: ='85th SBUH'!C20 ->  | E9: 0.004608333333
A10: 00:25:00 | B10: ='85th SBUH'!B21 ->  | C10: 0.0555 | D10: ='85th SBUH'!C21 ->  | E10: 0.004625
A11: 00:30:00 | B11: ='85th SBUH'!B22 ->  | C11: 0.0557 | D11: ='85th SBUH'!C22 ->  | E11: 0.004641666667
A12: 00:35:00 | B12: ='85th SBUH'!B23 ->  | C12: 0.0559 | D12: ='85th SBUH'!C23 ->  | E12: 0.004658333333
A13: 00:40:00 | B13: ='85th SBUH'!B24 ->  | C13: 0.0562 | D13: ='85th SBUH'!C24 ->  | E13: 0.004683333333
A14: 00:45:00 | B14: ='85th SBUH'!B25 ->  | C14: 0.0564 | D14: ='85th SBUH'!C25 ->  | E14: 0.0047
A15: 00:50:00 | B15: ='85th SBUH'!B26 ->  | C15: 0.0566 | D15: ='85th SBUH'!C26 ->  | E15: 0.004716666667
A16: 00:55:00 | B16: ='85th SBUH'!B27 ->  | C16: 0.0568 | D16: ='85th SBUH'!C27 ->  | E16: 0.004733333333
A17: 01:00:00 | B17: ='85th SBUH'!B28 ->  | C17: 0.0571 | D17: ='85th SBUH'!C28 ->  | E17: 0.004758333333
A18: 01:05:00 | B18: ='85th SBUH'!B29 ->  | C18: 0.0573 | D18: ='85th SBUH'!C29 ->  | E18: 0.004775
A19: 01:10:00 | B19: ='85th SBUH'!B30 ->  | C19: 0.0575 | D19: ='85th SBUH'!C30 ->  | E19: 0.004791666667
A20: 01:15:00 | B20: ='85th SBUH'!B31 ->  | C20: 0.0578 | D20: ='85th SBUH'!C31 ->  | E20: 0.004816666667
A21: 01:20:00 | B21: ='85th SBUH'!B32 ->  | C21: 0.058 | D21: ='85th SBUH'!C32 ->  | E21: 0.004833333333 | J21: Port of San Francisco
A22: 01:25:00 | B22: ='85th SBUH'!B33 ->  | C22: 0.0583 | D22: ='85th SBUH'!C33 ->  | E22: 0.004858333333 | J22: 85th Percentile, 24hr Storm Depth (inches) | K22: 0.63
A23: 01:30:00 | B23: ='85th SBUH'!B34 ->  | C23: 0.0585 | D23: ='85th SBUH'!C34 ->  | E23: 0.004875 | J23: 85th Percentile Storm Intensity (in/hr)* | K23: 0.2
A24: 01:35:00 | B24: ='85th SBUH'!B35 ->  | C24: 0.0588 | D24: ='85th SBUH'!C35 ->  | E24: 0.0049 | J24: Approximated Hyetograph | K24: 0.2 in/hr intensity for 3.15 hrs
A25: 01:40:00 | B25: ='85th SBUH'!B36 ->  | C25: 0.059 | D25: ='85th SBUH'!C36 ->  | E25: 0.004916666667
A26: 01:45:00 | B26: ='85th SBUH'!B37 ->  | C26: 0.0593 | D26: ='85th SBUH'!C37 ->  | E26: 0.004941666667 | J26: SFPUC
A27: 01:50:00 | B27: ='85th SBUH'!B38 ->  | C27: 0.0596 | D27: ='85th SBUH'!C38 ->  | E27: 0.004966666667 | J27: 90th Percentile, 24hr Storm Depth (inches) | K27: 0.75
A28: 01:55:00 | B28: ='85th SBUH'!B39 ->  | C28: 0.0598 | D28: ='85th SBUH'!C39 ->  | E28: 0.004983333333 | J28: 90th Percentile Storm Intensity (in/hr)* | K28: 0.24
A29: 02:00:00 | B29: ='85th SBUH'!B40 ->  | C29: 0.0601 | D29: ='85th SBUH'!C40 ->  | E29: 0.005008333333 | J29: Approximated Hyetograph | K29: 0.24 in/hr intensity for 3.13 hrs
A30: 02:05:00 | B30: ='85th SBUH'!B41 ->  | C30: 0.0604 | D30: ='85th SBUH'!C41 ->  | E30: 0.005033333333
A31: 02:10:00 | B31: ='85th SBUH'!B42 ->  | C31: 0.0606 | D31: ='85th SBUH'!C42 ->  | E31: 0.00505 | I31: *Following the Permit methodology, the percentile intensity is based on two times the corresponding ranked hourly intensity from the historical rainfall record.
A32: 02:15:00 | B32: ='85th SBUH'!B43 ->  | C32: 0.0609 | D32: ='85th SBUH'!C43 ->  | E32: 0.005075
A33: 02:20:00 | B33: ='85th SBUH'!B44 ->  | C33: 0.0612 | D33: ='85th SBUH'!C44 ->  | E33: 0.0051
A34: 02:25:00 | B34: ='85th SBUH'!B45 ->  | C34: 0.0615 | D34: ='85th SBUH'!C45 ->  | E34: 0.005125
A35: 02:30:00 | B35: ='85th SBUH'!B46 ->  | C35: 0.0618 | D35: ='85th SBUH'!C46 ->  | E35: 0.00515
A36: 02:35:00 | B36: ='85th SBUH'!B47 ->  | C36: 0.0621 | D36: ='85th SBUH'!C47 ->  | E36: 0.005175
A37: 02:40:00 | B37: ='85th SBUH'!B48 ->  | C37: 0.0624 | D37: ='85th SBUH'!C48 ->  | E37: 0.0052
A38: 02:45:00 | B38: ='85th SBUH'!B49 ->  | C38: 0.0627 | D38: ='85th SBUH'!C49 ->  | E38: 0.005225
A39: 02:50:00 | B39: ='85th SBUH'!B50 ->  | C39: 0.063 | D39: ='85th SBUH'!C50 ->  | E39: 0.00525
A40: 02:55:00 | B40: ='85th SBUH'!B51 ->  | C40: 0.0633 | D40: ='85th SBUH'!C51 ->  | E40: 0.005275
A41: 03:00:00 | B41: ='85th SBUH'!B52 ->  | C41: 0.0636 | D41: ='85th SBUH'!C52 ->  | E41: 0.0053
A42: 03:05:00 | B42: ='85th SBUH'!B53 ->  | C42: 0.0639 | D42: ='85th SBUH'!C53 ->  | E42: 0.005325
A43: 03:10:00 | B43: ='85th SBUH'!B54 ->  | C43: 0.0643 | D43: ='85th SBUH'!C54 ->  | E43: 0.005358333333
A44: 03:15:00 | B44: ='85th SBUH'!B55 ->  | C44: 0.0646 | D44: ='85th SBUH'!C55 ->  | E44: 0.005383333333
A45: 03:20:00 | B45: ='85th SBUH'!B56 ->  | C45: 0.0649 | D45: ='85th SBUH'!C56 ->  | E45: 0.005408333333
A46: 03:25:00 | B46: ='85th SBUH'!B57 ->  | C46: 0.0653 | D46: ='85th SBUH'!C57 ->  | E46: 0.005441666667
A47: 03:30:00 | B47: ='85th SBUH'!B58 ->  | C47: 0.0656 | D47: ='85th SBUH'!C58 ->  | E47: 0.005466666667
A48: 03:35:00 | B48: ='85th SBUH'!B59 ->  | C48: 0.066 | D48: ='85th SBUH'!C59 ->  | E48: 0.0055
A49: 03:40:00 | B49: ='85th SBUH'!B60 ->  | C49: 0.0663 | D49: ='85th SBUH'!C60 ->  | E49: 0.005525
A50: 03:45:00 | B50: ='85th SBUH'!B61 ->  | C50: 0.0667 | D50: ='85th SBUH'!C61 ->  | E50: 0.005558333333
A51: 03:50:00 | B51: ='85th SBUH'!B62 ->  | C51: 0.0671 | D51: ='85th SBUH'!C62 ->  | E51: 0.005591666667
A52: 03:55:00 | B52: ='85th SBUH'!B63 ->  | C52: 0.0674 | D52: ='85th SBUH'!C63 ->  | E52: 0.005616666667
A53: 04:00:00 | B53: ='85th SBUH'!B64 ->  | C53: 0.0678 | D53: ='85th SBUH'!C64 ->  | E53: 0.00565
A54: 04:05:00 | B54: ='85th SBUH'!B65 ->  | C54: 0.0682 | D54: ='85th SBUH'!C65 ->  | E54: 0.005683333333
A55: 04:10:00 | B55: ='85th SBUH'!B66 ->  | C55: 0.0686 | D55: ='85th SBUH'!C66 ->  | E55: 0.005716666667
A56: 04:15:00 | B56: ='85th SBUH'!B67 ->  | C56: 0.069 | D56: ='85th SBUH'!C67 ->  | E56: 0.00575
A57: 04:20:00 | B57: ='85th SBUH'!B68 ->  | C57: 0.0694 | D57: ='85th SBUH'!C68 ->  | E57: 0.005783333333
A58: 04:25:00 | B58: ='85th SBUH'!B69 ->  | C58: 0.0698 | D58: ='85th SBUH'!C69 ->  | E58: 0.005816666667
A59: 04:30:00 | B59: ='85th SBUH'!B70 ->  | C59: 0.0702 | D59: ='85th SBUH'!C70 ->  | E59: 0.00585
A60: 04:35:00 | B60: ='85th SBUH'!B71 ->  | C60: 0.0706 | D60: ='85th SBUH'!C71 ->  | E60: 0.005883333333
A61: 04:40:00 | B61: ='85th SBUH'!B72 ->  | C61: 0.0711 | D61: ='85th SBUH'!C72 ->  | E61: 0.005925
A62: 04:45:00 | B62: ='85th SBUH'!B73 ->  | C62: 0.0715 | D62: ='85th SBUH'!C73 ->  | E62: 0.005958333333
A63: 04:50:00 | B63: ='85th SBUH'!B74 ->  | C63: 0.072 | D63: ='85th SBUH'!C74 ->  | E63: 0.006
A64: 04:55:00 | B64: ='85th SBUH'!B75 ->  | C64: 0.0724 | D64: ='85th SBUH'!C75 ->  | E64: 0.006033333333
A65: 05:00:00 | B65: ='85th SBUH'!B76 ->  | C65: 0.0729 | D65: ='85th SBUH'!C76 ->  | E65: 0.006075
A66: 05:05:00 | B66: ='85th SBUH'!B77 ->  | C66: 0.0734 | D66: ='85th SBUH'!C77 ->  | E66: 0.006116666667
A67: 05:10:00 | B67: ='85th SBUH'!B78 ->  | C67: 0.0738 | D67: ='85th SBUH'!C78 ->  | E67: 0.00615
A68: 05:15:00 | B68: ='85th SBUH'!B79 ->  | C68: 0.0743 | D68: ='85th SBUH'!C79 ->  | E68: 0.006191666667
A69: 05:20:00 | B69: ='85th SBUH'!B80 ->  | C69: 0.0748 | D69: ='85th SBUH'!C80 ->  | E69: 0.006233333333
A70: 05:25:00 | B70: ='85th SBUH'!B81 ->  | C70: 0.0753 | D70: ='85th SBUH'!C81 ->  | E70: 0.006275
A71: 05:30:00 | B71: ='85th SBUH'!B82 ->  | C71: 0.0759 | D71: ='85th SBUH'!C82 ->  | E71: =C71*5/60 -> 0.006325
A72: 05:35:00 | B72: ='85th SBUH'!B83 ->  | C72: 0.0764 | D72: ='85th SBUH'!C83 ->  | E72: 0.006366666667
A73: 05:40:00 | B73: ='85th SBUH'!B84 ->  | C73: 0.0769 | D73: ='85th SBUH'!C84 ->  | E73: 0.006408333333
A74: 05:45:00 | B74: ='85th SBUH'!B85 ->  | C74: 0.0775 | D74: ='85th SBUH'!C85 ->  | E74: 0.006458333333
A75: 05:50:00 | B75: ='85th SBUH'!B86 ->  | C75: 0.078 | D75: ='85th SBUH'!C86 ->  | E75: 0.0065
A76: 05:55:00 | B76: ='85th SBUH'!B87 ->  | C76: 0.0786 | D76: ='85th SBUH'!C87 ->  | E76: 0.00655
A77: 06:00:00 | B77: ='85th SBUH'!B88 ->  | C77: 0.0792 | D77: ='85th SBUH'!C88 ->  | E77: 0.0066
A78: 06:05:00 | B78: ='85th SBUH'!B89 ->  | C78: 0.0798 | D78: ='85th SBUH'!C89 ->  | E78: 0.00665
A79: 06:10:00 | B79: ='85th SBUH'!B90 ->  | C79: 0.0804 | D79: ='85th SBUH'!C90 ->  | E79: 0.0067
A80: 06:15:00 | B80: ='85th SBUH'!B91 ->  | C80: 0.0811 | D80: ='85th SBUH'!C91 ->  | E80: 0.006758333333
A81: 06:20:00 | B81: ='85th SBUH'!B92 ->  | C81: 0.0817 | D81: ='85th SBUH'!C92 ->  | E81: 0.006808333333
A82: 06:25:00 | B82: ='85th SBUH'!B93 ->  | C82: 0.0824 | D82: ='85th SBUH'!C93 ->  | E82: 0.006866666667
A83: 06:30:00 | B83: ='85th SBUH'!B94 ->  | C83: 0.083 | D83: ='85th SBUH'!C94 ->  | E83: 0.006916666667
A84: 06:35:00 | B84: ='85th SBUH'!B95 ->  | C84: 0.0837 | D84: ='85th SBUH'!C95 ->  | E84: 0.006975
A85: 06:40:00 | B85: ='85th SBUH'!B96 ->  | C85: 0.0844 | D85: ='85th SBUH'!C96 ->  | E85: 0.007033333333
A86: 06:45:00 | B86: ='85th SBUH'!B97 ->  | C86: 0.0851 | D86: ='85th SBUH'!C97 ->  | E86: 0.007091666667
A87: 06:50:00 | B87: ='85th SBUH'!B98 ->  | C87: 0.0859 | D87: ='85th SBUH'!C98 ->  | E87: 0.007158333333
A88: 06:55:00 | B88: ='85th SBUH'!B99 ->  | C88: 0.0866 | D88: ='85th SBUH'!C99 ->  | E88: 0.007216666667
A89: 07:00:00 | B89: ='85th SBUH'!B100 ->  | C89: 0.0874 | D89: ='85th SBUH'!C100 ->  | E89: 0.007283333333
A90: 07:05:00 | B90: ='85th SBUH'!B101 ->  | C90: 0.0882 | D90: ='85th SBUH'!C101 ->  | E90: 0.00735
A91: 07:10:00 | B91: ='85th SBUH'!B102 ->  | C91: 0.089 | D91: ='85th SBUH'!C102 ->  | E91: 0.007416666667
A92: 07:15:00 | B92: ='85th SBUH'!B103 ->  | C92: 0.0899 | D92: ='85th SBUH'!C103 ->  | E92: 0.007491666667
A93: 07:20:00 | B93: ='85th SBUH'!B104 ->  | C93: 0.0907 | D93: ='85th SBUH'!C104 ->  | E93: 0.007558333333
A94: 07:25:00 | B94: ='85th SBUH'!B105 ->  | C94: 0.0916 | D94: ='85th SBUH'!C105 ->  | E94: 0.007633333333
A95: 07:30:00 | B95: ='85th SBUH'!B106 ->  | C95: 0.0925 | D95: ='85th SBUH'!C106 ->  | E95: 0.007708333333
A96: 07:35:00 | B96: ='85th SBUH'!B107 ->  | C96: 0.0935 | D96: ='85th SBUH'!C107 ->  | E96: 0.007791666667
A97: 07:40:00 | B97: ='85th SBUH'!B108 ->  | C97: 0.0944 | D97: ='85th SBUH'!C108 ->  | E97: 0.007866666667
A98: 07:45:00 | B98: ='85th SBUH'!B109 ->  | C98: 0.0954 | D98: ='85th SBUH'!C109 ->  | E98: 0.00795
A99: 07:50:00 | B99: ='85th SBUH'!B110 ->  | C99: 0.0965 | D99: ='85th SBUH'!C110 ->  | E99: 0.008041666667
A100: 07:55:00 | B100: ='85th SBUH'!B111 ->  | C100: 0.0975 | D100: ='85th SBUH'!C111 ->  | E100: 0.008125
A101: 08:00:00 | B101: ='85th SBUH'!B112 ->  | C101: 0.0986 | D101: ='85th SBUH'!C112 ->  | E101: 0.008216666667
A102: 08:05:00 | B102: ='85th SBUH'!B113 ->  | C102: 0.0997 | D102: ='85th SBUH'!C113 ->  | E102: 0.008308333333
A103: 08:10:00 | B103: ='85th SBUH'!B114 ->  | C103: 0.1009 | D103: ='85th SBUH'!C114 ->  | E103: 0.008408333333
A104: 08:15:00 | B104: ='85th SBUH'!B115 ->  | C104: 0.1021 | D104: ='85th SBUH'!C115 ->  | E104: 0.008508333333
A105: 08:20:00 | B105: ='85th SBUH'!B116 ->  | C105: 0.1034 | D105: ='85th SBUH'!C116 ->  | E105: 0.008616666667
A106: 08:25:00 | B106: ='85th SBUH'!B117 ->  | C106: 0.1046 | D106: ='85th SBUH'!C117 ->  | E106: 0.008716666667
A107: 08:30:00 | B107: ='85th SBUH'!B118 ->  | C107: 0.106 | D107: ='85th SBUH'!C118 ->  | E107: 0.008833333333
A108: 08:35:00 | B108: ='85th SBUH'!B119 ->  | C108: 0.1074 | D108: ='85th SBUH'!C119 ->  | E108: 0.00895
A109: 08:40:00 | B109: ='85th SBUH'!B120 ->  | C109: 0.1088 | D109: ='85th SBUH'!C120 ->  | E109: 0.009066666667
A110: 08:45:00 | B110: ='85th SBUH'!B121 ->  | C110: 0.1103 | D110: ='85th SBUH'!C121 ->  | E110: 0.009191666667
A111: 08:50:00 | B111: ='85th SBUH'!B122 ->  | C111: 0.1119 | D111: ='85th SBUH'!C122 ->  | E111: 0.009325
A112: 08:55:00 | B112: ='85th SBUH'!B123 ->  | C112: 0.1135 | D112: ='85th SBUH'!C123 ->  | E112: 0.009458333333
A113: 09:00:00 | B113: ='85th SBUH'!B124 ->  | C113: 0.1152 | D113: ='85th SBUH'!C124 ->  | E113: 0.0096
A114: 09:05:00 | B114: ='85th SBUH'!B125 ->  | C114: 0.1169 | D114: ='85th SBUH'!C125 ->  | E114: 0.009741666667
A115: 09:10:00 | B115: ='85th SBUH'!B126 ->  | C115: 0.1188 | D115: ='85th SBUH'!C126 ->  | E115: 0.0099
A116: 09:15:00 | B116: ='85th SBUH'!B127 ->  | C116: 0.1207 | D116: ='85th SBUH'!C127 ->  | E116: 0.01005833333
A117: 09:20:00 | B117: ='85th SBUH'!B128 ->  | C117: 0.1227 | D117: ='85th SBUH'!C128 ->  | E117: 0.010225
A118: 09:25:00 | B118: ='85th SBUH'!B129 ->  | C118: 0.1248 | D118: ='85th SBUH'!C129 ->  | E118: 0.0104
A119: 09:30:00 | B119: ='85th SBUH'!B130 ->  | C119: 0.1271 | D119: ='85th SBUH'!C130 ->  | E119: 0.01059166667
A120: 09:35:00 | B120: ='85th SBUH'!B131 ->  | C120: 0.1294 | D120: ='85th SBUH'!C131 ->  | E120: 0.01078333333
A121: 09:40:00 | B121: ='85th SBUH'!B132 ->  | C121: 0.1319 | D121: ='85th SBUH'!C132 ->  | E121: 0.01099166667
A122: 09:45:00 | B122: ='85th SBUH'!B133 ->  | C122: 0.1345 | D122: ='85th SBUH'!C133 ->  | E122: 0.01120833333
A123: 09:50:00 | B123: ='85th SBUH'!B134 ->  | C123: 0.1373 | D123: ='85th SBUH'!C134 ->  | E123: 0.01144166667
A124: 09:55:00 | B124: ='85th SBUH'!B135 ->  | C124: 0.1402 | D124: ='85th SBUH'!C135 ->  | E124: 0.01168333333
A125: 10:00:00 | B125: ='85th SBUH'!B136 ->  | C125: 0.1433 | D125: ='85th SBUH'!C136 ->  | E125: 0.01194166667
A126: 10:05:00 | B126: ='85th SBUH'!B137 ->  | C126: 0.1466 | D126: ='85th SBUH'!C137 ->  | E126: 0.01221666667
A127: 10:10:00 | B127: ='85th SBUH'!B138 ->  | C127: 0.1502 | D127: ='85th SBUH'!C138 ->  | E127: 0.01251666667
A128: 10:15:00 | B128: ='85th SBUH'!B139 ->  | C128: 0.154 | D128: ='85th SBUH'!C139 ->  | E128: 0.01283333333
A129: 10:20:00 | B129: ='85th SBUH'!B140 ->  | C129: 0.1581 | D129: ='85th SBUH'!C140 ->  | E129: 0.013175
A130: 10:25:00 | B130: ='85th SBUH'!B141 ->  | C130: 0.1625 | D130: ='85th SBUH'!C141 ->  | E130: 0.01354166667
A131: 10:30:00 | B131: ='85th SBUH'!B142 ->  | C131: 0.1673 | D131: ='85th SBUH'!C142 ->  | E131: 0.01394166667
A132: 10:35:00 | B132: ='85th SBUH'!B143 ->  | C132: 0.1725 | D132: ='85th SBUH'!C143 ->  | E132: 0.014375
A133: 10:40:00 | B133: ='85th SBUH'!B144 ->  | C133: 0.1782 | D133: ='85th SBUH'!C144 ->  | E133: 0.01485
A134: 10:45:00 | B134: ='85th SBUH'!B145 ->  | C134: 0.1845 | D134: ='85th SBUH'!C145 ->  | E134: 0.015375
A135: 10:50:00 | B135: ='85th SBUH'!B146 ->  | C135: 0.1914 | D135: ='85th SBUH'!C146 ->  | E135: =C135*5/60 -> 0.01595
A136: 10:55:00 | B136: ='85th SBUH'!B147 ->  | C136: 0.1992 | D136: ='85th SBUH'!C147 ->  | E136: 0.0166
A137: 11:00:00 | B137: ='85th SBUH'!B148 ->  | C137: 0.2079 | D137: ='85th SBUH'!C148 ->  | E137: 0.017325
A138: 11:05:00 | B138: ='85th SBUH'!B149 ->  | C138: 0.2178 | D138: ='85th SBUH'!C149 ->  | E138: 0.01815
A139: 11:10:00 | B139: ='85th SBUH'!B150 ->  | C139: 0.2291 | D139: ='85th SBUH'!C150 ->  | E139: 0.01909166667
A140: 11:15:00 | B140: ='85th SBUH'!B151 ->  | C140: 0.2424 | D140: ='85th SBUH'!C151 ->  | E140: 0.0202
A141: 11:20:00 | B141: ='85th SBUH'!B152 ->  | C141: 0.258 | D141: ='85th SBUH'!C152 ->  | E141: 0.0215
A142: 11:25:00 | B142: ='85th SBUH'!B153 ->  | C142: 0.277 | D142: ='85th SBUH'!C153 ->  | E142: 0.02308333333
A143: 11:30:00 | B143: ='85th SBUH'!B154 ->  | C143: 0.3005 | D143: ='85th SBUH'!C154 ->  | E143: 0.02504166667
A144: 11:35:00 | B144: ='85th SBUH'!B155 ->  | C144: 0.3308 | D144: ='85th SBUH'!C155 ->  | E144: 0.02756666667
A145: 11:40:00 | B145: ='85th SBUH'!B156 ->  | C145: 0.3717 | D145: ='85th SBUH'!C156 ->  | E145: 0.030975
A146: 11:45:00 | B146: ='85th SBUH'!B157 ->  | C146: 0.4315 | D146: ='85th SBUH'!C157 ->  | E146: 0.03595833333
A147: 11:50:00 | B147: ='85th SBUH'!B158 ->  | C147: 0.5303 | D147: ='85th SBUH'!C158 ->  | E147: 0.04419166667
A148: 11:55:00 | B148: ='85th SBUH'!B159 ->  | C148: 0.7428 | D148: ='85th SBUH'!C159 ->  | E148: 0.0619
A149: 12:00:00 | B149: ='85th SBUH'!B160 ->  | C149: 2.3573 | D149: ='85th SBUH'!C160 ->  | E149: 0.1964416667
A150: 12:05:00 | B150: ='85th SBUH'!B161 ->  | C150: 1.0093 | D150: ='85th SBUH'!C161 ->  | E150: 0.08410833333
A151: 12:10:00 | B151: ='85th SBUH'!B162 ->  | C151: 0.6116 | D151: ='85th SBUH'!C162 ->  | E151: 0.05096666667
A152: 12:15:00 | B152: ='85th SBUH'!B163 ->  | C152: 0.4737 | D152: ='85th SBUH'!C163 ->  | E152: 0.039475
A153: 12:20:00 | B153: ='85th SBUH'!B164 ->  | C153: 0.3985 | D153: ='85th SBUH'!C164 ->  | E153: 0.03320833333
A154: 12:25:00 | B154: ='85th SBUH'!B165 ->  | C154: 0.3496 | D154: ='85th SBUH'!C165 ->  | E154: 0.02913333333
A155: 12:30:00 | B155: ='85th SBUH'!B166 ->  | C155: 0.3146 | D155: ='85th SBUH'!C166 ->  | E155: 0.02621666667
A156: 12:35:00 | B156: ='85th SBUH'!B167 ->  | C156: 0.2881 | D156: ='85th SBUH'!C167 ->  | E156: 0.02400833333
A157: 12:40:00 | B157: ='85th SBUH'!B168 ->  | C157: 0.267 | D157: ='85th SBUH'!C168 ->  | E157: 0.02225
A158: 12:45:00 | B158: ='85th SBUH'!B169 ->  | C158: 0.2498 | D158: ='85th SBUH'!C169 ->  | E158: 0.02081666667
A159: 12:50:00 | B159: ='85th SBUH'!B170 ->  | C159: 0.2355 | D159: ='85th SBUH'!C170 ->  | E159: 0.019625
A160: 12:55:00 | B160: ='85th SBUH'!B171 ->  | C160: 0.2232 | D160: ='85th SBUH'!C171 ->  | E160: 0.0186
A161: 13:00:00 | B161: ='85th SBUH'!B172 ->  | C161: 0.2127 | D161: ='85th SBUH'!C172 ->  | E161: 0.017725
A162: 13:05:00 | B162: ='85th SBUH'!B173 ->  | C162: 0.2034 | D162: ='85th SBUH'!C173 ->  | E162: 0.01695
A163: 13:10:00 | B163: ='85th SBUH'!B174 ->  | C163: 0.1952 | D163: ='85th SBUH'!C174 ->  | E163: 0.01626666667
A164: 13:15:00 | B164: ='85th SBUH'!B175 ->  | C164: 0.1878 | D164: ='85th SBUH'!C175 ->  | E164: 0.01565
A165: 13:20:00 | B165: ='85th SBUH'!B176 ->  | C165: 0.1812 | D165: ='85th SBUH'!C176 ->  | E165: 0.0151
A166: 13:25:00 | B166: ='85th SBUH'!B177 ->  | C166: 0.1753 | D166: ='85th SBUH'!C177 ->  | E166: 0.01460833333
A167: 13:30:00 | B167: ='85th SBUH'!B178 ->  | C167: 0.1698 | D167: ='85th SBUH'!C178 ->  | E167: 0.01415
A168: 13:35:00 | B168: ='85th SBUH'!B179 ->  | C168: 0.1648 | D168: ='85th SBUH'!C179 ->  | E168: 0.01373333333
A169: 13:40:00 | B169: ='85th SBUH'!B180 ->  | C169: 0.1602 | D169: ='85th SBUH'!C180 ->  | E169: 0.01335
A170: 13:45:00 | B170: ='85th SBUH'!B181 ->  | C170: 0.156 | D170: ='85th SBUH'!C181 ->  | E170: 0.013
A171: 13:50:00 | B171: ='85th SBUH'!B182 ->  | C171: 0.152 | D171: ='85th SBUH'!C182 ->  | E171: 0.01266666667
A172: 13:55:00 | B172: ='85th SBUH'!B183 ->  | C172: 0.1484 | D172: ='85th SBUH'!C183 ->  | E172: 0.01236666667
A173: 14:00:00 | B173: ='85th SBUH'!B184 ->  | C173: 0.1449 | D173: ='85th SBUH'!C184 ->  | E173: 0.012075
A174: 14:05:00 | B174: ='85th SBUH'!B185 ->  | C174: 0.1417 | D174: ='85th SBUH'!C185 ->  | E174: 0.01180833333
A175: 14:10:00 | B175: ='85th SBUH'!B186 ->  | C175: 0.1387 | D175: ='85th SBUH'!C186 ->  | E175: 0.01155833333
A176: 14:15:00 | B176: ='85th SBUH'!B187 ->  | C176: 0.1359 | D176: ='85th SBUH'!C187 ->  | E176: 0.011325
A177: 14:20:00 | B177: ='85th SBUH'!B188 ->  | C177: 0.1332 | D177: ='85th SBUH'!C188 ->  | E177: 0.0111
A178: 14:25:00 | B178: ='85th SBUH'!B189 ->  | C178: 0.1306 | D178: ='85th SBUH'!C189 ->  | E178: 0.01088333333
A179: 14:30:00 | B179: ='85th SBUH'!B190 ->  | C179: 0.1282 | D179: ='85th SBUH'!C190 ->  | E179: 0.01068333333
A180: 14:35:00 | B180: ='85th SBUH'!B191 ->  | C180: 0.1259 | D180: ='85th SBUH'!C191 ->  | E180: 0.01049166667
A181: 14:40:00 | B181: ='85th SBUH'!B192 ->  | C181: 0.1238 | D181: ='85th SBUH'!C192 ->  | E181: 0.01031666667
A182: 14:45:00 | B182: ='85th SBUH'!B193 ->  | C182: 0.1217 | D182: ='85th SBUH'!C193 ->  | E182: 0.01014166667
A183: 14:50:00 | B183: ='85th SBUH'!B194 ->  | C183: 0.1197 | D183: ='85th SBUH'!C194 ->  | E183: 0.009975
A184: 14:55:00 | B184: ='85th SBUH'!B195 ->  | C184: 0.1178 | D184: ='85th SBUH'!C195 ->  | E184: 0.009816666667
A185: 15:00:00 | B185: ='85th SBUH'!B196 ->  | C185: 0.116 | D185: ='85th SBUH'!C196 ->  | E185: 0.009666666667
A186: 15:05:00 | B186: ='85th SBUH'!B197 ->  | C186: 0.1143 | D186: ='85th SBUH'!C197 ->  | E186: 0.009525
A187: 15:10:00 | B187: ='85th SBUH'!B198 ->  | C187: 0.1127 | D187: ='85th SBUH'!C198 ->  | E187: 0.009391666667
A188: 15:15:00 | B188: ='85th SBUH'!B199 ->  | C188: 0.1111 | D188: ='85th SBUH'!C199 ->  | E188: 0.009258333333
A189: 15:20:00 | B189: ='85th SBUH'!B200 ->  | C189: 0.1096 | D189: ='85th SBUH'!C200 ->  | E189: 0.009133333333
A190: 15:25:00 | B190: ='85th SBUH'!B201 ->  | C190: 0.1081 | D190: ='85th SBUH'!C201 ->  | E190: 0.009008333333
A191: 15:30:00 | B191: ='85th SBUH'!B202 ->  | C191: 0.1067 | D191: ='85th SBUH'!C202 ->  | E191: 0.008891666667
A192: 15:35:00 | B192: ='85th SBUH'!B203 ->  | C192: 0.1053 | D192: ='85th SBUH'!C203 ->  | E192: 0.008775
A193: 15:40:00 | B193: ='85th SBUH'!B204 ->  | C193: 0.104 | D193: ='85th SBUH'!C204 ->  | E193: 0.008666666667
A194: 15:45:00 | B194: ='85th SBUH'!B205 ->  | C194: 0.1027 | D194: ='85th SBUH'!C205 ->  | E194: 0.008558333333
A195: 15:50:00 | B195: ='85th SBUH'!B206 ->  | C195: 0.1015 | D195: ='85th SBUH'!C206 ->  | E195: 0.008458333333
A196: 15:55:00 | B196: ='85th SBUH'!B207 ->  | C196: 0.1003 | D196: ='85th SBUH'!C207 ->  | E196: 0.008358333333
A197: 16:00:00 | B197: ='85th SBUH'!B208 ->  | C197: 0.0992 | D197: ='85th SBUH'!C208 ->  | E197: 0.008266666667
A198: 16:05:00 | B198: ='85th SBUH'!B209 ->  | C198: 0.0981 | D198: ='85th SBUH'!C209 ->  | E198: 0.008175
A199: 16:10:00 | B199: ='85th SBUH'!B210 ->  | C199: 0.097 | D199: ='85th SBUH'!C210 ->  | E199: =C199*5/60 -> 0.008083333333
A200: 16:15:00 | B200: ='85th SBUH'!B211 ->  | C200: 0.0959 | D200: ='85th SBUH'!C211 ->  | E200: 0.007991666667
... 95 more rows

Sheet References
A2: PROJECT TEAM
A3: San Francisco Public Utilities Commission (SFPUC) | G3: Ken Kortkamp, Project Lead
A4: http://sfwater.org | G4: Shayne Martinsen, Peer Review
A5: Lotus Water | G5: Scott Durbin
A6: http://lotuswater.com | G6: Nathan Stormzand Katie Pilat
A8: REFERENCE MATERIALS
A9: General Information: | B9: SFPUC Stormwater Management Requirements
B10: http://sfwater.org/smr
A12: Stormwater Guidance Materials Available on the SFPUC Website
A13: Green Infrastructure Typical Details | B13: See links to CAD and PDF versions of BMP details on the following webpage:
B14: http://sfwater.org/smr
A15: Stormwater Control Plan Information: | B15: See "Stormwater Control Plan" section on the linked webpage for additional SCP guidance:
B17: http://sfwater.org/smr
A18: Design Storms: | B18: 1-year and 2-year 24-hour Design Storms
B19: http://sfwater.org/modules/showdocument.aspx?documentid=2776
A20: Urban Water Management Plan: | B20: SFPUC. 2010 Urban Water Management Plan for the City and County of San Francisco. June 2011.
B22: http://sfwater.org/modules/showdocument.aspx?documentid=1055
A23: Urban Water Management Plan Appendices: | B23: SFPUC. 2010 Urban Water Management Plan for the City and County of San Francisco - Appendices. June 2011.
B25: http://www.sfwater.org/modules/showdocument.aspx?documentid=1054
A26: Non-potable Water Program: | B26: San Francisco's Non-potable Water Program
B27: http://sfwater.org/np
A28: BMP Calculation Approach: | B28: SFPUC. CSS BMP Sizing Calculator: Calculation Approach Memo. August 2015.
B29: http://sfwater.org/smr
A31: Other Reference Materials
A32: Soil Groups and Time of Concentration Calculations: | B32: United States Department of Agriculture (USDA). Natural Resource Conservation Service (NRCS). Conservation Engineering Division. Technical Release 55 (TR-55). "Urban Hydrology for Small Watersheds". June 1986.
B35: http://www.nrcs.usda.gov/Internet/FSE_DOCUMENTS/stelprdb1044171.pdf
A36: Evapotranspiration Rates: | B36: California Department of Water Resources (DWR). California Irrigation Management Information System (CIMIS). "Reference Evapotranspiration Map". 1999.
B38: http://www.cimis.water.ca.gov/App_Themes/images/etozonemap.jpg
A39: Irrigation Water Needs: | B39: DWR. CIMIS. Leaflet 21427. "Using Reference Evapotranspiration (Eto) and Crop Coefficients to Estimate Crop Evapotranspiration (ETc) for Agronomic Crops, Grasses, and Vegetable Crops". 1987.
B41: http://www.cimis.water.ca.gov/Content/PDF/21427-KcAgronomicGrassandVeg.pdf
A42: Water Use Efficiency: | B42: DWR. University of California Cooperative Extension. "A Guide to Estimating Irrigation Water Needs of Landscape Plantings in California - The Landscape Coefficient Method and WUCOLS III". August 2000.
B45: http://www.water.ca.gov/wateruseefficiency/docs/wucols00.pdf
A46: Cal Green Building Standards: | B46: California Green Building Standards Code. 5.303.2 Twenty Percent Savings (Water)
B48: http://greencodepro.com/code-summaries/california-green-building-standards-code/5-303-2-twenty-percent-savings-water
A50: SWRCB Water Quality Order No. 2013-0001-DWQ: | B50: Phase II Small MS4 General Permit
B52: http://www.waterboards.ca.gov/water_issues/programs/stormwater/phase_ii_municipal.shtml

Sheet Tc Calcs (hidden)
B2: Time of Concentration Calculations | N2: Surface Type | O2: Runoff Curve Number* | S2: Sheet Flow* | T2: Shallow Flow** | W2: NRCS Hydrologic Soil Group Definitions | Z2: TR-55 | AA2: Infoworks | AB2: MS4 Sizer
O3: A | P3: B | Q3: C | R3: D | S3: Manning's N | T3: Kv (fps) | Z3: Saturated | AA3: Saturated | AB3: Saturated
C4: Natural (Undeveloped) Conditions | F4: Existing Conditions | J4: Proposed Conditions | N4: Impervious Areas | Z4: Conductivity | AA4: Conductivity | AB4: Conductivity
B5: Flow Length | C5: ='MS4 BMP Sizing Calculator'!$D$22 -> 0 | D5: ft | F5: Flow Length | G5: ='MS4 BMP Sizing Calculator'!$D$22 -> 0 | H5: ft | J5: Flow Length | K5: ='MS4 BMP Sizing Calculator'!$D$22 -> 0 | L5: ft | N5: Pavement | O5: 98 | P5: 98 | Q5: 98 | R5: 98 | S5: 0.011 | T5: 20.33 | W5: Group | X5: Soil Types | Y5: Description | Z5: (in/hr) | AA5: (in/hr) | AB5: (in/hr)
B6: Land Slope | C6: ='MS4 BMP Sizing Calculator'!$D$21 -> 0 | D6: ft/ft | F6: Land Slope | G6: ='MS4 BMP Sizing Calculator'!$D$21 -> 0 | H6: ft/ft | J6: Land Slope | K6: ='MS4 BMP Sizing Calculator'!$D$21 -> 0 | L6: ft/ft | N6: Roof (conventional) | O6: 98 | P6: 98 | Q6: 98 | R6: 98 | S6: 0.013 | T6: 20.33 | W6: A | X6: Sand, loamy sand, or sandy loam | Y6: Low runoff potential. Soils having high infiltration rates even when thoroughly wetted and consisting chiefly of deep, well to excessively drained sands or gravels. | Z6: > 0.45 | AA6: 1 | AB6: 0.5
B7: Manning's Sheet Flow N | C7: =S11 -> 0.15 | F7: Manning's Sheet Flow N | G7: ='MS4 BMP Sizing Calculator'!X22 -> 0 | J7: Manning's Sheet Flow N | K7: ='MS4 BMP Sizing Calculator'!AA22 -> 0 | N7: Gravel | O7: 76 | P7: 85 | Q7: 89 | R7: 91 | S7: 0.05 | T7: 16.13 | W7: B | X7: Silt loam or loam | Y7: Soils having moderate infiltration rates when thoroughly wetted and consisting chiefly of moderately deep to deep, moderately well to well-drained soils with moderately fine to moderately coarse textures. E.g., shallow loess, sandy loam. | Z7: 0.30 - 0.15 | AA7: 0.5 | AB7: 0.35
B8: 2-yr, 24 hr Depth | C8: 2.85 | D8: in | F8: Velocity Shallow Flow Coefficient | G8: ='MS4 BMP Sizing Calculator'!Y22 -> 0 | J8: Velocity Shallow Flow Coefficient | K8: ='MS4 BMP Sizing Calculator'!AB22 -> 0 | N8: Water | O8: 0 | P8: 0 | Q8: 0 | R8: 0
F9: 2-yr, 24 hr Depth | G9: 2.85 | H9: in | J9: 2-yr, 24 hr Depth | K9: 2.85 | L9: in | N9: Other | W9: C | X9: Sandy clay loam | Y9: Soils having slow infiltration rates when thoroughly wetted and consisting chiefly of soils with a layer that impedes downward movement of water, or soils with moderately fine to fine textures. E.g., clay loams, shallow sandy loam. | Z9: 0.15 - 0.05 | AA9: 0.25 | AB9: 0.2
B10: Calculated Tc | C10: =0.42*(C7*C5)^0.8/((C8^0.527)*(C6^0.4)) ->  | D10: minutes | F10: Velocity Channel Flow Coefficient | G10: 25 | J10: Velocity Channel Flow Coefficient | K10: 30 | N10: Pervious Areas
B11: Design Tc | C11: =IF(C10<5,5,C10) ->  | D11: minutes | N11: Grass/Lawn Areas | O11: 49 | P11: 61 | Q11: 74 | R11: 80 | S11: 0.15 | T11: 7 | W11: D | X11: Clay loam, silty clay loam, sandy clay, silty clay, or clay | Y11: High runoff potential. Soils having very slow infiltration rates when thoroughly wetted and consisting chiefly of clay soils with a high swelling potential, soils with a permanent high water table, soils with a clay-pan or clay layer at or near the surface, and shallow soils over nearly impervious material. | Z11: 0.05 - 0.00 | AA11: 0.1 | AB11: 0.1
N12: Landscaped (Lower Dens.) | O12: 39 | P12: 56 | Q12: 70 | R12: 77 | S12: 0.24 | T12: 6
F13: Sheet Flow | G13: =0.42*(G7*G5)^0.8/((G9^0.527)*(G6^0.4)) ->  | H13: minutes | J13: Sheet Flow | K13: =0.42*(K7*K5)^0.8/((K9^0.527)*(K6^0.4)) ->  | L13: minutes | N13: Landscaped (Higher Dens.) | O13: 35 | P13: 48 | Q13: 65 | R13: 73 | S13: 0.4 | T13: 5
F14: Shallow Flow | G14: =G5/(G8*G6^0.5)/60 ->  | H14: minutes | J14: Shallow Flow | K14: =IF(K8>0,K5/(K8*K6^0.5)/60,0) -> 0 | L14: minutes | N14: Tree Well*** | O14: 35 | P14: 35 | Q14: 35 | R14: 35 | S14: 0.4 | T14: 5 | W14: (1) Soil Conservation Service, Urban Hydrology for Small Watersheds, Technical Release 55, June 1986.
F15: Open Channel Flow | G15: =G5/(60*G10*G6^0.5) ->  | H15: minutes | J15: Open Channel Flow | K15: =K5/(60*K10*K6^0.5) ->  | L15: minutes | N15: Traditional Planter on Podium | O15: 74 | P15: 74 | Q15: 74 | R15: 74 | S15: 0.4 | T15: 5
B17: Method A: If L < 100, then Sheet Flow. If 100<L<300, then average of Sheet and Shallow Flow. If L>300ft then shallow flow. | N17: * Soil Conservation Service, Urban Hydrology for Small Watersheds, Technical Release 55, June 1986.
F18: Calculated Tc | G18: =IF(G5<=100,G13,IF(AND(G5>100,G5<300),AVERAGE(G13:G14),G14)) ->  | H18: minutes | J18: Calculated Tc | K18: =IF(K5<=100,K13,IF(AND(K5>100,K5<300),AVERAGE(K13:K14),K14)) ->  | L18: minutes | N18: ** TR-55 and NEH-4 figure 15.2
F19: Design Tc | G19: =IF(G18<1,1,IF(G18>60,60,G18)) ->  | H19: minutes | J19: Design Tc | K19: =IF(K18<1,1,IF(K18>60,60,K18)) ->  | L19: minutes | N19: ***Value initially set based on CN value for woods/trees, then calibrated in the sizer such that a conversion of 25% of a site's impervious area to tree well will meet LEED 6.1 requirements regardless of site soil type.
N20: Poor Condition Lawns | O20: 68 | P20: 79 | Q20: 86 | R20: 89
B21: Method B: If site has "Overland" flow then use sheet flow calc, if pipe or channel use shallow flow. | N21: Fair Condition Woods | O21: 36 | P21: 60 | Q21: 73 | R21: 79
F22: Calculated Tc | G22: =IF('MS4 BMP Sizing Calculator'!$D$20="Overland",G13,G14) ->  | H22: minutes | J22: Calculated Tc | K22: =IF('MS4 BMP Sizing Calculator'!$D$20="Overland",K13,K14) -> 0 | L22: minutes
F23: Design Tc | G23: =IF(G22<1,1,IF(G22>60,60,G22)) ->  | H23: minutes | J23: Design Tc | K23: =IF(K22<1,1,IF(K22>60,60,K22)) -> 1 | L23: minutes

Sheet 85th SBUH (hidden)
A1: SITE CONDITIONS | E1: EXISTING | P1: PROPOSED CONDITIONS - Total Runoff Generated | AC1: Bioretention (No Underdrain No Liner) | AM1: Bioretention (No Underdrain No Liner) Performance Summary | AQ1: Rainwater Harvesting Cistern | AX1: Rainwater Harvesting Performance Summary | BF1: Infiltration Trench | BM1: Infiltration Trench Performance Summary | BQ1: Dry Well | BX1: Dry Well Performance Summary | CC1: Non-Underdrained Permeable Pavement | CI1: Non-Underdrained PP Performance Summary | CN1: Bioretention/FTP (Underdrain No Liner) | CX1: Bioretention/FTP (Underdrain No Liner) Performance Summary | DF1: Bioretention/FTP (Underdrain Liner) | DP1: Bioretention/FTP (Underdrain Liner) Performance Summary | DW1: Vegetated Roof | EG1: Vegetated Roof Performance Summary | EO1: Underdrained Permeable Pavement | ET1: Underdrained PP Performance Summary | FC1: Detention Vault | FH1: Detention Vault Performance Summary | FQ1: Bioretention Swale | GA1: Vegetated Swale Performance Summary | GF1: Vegetated Swale with Underdrain | GP1: Vegetated Swale Performance Summary | GX1: Media Filter | HE1: Media Filter Performance Summary | HM1: Tree Filter | HT1: Tree-Box Filter Performance Summary | HX1: PROPOSED CONDITIONS - Runoff Draining Directly to Sewer | IA1: TOTAL PROJECT CONDITIONS OUTFLOWS | IB1: Total Imperv. Runoff | IC1: Total Perv. Flow to BMPs | ID1: Total Flow to BMP | IE1: Total Infiltration | IF1: Total E/T | IG1: Total Reuse | IH1: Total Remaining | II1: Total Discharge | IJ1: Total Treated | IK1: Total Untreated
A2: Project Area (sf): | B2: ='MS4 BMP Sizing Calculator'!D6 -> 0 | C2: 85/90th % (in) | D2: =IF('MS4 BMP Sizing Calculator'!D5 = "Port of San Francisco", 0.63, IF('MS4 BMP Sizing Calculator'!D5 = "SF Public Utilities Commission",0.75,0)) -> 0 | E2: Parameter | F2: Pervious | G2: Impervious | H2: Total Area | M2: Abstraction Calibrated Parameter: | N2: 0 | P2: Parameter | Q2: Pervious | R2: Impervious | S2: Total Area | X2: Abstraction Calibrated Parameter: | Y2: 0 | AE2: Pervious Drainage Area (ft2) | AF2: =IF('MS4 BMP Sizing Calculator'!$M$26="Yes", IF(OR('MS4 BMP Sizing Calculator'!$M$27="Bioretention (No Underdrain No Liner)", 'MS4 BMP Sizing Calculator'!$M$28="Bioretention (No Underdrain No Liner)"),0,'MS4 BMP Sizing Calculator'!$H45),'MS4 BMP Sizing Calculator'!$H45) -> 0 | AG2: Media Infiltration | AH2: =IF('MS4 BMP Sizing Calculator'!$D$23="Yes", 'MS4 BMP Sizing Calculator'!$AG$29, 'MS4 BMP Sizing Calculator'!$AF$29) -> 4 | AI2: in/hr | AM2: Total Runoff to BMP (ft3) | AN2: =SUM(AC$16:AC$592)*$B$6 -> 0 | AR2: Pervious Drainage Area (ft2) | AS2: =IF('MS4 BMP Sizing Calculator'!$M$26="Yes", IF(OR('MS4 BMP Sizing Calculator'!$M$27="Cistern", 'MS4 BMP Sizing Calculator'!$M$28="Cistern"),0,'MS4 BMP Sizing Calculator'!$H44),'MS4 BMP Sizing Calculator'!$H44) -> 0 | AX2: Total Runoff to BMP (ft3) | AY2: =SUM(AQ$16:AQ$640)*$B$6 -> 0 | BF2: Pervious Drainage Area (ft2) | BG2: =IF('MS4 BMP Sizing Calculator'!$M$26="Yes", IF(OR('MS4 BMP Sizing Calculator'!$M$27="Infiltration Trench", 'MS4 BMP Sizing Calculator'!$M$28="Infiltration Trench"),0,'MS4 BMP Sizing Calculator'!$H46),'MS4 BMP Sizing Calculator'!$H46) -> 0 | BL2: Total Runoff to BMP (ft3) | BM2: =SUM(BE$16:BE$592)*$B$6 -> 0 | BQ2: Pervious Drainage Area (ft2) | BR2: =IF('MS4 BMP Sizing Calculator'!$M$26="Yes", IF(OR('MS4 BMP Sizing Calculator'!$M$27="Dry Well/Infiltration Gallery", 'MS4 BMP Sizing Calculator'!$M$28="Dry Well/Infiltration Gallery"),0,'MS4 BMP Sizing Calculator'!$H47),'MS4 BMP Sizing Calculator'!$H47) -> 0 | BW2: Total Runoff to BMP (ft3) | BX2: =SUM(BP$16:BP$592)*$B$6 -> 0 | CB2: Pervious Drainage Area (ft2) | CC2: =IF('MS4 BMP Sizing Calculator'!$M$26="Yes", IF(OR('MS4 BMP Sizing Calculator'!$M$27="Permeable Pavement (No Underdrain)", 'MS4 BMP Sizing Calculator'!$M$28="Permeable Pavement (No Underdrain)"),0,'MS4 BMP Sizing Calculator'!$H49),'MS4 BMP Sizing Calculator'!$H49) -> 0 | CH2: Total Runoff to BMP (ft3) | CI2: =SUM(CA$16:CA$592)*$B$6 -> 0 | CN2: Pervious Drainage Area (ft2) | CO2: =IF('MS4 BMP Sizing Calculator'!$M$26="Yes", IF(OR('MS4 BMP Sizing Calculator'!$M$27="Bioretention/FTP (Underdrain No Liner)", 'MS4 BMP Sizing Calculator'!$M$28="Bioretention/FTP (Underdrain No Liner)"),0,'MS4 BMP Sizing Calculator'!$H53),'MS4 BMP Sizing Calculator'!$H53) -> 0 | CP2: Media Infiltration | CQ2: =IF('MS4 BMP Sizing Calculator'!$D$23="Yes", 'MS4 BMP Sizing Calculator'!$AG$29, 'MS4 BMP Sizing Calculator'!$AF$29) -> 4 | CR2: in/hr | CS2: E/T Losses (in/hr) | CT2: ='MS4 BMP Sizing Calculator'!$AF20 -> 0.0025 | CW2: Total Runoff to BMP (ft3) | CX2: =SUM(CL$16:CL$640)*$B$6 -> 0 | DF2: Pervious Drainage Area (ft2) | DG2: =IF('MS4 BMP Sizing Calculator'!$M$26="Yes", IF(OR('MS4 BMP Sizing Calculator'!$M$27="Bioretention/FTP (Underdrain Liner)", 'MS4 BMP Sizing Calculator'!$M$28="Bioretention/FTP (Underdrain Liner)"),0,'MS4 BMP Sizing Calculator'!$H54),'MS4 BMP Sizing Calculator'!$H54) -> 0 | DH2: Media Infiltration | DI2: =IF('MS4 BMP Sizing Calculator'!$D$23="Yes", 'MS4 BMP Sizing Calculator'!$AG$29, 'MS4 BMP Sizing Calculator'!$AF$29) -> 4 | DJ2: in/hr | DK2: E/T Losses (in/hr) | DL2: ='MS4 BMP Sizing Calculator'!$AF21 -> 0.11 | DO2: Total Runoff to BMP (ft3) | DP2: =SUM(DD$16:DD$640)*$B$6 -> 0 | DW2: Pervious Drainage Area (ft2) | DX2: =IF('MS4 BMP Sizing Calculator'!$M$26="Yes", IF(OR('MS4 BMP Sizing Calculator'!$M$27="Vegetated Roof", 'MS4 BMP Sizing Calculator'!$M$28="Vegetated Roof"),0,'MS4 BMP Sizing Calculator'!$H51),'MS4 BMP Sizing Calculator'!$H51) -> 0 | DZ2: Media Infiltration | EA2: ='MS4 BMP Sizing Calculator'!$U$51 -> 1 | EB2: in/hr | EF2: Total Runoff to BMP (ft3) | EG2: =SUM(DV$16:DV$640)*$B$6 -> 0 | EN2: Pervious Drainage Area (ft2) | EO2: =IF('MS4 BMP Sizing Calculator'!$M$26="Yes", IF(OR('MS4 BMP Sizing Calculator'!$M$27="Permeable Pavement (Underdrain)", 'MS4 BMP Sizing Calculator'!$M$28="Permeable Pavement (Underdrain)"),0,'MS4 BMP Sizing Calculator'!$H50),'MS4 BMP Sizing Calculator'!$H50) -> 0 | ET2: Total Runoff to BMP (ft3) | EU2: =SUM(EM$16:EM$640)*$B$6 -> 0 | FB2: Pervious Drainage Area (ft2) | FC2: =IF('MS4 BMP Sizing Calculator'!$M$26="Yes", IF(OR('MS4 BMP Sizing Calculator'!$M$27="Detention Vault", 'MS4 BMP Sizing Calculator'!$M$28="Detention Vault"),0,'MS4 BMP Sizing Calculator'!$H56),'MS4 BMP Sizing Calculator'!$H56) -> 0 | FH2: Total Runoff to BMP (ft3) | FI2: =SUM(FA$16:FA$592)*$B$6 -> 0 | FQ2: Pervious Drainage Area (ft2) | FR2: =IF('MS4 BMP Sizing Calculator'!$M$26="Yes",IF(OR('MS4 BMP Sizing Calculator'!$M$27="Bioretention Swale (No Underdrain)",'MS4 BMP Sizing Calculator'!$M$28="Bioretention Swale (No Underdrain)"),0,'MS4 BMP Sizing Calculator'!H48),'MS4 BMP Sizing Calculator'!H48) -> 0 | FT2: Media Infiltration | FU2: =IF('MS4 BMP Sizing Calculator'!$D$23="Yes", 'MS4 BMP Sizing Calculator'!$AG$29, 'MS4 BMP Sizing Calculator'!$AF$29) -> 4 | FV2: in/hr | FZ2: Total Runoff to BMP (ft3) | GA2: =SUM(FO$16:FO$640)*$B$6 -> 0 | GF2: Pervious Drainage Area (ft2) | GG2: =IF('MS4 BMP Sizing Calculator'!$M$26="Yes",IF(OR('MS4 BMP Sizing Calculator'!$M$27="Bioretention Swale (Underdrain)",'MS4 BMP Sizing Calculator'!$M$28="Bioretention Swale (Underdrain)"),0,'MS4 BMP Sizing Calculator'!H55),'MS4 BMP Sizing Calculator'!H55) -> 0 | GJ2: Media Infiltration | GK2: =IF('MS4 BMP Sizing Calculator'!$D$23="Yes", 'MS4 BMP Sizing Calculator'!$AG$29, 'MS4 BMP Sizing Calculator'!$AF$29) -> 4 | GL2: in/hr | GO2: Total Runoff to BMP (ft3) | GP2: =SUM(GD$16:GD$592)*$B$6 -> 0 | GX2: Pervious Drainage Area (ft2) | GY2: 0 | HA2: Orifice Area | HD2: Total Runoff to BMP (ft3) | HE2: =SUM(GV$16:GV$592)*$B$6 -> 0 | HM2: Pervious Drainage Area (ft2) | HN2: =IF('MS4 BMP Sizing Calculator'!$M$26="Yes",IF(OR('MS4 BMP Sizing Calculator'!$M$27="Tree-Box Filter",'MS4 BMP Sizing Calculator'!$M$28="Tree-Box Filter"),0,'MS4 BMP Sizing Calculator'!H59),'MS4 BMP Sizing Calculator'!H59) -> 0 | HP2: Orifice Area | HS2: Total Runoff to BMP (ft3) | HT2: =SUM(HK$16:HK$592)*$B$6 -> 0 | HZ2: Direct to MS4 | II2: No PPUD+CistDis | IK2: Overflow + PPUD+Cis Dis
C3: 85/90th % (in/hr) | D3: =IF('MS4 BMP Sizing Calculator'!D5 = "Port of San Francisco", 0.20432,IF('MS4 BMP Sizing Calculator'!D5 = "SF Public Utilities Commission", 0.24324,0)) -> 0 | J3: Impervious | U3: Impervious | Y3: =SUM(W16:W592)+SUM(S16:S592) ->  | AE3: Impervious Drainage Area (ft2) | AF3: =IF('MS4 BMP Sizing Calculator'!$M$26="Yes", IF(OR('MS4 BMP Sizing Calculator'!$M$27="Bioretention (No Underdrain No Liner)", 'MS4 BMP Sizing Calculator'!$M$28="Bioretention (No Underdrain No Liner)"),0,'MS4 BMP Sizing Calculator'!$G45),'MS4 BMP Sizing Calculator'!$G45) -> 0 | AG3: Media Infiltration | AH3: =(AH2/12)*AF5/3600 -> 0 | AI3: cfs | AM3: Total Infiltration (ft3) | AN3: =SUM(AI$16:AI$640) -> 0 | AR3: Impervious Drainage Area (ft2) | AS3: =IF('MS4 BMP Sizing Calculator'!$M$26="Yes", IF(OR('MS4 BMP Sizing Calculator'!$M$27="Cistern", 'MS4 BMP Sizing Calculator'!$M$28="Cistern"),0,'MS4 BMP Sizing Calculator'!$G44),'MS4 BMP Sizing Calculator'!$G44) -> 0 | AX3: Total Infiltration (ft3) | AY3: =SUM(AT$16:AT$640) -> 0 | BF3: Impervious Drainage Area (ft2) | BG3: =IF('MS4 BMP Sizing Calculator'!$M$26="Yes", IF(OR('MS4 BMP Sizing Calculator'!$M$27="Infiltration Trench", 'MS4 BMP Sizing Calculator'!$M$28="Infiltration Trench"),0,'MS4 BMP Sizing Calculator'!$G46),'MS4 BMP Sizing Calculator'!$G46) -> 0 | BL3: Total Infiltration (ft3) | BM3: =SUM(BH$16:BH$640) -> 0 | BQ3: Impervious Drainage Area (ft2) | BR3: =IF('MS4 BMP Sizing Calculator'!$M$26="Yes", IF(OR('MS4 BMP Sizing Calculator'!$M$27="Dry Well/Infiltration Gallery", 'MS4 BMP Sizing Calculator'!$M$28="Dry Well/Infiltration Gallery"),0,'MS4 BMP Sizing Calculator'!$G47),'MS4 BMP Sizing Calculator'!$G47) -> 0 | BW3: Total Infiltration (ft3) | BX3: =SUM(BS$16:BS$640) -> 0 | CB3: Impervious Drainage Area (ft2) | CC3: =IF('MS4 BMP Sizing Calculator'!$M$26="Yes", IF(OR('MS4 BMP Sizing Calculator'!$M$27="Permeable Pavement (No Underdrain)", 'MS4 BMP Sizing Calculator'!$M$28="Permeable Pavement (No Underdrain)"),0,'MS4 BMP Sizing Calculator'!$G49),'MS4 BMP Sizing Calculator'!$G49) -> 0 | CH3: Total Infiltration (ft3) | CI3: =SUM(CD$16:CD$640) -> 0 | CN3: Impervious Drainage Area (ft2) | CO3: =IF('MS4 BMP Sizing Calculator'!$M$26="Yes", IF(OR('MS4 BMP Sizing Calculator'!$M$27="Bioretention/FTP (Underdrain No Liner)", 'MS4 BMP Sizing Calculator'!$M$28="Bioretention/FTP (Underdrain No Liner)"),0,'MS4 BMP Sizing Calculator'!$G53),'MS4 BMP Sizing Calculator'!$G53) -> 0 | CP3: Media Infiltration | CQ3: =(CQ2/12)*CO5/3600 -> 0 | CR3: cfs | CS3: E/T Losses (cfs) | CT3: =CT2*CO4/12/3600 -> 0 | CW3: Total Inf Losses (ft3) | CX3: =SUM(CU$16:CU$640) -> 0 | CY3: V Red | CZ3: Q Red | DA3: OF Q Red | DF3: Impervious Drainage Area (ft2) | DG3: =IF('MS4 BMP Sizing Calculator'!$M$26="Yes", IF(OR('MS4 BMP Sizing Calculator'!$M$27="Bioretention/FTP (Underdrain Liner)", 'MS4 BMP Sizing Calculator'!$M$28="Bioretention/FTP (Underdrain Liner)"),0,'MS4 BMP Sizing Calculator'!$G54),'MS4 BMP Sizing Calculator'!$G54) -> 0 | DH3: Media Infiltration | DI3: =(DI2/12)*DG5/3600 -> 0 | DJ3: cfs | DK3: E/T Losses (cfs) | DL3: =DL2*DG4/12/3600 -> 0 | DO3: Total Inf Losses (ft3) | DP3: =SUM(DM$16:DM$640) -> 0 | DQ3: V Red | DR3: Q Red | DS3: OF Q Red | DW3: Impervious Drainage Area (ft2) | DX3: =IF('MS4 BMP Sizing Calculator'!$M$26="Yes", IF(OR('MS4 BMP Sizing Calculator'!$M$27="Vegetated Roof", 'MS4 BMP Sizing Calculator'!$M$28="Vegetated Roof"),0,'MS4 BMP Sizing Calculator'!$G51),'MS4 BMP Sizing Calculator'!$G51) -> 0 | DZ3: Media Infiltration | EA3: =(EA2/12)*DX5/3600 -> 0 | EB3: cfs | EF3: Total E/T Losses (ft3) | EG3: =SUM(EB$16:EB$640) -> 0 | EH3: V Red | EI3: Q Red | EN3: Impervious Drainage Area (ft2) | EO3: =IF('MS4 BMP Sizing Calculator'!$M$26="Yes", IF(OR('MS4 BMP Sizing Calculator'!$M$27="Permeable Pavement (Underdrain)", 'MS4 BMP Sizing Calculator'!$M$28="Permeable Pavement (Underdrain)"),0,'MS4 BMP Sizing Calculator'!$G50),'MS4 BMP Sizing Calculator'!$G50) -> 0 | ET3: Total Infiltration (ft3) | EU3: =SUM(ER$16:ER$640) -> 0 | EV3: V Red | EW3: Q Red | EX3: OF Q Red | FB3: Impervious Drainage Area (ft2) | FC3: =IF('MS4 BMP Sizing Calculator'!$M$26="Yes", IF(OR('MS4 BMP Sizing Calculator'!$M$27="Detention Vault", 'MS4 BMP Sizing Calculator'!$M$28="Detention Vault"),0,'MS4 BMP Sizing Calculator'!$G56),'MS4 BMP Sizing Calculator'!$G56) -> 0 | FH3: Total Infiltration (ft3) | FI3: =SUM(FD$16:FD$640) -> 0 | FJ3: V Red | FK3: Q Red | FL3: OF Q Red | FQ3: Impervious Drainage Area (ft2) | FR3: =IF('MS4 BMP Sizing Calculator'!$M$26="Yes",IF(OR('MS4 BMP Sizing Calculator'!$M$27="Bioretention Swale (No Underdrain)",'MS4 BMP Sizing Calculator'!$M$28="Bioretention Swale (No Underdrain)"),0,'MS4 BMP Sizing Calculator'!G48),'MS4 BMP Sizing Calculator'!G48) -> 0 | FT3: Media Infiltration | FU3: =(FU2/12)*FR4/3600 -> 0 | FV3: cfs | FZ3: Total Infiltration (ft3) | GA3: =SUM(FX$16:FX$640) -> 0 | GF3: Impervious Drainage Area (ft2) | GG3: =IF('MS4 BMP Sizing Calculator'!$M$26="Yes",IF(OR('MS4 BMP Sizing Calculator'!$M$27="Bioretention Swale (Underdrain)",'MS4 BMP Sizing Calculator'!$M$28="Bioretention Swale (Underdrain)"),0,'MS4 BMP Sizing Calculator'!G55),'MS4 BMP Sizing Calculator'!G55) -> 0 | GJ3: Media Infiltration | GK3: =(GK2/12)*GG4/3600 -> 0 | GL3: cfs | GO3: Total Infiltration (ft3) | GP3: =SUM(GM$16:GM$640) -> 0 | GX3: Impervious Drainage Area (ft2) | GY3: =IF('MS4 BMP Sizing Calculator'!$M$26="Yes",IF(OR('MS4 BMP Sizing Calculator'!$M$27="Media Filter",'MS4 BMP Sizing Calculator'!$M$28="Media Filter"),0,'MS4 BMP Sizing Calculator'!G58),'MS4 BMP Sizing Calculator'!G58) -> 0 | HA3: ='MS4 BMP Sizing Calculator'!$X58 -> 0 | HD3: Total Infiltration (ft3) | HE3: =SUM(HB$16:HB$880) -> 0 | HM3: Impervious Drainage Area (ft2) | HN3: =IF('MS4 BMP Sizing Calculator'!$M$26="Yes",IF(OR('MS4 BMP Sizing Calculator'!$M$27="Tree-Box Filter",'MS4 BMP Sizing Calculator'!$M$28="Tree-Box Filter"),0,'MS4 BMP Sizing Calculator'!G59),'MS4 BMP Sizing Calculator'!G59) -> 0 | HP3: ='MS4 BMP Sizing Calculator'!$X59 -> 0.0872664626 | HS3: Total Infiltration (ft3) | HT3: =SUM(HQ$16:HQ$880) -> 0 | HY3: Pervious Drainage Area (ft2) | HZ3: =IF('MS4 BMP Sizing Calculator'!$U69>0,'MS4 BMP Sizing Calculator'!$U69,0) -> 0 | IN3: Total Site Runoff | IO3: =Z9 -> 0 | IP3: cf | IQ3: Includes pervious direct to MS4
A4: Rainfall Depth (in): | B4: =D9 ->  | C4: duration (hr) | D4: =D2/D3 ->  | E4: Area (sf) | F4: =SUM('MS4 BMP Sizing Calculator'!D40) -> 0 | G4: ='MS4 BMP Sizing Calculator'!X29 -> 0 | H4: =SUM(F4:G4) -> 0 | I4: Runoff | J4: =SUM(L16:L592)*$B$6 ->  | K4: cf | P4: Area (sf) | Q4: ='MS4 BMP Sizing Calculator'!AA39 -> 0 | R4: ='MS4 BMP Sizing Calculator'!AA29+SUM('MS4 BMP Sizing Calculator'!$E$60) -> 0 | S4: =SUM(Q4:R4) -> 0 | T4: Runoff | U4: =SUM(W16:W592)*$B$6 ->  | V4: cf | Y4: =Y3*300 ->  | AE4: Infiltration Base Area (ft2) | AF4: =IF('MS4 BMP Sizing Calculator'!$M$26="Yes", IF(OR('MS4 BMP Sizing Calculator'!$M$27="Bioretention (No Underdrain No Liner)", 'MS4 BMP Sizing Calculator'!$M$28="Bioretention (No Underdrain No Liner)"),0,'MS4 BMP Sizing Calculator'!$E45),'MS4 BMP Sizing Calculator'!$E45) -> 0 | AG4: Pond Height | AH4: ='MS4 BMP Sizing Calculator'!$I$45 -> 0.5 | AI4: ft | AM4: Total Reuse (ft3) | AN4: =SUM(AJ$16:AJ$592) -> 0 | AR4: Infiltration Base Area (ft2) | AS4: 0 | AX4: Total Reuse (ft3) | AY4: =SUM(AU$16:AU$640) -> 0 | BF4: Infiltration Base Area (ft2) | BG4: =IF('MS4 BMP Sizing Calculator'!$M$26="Yes", IF(OR('MS4 BMP Sizing Calculator'!$M$27="Infiltration Trench", 'MS4 BMP Sizing Calculator'!$M$28="Infiltration Trench"),0,'MS4 BMP Sizing Calculator'!$E46),'MS4 BMP Sizing Calculator'!$E46) -> 0 | BL4: Total Reuse (ft3) | BM4: =SUM(BI$16:BI$640) -> 0 | BQ4: Infiltration Base Area (ft2) | BR4: =IF('MS4 BMP Sizing Calculator'!$M$26="Yes", IF(OR('MS4 BMP Sizing Calculator'!$M$27="Dry Well/Infiltration Gallery", 'MS4 BMP Sizing Calculator'!$M$28="Dry Well/Infiltration Gallery"),0,'MS4 BMP Sizing Calculator'!$R47),'MS4 BMP Sizing Calculator'!$R47) -> 0 | BW4: Total Reuse (ft3) | BX4: =SUM(BT$16:BT$640) -> 0 | CB4: Infiltration Base Area (ft2) | CC4: =IF('MS4 BMP Sizing Calculator'!$M$26="Yes", IF(OR('MS4 BMP Sizing Calculator'!$M$27="Permeable Pavement (No Underdrain)", 'MS4 BMP Sizing Calculator'!$M$28="Permeable Pavement (No Underdrain)"),0,'MS4 BMP Sizing Calculator'!$E49),'MS4 BMP Sizing Calculator'!$E49) -> 0 | CH4: Total Reuse (ft3) | CI4: =SUM(CE$16:CE$640) -> 0 | CN4: E/T Base Area (ft2) | CO4: =IF('MS4 BMP Sizing Calculator'!$M$26="Yes", IF(OR('MS4 BMP Sizing Calculator'!$M$27="Bioretention/FTP (Underdrain No Liner)", 'MS4 BMP Sizing Calculator'!$M$28="Bioretention/FTP (Underdrain No Liner)"),0,'MS4 BMP Sizing Calculator'!$E53),'MS4 BMP Sizing Calculator'!$E53) -> 0 | CS4: E/T Losses (cf) | CT4: =CT3*$B$6 -> 0 | CW4: Total E/T Losses (ft3) | CX4: =SUM(CR16:CR640) -> 0 | CY4: =(CX3+CX4)/CX2 ->  | CZ4: =(CX9-CX10)/CX9 ->  | DA4: =(CX9-CX11)/CX9 ->  | DF4: E/T Base Area (ft2) | DG4: =IF('MS4 BMP Sizing Calculator'!$M$26="Yes", IF(OR('MS4 BMP Sizing Calculator'!$M$27="Bioretention/FTP (Underdrain Liner)", 'MS4 BMP Sizing Calculator'!$M$28="Bioretention/FTP (Underdrain Liner)"),0,'MS4 BMP Sizing Calculator'!$E54),'MS4 BMP Sizing Calculator'!$E54) -> 0 | DK4: E/T Losses (cf) | DL4: =DL3*$B$6 -> 0 | DO4: Total E/T Losses (ft3) | DP4: =SUM(DJ16:DJ640) -> 0 | DQ4: =(DP3+DP4)/DP2 ->  | DR4: =(DP9-DP10)/DP9 ->  | DS4: =(DP9-DP11)/DP9 ->  | DW4: E/T Base Area (ft2) | DX4: =IF('MS4 BMP Sizing Calculator'!$M$26="Yes", IF(OR('MS4 BMP Sizing Calculator'!$M$27="Vegetated Roof", 'MS4 BMP Sizing Calculator'!$M$28="Vegetated Roof"),0,'MS4 BMP Sizing Calculator'!$E51),'MS4 BMP Sizing Calculator'!$E51) -> 0 | EF4: Total Reuse (ft3) | EG4: =SUM(EC$16:EC$640) -> 0 | EH4: =EG3/EG2 ->  | EI4: =(EG8-EG9)/EG8 ->  | EN4: Infiltration Base Area (ft2) | EO4: =IF('MS4 BMP Sizing Calculator'!$M$26="Yes", IF(OR('MS4 BMP Sizing Calculator'!$M$27="Permeable Pavement (Underdrain)", 'MS4 BMP Sizing Calculator'!$M$28="Permeable Pavement (Underdrain)"),0,'MS4 BMP Sizing Calculator'!$E50),'MS4 BMP Sizing Calculator'!$E50) -> 0 | ET4: Total Reuse (ft3) | EU4: =SUM(EQ$16:EQ$640) -> 0 | EV4: =EU3/EU2 ->  | EW4: =(EU8-EU9)/EU8 ->  | EX4: =(EU8-EU10)/EU8 ->  | FB4: Infiltration Base Area (ft2) | FC4: 0 | FH4: Total Reuse (ft3) | FI4: =SUM(FE$16:FE$640) -> 0 | FJ4: =FI3/FI2 ->  | FK4: =(FI8-FI9)/FI8 ->  | FL4: =(FI8-FI10)/FI8 ->  | FQ4: Infiltration Base Area (ft2) | FR4: =IF('MS4 BMP Sizing Calculator'!$M$26="Yes",IF(OR('MS4 BMP Sizing Calculator'!$M$27="Bioretention Swale (No Underdrain)",'MS4 BMP Sizing Calculator'!$M$28="Bioretention Swale (No Underdrain)"),0,IF('Swale Calculator'!$C$19="No", 'Swale Calculator'!C30, 0)),IF('Swale Calculator'!$C$19 = "No", 'Swale Calculator'!C30, 0)) -> 0 | FZ4: Total E/T (ft3) | GA4: =SUM(FU16:FU640) -> 0 | GF4: Infiltration Base Area (ft2) | GG4: =IF('MS4 BMP Sizing Calculator'!$M$26="Yes",IF(OR('MS4 BMP Sizing Calculator'!$M$27="Bioretention Swale (Underdrain)",'MS4 BMP Sizing Calculator'!$M$28="Bioretention Swale (Underdrain)"),0,IF('Swale Calculator'!$C$19="Yes", 'Swale Calculator'!C30, 0)),IF('Swale Calculator'!$C$19 = "Yes", 'Swale Calculator'!C30, 0)) -> 0 | GJ4: Pond Height | GK4: ='MS4 BMP Sizing Calculator'!$I$55 -> 0 | GL4: ft | GO4: Total E/T (ft3) | GP4: =SUM(GJ$16:GJ$640) -> 0 | GX4: E/T Base Area (ft2) | GY4: =GY5 -> 0 | HA4: Orifice Dia | HD4: Total Reuse (ft3) | HE4: =SUM(HA$16:HA$880) -> 0 | HM4: E/T Base Area (ft2) | HN4: =HN5 -> 0 | HP4: Orifice Dia | HS4: Total E/T (ft3) | HT4: =SUM(HN$16:HN$880) -> 0 | HY4: Impervious Drainage Area (ft2) | HZ4: =IF('MS4 BMP Sizing Calculator'!$U68>0,'MS4 BMP Sizing Calculator'!$U68,0) -> 0 | IN4: Total Design Runoff | IO4: =IB6+IC6 ->  | IP4: cf | IQ4: BMP Area + Impervious Runoff and Pervious to BMPs
A5: Time Increment (min): | B5: 5 | C5: start | D5: 00:00:00 | E5: CN | F5: ='MS4 BMP Sizing Calculator'!W34 -> 0 | G5: ='MS4 BMP Sizing Calculator'!W27 -> 0 | I5: Peak Flow | J5: =MAX(L16:L592) ->  | K5: cfs | P5: CN | Q5: ='MS4 BMP Sizing Calculator'!Z34 -> 0 | R5: ='MS4 BMP Sizing Calculator'!Z27 -> 98 | T5: Peak Flow | U5: =MAX(W16:W592) ->  | V5: cfs | AE5: LID Footprint Area (ft2) | AF5: =AF4 -> 0 | AG5: Total Pond Vol | AH5: =AH4*AF5 -> 0 | AI5: cf | AM5: Volume Remaining in Storage (ft3) | AN5: =AL640 -> 0 | AR5: LID Footprint Area (ft2) | AS5: =IF('MS4 BMP Sizing Calculator'!$M$26="Yes", IF(OR('MS4 BMP Sizing Calculator'!$M$27="Cistern", 'MS4 BMP Sizing Calculator'!$M$28="Cistern"),0,'MS4 BMP Sizing Calculator'!AK44),'MS4 BMP Sizing Calculator'!AK44) -> 0 | AX5: Volume Remaining in Storage (ft3) | AY5: =AW640 -> 0 | BF5: LID Footprint Area (ft2) | BG5: =BG4 -> 0 | BL5: Volume Remaining in Storage (ft3) | BM5: =BK640 -> 0 | BQ5: LID Footprint Area (ft2) | BR5: =BR4 -> 0 | BW5: Volume Remaining in Storage (ft3) | BX5: =BV640 -> 0 | CB5: LID Footprint Area (ft2) | CC5: =CC4 -> 0 | CH5: Volume Remaining in Storage (ft3) | CI5: =CG640 -> 0 | CN5: LID Footprint Area (ft2) | CO5: =CO4 -> 0 | CS5: Gravel Storage Height | CT5: =IF('MS4 BMP Sizing Calculator'!K53-'MS4 BMP Sizing Calculator'!L53>0,'MS4 BMP Sizing Calculator'!K53-'MS4 BMP Sizing Calculator'!L53,0) -> 0 | CU5: ft | CW5: Total Reuse (ft3) | CX5: =SUM(CT$16:CT$640) -> 0 | DF5: LID Footprint Area (ft2) | DG5: =DG4 -> 0 | DK5: Gravel Storage Height | DL5: ='MS4 BMP Sizing Calculator'!K54 -> 0 | DM5: ft | DO5: Total Reuse (ft3) | DP5: 0 | DW5: LID Footprint Area (ft2) | DX5: =DX4 -> 0 | DZ5: Pond Height | EA5: 0 | EB5: ft | EF5: Volume Remaining in Storage (ft3) | EG5: =EE640 -> 0 | EN5: LID Footprint Area (ft2) | EO5: =EO4 -> 0 | ET5: Volume Remaining in Storage (ft3) | EU5: =ES640 -> 0 | FB5: LID Footprint Area (ft2) | FC5: =IF('MS4 BMP Sizing Calculator'!$M$26="Yes", IF(OR('MS4 BMP Sizing Calculator'!$M$27="Detention Vault", 'MS4 BMP Sizing Calculator'!$M$28="Detention Vault"),0,'MS4 BMP Sizing Calculator'!$R56),'MS4 BMP Sizing Calculator'!$R56) -> 0 | FH5: Volume Remaining in Storage (ft3) | FI5: =FG640 -> 0 | FQ5: LID Footprint Area (ft2) | FR5: =IF('MS4 BMP Sizing Calculator'!$M$26="Yes",IF(OR('MS4 BMP Sizing Calculator'!$M$27="Bioretention Swale (No Underdrain)",'MS4 BMP Sizing Calculator'!$M$28="Bioretention Swale (No Underdrain)"),0,'MS4 BMP Sizing Calculator'!E48),'MS4 BMP Sizing Calculator'!E48) -> 0 | FT5: Pond Height | FU5: ='MS4 BMP Sizing Calculator'!$I$48 -> 0 | FV5: ft | FZ5: Total Reuse (ft3) | GA5: =SUM(FW16:FW640) -> 0 | GF5: LID Footprint Area (ft2) | GG5: =IF('MS4 BMP Sizing Calculator'!$M$26="Yes",IF(OR('MS4 BMP Sizing Calculator'!$M$27="Bioretention Swale (Underdrain)",'MS4 BMP Sizing Calculator'!$M$28="Bioretention Swale (Underdrain)"),0,'MS4 BMP Sizing Calculator'!E55),'MS4 BMP Sizing Calculator'!E55) -> 0 | GH5: Media Storage Volume | GI5: =GG6-GK5 -> 0 | GJ5: Total Pond Vol | GK5: =IF(GG6>0,IF('Swale Calculator'!$C$19="Yes",('Swale Calculator'!$C$32+'Swale Calculator'!$C$31)/2*'Swale Calculator'!$C$12,0),0) -> 0 | GL5: cf | GO5: Total Reuse (ft3) | GP5: =SUM(GL16:GL640) -> 0 | GX5: LID Footprint Area (ft2) | GY5: =IF('MS4 BMP Sizing Calculator'!$M$26="Yes",IF(OR('MS4 BMP Sizing Calculator'!$M$27="Media Filter",'MS4 BMP Sizing Calculator'!$M$28="Media Filter"),0,'MS4 BMP Sizing Calculator'!E58),'MS4 BMP Sizing Calculator'!E58) -> 0 | HA5: 0 | HD5: Volume Remaining in Storage (ft3) | HE5: =HC880 -> 0 | HM5: LID Footprint Area (ft2) | HN5: =IF('MS4 BMP Sizing Calculator'!$M$26="Yes",IF(OR('MS4 BMP Sizing Calculator'!$M$27="Tree-Box Filter",'MS4 BMP Sizing Calculator'!$M$28="Tree-Box Filter"),0,'MS4 BMP Sizing Calculator'!E59),'MS4 BMP Sizing Calculator'!E59) -> 0 | HP5: ='MS4 BMP Sizing Calculator'!$N59/12 -> 0.3333333333 | HS5: Total Reuse (ft3) | HT5: =SUM(HP16:HP880) -> 0 | HY5: Total Perv. Runoff to Sewer (ft3) | HZ5: =SUM(HX$16:HX$592)*$B$6 -> 0 | IA5: Total Outflow Volume (ft3) | IB5: Total Imperv. Runoff | IC5: Total Perv BMP Run-on (cf) | ID5: Total BMP Run-on | IE5: Total Infiltration (cf) | IF5: Total E/T (cf) | IG5: Total Reuse (cf) | IH5: Total Remaining (cf) | II5: Total Discharge (cf) | IJ5: Total Treated | IK5: Total Untreated (cf) | IN5: Total Imp. Runoff to MS4 | IO5: =HZ6 -> 0 | IP5: cf
A6: Time Increment (sec): | B6: 300 | C6: end | D6: =D5+D4/24 ->  | E6: S (inches) | F6: =IF(F5>0,1000/F5-10.1,0) -> 0 | G6: =IF(G5>0,1000/G5-10.1,0) -> 0 | J6: Pervious | P6: S (inches) | Q6: =IF(Q5>0,1000/Q5-10.1,0) -> 0 | R6: =IF(R5>0,1000/R5-10.1,0) -> 0.1040816327 | U6: Pervious | AE6: Storage Volume (ft3) | AF6: =IF('MS4 BMP Sizing Calculator'!$M$26="Yes", IF(OR('MS4 BMP Sizing Calculator'!$M$27="Bioretention (No Underdrain No Liner)", 'MS4 BMP Sizing Calculator'!$M$28="Bioretention (No Underdrain No Liner)"),0,'MS4 BMP Sizing Calculator'!$T45),'MS4 BMP Sizing Calculator'!$T45) -> 0 | AG6: Media Storage Vol | AH6: =AF6-AH5 -> 0 | AI6: cf | AM6: Detained Discharge Volume (ft3) | AN6: =SUM(AK$16:AK$6400) -> 0 | AR6: Cistern Storage Volume (ft3) | AS6: =IF('MS4 BMP Sizing Calculator'!$M$26="Yes", IF(OR('MS4 BMP Sizing Calculator'!$M$27="Cistern", 'MS4 BMP Sizing Calculator'!$M$28="Cistern"),0,'MS4 BMP Sizing Calculator'!AF44),'MS4 BMP Sizing Calculator'!AF44) -> 0 | AX6: Detained Discharge Volume (ft3) | AY6: =SUM(AV$16:AV$640) -> 0 | BF6: Storage Volume (ft3) | BG6: =IF('MS4 BMP Sizing Calculator'!$M$26="Yes", IF(OR('MS4 BMP Sizing Calculator'!$M$27="Infiltration Trench", 'MS4 BMP Sizing Calculator'!$M$28="Infiltration Trench"),0,'MS4 BMP Sizing Calculator'!$T46),'MS4 BMP Sizing Calculator'!$T46) -> 0 | BL6: Detained Discharge Volume (ft3) | BM6: =SUM(BJ$16:BJ$640) -> 0 | BQ6: Storage Volume (ft3) | BR6: =IF('MS4 BMP Sizing Calculator'!$M$26="Yes", IF(OR('MS4 BMP Sizing Calculator'!$M$27="Dry Well/Infiltration Gallery", 'MS4 BMP Sizing Calculator'!$M$28="Dry Well/Infiltration Gallery"),0,'MS4 BMP Sizing Calculator'!$T47),'MS4 BMP Sizing Calculator'!$T47) -> 0 | BW6: Detained Discharge Volume (ft3) | BX6: =SUM(BU$16:BU$640) -> 0 | CB6: Storage Volume (ft3) | CC6: =IF('MS4 BMP Sizing Calculator'!$M$26="Yes", IF(OR('MS4 BMP Sizing Calculator'!$M$27="Permeable Pavement (No Underdrain)", 'MS4 BMP Sizing Calculator'!$M$28="Permeable Pavement (No Underdrain)"),0,'MS4 BMP Sizing Calculator'!$T49),'MS4 BMP Sizing Calculator'!$T49) -> 0 | CH6: Detained Discharge Volume (ft3) | CI6: =SUM(CF$16:CF$640) -> 0 | CN6: Total Storage Volume (ft3) | CO6: =IF('MS4 BMP Sizing Calculator'!$M$26="Yes", IF(OR('MS4 BMP Sizing Calculator'!$M$27="Bioretention/FTP (Underdrain No Liner)", 'MS4 BMP Sizing Calculator'!$M$28="Bioretention/FTP (Underdrain No Liner)"),0,'MS4 BMP Sizing Calculator'!$T53),'MS4 BMP Sizing Calculator'!$T53) -> 0 | CS6: Media Height | CT6: ='MS4 BMP Sizing Calculator'!J53 -> 1.5 | CU6: ft | CW6: Vol Remaining in Storage (ft3) | CX6: =CV640 -> 0 | DF6: Total Storage Volume (ft3) | DG6: =IF('MS4 BMP Sizing Calculator'!$M$26="Yes", IF(OR('MS4 BMP Sizing Calculator'!$M$27="Bioretention/FTP (Underdrain Liner)", 'MS4 BMP Sizing Calculator'!$M$28="Bioretention/FTP (Underdrain Liner)"),0,'MS4 BMP Sizing Calculator'!$T54),'MS4 BMP Sizing Calculator'!$T54) -> 0 | DK6: Media Height | DL6: ='MS4 BMP Sizing Calculator'!J54 -> 1.5 | DM6: ft | DO6: Vol Remaining in Storage (ft3) | DP6: =DN640 -> 0 | DW6: Storage Volume (ft3) | DX6: =IF('MS4 BMP Sizing Calculator'!$M$26="Yes", IF(OR('MS4 BMP Sizing Calculator'!$M$27="Vegetated Roof", 'MS4 BMP Sizing Calculator'!$M$28="Vegetated Roof"),0,'MS4 BMP Sizing Calculator'!$T51),'MS4 BMP Sizing Calculator'!$T51) -> 0 | DZ6: Total Pond Vol | EA6: =EA5*DX5 -> 0 | EB6: cf | EF6: Detained Discharge Volume (ft3) | EG6: =SUM(ED$16:ED$640) -> 0 | EN6: Total Storage Volume (ft3) | EO6: =IF('MS4 BMP Sizing Calculator'!$M$26="Yes", IF(OR('MS4 BMP Sizing Calculator'!$M$27="Permeable Pavement (Underdrain)", 'MS4 BMP Sizing Calculator'!$M$28="Permeable Pavement (Underdrain)"),0,'MS4 BMP Sizing Calculator'!$T50),'MS4 BMP Sizing Calculator'!$T50) -> 0 | ET6: Detained Discharge Volume (ft3) | EU6: =SUM(EP$16:EP$640) -> 0 | FB6: Storage Volume (ft3) | FC6: =IF('MS4 BMP Sizing Calculator'!$M$26="Yes", IF(OR('MS4 BMP Sizing Calculator'!$M$27="Detention Vault", 'MS4 BMP Sizing Calculator'!$M$28="Detention Vault"),0,'MS4 BMP Sizing Calculator'!$T56),'MS4 BMP Sizing Calculator'!$T56) -> 0 | FH6: Detained Discharge Volume (ft3) | FI6: =SUM(FF$16:FF$640) -> 0 | FQ6: Storage Volume (ft3) | FR6: =IF('MS4 BMP Sizing Calculator'!$M$26="Yes",IF(OR('MS4 BMP Sizing Calculator'!$M$27="Bioretention Swale (No Underdrain)",'MS4 BMP Sizing Calculator'!$M$28="Bioretention Swale (No Underdrain)"),0,'MS4 BMP Sizing Calculator'!T48),'MS4 BMP Sizing Calculator'!T48) -> 0 | FT6: Total Pond Vol | FU6: =IF(FR6>0,IF('Swale Calculator'!$C$19="No",('Swale Calculator'!$C$32+'Swale Calculator'!$C$31)/2*'Swale Calculator'!$C$12,0),0) -> 0 | FV6: cf | FZ6: Volume Remaining in Storage (ft3) | GA6: =FY640 -> 0 | GF6: Storage Volume (ft3) | GG6: =IF('MS4 BMP Sizing Calculator'!$M$26="Yes",IF(OR('MS4 BMP Sizing Calculator'!$M$27="Bioretention Swale (Underdrain)",'MS4 BMP Sizing Calculator'!$M$28="Bioretention Swale (Underdrain)"),0,'MS4 BMP Sizing Calculator'!T55),'MS4 BMP Sizing Calculator'!T55) -> 0 | GJ6: Gravel Storage Height | GK6: =IF('MS4 BMP Sizing Calculator'!K55-'MS4 BMP Sizing Calculator'!L55>0,'MS4 BMP Sizing Calculator'!K55-'MS4 BMP Sizing Calculator'!L55,0) -> 0 | GL6: ft | GO6: Volume Remaining in Storage (ft3) | GP6: =GN640 -> 0 | GX6: Storage Volume (ft3) | GY6: =IF('MS4 BMP Sizing Calculator'!$M$26="Yes",IF(OR('MS4 BMP Sizing Calculator'!$M$27="Media Filter",'MS4 BMP Sizing Calculator'!$M$28="Media Filter"),0,'MS4 BMP Sizing Calculator'!T58),'MS4 BMP Sizing Calculator'!T58) -> 0 | HD6: Detained Discharge Volume (ft3) | HE6: =SUM(GZ$16:GZ$880) -> 0 | HM6: Storage Volume (ft3) | HN6: =IF('MS4 BMP Sizing Calculator'!$M$26="Yes",IF(OR('MS4 BMP Sizing Calculator'!$M$27="Tree-Box Filter",'MS4 BMP Sizing Calculator'!$M$28="Tree-Box Filter"),0,'MS4 BMP Sizing Calculator'!T59),'MS4 BMP Sizing Calculator'!T59) -> 0 | HS6: Volume Remaining in Storage (ft3) | HT6: =HR880 -> 0 | HY6: Total Imperv. Runoff to Sewer (ft3) | HZ6: =SUM(HY$16:HY$592)*$B$6 -> 0 | IA6: =SUM(IA16:IA640)*$B$6 -> 0 | IB6: =SUM(IB16:IB640)*$B$6 ->  | IC6: =SUM(IC16:IC640)*$B$6 -> 0 | ID6: =SUM(ID16:ID640)*$B$6 -> 0 | IE6: =SUM(IE16:IE640) -> 0 | IF6: =SUM(IF16:IF640) -> 0 | IG6: =SUM(IG16:IG640) -> 0 | IH6: =AN5+(AY5-AR16)+BM5+BX5+CI5+CX6+DP6+EG5+EU5+FI5+GA6+HE5+HT6 -> 0 | II6: =SUM(II16:II640) -> 0 | IJ6: =SUM(IJ16:IJ640) -> 0 | IK6: =SUM(IK16:IK640) -> 0 | IN6: Total Runoff to BMPs | IO6: =ID6 -> 0 | IP6: cf
E7: Ia (inches) | F7: =F6*$N$2 -> 0 | G7: =G6*$N$2 -> 0 | I7: Runoff | J7: =SUM(H16:H592)*$B$6 ->  | K7: cf | P7: Ia (inches) | Q7: =Q6*Y2 -> 0 | R7: =R6*Y2 -> 0 | T7: Runoff | U7: =SUM(S16:S592)*$B$6 ->  | V7: cf | AE7: Est. Infiltration Rate (in/hr) | AF7: =IF('MS4 BMP Sizing Calculator'!$U$10="",0,'MS4 BMP Sizing Calculator'!$U$10) -> 0 | AM7: Overflow Volume (ft3) | AN7: =SUM(AH$16:AH$640) -> 0 | AR7: Additional Detention Storage (ft3) | AS7: =IF('MS4 BMP Sizing Calculator'!$M$26="Yes", IF(OR('MS4 BMP Sizing Calculator'!$M$27="Cistern", 'MS4 BMP Sizing Calculator'!$M$28="Cistern"),0,'MS4 BMP Sizing Calculator'!AJ44),'MS4 BMP Sizing Calculator'!AJ44) -> 0 | AX7: Overflow Volume (ft3) | AY7: =SUM(AS$16:AS$640) -> 0 | BF7: Est. Infiltration Rate (in/hr) | BG7: =IF('MS4 BMP Sizing Calculator'!$U$10="",0,'MS4 BMP Sizing Calculator'!$U$10) -> 0 | BL7: Overflow Volume (ft3) | BM7: =SUM(BG$16:BG$640) -> 0 | BQ7: Est. Infiltration Rate (in/hr) | BR7: =IF('MS4 BMP Sizing Calculator'!$U$10="",0,'MS4 BMP Sizing Calculator'!$U$10) -> 0 | BW7: Overflow Volume (ft3) | BX7: =SUM(BR$16:BR$640) -> 0 | CB7: Est. Infiltration Rate (in/hr) | CC7: =IF('MS4 BMP Sizing Calculator'!$U$10="",0,'MS4 BMP Sizing Calculator'!$U$10) -> 0 | CH7: Overflow Volume (ft3) | CI7: =SUM(CC$16:CC$640) -> 0 | CN7: Infiltration rate (in/hr) | CO7: =IF('MS4 BMP Sizing Calculator'!$U$10="",0,'MS4 BMP Sizing Calculator'!$U$10) -> 0 | CP7: Vol (cf) | CR7: Orif. Area (ft2) | CS7: Pond Height | CT7: ='MS4 BMP Sizing Calculator'!$I$53 -> 0.5 | CU7: ft | CW7: Detained Discharge Volume (ft3) | CX7: =SUM(CS$16:CS$640) -> 0 | DF7: Infiltration rate (in/hr) | DG7: 0 | DH7: Vol (cf) | DI7: Orif. Dia (ft) | DJ7: Orif. Area (ft2) | DK7: Pond Height | DL7: ='MS4 BMP Sizing Calculator'!$I$54 -> 0.5 | DM7: ft | DO7: Detained Discharge Volume (ft3) | DP7: =SUM(DK$16:DK$640) -> 0 | DW7: Estimated E/T Losses (in/hr) | DX7: ='MS4 BMP Sizing Calculator'!AF24 -> 0.03 | DY7: Vol (cf) | DZ7: Media Storage Vol | EA7: =DX6-EA6 -> 0 | EB7: cf | EF7: Overflow Volume (ft3) | EG7: =SUM(EA$16:EA$640) -> 0 | EN7: Est. Infiltration Rate (in/hr) | EO7: =IF('MS4 BMP Sizing Calculator'!$U$10="",0,'MS4 BMP Sizing Calculator'!$U$10) -> 0 | EP7: Vol (cf) | ET7: Overflow Volume (ft3) | EU7: =SUM(EO$16:EO$640) -> 0 | FB7: Est. Infiltration Rate (in/hr) | FC7: 0 | FD7: CF | FH7: Overflow Volume (ft3) | FI7: =SUM(FC$16:FC$640) -> 0 | FQ7: Est. Infiltration Rate (in/hr) | FR7: =IF('MS4 BMP Sizing Calculator'!$U$10="",0,'MS4 BMP Sizing Calculator'!$U$10) -> 0 | FS7: I (cf) | FT7: Media Storage vol | FU7: =FR6-FU6 -> 0 | FV7: cf | FZ7: Detained Discharge Volume (ft3) | GA7: =SUM(FV$16:FV$640) -> 0 | GF7: Est. Infiltration Rate (in/hr) | GG7: =IF('MS4 BMP Sizing Calculator'!$U$10="",0,'MS4 BMP Sizing Calculator'!$U$10) -> 0 | GH7: I (cf) | GJ7: Media Height | GK7: ='MS4 BMP Sizing Calculator'!J55 -> 0 | GL7: ft | GO7: Detained Discharge Volume (ft3) | GP7: =SUM(GK$16:GK$640) -> 0 | GX7: Estimated E/T Losses (in/hr) | GY7: 0 | GZ7: E/T (cf) | HD7: Overflow Volume (ft3) | HE7: =SUM($HE$16:$HE$880) -> 0 | HM7: Estimated E/T Losses (in/hr) | HN7: 0 | HO7: E/T (cf) | HS7: Detained Discharge Volume (ft3) | HT7: =SUM(HO$16:HO$880) -> 0 | HY7: Total Runoff to Sewer (ft3) | HZ7: =SUM(HZ$16:HZ$592)*$B$6 -> 0 | IN7: Total Infiltration | IO7: =IE6 -> 0 | IP7: cf
E8: Slope (ft/ft) | F8: ='MS4 BMP Sizing Calculator'!$D$21 -> 0 | G8: ='MS4 BMP Sizing Calculator'!$D$21 -> 0 | I8: Peak Flow | J8: =MAX(H16:H592) ->  | K8: cfs | P8: Slope (ft/ft) | Q8: ='MS4 BMP Sizing Calculator'!$D$21 -> 0 | R8: ='MS4 BMP Sizing Calculator'!$D$21 -> 0 | T8: Peak Flow | U8: =MAX(S16:S592) ->  | V8: cfs | AE8: Infiltration Max Flow (cfs) | AF8: =(AF4*AF7)/12/3600 -> 0 | AG8: =AF8*$B$6 -> 0 | AM8: Peak Flow to BMP (cfs) | AN8: =MAX(AC$16:AC$592) -> 0 | AR8: Average Starting Volume (ft3) | AS8: =IF('MS4 BMP Sizing Calculator'!$M$26="Yes", IF(OR('MS4 BMP Sizing Calculator'!$M$27="Cistern", 'MS4 BMP Sizing Calculator'!$M$28="Cistern"),0,'MS4 BMP Sizing Calculator'!AE44),'MS4 BMP Sizing Calculator'!AE44) -> 0 | AX8: Peak Flow to BMP (cfs) | AY8: =MAX(AQ$16:AQ$592) -> 0 | BF8: Infiltration Max Flow (cfs) | BG8: =(BG4*BG7)/12/3600 -> 0 | BH8: =BG8*$B$6 -> 0 | BL8: Peak Flow to BMP (cfs) | BM8: =MAX(BE$16:BE$592) -> 0 | BQ8: Infiltration Max Flow (cfs) | BR8: =(BR4*BR7)/12/3600 -> 0 | BS8: =BR8*$B$6 -> 0 | BW8: Peak Flow to BMP (cfs) | BX8: =MAX(BP$16:BP$592) -> 0 | CB8: Infiltration Max Flow (cfs) | CC8: =(CC4*CC7)/12/3600 -> 0 | CD8: =CC8*$B$6 -> 0 | CH8: Peak Flow to BMP (cfs) | CI8: =MAX(CA$16:CA$592) -> 0 | CN8: Inf Losses (cfs) | CO8: =(CO4*CO7)/12/3600 -> 0 | CP8: =CO8*$B$6 -> 0 | CR8: ='MS4 BMP Sizing Calculator'!$X53 -> 0.0872664626 | CS8: Total Pond Vol | CT8: =CT7*CO5 -> 0 | CU8: cf | CW8: Overflow Volume (ft3) | CX8: =SUM(CQ$16:CQ$640) -> 0 | CY8: =MAX(CY16:CY592) -> 0 | DF8: Inf Losses (cfs) | DG8: =(DG4*DG7)/12/3600 -> 0 | DH8: =DG8*$B$6 -> 0 | DI8: ='MS4 BMP Sizing Calculator'!$N54/12 -> 0.3333333333 | DJ8: ='MS4 BMP Sizing Calculator'!$X54 -> 0.0872664626 | DK8: Total Pond Vol | DL8: =DL7*DG5 -> 0 | DM8: cf | DO8: Overflow Volume (ft3) | DP8: =SUM(DI$16:DI$640) -> 0 | DW8: E/T Losses (cfs) | DX8: =(DX4*DX7)/12/3600 -> 0 | DY8: =DX8*$B$6 -> 0 | EF8: Peak Flow to BMP (cfs) | EG8: =MAX(DV$16:DV$592) -> 0 | EN8: Infiltration Max Flow (cfs) | EO8: =(EO4*EO7)/12/3600 -> 0 | EP8: =EO8*$B$6 -> 0 | ET8: Peak Flow to BMP (cfs) | EU8: =MAX(EM$16:EM$592) -> 0 | FB8: Infiltration Max Flow (cfs) | FC8: =(FC4*FC7)/12/3600 -> 0 | FD8: =FC8*$B$6 -> 0 | FH8: Peak Flow to BMP (cfs) | FI8: =MAX(FA$16:FA$592) -> 0 | FQ8: Infiltration Max Flow (cfs) | FR8: =FR7/12/3600*FR4 -> 0 | FS8: =FR8*$B$6 -> 0 | FZ8: Overflow Volume (ft3) | GA8: =SUM($FT$16:$FT$640) -> 0 | GF8: Infiltration Max Flow (cfs) | GG8: =GG7/12/3600*GG4 -> 0 | GH8: =GG8*$B$6 -> 0 | GO8: Overflow Volume (ft3) | GP8: =SUM($GI$16:$GI$880) -> 0 | GX8: E/T Losses (cfs) | GY8: =GY7*GY4/12/3600 -> 0 | GZ8: =GY8*$B$6 -> 0 | HD8: Peak Flow to BMP (cfs) | HE8: =MAX(GV$16:GV$592) -> 0 | HM8: E/T Losses (cfs) | HN8: =HN7*HN5/12/3600 -> 0 | HO8: =HN8*$B$6 -> 0 | HS8: Overflow Volume (ft3) | HT8: =SUM($HT$16:$HT$880) -> 0 | HY8: Peak Flow to Sewer (cfs) | HZ8: =MAX(HZ$16:HZ$592) -> 0 | IA8: Max Discharge Rate (cfs) | IB8: =U4 ->  | ID8: =AN2+AY2+BM2+BX2+CI2+CX2+DP2+EG2+EU2+FI2+GA2+GP2+HE2+HT2 -> 0 | IE8: =$AN3+$AY3+$BM3+$BX3+$CI3+$CX3+$DP3+$EU3+$FI3+$GA3+$GP3+$HE3+$HT3 -> 0 | IF8: =$CX4+$DP4+$EG3+$GA4+$GP4+$HT4 -> 0 | IG8: =$AN4+$AY4+$BM4+$BX4+$CI4+$CX5+$DP5+$EG4+$EU4+$FI4+$GA5+$GP5+$HE4+$HT5 -> 0 | IH8: =$AN5+$AY5+$BM5+$BX5+$CI5+$CX6+$DP6+$EG5+$EU5+$FI5+$GA6+$GP6+$HE5+$HT6 -> 0 | II8: =$AN6+$AY6+$BM6+$BX6+$CI6+$CX7+$DP7+$EG6+$EU6+$FI6+$GA7+$GP7+$HE6+$HT7 -> 0 | IJ8: =IE8+IF8+IG8+IH8+II8-EU6 -> 0 | IK8: =$AN7+$AY7+$BM7+$BX7+$CI7+$CX8+$DP8+$EG7+$EU7+$FI7+$GA8+$GP8+$HE7+$HT8+$EU$6 -> 0 | IN8: Total E/T | IO8: =IF6 -> 0 | IP8: cf
C9: Total Rainfall Depth (in) | D9: =SUM(C16:C304) ->  | E9: Tc (min) | F9: ='Tc Calcs'!G23 ->  | N9: Total Runoff (cf) | O9: =SUM(O16:O592)*$B$6 ->  | P9: Tc (min) | Q9: ='Tc Calcs'!K23 -> 1 | Y9: Total Runoff (cf) | Z9: =SUM(Z16:Z592)*$B$6 -> 0 | AE9: Reuse Flow Rate (cfs) | AF9: 0 | AG9: =AF9*$B$6 -> 0 | AM9: Peak Rate of Detained Outflow (cfs) | AN9: =MAX(AM$16:AM$592) -> 0 | AR9: Reuse Flow Rate (cfs) | AS9: =IF('MS4 BMP Sizing Calculator'!$T$44>0,'MS4 BMP Sizing Calculator'!$AD$44/7.48/86400,0) -> 0 | AT9: =AS9*$B$6 -> 0 | AX9: Peak Rate of Detained Outflow (cfs) | AY9: =MAX(AX$16:AX$592) -> 0 | BF9: Reuse Flow Rate (cfs) | BG9: 0 | BH9: =BG9*$B$6 -> 0 | BL9: Peak Rate of Detained Outflow (cfs) | BM9: =MAX(BL$16:BL$592) -> 0 | BQ9: Reuse Flow Rate (cfs) | BR9: 0 | BS9: =BR9*$B$6 -> 0 | BW9: Peak Rate of Detained Outflow (cfs) | BX9: =MAX(BW$16:BW$852) -> 0 | CB9: Reuse Flow Rate (cfs) | CC9: 0 | CD9: =CC9*$B$6 -> 0 | CH9: Peak Rate of Detained Outflow (cfs) | CI9: =MAX(CH$16:CH$592) -> 0 | CN9: Reuse Flow Rate (cfs) | CO9: 0 | CP9: =CO9*$B$6 -> 0 | CS9: Media Storage Vol | CT9: =CO6-CT8 -> 0 | CU9: cf | CW9: Peak Flow to BMP (cfs) | CX9: =MAX(CL$16:CL$592) -> 0 | CY9: Min O | CZ9: =0.66*$CR$8*(2*32.2*'MS4 BMP Sizing Calculator'!$N$53/12)^0.5 -> 0.2668539366 | DF9: Reuse Flow Rate (cfs) | DG9: 0 | DH9: =DG9*$B$6 -> 0 | DK9: Media Storage Vol | DL9: =DG6-DL8 -> 0 | DM9: cf | DO9: Peak Flow to BMP (cfs) | DP9: =MAX(DD$16:DD$592) -> 0 | DQ9: Min O | DR9: =0.66*$CR$8*(2*32.2*'MS4 BMP Sizing Calculator'!$N$53/12)^0.5 -> 0.2668539366 | DW9: Reuse Flow Rate (cfs) | DX9: 0 | DY9: =DX9*$B$6 -> 0 | EF9: Peak Rate of Detained Outflow (cfs) | EG9: =MAX(EF$16:EF$592) -> 0 | EN9: Reuse Flow Rate (cfs) | EO9: 0 | EP9: =EO9*$B$6 -> 0 | ET9: Peak Rate of Detained Outflow (cfs) | EU9: =MAX(ET$16:ET$592) -> 0 | FB9: Reuse Flow Rate (cfs) | FC9: 0 | FD9: =FC9*$B$6 -> 0 | FH9: Peak Rate of Detained Outflow (cfs) | FI9: =MAX(FH$16:FH$592) -> 0 | FQ9: E/T Losses (in/hr) | FR9: ='MS4 BMP Sizing Calculator'!AF25 -> 0 | FZ9: Peak Flow to BMP (cfs) | GA9: =MAX(FO$16:FO$592) -> 0 | GF9: E/T Losses (in/hr) | GG9: ='MS4 BMP Sizing Calculator'!AF26 -> 0 | GJ9: Orifice Area | GK9: ='MS4 BMP Sizing Calculator'!X55 -> 0 | GL9: sf ft | GO9: Peak Flow to BMP (cfs) | GP9: =MAX(GD$16:GD$592) -> 0 | GX9: Gravel Storage Height | GY9: ='MS4 BMP Sizing Calculator'!CK58 -> 0 | GZ9: ft | HD9: Peak Rate of Detained Outflow (cfs) | HE9: =MAX(HD$16:HD$592) -> 0 | HM9: Gravel Storage Height | HN9: ='MS4 BMP Sizing Calculator'!CK59 -> 0 | HO9: ft | HS9: Peak Flow to BMP (cfs) | HT9: =MAX(HK$16:HK$592) -> 0 | IA9: =MAX(IA16:IA592) -> 0 | IB9: Check | IC9: Check | ID9: Check | IE9: Check | IF9: Check | IG9: Check | IH9: Check | II9: Check | IJ9: Check | IK9: Check | IN9: Total Reuse | IO9: =IG6 -> 0 | IP9: cf
C10: Peak Intensity (in/hr) | D10: =MAX(B16:B304) ->  | E10: w | F10: =$B5/(2*F9+$B5) ->  | N10: Peak Flow (cfs) | O10: =MAX(O16:O448) ->  | P10: w | Q10: =$B5/(2*Q9+$B5) -> 0.7142857143 | Y10: Peak Flow (cfs) | Z10: =MAX(Z16:Z592) -> 0 | AE10: Discharge Ave. Flow (cfs) | AF10: 0 | AG10: =AF10*$B$6 -> 0 | AH10: Pond Depth | AI10: =MAX(AD16:AD880) -> 0 | AM10: Peak Rate of Overflow (cfs) | AN10: =MAX(AN$16:AN$592) -> 0 | AR10: Discharge Ave. Flow (cfs) | AS10: 0 | AT10: =AS10*$B$6 -> 0 | AX10: Peak Rate of Overflow (cfs) | AY10: =MAX(AY$16:AY$592) -> 0 | BF10: Discharge Ave. Flow (cfs) | BG10: 0 | BH10: =BG10*$B$6 -> 0 | BL10: Peak Rate of Overflow (cfs) | BM10: =MAX(BM$16:BM$592) -> 0 | BQ10: Discharge Ave. Flow (cfs) | BR10: 0 | BS10: =BR10*$B$6 -> 0 | BW10: Peak Rate of Overflow (cfs) | BX10: =MAX(BX$16:BX$852) -> 0 | CB10: Discharge Ave. Flow (cfs) | CC10: 0 | CD10: =CC10*$B$6 -> 0 | CH10: Peak Rate of Overflow (cfs) | CI10: =MAX(CI$16:CI$592) -> 0 | CN10: Discharge Ave. Flow (cfs) | CO10: =IF('MS4 BMP Sizing Calculator'!$AB53>0,'MS4 BMP Sizing Calculator'!$T53/'MS4 BMP Sizing Calculator'!$AB53/3600,0) -> 0 | CP10: =CO10*$B$6 -> 0 | CR10: Pond Depth | CS10: =MAX(CM16:CM592) -> 0 | CW10: Peak Rate of Detained Outflow (cfs) | CX10: =MAX(CW$16:CW$592) -> 0 | CY10: Max O | CZ10: =0.66*$CR$8*(2*32.2*('MS4 BMP Sizing Calculator'!$N$53/12+1.5))^0.5 -> 0.6258279548 | DF10: Discharge Ave. Flow (cfs) | DG10: =IF('MS4 BMP Sizing Calculator'!$AB54>0,'MS4 BMP Sizing Calculator'!$T54/'MS4 BMP Sizing Calculator'!$AB54/3600,0) -> 0 | DH10: =DG10*$B$6 -> 0 | DJ10: Pond Depth | DK10: =MAX(DE16:DE880) -> 0 | DO10: Peak Rate of Detained Outflow (cfs) | DP10: =MAX(DO$16:DO$592) -> 0 | DQ10: Max O | DR10: =0.66*$CR$8*(2*32.2*('MS4 BMP Sizing Calculator'!$N$53/12+1.5))^0.5 -> 0.6258279548 | DW10: Discharge Ave. Flow (cfs) | DX10: =IF('MS4 BMP Sizing Calculator'!$AB51>0,'MS4 BMP Sizing Calculator'!$T51/'MS4 BMP Sizing Calculator'!$AB51/3600,0) -> 0 | DY10: =DX10*$B$6 -> 0 | DZ10: Pond Depth | EA10: =MAX(DW16:DW880) -> 0 | EF10: Peak Rate of Overflow (cfs) | EG10: =MAX(EG$16:EG$592) -> 0 | EN10: Discharge Ave. Flow (cfs) | EO10: =IF('MS4 BMP Sizing Calculator'!$AB50>0,'MS4 BMP Sizing Calculator'!$T50/'MS4 BMP Sizing Calculator'!$AB50/3600,0) -> 0 | EP10: =EO10*$B$6 -> 0 | ET10: Peak Rate of Overflow (cfs) | EU10: =MAX(EU$16:EU$592) -> 0 | FB10: Discharge Ave. Flow (cfs) | FC10: =IF('MS4 BMP Sizing Calculator'!$AB56>0,'MS4 BMP Sizing Calculator'!$T56/'MS4 BMP Sizing Calculator'!$AB56/3600,0) -> 0 | FD10: =FC10*$B$6 -> 0 | FH10: Peak Rate of Overflow (cfs) | FI10: =MAX(FI$16:FI$592) -> 0 | FQ10: E/T Rate (cfs) | FR10: =FR9*FR5/12/3600 -> 0 | FS10: =FR10*$B$6 -> 0 | FU10: Pond Depth | FV10: =MAX(FP16:FP880) -> 0 | FZ10: Peak Rate of Detained Outflow (cfs) | GA10: =MAX(FZ$16:FZ$592) -> 0 | GF10: E/T Rate (cfs) | GG10: 0 | GH10: =GG10*$B$6 -> 0 | GK10: Pond Depth | GL10: =MAX(GE16:GE880) -> 0 | GO10: Peak Rate of Detained Outflow (cfs) | GP10: =MAX(GO$16:GO$592) -> 0 | GX10: Media Height | GY10: ='MS4 BMP Sizing Calculator'!J58 -> -- | GZ10: ft | HD10: Peak Rate of Overflow (cfs) | HE10: =MAX(HE$16:HE$592) -> 0 | HM10: Media Height | HN10: ='MS4 BMP Sizing Calculator'!J59 -> 1.5 | HO10: ft | HS10: Peak Rate of Detained Outflow (cfs) | HT10: =MAX(HS$16:HS$592) -> 0 | IN10: Total Remaining | IO10: =IH6 -> 0 | IP10: cf
B11: =COUNT(B142:B178) -> 0 | AH11: Peak Rate of Surge Overflow (cfs) | AI11: =MAX(AF16:AF880)/$B$6 -> 0 | CN11: Sub-Underdrain Storage (ft3) | CO11: =IF(AND('MS4 BMP Sizing Calculator'!$L53<0.0833,CO7>0),2/12*CO5*'MS4 BMP Sizing Calculator'!$AF$27,'MS4 BMP Sizing Calculator'!$W53) -> 0 | CR11: Peak Rate of Surge Overflow (cfs) | CS11: =MAX(CO16:CO592)/$B$6 -> 0 | CW11: Peak Rate of Overflow (cfs) | CX11: =MAX(CX$16:CX$592) -> 0 | DF11: Sub-Underdrain Storage (ft3) | DG11: 0 | DJ11: Peak Rate of Surge Overflow (cfs) | DK11: =MAX(DG16:DG880) -> 0 | DO11: Peak Rate of Overflow (cfs) | DP11: =MAX(DP$16:DP$592) -> 0 | DZ11: Peak Rate of Surge Overflow (cfs) | EA11: =MAX(DY16:DY880)/$B$6 -> 0 | EN11: Sub-Underdrain Storage (ft3) | EO11: =IF(AND('MS4 BMP Sizing Calculator'!L$50<0.0833,EO7>0),1/12*EO5*0.35,'MS4 BMP Sizing Calculator'!W$50) -> 0 | FU11: Peak Rate of Surge Overflow (cfs) | FV11: =MAX(FR16:FR880)/$B$6 -> 0 | FZ11: Peak Rate of Overflow (cfs) | GA11: =MAX(GA$16:GA$592) -> 0 | GF11: Sub-Underdrain Storage (ft3) | GG11: =IF(AND('MS4 BMP Sizing Calculator'!$L55<0.0833,GG7>0),2/12*GG4*'MS4 BMP Sizing Calculator'!$AF$27,'MS4 BMP Sizing Calculator'!$W55) -> 0 | GK11: Peak Rate of Surge Overflow (cfs) | GL11: =MAX(GG16:GG880)/$B$6 -> 0 | GO11: Peak Rate of Overflow (cfs) | GP11: =MAX(GP$16:GP$592) -> 0 | GX11: Sub-Underdrain Storage (ft3) | GY11: 0 | HM11: Sub-Underdrain Storage (ft3) | HN11: 0 | HS11: Peak Rate of Overflow (cfs) | HT11: =MAX(HT$16:HT$592) -> 0 | IN11: Total Discharge | IO11: =II6 -> 0 | IP11: cf
A12: TIME | B12: DESIGN STORM | E12: EXISTING CONDITIONS | P12: PROJECT CONDITIONS | AC12: RAIN GARDEN | AQ12: RAINWATER HARVESTING | BE12: INFILTRATION TRENCH | BP12: DRY WELL | CA12: PERMEABLE PAVEMENT (NON-UNDERDRAINED) | CL12: Bioretention/FTP (Underdrain No Liner) | DD12: Bioretention/FTP (Underdrain Liner) | DV12: VEGETATED ROOF | EM12: PERMEABLE PAVEMENT | FA12: DETENTION VAULT | IN12: Total Treated Runoff | IO12: =IO7+IO8+IO9+IO10+IO11 -> 0 | IP12: cf
B13: CAP 85th% 24 hr | E13: Pervious | I13: Impervious | P13: Pervious | T13: Impervious | X13: Totals | BB13: Not Needed | CY13: HIDE | CZ13: HIDE | DA13: HIDE | DQ13: HIDE | DR13: HIDE | DS13: HIDE | EH13: HIDE | EI13: HIDE | EJ13: Not Needed | EV13: HIDE | EW13: HIDE | FJ13: HIDE | FK13: HIDE | FL13: Not Needed | IN13: Total Untreated Runoff | IO13: =IK6 -> 0 | IP13: cf
A14: Time | B14: Intensity | C14: Incremental Depth | D14: Accum. Depth | E14: Accumulated Runoff | F14: Incr. Runoff | G14: Inst. Flow | H14: Design Flow | I14: Accumulated Runoff | J14: Incr. Runoff | K14: Inst. Flow | L14: Design Flow | M14: Total Incr. Runoff | N14: Total Inst. Flow | O14: Total Design Flow | P14: Accumulated Runoff | Q14: Incr. Runoff | R14: Inst. Flow | S14: Design Flow | T14: Accumulated Runoff | U14: Incr. Runoff | V14: Inst. Flow | W14: Design Flow | X14: Total Incr. Runoff | Y14: Total Inst. Flow | Z14: Total Design Flow | AA14: Perv. Flow to BMP | AB14: Imp. Flow to BMP | AC14: Flow to BMP | AD14: Ponding Depth | AE14: Ponding Volume | AF14: Ending Ponding Volume | AG14: Media Storage Volume | AH14: Incr. Overflow Volume | AI14: Incr. Infiltration Volume | AJ14: Incr. Reuse Volume | AK14: Incr. Discharge Volume | AL14: Ending Media Storage Volume | AM14: Detained Outflow | AN14: Overflow | AO14: Perv. Flow to BMP | AP14: Imp. Flow to BMP | AQ14: Flow to BMP | AR14: Accum. Volume | AS14: Incr. Overflow Volume | AT14: Incr. Infiltration Volume | AU14: Incr. Reuse Volume | AV14: Incr. Discharge Volume | AW14: Ending Volume | AX14: Detained Outflow | AY14: Overflow | AZ14: Approx. Water Depth | BA14: Orifice Flowrate Capacity | BB14: Discharge Volume Check | BC14: Perv. Flow to BMP | BD14: Imp. Flow to BMP | BE14: Flow to BMP | BF14: Accum. Volume | BG14: Incr. Overflow Volume | BH14: Incr. Infiltration Volume | BI14: Incr. Reuse Volume | BJ14: Incr. Discharge Volume | BK14: Ending Volume | BL14: Detained Outflow | BM14: Overflow | BN14: Perv. Flow to BMP | BO14: Imp. Flow to BMP | BP14: Flow to BMP | BQ14: Accum. Volume | BR14: Incr. Overflow Volume | BS14: Incr. Infiltration Volume | BT14: Incr. Reuse Volume | BU14: Incr. Discharge Volume | BV14: Ending Volume | BW14: Detained Outflow | BX14: Overflow | BY14: Perv. Flow to BMP | BZ14: Imp. Flow to BMP | CA14: Flow to BMP | CB14: Accum. Volume | CC14: Incr. Overflow Volume | CD14: Incr. Infiltration Volume | CE14: Incr. Reuse Volume | CF14: Incr. Discharge Volume | CG14: Ending Volume | CH14: Detained Outflow | CI14: Overflow | CJ14: Perv. Flow to BMP | CK14: Imp. Flow to BMP | CL14: Flow to BMP | CM14: Ponding Depth | CN14: Ponding Volume | CO14: Ending Ponding Volume | CP14: Media Storage Volume | CQ14: Incr. Overflow Volume | CR14: Incr. E/T Volume | CS14: Incr. Discharge Volume | CT14: Incr. Reuse Volume | CU14: Incr. Infiltration Volume | CV14: Ending Media Storage Volume | CW14: Detained Outflow | CX14: Overflow | CY14: Appr. Depth above UD | CZ14: Discharge Capacity | DA14: Discharge Volume | DB14: Perv. Flow to BMP | DC14: Imp. Flow to BMP | DD14: Flow to BMP | DE14: Ponding Depth | DF14: Ponding Volume | DG14: Ending Ponding Volume | DH14: Media Storage Volume | DI14: Incr. Overflow Volume | DJ14: Incr. E/T Volume | DK14: Incr. Discharge Volume | DL14: Incr. Reuse Volume | DM14: Incr. Infiltration Volume | DN14: Ending Media Storage Volume | DO14: Detained Outflow | DP14: Overflow | DQ14: Appr. Depth above UD | DR14: Discharge Capacity | DS14: Discharge Volume | DT14: Perv. Flow to BMP | DU14: Imp. Flow to BMP | DV14: Flow to BMP | DW14: Ponding Depth | DX14: Ponding Volume | DY14: Ending Ponding Volume | DZ14: Media Storage Volume | EA14: Incr. Overflow Volume | EB14: Incr. E/T Volume | EC14: Incr. Reuse Volume | ED14: Incr. Discharge Volume | EE14: Ending Media Storage Volume | EF14: Detained Outflow | EG14: Overflow | EH14: Approx. Water Depth | EI14: Filter Rate Capacity | EJ14: Discharge Volume Check | EK14: Perv. Flow to BMP | EL14: Imp. Flow to BMP | EM14: Flow to BMP | EN14: Accum. Volume | EO14: Incr. Overflow Volume | EP14: Incr. Discharge Volume | EQ14: Incr. Reuse Volume | ER14: Incr. Infiltration Volume | ES14: Ending Volume | ET14: Detained Outflow | EU14: Overflow | EV14: Approx. Water Depth | EW14: Orifice Flowrate Capacity | EX14: Discharge Volume | EY14: Perv. Flow to BMP | EZ14: Imp. Flow to BMP | FA14: Flow to BMP | FB14: Accum. Volume | FC14: Incr. Overflow Volume | FD14: Incr. Infiltration Volume | FE14: Incr. Reuse Volume | FF14: Incr. Discharge Volume | FG14: Ending Volume | FH14: Detained Outflow | FI14: Overflow | FJ14: Approx. Water Depth | FK14: Orifice Flowrate Capacity | FL14: Discharge Volume Check | FM14: Perv. Flow to BMP | FN14: Imp. Flow to BMP | FO14: Flow to BMP | FP14: Ponding Depth | FQ14: Ponding Volume | FR14: Ending Ponding Volume | FS14: Media Storage Volume | FT14: Incr. Overflow Volume | FU14: Incr. E/T Volume | FV14: Incr. Discharge Volume | FW14: Incr. Reuse Volume | FX14: Incr. Infiltration Volume | FY14: Ending Media Storage Volume | FZ14: Detained Outflow | GA14: Overflow | GB14: Perv. Flow to BMP | GC14: Imp. Flow to BMP | GD14: Flow to BMP | GE14: Ponding Depth | GF14: Ponding Volume | GG14: Ending Ponding Volume | GH14: Media Storage Volume | GI14: Incr. Overflow Volume | GJ14: Incr. E/T Volume | GK14: Incr. Discharge Volume | GL14: Incr. Reuse Volume | GM14: Incr. Infiltration Volume | GN14: Ending Media Storage Volume | GO14: Detained Outflow | GP14: Overflow | GQ14: Appr. Depth above UD | GR14: Discharge Capacity | GS14: Discharge Volume | GT14: Perv. Flow to BMP | GU14: Imp. Flow to BMP | GV14: Flow to BMP | GW14: Accum. Volume | GX14: Incr. Overflow Volume | GY14: Incr. E/T Volume | GZ14: Incr. Discharge Volume | HA14: Incr. Reuse Volume | HB14: Incr. Infiltration Volume | HC14: Ending Volume | HD14: Detained Outflow | HE14: Overflow | HF14: Appr. Depth above UD | HG14: Discharge Capacity | HH14: Discharge Volume | HI14: Perv. Flow to BMP | HJ14: Imp. Flow to BMP | HK14: Flow to BMP | HL14: Accum. Volume | HM14: Incr. Overflow Volume | HN14: Incr. E/T Volume | HO14: Incr. Discharge Volume | HP14: Incr. Reuse Volume | HQ14: Incr. Infiltration Volume | HR14: Ending Volume | HS14: Detained Outflow | HT14: Overflow | HU14: Appr. Depth above UD | HV14: Discharge Capacity | HW14: Discharge Volume | HX14: Perv. Flow to MS4 | HY14: Imp. Flow to MS4 | HZ14: Flow to MS4 | IA14: Total
A15: (HH:MM) | B15: (in/hr) | C15: (in) | D15: (in) | E15: (in) | F15: (in) | G15: (cfs) | H15: (cfs) | I15: (in) | J15: (in) | K15: (cfs) | L15: (cfs) | M15: (in) | N15: (cfs) | O15: (cfs) | P15: (in) | Q15: (in) | R15: (cfs) | S15: (cfs) | T15: (in) | U15: (in) | V15: (cfs) | W15: (cfs) | X15: (in) | Y15: (cfs) | Z15: (cfs) | AA15: (cfs) | AB15: (cfs) | AC15: (cfs) | AD15: (ft) | AE15: (cf) | AF15: (cf) | AG15: (cf) | AH15: (cf) | AI15: (cf) | AJ15: (cf) | AK15: cf | AL15: (cf) | AM15: (cfs) | AN15: (cfs) | AO15: (cfs) | AP15: (cfs) | AQ15: (cfs) | AR15: (cf) | AS15: (cf) | AT15: (cf) | AU15: (cf) | AV15: cf | AW15: (cf) | AX15: (cfs) | AY15: (cfs) | AZ15: (ft) | BA15: (cfs) | BC15: (cfs) | BD15: (cfs) | BE15: (cfs) | BF15: (cf) | BG15: (cf) | BH15: (cf) | BI15: (cf) | BJ15: cf | BK15: (cf) | BL15: (cfs) | BM15: (cfs) | BN15: (cfs) | BO15: (cfs) | BP15: (cfs) | BQ15: (cf) | BR15: (cf) | BS15: (cf) | BT15: (cf) | BU15: cf | BV15: (cf) | BW15: (cfs) | BX15: (cfs) | BY15: (cfs) | BZ15: (cfs) | CA15: (cfs) | CB15: (cf) | CC15: (cf) | CD15: (cf) | CE15: (cf) | CF15: cf | CG15: (cf) | CH15: (cfs) | CI15: (cfs) | CJ15: (cfs) | CK15: (cfs) | CL15: (cfs) | CM15: (ft) | CN15: (cf) | CO15: (cf) | CP15: (cf) | CQ15: (cf) | CR15: (cf) | CS15: (cf) | CT15: (cf) | CU15: cf | CV15: (cf) | CW15: (cfs) | CX15: (cfs) | CY15: (ft) | CZ15: (cfs) | DA15: (cf) | DB15: (cfs) | DC15: (cfs) | DD15: (cfs) | DE15: (ft) | DF15: (cf) | DG15: (cf) | DH15: (cf) | DI15: (cf) | DJ15: (cf) | DK15: (cf) | DL15: (cf) | DM15: cf | DN15: (cf) | DO15: (cfs) | DP15: (cfs) | DQ15: (ft) | DR15: (cfs) | DS15: (cf) | DT15: (cfs) | DU15: (cfs) | DV15: (cfs) | DW15: (ft) | DX15: (cf) | DY15: (cf) | DZ15: (cf) | EA15: (cf) | EB15: (cf) | EC15: (cf) | ED15: cf | EE15: (cf) | EF15: (cfs) | EG15: (cfs) | EH15: (ft) | EI15: (cfs) | EK15: (cfs) | EL15: (cfs) | EM15: (cfs) | EN15: (cf) | EO15: (cf) | EP15: (cf) | EQ15: (cf) | ER15: cf | ES15: (cf) | ET15: (cfs) | EU15: (cfs) | EV15: (ft) | EW15: (cfs) | EX15: (cf) | EY15: (cfs) | EZ15: (cfs) | FA15: (cfs) | FB15: (cf) | FC15: (cf) | FD15: (cf) | FE15: (cf) | FF15: cf | FG15: (cf) | FH15: (cfs) | FI15: (cfs) | FJ15: (ft) | FK15: (cfs) | FM15: (cfs) | FN15: (cfs) | FO15: (cfs) | FP15: (ft) | FQ15: (cf) | FR15: (cf) | FS15: (cf) | FT15: (cf) | FU15: (cf) | FV15: (cf) | FW15: (cf) | FX15: cf | FY15: (cf) | FZ15: (cfs) | GA15: (cfs) | GB15: (cfs) | GC15: (cfs) | GD15: (cfs) | GE15: (ft) | GF15: (cf) | GG15: (cf) | GH15: (cf) | GI15: (cf) | GJ15: (cf) | GK15: (cf) | GL15: (cf) | GM15: cf | GN15: (cf) | GO15: (cfs) | GP15: (cfs) | GQ15: (ft) | GR15: (cfs) | GS15: (cf) | GT15: (cfs) | GU15: (cfs) | GV15: (cfs) | GW15: (cf) | GX15: (cf) | GY15: (cf) | GZ15: (cf) | HA15: (cf) | HB15: cf | HC15: (cf) | HD15: (cfs) | HE15: (cfs) | HF15: (ft) | HG15: (cfs) | HH15: (cf) | HI15: (cfs) | HJ15: (cfs) | HK15: (cfs) | HL15: (cf) | HM15: (cf) | HN15: (cf) | HO15: (cf) | HP15: (cf) | HQ15: cf | HR15: (cf) | HS15: (cfs) | HT15: (cfs) | HU15: (ft) | HV15: (cfs) | HW15: (cf) | HX15: (cfs) | HY15: (cfs) | HZ15: (cfs) | IA15: (cfs)
A16: 00:00:00 | B16: =IF(AND(A16>=$D$5,A16<=$D$6),$D$3,0) ->  | C16: 0 | D16: =SUM(C$16:C16) -> 0 | E16: =IF($D16-$F$7>0,($D16-$F$7)^2/($D16+((1-$N$2)*F$6)),0) -> 0 | F16: =E16 -> 0 | G16: =F16/12*$F$4/$B$6 -> 0 | H16: =G16 -> 0 | I16: =IF($D16-$N$2*$G$6>0,($D16-$N$2*$G$6)^2/($D16+(1-$N$2)*$G$6),0) -> 0 | J16: =I16 -> 0 | K16: =J16/12*$G$4/$B$6 -> 0 | L16: =K16 -> 0 | M16: =IF($H$4>0, F16*($F$4/H$4)+J16*($G$4/H$4), 0) -> 0 | N16: =M16/12*H$4/($B$5*60) -> 0 | O16: =N16 -> 0 | P16: =IF($D16-$Q$7>0,($D16-$Q$7)^2/($D16+(1-$Y$2)*$Q$6),0) -> 0 | Q16: =P16 -> 0 | R16: =Q16/12*$Q$4/$B$6 -> 0 | S16: =R16 -> 0 | T16: =IF($D16-$R$7>0,($D16-$R$7)^2/($D16+(1-$Y$2)*$R$6),0) -> 0 | U16: =T16 -> 0 | V16: =U16/12*$R$4/$B$6 -> 0 | W16: =V16 -> 0 | X16: =IF($S$4>0,Q16*($Q$4/$S$4)+U16*($R$4/$S$4),0) -> 0 | Y16: =X16/12*$S$4/$B$6 -> 0 | Z16: =Y16 -> 0 | AA16: =IF($Q$4>0,$S16/$Q$4*AF$2,0) -> 0 | AB16: =IF($R$4>0,(AF$3+AF$5)/$R$4*$W16,0) -> 0 | AC16: =AB16+AA16 -> 0 | AD16: =IF($AF$5>0,AF16/$AF$5,0) -> 0 | AE16: =IF(AC16>$AH$3,(AC16-$AH$3)*$B$6,0) -> 0 | AF16: =AE16-AH16 -> 0 | AG16: =IF(AC16<$AH$3,AC16*$B$6,$AH$3*$B$6) -> 0 | AH16: =IF(AE16>$AH$5,AE16-$AH$5,0) -> 0 | AI16: =IF(AG$8<=AG16, AG$8,AG16) -> 0 | AJ16: 0 | AK16: 0 | AL16: =AG16-SUM(AI16:AK16) -> 0 | AM16: 0 | AN16: =AH16/$B$6 -> 0 | AO16: =IF($Q$4>0,$S16/$Q$4*AS$2,0) -> 0 | AP16: =IF($R$4>0,(AS$3)/$R$4*$W16,0) -> 0 | AQ16: =AP16+AO16 -> 0 | AR16: =(AO16+AP16)*$B$5*60+AS8 -> 0 | AS16: =IF(AR16>($AS$6+$AS$7),AR16-($AS$6+$AS$7),0) -> 0 | AT16: 0 | AU16: =IF(AT$9<=AR16-AS16-AT16, AT$9,AR16-AS16-AT16) -> 0 | AV16: =IF(BA16*$B$6<=AR16-AS16-AT16-AU16, IF(AND(AR16-(BA16*$B$6)<$AS$6,BA16>0), AR16-$AS$6, BA16*$B$6),AR16-AS16-AT16-AU16) -> 0 | AW16: =AR16-SUM(AS16:AV16) -> 0 | AX16: =AV16/$B$6 -> 0 | AY16: =AS16/$B$6 -> 0 | AZ16: =IF(AS$5>0,(AR16-SUM(AS16:AU16))/AS$5,0) -> 0 | BA16: =IF(AZ16>'MS4 BMP Sizing Calculator'!$K$44, 0.66*(PI()*(IF('MS4 BMP Sizing Calculator'!$N$44="--", 0,'MS4 BMP Sizing Calculator'!$N$44)/2/12)^2)*(2*32.2*(AZ16-'MS4 BMP Sizing Calculator'!$K$44))^0.5,0) -> 0 | BB16: =BA16*$B$6 -> 0 | BC16: =IF($Q$4>0,$S16/$Q$4*BG$2,0) -> 0 | BD16: =IF($R$4>0,(BG$3+BG$5)/$R$4*$W16,0) -> 0 | BE16: =BD16+BC16 -> 0 | BF16: =(BC16+BD16)*$B$5*60 -> 0 | BG16: =IF(BF16>BG$6,BF16-BG$6,0) -> 0 | BH16: =IF(BH$8<=BF16-BG16, BH$8,BF16-BG16) -> 0 | BI16: 0 | BJ16: 0 | BK16: =BF16-SUM(BG16:BJ16) -> 0 | BL16: 0 | BM16: =BG16/$B$6 -> 0 | BN16: =IF($Q$4>0,$S16/$Q$4*BR$2,0) -> 0 | BO16: =IF($R$4>0,(BR$3)/$R$4*$W16,0) -> 0 | BP16: =BO16+BN16 -> 0 | BQ16: =(BN16+BO16)*$B$5*60 -> 0 | BR16: =IF(BQ16>BR$6,BQ16-BR$6,0) -> 0 | BS16: =IF(BS$8<=BQ16-BR16, BS$8,BQ16-BR16) -> 0 | BT16: 0 | BU16: 0 | BV16: =BQ16-SUM(BR16:BU16) -> 0 | BW16: =BU16/$B$6 -> 0 | BX16: =BR16/$B$6 -> 0 | BY16: =IF($Q$4>0,$S16/$Q$4*CC$2,0) -> 0 | BZ16: =IF($R$4>0,(CC$3+CC$5)/$R$4*$W16,0) -> 0 | CA16: =BZ16+BY16 -> 0 | CB16: =(BY16+BZ16)*$B$5*60 -> 0 | CC16: =IF(CB16>CC$6,CB16-CC$6,0) -> 0 | CD16: =IF(CD$8<=CB16-CC16, CD$8,CB16-CC16) -> 0 | CE16: 0 | CF16: 0 | CG16: =CB16-SUM(CC16:CF16) -> 0 | CH16: =CF16/$B$6 -> 0 | CI16: =CC16/$B$6 -> 0 | CJ16: =IF($Q$4>0,$S16/$Q$4*CO$2,0) -> 0 | CK16: =IF($R$4>0,(CO$3+CO$5)/$R$4*$W16,0) -> 0 | CL16: =CK16+CJ16 -> 0 | CM16: =IF($CO$5>0,CO16/$CO$5,0) -> 0 | CN16: =IF(CL16>$CQ$3,(CL16-$CQ$3)*$B$6,0) -> 0 | CO16: =CN16-CQ16 -> 0 | CP16: =IF(CL16<$CQ$3,CL16*$B$6,$CQ$3*$B$6) -> 0 | CQ16: =IF(CN16>$CT$8,CN16-$CT$8,0) -> 0 | CR16: =IF(CT$4<=CP16, CT$4,CP16) -> 0 | CS16: =DA16 -> 0 | CT16: 0 | CU16: =IF(CP$8<=CP16-CS16-CR16, CP$8,CP16-CS16-CR16) -> 0 | CV16: =CP16-SUM(CR16:CU16) -> 0 | CW16: =CS16/$B$6 -> 0 | CX16: =CQ16/$B$6 -> 0 | CY16: =IF(AND($CO$5>0, CP16>=$CT$9), $CT$5+$CT$6+CM16, IF(AND(CO$5>0,CP16>CO$11),(CP16-CO$11)/CO$5/'MS4 BMP Sizing Calculator'!$AF$31,0)) -> 0 | CZ16: =IF(IF(CP16<$CT$9,0.66*$CR$8*(2*32.17*CY16*0.35)^0.5, 0.66*CR$8*(2*32.17*(CM16+(CY16-CM16)*0.35))^0.5)> 'MS4 BMP Sizing Calculator'!$U$53*IF(CY16>0, (CY16/IF(CY16>$CT$6+$CT$5,$CT$6+$CT$5, CY16)), 0)*$CO$5/12/3600, 'MS4 BMP Sizing Calculator'!$U$53*IF(CY16>0, (CY16/IF(CY16>$CT$6+$CT$5,$CT$6+$CT$5, CY16)), 0)*$CO$5/12/3600, IF(CP16<$CT$9,0.66*$CR$8*(2*32.17*CY16*0.35)^0.5, 0.66*CR$8*(2*32.17*(CM16+(CY16-CM16)*0.35))^0.5)) -> 0 | DA16: =IF(CP16-CR16>CO$11,IF(CZ16*$B$6>CP16-CR16-CO$11,CP16-CR16-CO$11,CZ16*$B$6),0) -> 0 | DB16: =IF($Q$4>0,$S16/$Q$4*DG$2,0) -> 0 | DC16: =IF($R$4>0,(DG$3+DG$5)/$R$4*$W16,0) -> 0 | DD16: =DC16+DB16 -> 0 | DE16: =IF($DG$5>0,DG16/$DG$5,0) -> 0 | DF16: =IF(DD16>$DI$3,(DD16-$DI$3)*$B$6,0) -> 0 | DG16: =DF16-DI16 -> 0 | DH16: =IF(DD16<$DI$3,DD16*$B$6,$DI$3*$B$6) -> 0 | DI16: =IF(DF16>$DL$8,DF16-$DL$8,0) -> 0 | DJ16: =IF(DL$4<=DH16, DL$4,DH16) -> 0 | DK16: =DS16 -> 0 | DL16: 0 | DM16: =IF(DH$8<=DH16-DK16-DJ16, DH$8,DH16-DK16-DJ16) -> 0 | DN16: =DH16-SUM(DJ16:DM16) -> 0 | DO16: =DK16/$B$6 -> 0 | DP16: =DI16/$B$6 -> 0 | DQ16: =IF(AND($DG$5>0, DH16>=$DL$9), $DL$5+$DL$6+DE16, IF(AND(DG$5>0,DH16>DG$11),(DH16-DG$11)/DG$5/'MS4 BMP Sizing Calculator'!$AF$32,0)) -> 0 | DR16: =IF(IF(DH16<$DL$9, 0.66*$DJ$8*(2*32.17*D16*0.35)^0.5, 0.66*$DJ$8*(2*32.17*(DE16+(DQ16-DE16)*0.35))^0.5)> 'MS4 BMP Sizing Calculator'!$U$54*IF(DQ16>0, (DQ16/IF(DQ16>$DL$6+$DL$5,$DL$6+$DL$5, DQ16)), 0)*$DG$5/12/3600, 'MS4 BMP Sizing Calculator'!$U$54*IF(DQ16>0, (DQ16/IF(DQ16>$DL$6+$DL$5,$DL$6+$DL$5, DQ16)), 0)*$DG$5/12/3600, IF(DH16<$DL$9, 0.66*$DJ$8*(2*32.17*D16*0.35)^0.5, 0.66*$DJ$8*(2*32.17*(DE16+(DQ16-DE16)*0.35))^0.5)) -> 0 | DS16: =IF(DH16-DJ16>DG$11,IF(DR16*$B$6>DH16-DJ16-DG$11,DH16-DJ16-DG$11,DR16*$B$6),0) -> 0 | DT16: =IF($Q$4>0,$S16/$Q$4*DX$2,0) -> 0 | DU16: =IF($R$4>0,(DX$3+DX$5)/$R$4*$W16,0) -> 0 | DV16: =DU16+DT16 -> 0 | DW16: =IF($DX$5>0,DY16/$DX$5,0) -> 0 | DX16: =IF(DV16>$EA$3,(DV16-$EA$3)*$B$6,0) -> 0 | DY16: =DX16-EA16 -> 0 | DZ16: =IF(DV16<$EA$3,DV16*$B$6,$EA$3*$B$6) -> 0 | EA16: =IF(DX16>$EA$6,DX16-$EA$6,0) -> 0 | EB16: =IF(DY$8<=DZ16, DY$8,DZ16) -> 0 | EC16: 0 | ED16: =IF(EI16*$B$6<=DZ16-EB16-EC16, EI16*$B$6,DZ16-EB16-EC16) -> 0 | EE16: =DZ16-SUM(EB16:ED16) -> 0 | EF16: =ED16/$B$6 -> 0 | EG16: =EA16/$B$6 -> 0 | EH16: =IF(DX$5>0,(DZ16-SUM(EB16:EC16))/DX$5/'MS4 BMP Sizing Calculator'!$AF$34,0) -> 0 | EI16: ='MS4 BMP Sizing Calculator'!$V$51*(IF(EH16>0,EH16/IF(EH16>'MS4 BMP Sizing Calculator'!$J$51,'MS4 BMP Sizing Calculator'!$J$51,EH16))*DX$5/12/3600) -> 0 | EJ16: =EI16*$B$6 -> 0 | EK16: =IF($Q$4>0,$S16/$Q$4*EO$2,0) -> 0 | EL16: =IF($R$4>0,(EO$3+EO$5)/$R$4*$W16,0) -> 0 | EM16: =EL16+EK16 -> 0 | EN16: =(EK16+EL16)*$B$5*60 -> 0 | EO16: =IF(EN16>EO$6,EN16-EO$6,0) -> 0 | EP16: =EX16 -> 0 | EQ16: 0 | ER16: =IF(EP$8<=EN16-EO16-EP16-EQ16, EP$8,EN16-EO16-EP16-EQ16) -> 0 | ES16: =EN16-SUM(EO16:ER16) -> 0 | ET16: =EP16/$B$6 -> 0 | EU16: =EO16/$B$6 -> 0 | EV16: =IF(AND(EO$5>0,EN16-EO16>EO$11),(EN16-EO16-EO$11)/EO$5/'MS4 BMP Sizing Calculator'!$AF$35,0) -> 0 | EW16: =0.66*'MS4 BMP Sizing Calculator'!$X$50*(2*32.2*EV16*0.41)^0.5 -> 0 | EX16: =IF(EN16-EO16>EO$11,IF(EW16*$B$6>EN16-EO16-EO$11,EN16-EO16-EO$11,EW16*$B$6),0) -> 0 | EY16: =IF($Q$4>0,$S16/$Q$4*FC$2,0) -> 0 | EZ16: =IF($R$4>0,(FC$3)/$R$4*$W16,0) -> 0 | FA16: =EZ16+EY16 -> 0 | FB16: =FA16*$B$6 -> 0 | FC16: =IF(FB16>FC$6,FB16-FC$6,0) -> 0 | FD16: =IF(FD$8<=FB16-FC16, FD$8,FB16-FC16) -> 0 | FE16: =IF(FD$9<=FB16-FC16-FD16, FD$9,FB16-FC16-FD16) -> 0 | FF16: =IF(FK16*$B$6<=FB16-FC16-FD16-FE16, FK16*$B$6,FB16-FC16-FD16-FE16) -> 0 | FG16: =FB16-SUM(FC16:FF16) -> 0 | FH16: =FF16/$B$6 -> 0 | FI16: =FC16/$B$6 -> 0 | FJ16: =IF(FC$5>0,(FB16-SUM(FC16:FE16))/FC$5,0) -> 0 | FK16: =0.66*'MS4 BMP Sizing Calculator'!$X$56*(2*32.2*FJ16)^0.5 -> 0 | FL16: =FK16*$B$6 -> 0 | FM16: =IF($Q$4>0,$S16/$Q$4*FR$2,0) -> 0 | FN16: =IF($R$4>0,($FR$3+$FR$5)/$R$4*$W16,0) -> 0 | FO16: =FM16+FN16 -> 0 | FP16: =IF($FR$4>0,FR16/$FR$4,0) -> 0 | FQ16: =IF(FO16>$FU$3,(FO16-$FU$3)*$B$6,0) -> 0 | FR16: =FQ16-FT16 -> 0 | FS16: =IF(FO16<$FU$3,FO16*$B$6,$FU$3*$B$6) -> 0 | FT16: =IF(FQ16>$FU$6,FQ16-$FU$6,0) -> 0 | FU16: =IF($FS$10<=FS16, $FS$10,FS16) -> 0 | FV16: 0 | FW16: 0 | FX16: =IF(FS$8<=FS16-FV16-FU16-FW16, FS$8,FS16-FV16-FU16-FW16) -> 0 | FY16: =FS16-SUM(FU16:FX16) -> 0 | FZ16: =FV16/$B$6 -> 0 | GA16: =FT16/$B$6 -> 0 | GB16: =IF($Q$4>0,$S16/$Q$4*GG$2,0) -> 0 | GC16: =IF($R$4>0,($GG$3+$GG$5)/$R$4*$W16,0) -> 0 | GD16: =GC16+GB16 -> 0 | GE16: =IF($GG$4>0,GG16/$GG$4,0) -> 0 | GF16: =IF(GD16>$GK$3,(GD16-$GK$3)*$B$6,0) -> 0 | GG16: =GF16-GI16 -> 0 | GH16: =IF(GD16<$GK$3,GD16*$B$6,$GK$3*$B$6) -> 0 | GI16: =IF(GF16>$GK$5,GF16-$GK$5,0) -> 0 | GJ16: =IF($GH$10<=GH16, $GH$10,GH16) -> 0 | GK16: =GS16 -> 0 | GL16: 0 | GM16: =IF(GH$8<=GH16-GK16-GJ16-GL16, GH$8,GH16-GK16-GJ16-GL16) -> 0 | GN16: =GH16-SUM(GJ16:GM16) -> 0 | GO16: =GK16/$B$6 -> 0 | GP16: =GG16/$B$6 -> 0 | GQ16: =IF(AND($GG$4>0, GH16>=$GI$5), $GK$6+$GK$7+GE16, IF(AND(GG$4>0,GH16>GG$11),(GH16-GG$11)/GG$4/'MS4 BMP Sizing Calculator'!$AF$39,0)) -> 0 | GR16: =IF(IF(GH16<$GI$5, 0.66*$GK$9*(2*32.17*GQ16*0.35)^0.5, 0.66*$GK$9*(2*32.17*(GE16+(GQ16-GE16)*0.35))^0.5)> 'MS4 BMP Sizing Calculator'!$U$55*IF(GQ16>0, (GQ16/IF(GQ16>$GK$6+$GK$7,$GK$6+$GK$7, GQ16)), 0)*$GG$4/12/3600, 'MS4 BMP Sizing Calculator'!$U$55*IF(GQ16>0, (GQ16/IF(GQ16>$GK$6+$GK$7,$GK$6+$GK$7, GQ16)), 0)*$GG$4/12/3600, IF(GH16<$GI$5, 0.66*$GK$9*(2*32.17*GQ16*0.35)^0.5, 0.66*$GK$9*(2*32.17*(GE16+(GQ16-GE16)*0.35))^0.5)) -> 0 | GS16: =IF(GH16-GJ16>GG$11,IF(GR16*$B$6>GH16-GJ16-GG$11,GH16-GJ16-GG$11,GR16*$B$6),0) -> 0 | GT16: =IF($Q$4>0,$S16/$Q$4*GY$2,0) -> 0 | GU16: =IF($R$4>0,($GY$3+$GY$5)/$R$4*$W16,0) -> 0 | GV16: =GT16+GU16 -> 0 | GW16: =GV16*$B$6 -> 0 | GX16: 0 | GY16: 0 | GZ16: =HH16 -> 0 | HA16: 0 | HB16: 0 | HC16: =GW16-SUM(GX16:HB16) -> 0 | HD16: =GZ16/$B$6 -> 0 | HE16: =GX16/$B$6 -> 0 | HF16: 0 | HG16: =GV16 -> 0 | HH16: =HG16*$B$6 -> 0 | HI16: =IF($Q$4>0,$S16/$Q$4*HN$2,0) -> 0 | HJ16: =IF($R$4>0,($HN$3+$HN$5)/$R$4*$W16,0) -> 0 | HK16: =HI16+HJ16 -> 0 | HL16: =HK16*$B$6 -> 0 | HM16: =IF(HL16>$HN$6,HL16-$HN$6,0) -> 0 | HN16: =IF($HO$8<=HL16-HM16, $HO$8,HL16-HM16) -> 0 | HO16: =HW16 -> 0 | HP16: 0 | HQ16: 0 | HR16: =HL16-SUM(HM16:HQ16) -> 0 | HS16: =HO16/$B$6 -> 0 | HT16: =HM16/$B$6 -> 0 | HU16: =IF($HN$5>0,(HL16-SUM(HM16:HN16))/$HN$5/'MS4 BMP Sizing Calculator'!$AF$37,0) -> 0 | HV16: =IF('MS4 BMP Sizing Calculator'!$AB$59='MS4 BMP Sizing Calculator'!$AA$59,'MS4 BMP Sizing Calculator'!$U$59*IF(HU16>0, (HU16/IF(HU16>$HN$9+$HN$10,$HN$9+$HN$10, HU16)), 0)*HN$5/12/3600,0.66*$HP$3*(2*32.17*(HU16+$HP$5))^0.5) -> 0 | HW16: =IF(HL16-HM16-HN16>$HN$11,IF(HV16*$B$6>HL16-HM16-HN16-$HN$11,HL16-HM16-HN16-$HN$11,HV16*$B$6),0) -> 0 | HX16: =IF($Q$4>0,$S16/$Q$4*HZ$3,0) -> 0 | HY16: =IF($R$4>0,HZ$4/$R$4*$W16,0) -> 0 | HZ16: =HY16+HX16 -> 0 | IA16: =SUM(FH16:FI16,ET16:EU16,EF16:EG16,DO16:DP16,CW16:CX16,CH16:CI16,BW16:BX16,BL16:BM16,AX16:AY16,AM16:AN16,HZ16,HS16:HT16,HD16:HE16,FZ16:GA16,GO16:GP16) -> 0 | IB16: =W16 -> 0 | IC16: =AA16+AO16+BC16+BN16+BY16+CJ16+DB16+DT16+EK16+EY16+FM16+GB16+GT16+HI16 -> 0 | ID16: =AC16+AQ16+BE16+BP16+CA16+CL16+DD16+DV16+EM16+FA16+FO16+GD16+GV16+HK16 -> 0 | IE16: =AI16+AT16+BH16+BS16+CD16+CU16+DM16+ER16+FD16+FX16+GM16+HB16+HQ16 -> 0 | IF16: =CR16+DJ16+EB16+FU16+GJ16+GY16+HN16 -> 0 | IG16: =AJ16+AU16+BI16+BT16+CE16+CT16+DL16+EC16+EQ16+FE16+FW16+GL16+HA16+HP16 -> 0 | II16: =AK16+BJ16+BU16+CF16+CS16+DK16+ED16+FF16+FV16+GK16+GZ16+HO16 -> 0 | IJ16: =II16+IH16+IG16+IF16+IE16 -> 0 | IK16: =AH16+AS16+BG16+BR16+CC16+CQ16+DI16+EA16+EO16+FC16+FT16+GI16+GX16+HM16+EP16+AV16 -> 0
A17: 00:05:00 | C17: =B17*5/60 ->  | D17: =SUM(C$16:C17) ->  | E17: =IF(D17-$F$7>0,(D17-$F$7)^2/(D17+((1-$N$2)*F$6)),0) ->  | F17: =E17-E16 ->  | G17: =F17/12*$F$4/$B$6 ->  | H17: =H16+$F$10*(G17+G16-2*H16) ->  | I17: =IF($D17-$N$2*$G$6>0,($D17-$N$2*$G$6)^2/($D17+(1-$N$2)*$G$6),0) ->  | J17: =I17-I16 ->  | K17: =J17/12*$G$4/$B$6 ->  | L17: =IF(L16+$F$10*(K17+K16-2*L16)>0, L16+$F$10*(K17+K16-2*L16), 0) ->  | M17: =IF($H$4>0, F17*($F$4/H$4)+J17*($G$4/H$4), 0) -> 0 | N17: =M17/12*H$4/($B$5*60) -> 0 | O17: =IF(O16+$F$10*(N17+N16-2*O16)>0,O16+$F$10*(N17+N16-2*O16), 0) ->  | P17: =IF($D17-$Q$7>0,($D17-$Q$7)^2/($D17+(1-$Y$2)*$Q$6),0) ->  | Q17: =P17-P16 ->  | S17: =IF(S16+$Q$10*(R17+R16-2*S16)>0,S16+$Q$10*(R17+R16-2*S16),0) ->  | T17: =IF($D17-$R$7>0,($D17-$R$7)^2/($D17+(1-$Y$2)*$R$6),0) ->  | U17: =T17-T16 ->  | V17: =U17/12*$R$4/$B$6 ->  | W17: =IF(W16+$Q$10*(V17+V16-2*W16)>0, W16+$Q$10*(V17+V16-2*W16), 0) ->  | X17: 0 | Y17: 0 | Z17: =IF(Z16+$Q$10*(Y17+Y16-2*Z16)>0,Z16+$Q$10*(Y17+Y16-2*Z16),0) -> 0 | AA17: 0 | AB17: 0 | AC17: =AB17+AA17 -> 0 | AD17: =IF($AF$5>0,AF17/$AF$5,0) -> 0 | AE17: =IF(AC17>$AH$3, IF(AL16+($AH$3*$B$6)<$AH$6, AF16+((AC17-$AH$3)*$B$6), AF16+(AC17*$B$6)-($AH$6-AL16)), IF(AF16=0, IF(AL16+(AC17*$B$6)<$AH$6, 0, AL16+(AC17*$B$6)-$AH$6), IF(AF16+(AC17*$B$6)-($AH$3*$B$6)>0, IF(AL16+($AH$3*$B$6)<$AH$6, AF16+(AC17*$B$6)-($AH$3*$B$6), AF16+(AC17*$B$6)-($AH$6-AL16)), IF(AL16+AF16+(AC17*$B$6)<$AH$6, 0, AF16+(AC17*$B$6)-($AH$6-AL16))))) -> 0 | AF17: =AE17-AH17 -> 0 | AG17: =IF(AC17>$AH$3, IF(AL16+($AH$3*$B$6)>$AH$6, $AH$6, AL16+($AH$3*$B$6)), IF(AF16=0, IF(AL16+(AC17*$B$6)>$AH$6, $AH$6, AL16+(AC17*$B$6)), IF((AF16+(AC17*$B$6))-($AH$3*$B$6)>0, IF(AL16+($AH$3*$B$6)>$AH$6, $AH$6, AL16+($AH$3*$B$6)), IF(AL16+AF16+(AC17*$B$6)>$AH$6, $AH$6, AL16+AF16+(AC17*$B$6))))) -> 0 | AH17: =IF(AE17>$AH$5,AE17-$AH$5,0) -> 0 | AI17: =IF(AG$8<=AG17, AG$8,AG17) -> 0 | AJ17: 0 | AK17: 0 | AL17: =AG17-SUM(AI17:AK17) -> 0 | AM17: 0 | AN17: =AH17/$B$6 -> 0 | AO17: 0 | AP17: =IF($R$4>0,(AS$3)/$R$4*$W17,0) -> 0 | AQ17: =AP17+AO17 -> 0 | AR17: =(AO17+AP17)*$B$5*60+AW16 -> 0 | AS17: =IF(AR17>($AS$6+$AS$7),AR17-($AS$6+$AS$7),0) -> 0 | AT17: 0 | AU17: 0 | AV17: 0 | AW17: 0 | AX17: =AV17/$B$6 -> 0 | AY17: =AS17/$B$6 -> 0 | AZ17: 0 | BA17: =IF(AZ17>'MS4 BMP Sizing Calculator'!$K$44, 0.66*(PI()*(IF('MS4 BMP Sizing Calculator'!$N$44="--", 0,'MS4 BMP Sizing Calculator'!$N$44)/2/12)^2)*(2*32.2*(AZ17-'MS4 BMP Sizing Calculator'!$K$44))^0.5,0) -> 0 | BB17: =BA17*$B$6 -> 0 | BC17: 0 | BD17: 0 | BE17: =BD17+BC17 -> 0 | BF17: =(BC17+BD17)*$B$5*60+BK16 -> 0 | BG17: 0 | BH17: 0 | BI17: 0 | BJ17: 0 | BK17: 0 | BL17: 0 | BM17: =BG17/$B$6 -> 0 | BN17: 0 | BO17: =IF($R$4>0,(BR$3)/$R$4*$W17,0) -> 0 | BP17: =BO17+BN17 -> 0 | BQ17: =(BN17+BO17)*$B$5*60+BV16 -> 0 | BR17: 0 | BS17: 0 | BT17: 0 | BU17: 0 | BV17: 0 | BW17: =BU17/$B$6 -> 0 | BX17: =BR17/$B$6 -> 0 | BY17: 0 | BZ17: 0 | CA17: =BZ17+BY17 -> 0 | CB17: =(BY17+BZ17)*$B$5*60+CG16 -> 0 | CC17: 0 | CD17: 0 | CE17: 0 | CF17: 0 | CG17: 0 | CH17: =CF17/$B$6 -> 0 | CI17: =CC17/$B$6 -> 0 | CJ17: 0 | CK17: 0 | CL17: =CK17+CJ17 -> 0 | CM17: =IF($CO$5>0,CO17/$CO$5,0) -> 0 | CN17: =IF(CL17>$CQ$3, IF(CV16+($CQ$3*$B$6)<$CT$9, CO16+((CL17-$CQ$3)*$B$6), CO16+(CL17*$B$6)-($CT$9-CV16)), IF(CO16=0, IF(CV16+(CL17*$B$6)<$CT$9, 0, CV16+(CL17*$B$6)-$CT$9), IF(CO16+(CL17*$B$6)-($CQ$3*$B$6)>0, IF(CV16+($CQ$3*$B$6)<$CT$9, CO16+(CL17*$B$6)-($CQ$3*$B$6), CO16+(CL17*$B$6)-($CT$9-CV16)), IF(CV16+CO16+(CL17*$B$6)<$CT$9, 0, CO16+(CL17*$B$6)-($CT$9-CV16))))) -> 0 | CO17: =CN17-CQ17 -> 0 | CP17: =IF(CL17>$CQ$3, IF(CV16+($CQ$3*$B$6)>$CT$9, $CT$9, CV16+($CQ$3*$B$6)), IF(CO16=0, IF(CV16+(CL17*$B$6)>$CT$9, $CT$9, CV16+(CL17*$B$6)), IF((CO16+(CL17*$B$6))-($CQ$3*$B$6)>0, IF(CV16+($CQ$3*$B$6)>$CT$9, $CT$9, CV16+($CQ$3*$B$6)), IF(CV16+CO16+(CL17*$B$6)>$CT$9, $CT$9, CV16+CO16+(CL17*$B$6))))) -> 0 | CQ17: =IF(CN17>$CT$8,CN17-$CT$8,0) -> 0 | CR17: =IF(CT$4<=CP17, CT$4,CP17) -> 0 | CS17: =DA17 -> 0 | CT17: 0 | CU17: =IF(CP$8<=CP17-CS17-CR17, CP$8,CP17-CS17-CR17) -> 0 | CV17: =CP17-SUM(CR17:CU17) -> 0 | CW17: =CS17/$B$6 -> 0 | CX17: =CQ17/$B$6 -> 0 | CY17: =IF(AND($CO$5>0, CP17>=$CT$9), $CT$5+$CT$6+CM17, IF(AND(CO$5>0,CP17>CO$11),(CP17-CO$11)/CO$5/'MS4 BMP Sizing Calculator'!$AF$31,0)) -> 0 | CZ17: =IF(IF(CP17<$CT$9,0.66*$CR$8*(2*32.17*CY17*0.35)^0.5, 0.66*CR$8*(2*32.17*(CM17+(CY17-CM17)*0.35))^0.5)> 'MS4 BMP Sizing Calculator'!$U$53*IF(CY17>0, (CY17/IF(CY17>$CT$6+$CT$5,$CT$6+$CT$5, CY17)), 0)*$CO$5/12/3600, 'MS4 BMP Sizing Calculator'!$U$53*IF(CY17>0, (CY17/IF(CY17>$CT$6+$CT$5,$CT$6+$CT$5, CY17)), 0)*$CO$5/12/3600, IF(CP17<$CT$9,0.66*$CR$8*(2*32.17*CY17*0.35)^0.5, 0.66*CR$8*(2*32.17*(CM17+(CY17-CM17)*0.35))^0.5)) -> 0 | DA17: =IF(CP17-CR17>CO$11,IF(CZ17*$B$6>CP17-CR17-CO$11,CP17-CR17-CO$11,CZ17*$B$6),0) -> 0 | DB17: 0 | DC17: 0 | DD17: =DC17+DB17 -> 0 | DE17: =IF($DG$5>0,DG17/$DG$5,0) -> 0 | DF17: =IF(DD17>$DI$3, IF(DN16+($DI$3*$B$6)<$DL$9, DG16+((DD17-$DI$3)*$B$6), DG16+(DD17*$B$6)-($DL$9-DN16)), IF(DG16=0, IF(DN16+(DD17*$B$6)<$DL$9, 0, DN16+(DD17*$B$6)-$DL$9), IF(DG16+(DD17*$B$6)-($DI$3*$B$6)>0, IF(DN16+($DI$3*$B$6)<$DL$9, DG16+(DD17*$B$6)-($DI$3*$B$6), DG16+(DD17*$B$6)-($DL$9-DN16)), IF(DN16+DG16+(DD17*$B$6)<$DL$9, 0, DG16+(DD17*$B$6)-($DL$9-DN16))))) -> 0 | DG17: =DF17-DI17 -> 0 | DH17: =IF(DD17>$DI$3, IF(DN16+($DI$3*$B$6)>$DL$9, $DL$9, DN16+($DI$3*$B$6)), IF(DG16=0, IF(DN16+(DD17*$B$6)>$DL$9, $DL$9, DN16+(DD17*$B$6)), IF((DG16+(DD17*$B$6))-($DI$3*$B$6)>0, IF(DN16+($DI$3*$B$6)>$DL$9, $DL$9, DN16+($DI$3*$B$6)), IF(DN16+DG16+(DD17*$B$6)>$DL$9, $DL$9, DN16+DG16+(DD17*$B$6))))) -> 0 | DI17: =IF(DF17>$DL$8,DF17-$DL$8,0) -> 0 | DJ17: =IF(DL$4<=DH17, DL$4,DH17) -> 0 | DK17: =DS17 -> 0 | DL17: 0 | DM17: =IF(DH$8<=DH17-DK17-DJ17, DH$8,DH17-DK17-DJ17) -> 0 | DN17: =DH17-SUM(DJ17:DM17) -> 0 | DO17: =DK17/$B$6 -> 0 | DP17: =DI17/$B$6 -> 0 | DQ17: =IF(AND($DG$5>0, DH17>=$DL$9), $DL$5+$DL$6+DE17, IF(AND(DG$5>0,DH17>DG$11),(DH17-DG$11)/DG$5/'MS4 BMP Sizing Calculator'!$AF$32,0)) -> 0 | DR17: =IF(IF(DH17<$DL$9, 0.66*$DJ$8*(2*32.17*D17*0.35)^0.5, 0.66*$DJ$8*(2*32.17*(DE17+(DQ17-DE17)*0.35))^0.5)> 'MS4 BMP Sizing Calculator'!$U$54*IF(DQ17>0, (DQ17/IF(DQ17>$DL$6+$DL$5,$DL$6+$DL$5, DQ17)), 0)*$DG$5/12/3600, 'MS4 BMP Sizing Calculator'!$U$54*IF(DQ17>0, (DQ17/IF(DQ17>$DL$6+$DL$5,$DL$6+$DL$5, DQ17)), 0)*$DG$5/12/3600, IF(DH17<$DL$9, 0.66*$DJ$8*(2*32.17*D17*0.35)^0.5, 0.66*$DJ$8*(2*32.17*(DE17+(DQ17-DE17)*0.35))^0.5)) -> 0 | DS17: =IF(DH17-DJ17>DG$11,IF(DR17*$B$6>DH17-DJ17-DG$11,DH17-DJ17-DG$11,DR17*$B$6),0) -> 0 | DT17: 0 | DU17: 0 | DV17: =DU17+DT17 -> 0 | DW17: =IF($DX$5>0,DY17/$DX$5,0) -> 0 | DX17: =IF(DV17>$EA$3, IF(EE16+($EA$3*$B$6)<$EA$7, DY16+((DV17-$EA$3)*$B$6), DY16+(DV17*$B$6)-($EA$7-EE16)), IF(DY16=0, IF(EE16+(DV17*$B$6)<$EA$7, 0, EE16+(DV17*$B$6)-$EA$7), IF(DY16+(DV17*$B$6)-($EA$3*$B$6)>0, IF(EE16+($EA$3*$B$6)<$EA$7, DY16+(DV17*$B$6)-($EA$3*$B$6), DY16+(DV17*$B$6)-($EA$7-EE16)), IF(EE16+DY16+(DV17*$B$6)<$EA$7, 0, DY16+(DV17*$B$6)-($EA$7-EE16))))) -> 0 | DY17: =DX17-EA17 -> 0 | DZ17: =IF(DV17>$EA$3, IF(EE16+($EA$3*$B$6)>$EA$7, $EA$7, EE16+($EA$3*$B$6)), IF(DY16=0, IF(EE16+(DV17*$B$6)>$EA$7, $EA$7, EE16+(DV17*$B$6)), IF((DY16+(DV17*$B$6))-($EA$3*$B$6)>0, IF(EE16+($EA$3*$B$6)>$EA$7, $EA$7, EE16+($EA$3*$B$6)), IF(EE16+DY16+(DV17*$B$6)>$EA$7, $EA$7, EE16+DY16+(DV17*$B$6))))) -> 0 | EA17: =IF(DX17>$EA$6,DX17-$EA$6,0) -> 0 | EB17: =IF(DY$8<=DZ17, DY$8,DZ17) -> 0 | EC17: 0 | ED17: =IF(EI17*$B$6<=DZ17-EB17-EC17, EI17*$B$6,DZ17-EB17-EC17) -> 0 | EE17: =DZ17-SUM(EB17:ED17) -> 0 | EF17: =ED17/$B$6 -> 0 | EG17: =EA17/$B$6 -> 0 | EH17: =IF(DX$5>0,(DZ17-SUM(EB17:EC17))/DX$5/'MS4 BMP Sizing Calculator'!$AF$34,0) -> 0 | EI17: ='MS4 BMP Sizing Calculator'!$V$51*(IF(EH17>0,EH17/IF(EH17>'MS4 BMP Sizing Calculator'!$J$51,'MS4 BMP Sizing Calculator'!$J$51,EH17))*DX$5/12/3600) -> 0 | EJ17: =EI17*$B$6 -> 0 | EK17: =IF($Q$4>0,$S17/$Q$4*EO$2,0) -> 0 | EL17: 0 | EM17: =EL17+EK17 -> 0 | EN17: =(EK17+EL17)*$B$5*60+ES16 -> 0 | EO17: 0 | EP17: =EX17 -> 0 | EQ17: 0 | ER17: =IF(EP$8<=EN17-EO17-EP17-EQ17, EP$8,EN17-EO17-EP17-EQ17) -> 0 | ES17: 0 | ET17: =EP17/$B$6 -> 0 | EU17: =EO17/$B$6 -> 0 | EV17: =IF(AND(EO$5>0,EN17-EO17>EO$11),(EN17-EO17-EO$11)/EO$5/'MS4 BMP Sizing Calculator'!$AF$35,0) -> 0 | EW17: =0.66*'MS4 BMP Sizing Calculator'!$X$50*(2*32.2*EV17*0.41)^0.5 -> 0 | EX17: =IF(EN17-EO17>EO$11,IF(EW17*$B$6>EN17-EO17-EO$11,EN17-EO17-EO$11,EW17*$B$6),0) -> 0 | EY17: 0 | EZ17: =IF($R$4>0,(FC$3)/$R$4*$W17,0) -> 0 | FA17: =EZ17+EY17 -> 0 | FB17: =FA17*B$6+FG16 -> 0 | FC17: 0 | FD17: 0 | FE17: 0 | FF17: =IF(FK17*$B$6<=FB17-FC17-FD17-FE17, FK17*$B$6,FB17-FC17-FD17-FE17) -> 0 | FG17: 0 | FH17: =FF17/$B$6 -> 0 | FI17: =FC17/$B$6 -> 0 | FJ17: 0 | FK17: =0.66*'MS4 BMP Sizing Calculator'!$X$56*(2*32.2*FJ17)^0.5 -> 0 | FL17: =FK17*$B$6 -> 0 | FM17: =IF($Q$4>0,$S17/$Q$4*FR$2,0) -> 0 | FN17: 0 | FO17: =FM17+FN17 -> 0 | FP17: =IF($FR$4>0,FR17/$FR$4,0) -> 0 | FQ17: =IF(FO17>$FU$3, IF(FY16+($FU$3*$B$6)<$FU$7, FR16+((FO17-$FU$3)*$B$6), FR16+(FO17*$B$6)-($FU$7-FY16)), IF(FR16=0, IF(FY16+(FO17*$B$6)<$FU$7, 0, FY16+(FO17*$B$6)-$FU$7), IF(FR16+(FO17*$B$6)-($FU$3*$B$6)>0, IF(FY16+($FU$3*$B$6)<$FU$7, FR16+(FO17*$B$6)-($FU$3*$B$6), FR16+(FO17*$B$6)-($FU$7-FY16)), IF(FY16+FR16+(FO17*$B$6)<$FU$7, 0, FR16+(FO17*$B$6)-($FU$7-FY16))))) -> 0 | FR17: =FQ17-FT17 -> 0 | FS17: =IF(FO17>$FU$3, IF(FY16+($FU$3*$B$6)>$FU$7, $FU$7, FY16+($FU$3*$B$6)), IF(FR16=0, IF(FY16+(FO17*$B$6)>$FU$7, $FU$7, FY16+(FO17*$B$6)), IF((FR16+(FO17*$B$6))-($FU$3*$B$6)>0, IF(FY16+($FU$3*$B$6)>$FU$7, $FU$7, FY16+($FU$3*$B$6)), IF(FY16+FR16+(FO17*$B$6)>$FU$7, $FU$7, FY16+FR16+(FO17*$B$6))))) -> 0 | FT17: =IF(FQ17>$FU$6,FQ17-$FU$6,0) -> 0 | FU17: =IF($FS$10<=FS17, $FS$10,FS17) -> 0 | FV17: 0 | FW17: 0 | FX17: =IF(FS$8<=FS17-FV17-FU17-FW17, FS$8,FS17-FV17-FU17-FW17) -> 0 | FY17: =FS17-SUM(FU17:FX17) -> 0 | FZ17: =FV17/$B$6 -> 0 | GA17: =FT17/$B$6 -> 0 | GB17: =IF($Q$4>0,$S17/$Q$4*GG$2,0) -> 0 | GC17: 0 | GD17: 0 | GE17: =IF($GG$4>0,GG17/$GG$4,0) -> 0 | GF17: =IF(GD17>$GK$5, IF(GN16+($GK$5*$B$6)<$GI$5, GG16+((GD17-$GK$5)*$B$6), GG16+(GD17*$B$6)-($GI$5-GN16)), IF(GG16=0, IF(GN16+(GD17*$B$6)<$GI$5, 0, GN16+(GD17*$B$6)-$GI$5), IF(GG16+(GD17*$B$6)-($GK$5*$B$6)>0, IF(GN16+($GK$5*$B$6)<$GI$5, GG16+(GD17*$B$6)-($GK$5*$B$6), GG16+(GD17*$B$6)-($GI$5-GN16)), IF(GN16+GG16+(GD17*$B$6)<$GI$5, 0, GG16+(GD17*$B$6)-($GI$5-GN16))))) -> 0 | GG17: =GF17-GI17 -> 0 | GH17: =IF(GD17>$GK$5, IF(GN16+($GK$5*$B$6)>$GI$5, $GI$5, GN16+($GK$5*$B$6)), IF(GG16=0, IF(GN16+(GD17*$B$6)>$GI$5, $GI$5, GN16+(GD17*$B$6)), IF((GG16+(GD17*$B$6))-($GK$5*$B$6)>0, IF(GN16+($GK$5*$B$6)>$GI$5, $GI$5, GN16+($GK$5*$B$6)), IF(GN16+GG16+(GD17*$B$6)>$GI$5, $GI$5, GN16+GG16+(GD17*$B$6))))) -> 0 | GI17: =IF(GF17>$GK$5,GF17-$GK$5,0) -> 0 | GJ17: =IF($GH$10<=GH17, $GH$10,GH17) -> 0 | GK17: =GS17 -> 0 | GL17: 0 | GM17: =IF(GH$8<=GH17-GK17-GJ17-GL17, GH$8,GH17-GK17-GJ17-GL17) -> 0 | GN17: =GH17-SUM(GJ17:GM17) -> 0 | GO17: =GK17/$B$6 -> 0 | GP17: =GG17/$B$6 -> 0 | GQ17: =IF(AND($GG$4>0, GH17>=$GI$5), $GK$6+$GK$7+GE17, IF(AND(GG$4>0,GH17>GG$11),(GH17-GG$11)/GG$4/'MS4 BMP Sizing Calculator'!$AF$39,0)) -> 0 | GR17: =IF(IF(GH17<$GI$5, 0.66*$GK$9*(2*32.17*GQ17*0.35)^0.5, 0.66*$GK$9*(2*32.17*(GE17+(GQ17-GE17)*0.35))^0.5)> 'MS4 BMP Sizing Calculator'!$U$55*IF(GQ17>0, (GQ17/IF(GQ17>$GK$6+$GK$7,$GK$6+$GK$7, GQ17)), 0)*$GG$4/12/3600, 'MS4 BMP Sizing Calculator'!$U$55*IF(GQ17>0, (GQ17/IF(GQ17>$GK$6+$GK$7,$GK$6+$GK$7, GQ17)), 0)*$GG$4/12/3600, IF(GH17<$GI$5, 0.66*$GK$9*(2*32.17*GQ17*0.35)^0.5, 0.66*$GK$9*(2*32.17*(GE17+(GQ17-GE17)*0.35))^0.5)) -> 0 | GS17: =IF(GH17-GJ17>GG$11,IF(GR17*$B$6>GH17-GJ17-GG$11,GH17-GJ17-GG$11,GR17*$B$6),0) -> 0 | GT17: =IF($Q$4>0,$S17/$Q$4*GY$2,0) -> 0 | GU17: 0 | GV17: =GT17+GU17 -> 0 | GW17: =GV17*$B$6+HC16 -> 0 | GX17: 0 | GY17: 0 | GZ17: =HH17 -> 0 | HA17: 0 | HB17: 0 | HC17: =GW17-SUM(GX17:HB17) -> 0 | HD17: =GZ17/$B$6 -> 0 | HE17: =GX17/$B$6 -> 0 | HF17: 0 | HG17: =GV17 -> 0 | HH17: =HG17*$B$6 -> 0 | HI17: =IF($Q$4>0,$S17/$Q$4*HN$2,0) -> 0 | HJ17: 0 | HK17: =HI17+HJ17 -> 0 | HL17: =HK17*$B$6+HR16 -> 0 | HM17: =IF(HL17>$HN$6,HL17-$HN$6,0) -> 0 | HN17: =IF($HO$8<=HL17-HM17, $HO$8,HL17-HM17) -> 0 | HO17: =HW17 -> 0 | HP17: 0 | HQ17: 0 | HR17: =HL17-SUM(HM17:HQ17) -> 0 | HS17: =HO17/$B$6 -> 0 | HT17: =HM17/$B$6 -> 0 | HU17: =IF($HN$5>0,(HL17-SUM(HM17:HN17))/$HN$5/'MS4 BMP Sizing Calculator'!$AF$37,0) -> 0 | HV17: =IF('MS4 BMP Sizing Calculator'!$AB$59='MS4 BMP Sizing Calculator'!$AA$59,'MS4 BMP Sizing Calculator'!$U$59*IF(HU17>0, (HU17/IF(HU17>$HN$9+$HN$10,$HN$9+$HN$10, HU17)), 0)*HN$5/12/3600,0.66*$HP$3*(2*32.17*(HU17+$HP$5))^0.5) -> 0 | HW17: 0 | HX17: =IF($Q$4>0,$S17/$Q$4*HZ$3,0) -> 0 | HY17: =IF($R$4>0,HZ$4/$R$4*$W17,0) -> 0 | HZ17: =HY17+HX17 -> 0 | IA17: =SUM(FH17:FI17,ET17:EU17,EF17:EG17,DO17:DP17,CW17:CX17,CH17:CI17,BW17:BX17,BL17:BM17,AX17:AY17,AM17:AN17,HZ17,HS17:HT17,HD17:HE17,FZ17:GA17,GO17:GP17) -> 0 | IB17: =W17 ->  | IC17: =AA17+AO17+BC17+BN17+BY17+CJ17+DB17+DT17+EK17+EY17+FM17+GB17+GT17+HI17 -> 0 | ID17: =AC17+AQ17+BE17+BP17+CA17+CL17+DD17+DV17+EM17+FA17+FO17+GD17+GV17+HK17 -> 0 | IE17: 0 | IF17: 0 | IG17: 0 | II17: =AK17+BJ17+BU17+CF17+CS17+DK17+ED17+FF17+FV17+GK17+GZ17+HO17 -> 0 | IJ17: =II17+IH17+IG17+IF17+IE17 -> 0 | IK17: =AH17+AS17+BG17+BR17+CC17+CQ17+DI17+EA17+EO17+FC17+FT17+GI17+GX17+HM17+EP17+AV17 -> 0
A18: 00:10:00 | B18: =IF(AND(A18>=$D$5,A18<=$D$6),$D$3,0) ->  | C18: =B18*5/60 ->  | D18: =SUM(C$16:C18) ->  | E18: =IF(D18-$F$7>0,(D18-$F$7)^2/(D18+((1-$N$2)*F$6)),0) ->  | F18: =E18-E17 ->  | G18: =F18/12*$F$4/$B$6 ->  | H18: =H17+$F$10*(G18+G17-2*H17) ->  | I18: =IF($D18-$N$2*$G$6>0,($D18-$N$2*$G$6)^2/($D18+(1-$N$2)*$G$6),0) ->  | J18: =I18-I17 ->  | K18: =J18/12*$G$4/$B$6 ->  | L18: =IF(L17+$F$10*(K18+K17-2*L17)>0, L17+$F$10*(K18+K17-2*L17), 0) ->  | M18: 0 | N18: 0 | O18: =IF(O17+$F$10*(N18+N17-2*O17)>0,O17+$F$10*(N18+N17-2*O17), 0) ->  | Q18: =P18-P17 ->  | S18: =IF(S17+$Q$10*(R18+R17-2*S17)>0,S17+$Q$10*(R18+R17-2*S17),0) ->  | U18: =T18-T17 ->  | W18: =IF(W17+$Q$10*(V18+V17-2*W17)>0, W17+$Q$10*(V18+V17-2*W17), 0) ->  | X18: 0 | Y18: 0 | Z18: =IF(Z17+$Q$10*(Y18+Y17-2*Z17)>0,Z17+$Q$10*(Y18+Y17-2*Z17),0) -> 0 | AA18: 0 | AB18: 0 | AC18: 0 | AD18: 0 | AE18: =IF(AC18>$AH$3, IF(AL17+($AH$3*$B$6)<$AH$6, AF17+((AC18-$AH$3)*$B$6), AF17+(AC18*$B$6)-($AH$6-AL17)), IF(AF17=0, IF(AL17+(AC18*$B$6)<$AH$6, 0, AL17+(AC18*$B$6)-$AH$6), IF(AF17+(AC18*$B$6)-($AH$3*$B$6)>0, IF(AL17+($AH$3*$B$6)<$AH$6, AF17+(AC18*$B$6)-($AH$3*$B$6), AF17+(AC18*$B$6)-($AH$6-AL17)), IF(AL17+AF17+(AC18*$B$6)<$AH$6, 0, AF17+(AC18*$B$6)-($AH$6-AL17))))) -> 0 | AF18: =AE18-AH18 -> 0 | AG18: =IF(AC18>$AH$3, IF(AL17+($AH$3*$B$6)>$AH$6, $AH$6, AL17+($AH$3*$B$6)), IF(AF17=0, IF(AL17+(AC18*$B$6)>$AH$6, $AH$6, AL17+(AC18*$B$6)), IF((AF17+(AC18*$B$6))-($AH$3*$B$6)>0, IF(AL17+($AH$3*$B$6)>$AH$6, $AH$6, AL17+($AH$3*$B$6)), IF(AL17+AF17+(AC18*$B$6)>$AH$6, $AH$6, AL17+AF17+(AC18*$B$6))))) -> 0 | AH18: =IF(AE18>$AH$5,AE18-$AH$5,0) -> 0 | AI18: =IF(AG$8<=AG18, AG$8,AG18) -> 0 | AJ18: 0 | AK18: 0 | AL18: =AG18-SUM(AI18:AK18) -> 0 | AM18: 0 | AN18: =AH18/$B$6 -> 0 | AO18: 0 | AP18: 0 | AQ18: 0 | AR18: =(AO18+AP18)*$B$5*60+AW17 -> 0 | AS18: 0 | AT18: 0 | AU18: 0 | AV18: 0 | AW18: 0 | AX18: 0 | AY18: 0 | AZ18: 0 | BA18: =IF(AZ18>'MS4 BMP Sizing Calculator'!$K$44, 0.66*(PI()*(IF('MS4 BMP Sizing Calculator'!$N$44="--", 0,'MS4 BMP Sizing Calculator'!$N$44)/2/12)^2)*(2*32.2*(AZ18-'MS4 BMP Sizing Calculator'!$K$44))^0.5,0) -> 0 | BB18: 0 | BC18: 0 | BD18: 0 | BE18: 0 | BF18: =(BC18+BD18)*$B$5*60+BK17 -> 0 | BG18: 0 | BH18: 0 | BI18: 0 | BJ18: 0 | BK18: 0 | BL18: 0 | BM18: 0 | BN18: 0 | BO18: =IF($R$4>0,(BR$3)/$R$4*$W18,0) -> 0 | BP18: 0 | BQ18: =(BN18+BO18)*$B$5*60+BV17 -> 0 | BR18: 0 | BS18: 0 | BT18: 0 | BU18: 0 | BV18: 0 | BW18: 0 | BX18: 0 | BY18: 0 | BZ18: 0 | CA18: 0 | CB18: =(BY18+BZ18)*$B$5*60+CG17 -> 0 | CC18: 0 | CD18: 0 | CE18: 0 | CF18: 0 | CG18: 0 | CH18: 0 | CI18: 0 | CJ18: 0 | CK18: 0 | CL18: 0 | CM18: 0 | CN18: =IF(CL18>$CQ$3, IF(CV17+($CQ$3*$B$6)<$CT$9, CO17+((CL18-$CQ$3)*$B$6), CO17+(CL18*$B$6)-($CT$9-CV17)), IF(CO17=0, IF(CV17+(CL18*$B$6)<$CT$9, 0, CV17+(CL18*$B$6)-$CT$9), IF(CO17+(CL18*$B$6)-($CQ$3*$B$6)>0, IF(CV17+($CQ$3*$B$6)<$CT$9, CO17+(CL18*$B$6)-($CQ$3*$B$6), CO17+(CL18*$B$6)-($CT$9-CV17)), IF(CV17+CO17+(CL18*$B$6)<$CT$9, 0, CO17+(CL18*$B$6)-($CT$9-CV17))))) -> 0 | CO18: =CN18-CQ18 -> 0 | CP18: =IF(CL18>$CQ$3, IF(CV17+($CQ$3*$B$6)>$CT$9, $CT$9, CV17+($CQ$3*$B$6)), IF(CO17=0, IF(CV17+(CL18*$B$6)>$CT$9, $CT$9, CV17+(CL18*$B$6)), IF((CO17+(CL18*$B$6))-($CQ$3*$B$6)>0, IF(CV17+($CQ$3*$B$6)>$CT$9, $CT$9, CV17+($CQ$3*$B$6)), IF(CV17+CO17+(CL18*$B$6)>$CT$9, $CT$9, CV17+CO17+(CL18*$B$6))))) -> 0 | CQ18: =IF(CN18>$CT$8,CN18-$CT$8,0) -> 0 | CR18: =IF(CT$4<=CP18, CT$4,CP18) -> 0 | CS18: 0 | CT18: 0 | CU18: =IF(CP$8<=CP18-CS18-CR18, CP$8,CP18-CS18-CR18) -> 0 | CV18: =CP18-SUM(CR18:CU18) -> 0 | CW18: =CS18/$B$6 -> 0 | CX18: =CQ18/$B$6 -> 0 | CY18: =IF(AND($CO$5>0, CP18>=$CT$9), $CT$5+$CT$6+CM18, IF(AND(CO$5>0,CP18>CO$11),(CP18-CO$11)/CO$5/'MS4 BMP Sizing Calculator'!$AF$31,0)) -> 0 | CZ18: =IF(IF(CP18<$CT$9,0.66*$CR$8*(2*32.17*CY18*0.35)^0.5, 0.66*CR$8*(2*32.17*(CM18+(CY18-CM18)*0.35))^0.5)> 'MS4 BMP Sizing Calculator'!$U$53*IF(CY18>0, (CY18/IF(CY18>$CT$6+$CT$5,$CT$6+$CT$5, CY18)), 0)*$CO$5/12/3600, 'MS4 BMP Sizing Calculator'!$U$53*IF(CY18>0, (CY18/IF(CY18>$CT$6+$CT$5,$CT$6+$CT$5, CY18)), 0)*$CO$5/12/3600, IF(CP18<$CT$9,0.66*$CR$8*(2*32.17*CY18*0.35)^0.5, 0.66*CR$8*(2*32.17*(CM18+(CY18-CM18)*0.35))^0.5)) -> 0 | DA18: =IF(CP18-CR18>CO$11,IF(CZ18*$B$6>CP18-CR18-CO$11,CP18-CR18-CO$11,CZ18*$B$6),0) -> 0 | DB18: 0 | DC18: 0 | DD18: 0 | DE18: 0 | DF18: =IF(DD18>$DI$3, IF(DN17+($DI$3*$B$6)<$DL$9, DG17+((DD18-$DI$3)*$B$6), DG17+(DD18*$B$6)-($DL$9-DN17)), IF(DG17=0, IF(DN17+(DD18*$B$6)<$DL$9, 0, DN17+(DD18*$B$6)-$DL$9), IF(DG17+(DD18*$B$6)-($DI$3*$B$6)>0, IF(DN17+($DI$3*$B$6)<$DL$9, DG17+(DD18*$B$6)-($DI$3*$B$6), DG17+(DD18*$B$6)-($DL$9-DN17)), IF(DN17+DG17+(DD18*$B$6)<$DL$9, 0, DG17+(DD18*$B$6)-($DL$9-DN17))))) -> 0 | DG18: =DF18-DI18 -> 0 | DH18: =IF(DD18>$DI$3, IF(DN17+($DI$3*$B$6)>$DL$9, $DL$9, DN17+($DI$3*$B$6)), IF(DG17=0, IF(DN17+(DD18*$B$6)>$DL$9, $DL$9, DN17+(DD18*$B$6)), IF((DG17+(DD18*$B$6))-($DI$3*$B$6)>0, IF(DN17+($DI$3*$B$6)>$DL$9, $DL$9, DN17+($DI$3*$B$6)), IF(DN17+DG17+(DD18*$B$6)>$DL$9, $DL$9, DN17+DG17+(DD18*$B$6))))) -> 0 | DI18: =IF(DF18>$DL$8,DF18-$DL$8,0) -> 0 | DJ18: =IF(DL$4<=DH18, DL$4,DH18) -> 0 | DK18: 0 | DL18: 0 | DM18: =IF(DH$8<=DH18-DK18-DJ18, DH$8,DH18-DK18-DJ18) -> 0 | DN18: =DH18-SUM(DJ18:DM18) -> 0 | DO18: =DK18/$B$6 -> 0 | DP18: =DI18/$B$6 -> 0 | DQ18: =IF(AND($DG$5>0, DH18>=$DL$9), $DL$5+$DL$6+DE18, IF(AND(DG$5>0,DH18>DG$11),(DH18-DG$11)/DG$5/'MS4 BMP Sizing Calculator'!$AF$32,0)) -> 0 | DR18: =IF(IF(DH18<$DL$9, 0.66*$DJ$8*(2*32.17*D18*0.35)^0.5, 0.66*$DJ$8*(2*32.17*(DE18+(DQ18-DE18)*0.35))^0.5)> 'MS4 BMP Sizing Calculator'!$U$54*IF(DQ18>0, (DQ18/IF(DQ18>$DL$6+$DL$5,$DL$6+$DL$5, DQ18)), 0)*$DG$5/12/3600, 'MS4 BMP Sizing Calculator'!$U$54*IF(DQ18>0, (DQ18/IF(DQ18>$DL$6+$DL$5,$DL$6+$DL$5, DQ18)), 0)*$DG$5/12/3600, IF(DH18<$DL$9, 0.66*$DJ$8*(2*32.17*D18*0.35)^0.5, 0.66*$DJ$8*(2*32.17*(DE18+(DQ18-DE18)*0.35))^0.5)) -> 0 | DS18: =IF(DH18-DJ18>DG$11,IF(DR18*$B$6>DH18-DJ18-DG$11,DH18-DJ18-DG$11,DR18*$B$6),0) -> 0 | DT18: 0 | DU18: 0 | DV18: 0 | DW18: 0 | DX18: =IF(DV18>$EA$3, IF(EE17+($EA$3*$B$6)<$EA$7, DY17+((DV18-$EA$3)*$B$6), DY17+(DV18*$B$6)-($EA$7-EE17)), IF(DY17=0, IF(EE17+(DV18*$B$6)<$EA$7, 0, EE17+(DV18*$B$6)-$EA$7), IF(DY17+(DV18*$B$6)-($EA$3*$B$6)>0, IF(EE17+($EA$3*$B$6)<$EA$7, DY17+(DV18*$B$6)-($EA$3*$B$6), DY17+(DV18*$B$6)-($EA$7-EE17)), IF(EE17+DY17+(DV18*$B$6)<$EA$7, 0, DY17+(DV18*$B$6)-($EA$7-EE17))))) -> 0 | DY18: =DX18-EA18 -> 0 | DZ18: =IF(DV18>$EA$3, IF(EE17+($EA$3*$B$6)>$EA$7, $EA$7, EE17+($EA$3*$B$6)), IF(DY17=0, IF(EE17+(DV18*$B$6)>$EA$7, $EA$7, EE17+(DV18*$B$6)), IF((DY17+(DV18*$B$6))-($EA$3*$B$6)>0, IF(EE17+($EA$3*$B$6)>$EA$7, $EA$7, EE17+($EA$3*$B$6)), IF(EE17+DY17+(DV18*$B$6)>$EA$7, $EA$7, EE17+DY17+(DV18*$B$6))))) -> 0 | EA18: =IF(DX18>$EA$6,DX18-$EA$6,0) -> 0 | EB18: =IF(DY$8<=DZ18, DY$8,DZ18) -> 0 | EC18: 0 | ED18: =IF(EI18*$B$6<=DZ18-EB18-EC18, EI18*$B$6,DZ18-EB18-EC18) -> 0 | EE18: =DZ18-SUM(EB18:ED18) -> 0 | EF18: 0 | EG18: =EA18/$B$6 -> 0 | EH18: =IF(DX$5>0,(DZ18-SUM(EB18:EC18))/DX$5/'MS4 BMP Sizing Calculator'!$AF$34,0) -> 0 | EI18: ='MS4 BMP Sizing Calculator'!$V$51*(IF(EH18>0,EH18/IF(EH18>'MS4 BMP Sizing Calculator'!$J$51,'MS4 BMP Sizing Calculator'!$J$51,EH18))*DX$5/12/3600) -> 0 | EJ18: 0 | EK18: 0 | EL18: 0 | EM18: 0 | EN18: =(EK18+EL18)*$B$5*60+ES17 -> 0 | EO18: 0 | EP18: 0 | EQ18: 0 | ER18: 0 | ES18: 0 | ET18: 0 | EU18: 0 | EV18: =IF(AND(EO$5>0,EN18-EO18>EO$11),(EN18-EO18-EO$11)/EO$5/'MS4 BMP Sizing Calculator'!$AF$35,0) -> 0 | EW18: =0.66*'MS4 BMP Sizing Calculator'!$X$50*(2*32.2*EV18*0.41)^0.5 -> 0 | EX18: 0 | EY18: 0 | EZ18: 0 | FA18: 0 | FB18: 0 | FC18: 0 | FD18: 0 | FE18: 0 | FF18: =IF(FK18*$B$6<=FB18-FC18-FD18-FE18, FK18*$B$6,FB18-FC18-FD18-FE18) -> 0 | FG18: 0 | FH18: 0 | FI18: 0 | FJ18: 0 | FK18: =0.66*'MS4 BMP Sizing Calculator'!$X$56*(2*32.2*FJ18)^0.5 -> 0 | FL18: 0 | FM18: =IF($Q$4>0,$S18/$Q$4*FR$2,0) -> 0 | FN18: 0 | FO18: 0 | FP18: 0 | FQ18: =IF(FO18>$FU$3, IF(FY17+($FU$3*$B$6)<$FU$7, FR17+((FO18-$FU$3)*$B$6), FR17+(FO18*$B$6)-($FU$7-FY17)), IF(FR17=0, IF(FY17+(FO18*$B$6)<$FU$7, 0, FY17+(FO18*$B$6)-$FU$7), IF(FR17+(FO18*$B$6)-($FU$3*$B$6)>0, IF(FY17+($FU$3*$B$6)<$FU$7, FR17+(FO18*$B$6)-($FU$3*$B$6), FR17+(FO18*$B$6)-($FU$7-FY17)), IF(FY17+FR17+(FO18*$B$6)<$FU$7, 0, FR17+(FO18*$B$6)-($FU$7-FY17))))) -> 0 | FR18: =FQ18-FT18 -> 0 | FS18: =IF(FO18>$FU$3, IF(FY17+($FU$3*$B$6)>$FU$7, $FU$7, FY17+($FU$3*$B$6)), IF(FR17=0, IF(FY17+(FO18*$B$6)>$FU$7, $FU$7, FY17+(FO18*$B$6)), IF((FR17+(FO18*$B$6))-($FU$3*$B$6)>0, IF(FY17+($FU$3*$B$6)>$FU$7, $FU$7, FY17+($FU$3*$B$6)), IF(FY17+FR17+(FO18*$B$6)>$FU$7, $FU$7, FY17+FR17+(FO18*$B$6))))) -> 0 | FT18: 0 | FU18: =IF($FS$10<=FS18, $FS$10,FS18) -> 0 | FV18: 0 | FW18: 0 | FX18: =IF(FS$8<=FS18-FV18-FU18-FW18, FS$8,FS18-FV18-FU18-FW18) -> 0 | FY18: =FS18-SUM(FU18:FX18) -> 0 | FZ18: 0 | GA18: =FT18/$B$6 -> 0 | GB18: 0 | GC18: 0 | GD18: 0 | GE18: 0 | GF18: =IF(GD18>$GK$5, IF(GN17+($GK$5*$B$6)<$GI$5, GG17+((GD18-$GK$5)*$B$6), GG17+(GD18*$B$6)-($GI$5-GN17)), IF(GG17=0, IF(GN17+(GD18*$B$6)<$GI$5, 0, GN17+(GD18*$B$6)-$GI$5), IF(GG17+(GD18*$B$6)-($GK$5*$B$6)>0, IF(GN17+($GK$5*$B$6)<$GI$5, GG17+(GD18*$B$6)-($GK$5*$B$6), GG17+(GD18*$B$6)-($GI$5-GN17)), IF(GN17+GG17+(GD18*$B$6)<$GI$5, 0, GG17+(GD18*$B$6)-($GI$5-GN17))))) -> 0 | GG18: =GF18-GI18 -> 0 | GH18: =IF(GD18>$GK$5, IF(GN17+($GK$5*$B$6)>$GI$5, $GI$5, GN17+($GK$5*$B$6)), IF(GG17=0, IF(GN17+(GD18*$B$6)>$GI$5, $GI$5, GN17+(GD18*$B$6)), IF((GG17+(GD18*$B$6))-($GK$5*$B$6)>0, IF(GN17+($GK$5*$B$6)>$GI$5, $GI$5, GN17+($GK$5*$B$6)), IF(GN17+GG17+(GD18*$B$6)>$GI$5, $GI$5, GN17+GG17+(GD18*$B$6))))) -> 0 | GI18: =IF(GF18>$GK$5,GF18-$GK$5,0) -> 0 | GJ18: =IF($GH$10<=GH18, $GH$10,GH18) -> 0 | GK18: 0 | GL18: 0 | GM18: =IF(GH$8<=GH18-GK18-GJ18-GL18, GH$8,GH18-GK18-GJ18-GL18) -> 0 | GN18: =GH18-SUM(GJ18:GM18) -> 0 | GO18: 0 | GP18: =GG18/$B$6 -> 0 | GQ18: =IF(AND($GG$4>0, GH18>=$GI$5), $GK$6+$GK$7+GE18, IF(AND(GG$4>0,GH18>GG$11),(GH18-GG$11)/GG$4/'MS4 BMP Sizing Calculator'!$AF$39,0)) -> 0 | GR18: =IF(IF(GH18<$GI$5, 0.66*$GK$9*(2*32.17*GQ18*0.35)^0.5, 0.66*$GK$9*(2*32.17*(GE18+(GQ18-GE18)*0.35))^0.5)> 'MS4 BMP Sizing Calculator'!$U$55*IF(GQ18>0, (GQ18/IF(GQ18>$GK$6+$GK$7,$GK$6+$GK$7, GQ18)), 0)*$GG$4/12/3600, 'MS4 BMP Sizing Calculator'!$U$55*IF(GQ18>0, (GQ18/IF(GQ18>$GK$6+$GK$7,$GK$6+$GK$7, GQ18)), 0)*$GG$4/12/3600, IF(GH18<$GI$5, 0.66*$GK$9*(2*32.17*GQ18*0.35)^0.5, 0.66*$GK$9*(2*32.17*(GE18+(GQ18-GE18)*0.35))^0.5)) -> 0 | GS18: =IF(GH18-GJ18>GG$11,IF(GR18*$B$6>GH18-GJ18-GG$11,GH18-GJ18-GG$11,GR18*$B$6),0) -> 0 | GT18: 0 | GU18: 0 | GV18: 0 | GW18: =GV18*$B$6+HC17 -> 0 | GX18: 0 | GY18: 0 | GZ18: 0 | HA18: 0 | HB18: 0 | HC18: 0 | HD18: 0 | HE18: 0 | HF18: 0 | HG18: 0 | HH18: 0 | HI18: 0 | HJ18: 0 | HK18: 0 | HL18: =HK18*$B$6+HR17 -> 0 | HM18: 0 | HN18: 0 | HO18: 0 | HP18: 0 | HQ18: 0 | HR18: 0 | HS18: 0 | HT18: 0 | HU18: =IF($HN$5>0,(HL18-SUM(HM18:HN18))/$HN$5/'MS4 BMP Sizing Calculator'!$AF$37,0) -> 0 | HV18: =IF('MS4 BMP Sizing Calculator'!$AB$59='MS4 BMP Sizing Calculator'!$AA$59,'MS4 BMP Sizing Calculator'!$U$59*IF(HU18>0, (HU18/IF(HU18>$HN$9+$HN$10,$HN$9+$HN$10, HU18)), 0)*HN$5/12/3600,0.66*$HP$3*(2*32.17*(HU18+$HP$5))^0.5) -> 0 | HW18: 0 | HX18: 0 | HY18: =IF($R$4>0,HZ$4/$R$4*$W18,0) -> 0 | HZ18: 0 | IA18: =SUM(FH18:FI18,ET18:EU18,EF18:EG18,DO18:DP18,CW18:CX18,CH18:CI18,BW18:BX18,BL18:BM18,AX18:AY18,AM18:AN18,HZ18,HS18:HT18,HD18:HE18,FZ18:GA18,GO18:GP18) -> 0 | IC18: 0 | ID18: 0 | IE18: 0 | IF18: 0 | IG18: 0 | II18: 0 | IJ18: 0 | IK18: 0
A19: 00:15:00 | B19: =IF(AND(A19>=$D$5,A19<=$D$6),$D$3,0) ->  | D19: =SUM(C$16:C19) ->  | M19: 0 | N19: 0 | X19: 0 | Y19: 0 | Z19: 0 | AA19: 0 | AB19: 0 | AC19: 0 | AD19: 0 | AE19: 0 | AF19: 0 | AG19: 0 | AH19: 0 | AI19: 0 | AJ19: 0 | AK19: 0 | AL19: 0 | AM19: 0 | AN19: 0 | AO19: 0 | AP19: 0 | AQ19: 0 | AR19: 0 | AS19: 0 | AT19: 0 | AU19: 0 | AV19: 0 | AW19: 0 | AX19: 0 | AY19: 0 | AZ19: 0 | BA19: =IF(AZ19>'MS4 BMP Sizing Calculator'!$K$44, 0.66*(PI()*(IF('MS4 BMP Sizing Calculator'!$N$44="--", 0,'MS4 BMP Sizing Calculator'!$N$44)/2/12)^2)*(2*32.2*(AZ19-'MS4 BMP Sizing Calculator'!$K$44))^0.5,0) -> 0 | BB19: 0 | BC19: 0 | BD19: 0 | BE19: 0 | BF19: 0 | BG19: 0 | BH19: 0 | BI19: 0 | BJ19: 0 | BK19: 0 | BL19: 0 | BM19: 0 | BN19: 0 | BO19: 0 | BP19: 0 | BQ19: 0 | BR19: 0 | BS19: 0 | BT19: 0 | BU19: 0 | BV19: 0 | BW19: 0 | BX19: 0 | BY19: 0 | BZ19: 0 | CA19: 0 | CB19: 0 | CC19: 0 | CD19: 0 | CE19: 0 | CF19: 0 | CG19: 0 | CH19: 0 | CI19: 0 | CJ19: 0 | CK19: 0 | CL19: 0 | CM19: 0 | CN19: 0 | CO19: 0 | CP19: 0 | CQ19: 0 | CR19: 0 | CS19: 0 | CT19: 0 | CU19: 0 | CV19: 0 | CW19: 0 | CX19: 0 | CY19: =IF(AND($CO$5>0, CP19>=$CT$9), $CT$5+$CT$6+CM19, IF(AND(CO$5>0,CP19>CO$11),(CP19-CO$11)/CO$5/'MS4 BMP Sizing Calculator'!$AF$31,0)) -> 0 | CZ19: =IF(IF(CP19<$CT$9,0.66*$CR$8*(2*32.17*CY19*0.35)^0.5, 0.66*CR$8*(2*32.17*(CM19+(CY19-CM19)*0.35))^0.5)> 'MS4 BMP Sizing Calculator'!$U$53*IF(CY19>0, (CY19/IF(CY19>$CT$6+$CT$5,$CT$6+$CT$5, CY19)), 0)*$CO$5/12/3600, 'MS4 BMP Sizing Calculator'!$U$53*IF(CY19>0, (CY19/IF(CY19>$CT$6+$CT$5,$CT$6+$CT$5, CY19)), 0)*$CO$5/12/3600, IF(CP19<$CT$9,0.66*$CR$8*(2*32.17*CY19*0.35)^0.5, 0.66*CR$8*(2*32.17*(CM19+(CY19-CM19)*0.35))^0.5)) -> 0 | DA19: 0 | DB19: 0 | DC19: 0 | DD19: 0 | DE19: 0 | DF19: 0 | DG19: 0 | DH19: 0 | DI19: 0 | DJ19: 0 | DK19: 0 | DL19: 0 | DM19: 0 | DN19: 0 | DO19: 0 | DP19: 0 | DQ19: =IF(AND($DG$5>0, DH19>=$DL$9), $DL$5+$DL$6+DE19, IF(AND(DG$5>0,DH19>DG$11),(DH19-DG$11)/DG$5/'MS4 BMP Sizing Calculator'!$AF$32,0)) -> 0 | DR19: =IF(IF(DH19<$DL$9, 0.66*$DJ$8*(2*32.17*D19*0.35)^0.5, 0.66*$DJ$8*(2*32.17*(DE19+(DQ19-DE19)*0.35))^0.5)> 'MS4 BMP Sizing Calculator'!$U$54*IF(DQ19>0, (DQ19/IF(DQ19>$DL$6+$DL$5,$DL$6+$DL$5, DQ19)), 0)*$DG$5/12/3600, 'MS4 BMP Sizing Calculator'!$U$54*IF(DQ19>0, (DQ19/IF(DQ19>$DL$6+$DL$5,$DL$6+$DL$5, DQ19)), 0)*$DG$5/12/3600, IF(DH19<$DL$9, 0.66*$DJ$8*(2*32.17*D19*0.35)^0.5, 0.66*$DJ$8*(2*32.17*(DE19+(DQ19-DE19)*0.35))^0.5)) -> 0 | DS19: 0 | DT19: 0 | DU19: 0 | DV19: 0 | DW19: 0 | DX19: 0 | DY19: 0 | DZ19: 0 | EA19: 0 | EB19: 0 | EC19: 0 | ED19: 0 | EE19: 0 | EF19: 0 | EG19: 0 | EH19: =IF(DX$5>0,(DZ19-SUM(EB19:EC19))/DX$5/'MS4 BMP Sizing Calculator'!$AF$34,0) -> 0 | EI19: ='MS4 BMP Sizing Calculator'!$V$51*(IF(EH19>0,EH19/IF(EH19>'MS4 BMP Sizing Calculator'!$J$51,'MS4 BMP Sizing Calculator'!$J$51,EH19))*DX$5/12/3600) -> 0 | EJ19: 0 | EK19: 0 | EL19: 0 | EM19: 0 | EN19: 0 | EO19: 0 | EP19: 0 | EQ19: 0 | ER19: 0 | ES19: 0 | ET19: 0 | EU19: 0 | EV19: =IF(AND(EO$5>0,EN19-EO19>EO$11),(EN19-EO19-EO$11)/EO$5/'MS4 BMP Sizing Calculator'!$AF$35,0) -> 0 | EW19: =0.66*'MS4 BMP Sizing Calculator'!$X$50*(2*32.2*EV19*0.41)^0.5 -> 0 | EX19: 0 | EY19: 0 | EZ19: 0 | FA19: 0 | FB19: 0 | FC19: 0 | FD19: 0 | FE19: 0 | FF19: 0 | FG19: 0 | FH19: 0 | FI19: 0 | FJ19: 0 | FK19: =0.66*'MS4 BMP Sizing Calculator'!$X$56*(2*32.2*FJ19)^0.5 -> 0 | FL19: 0 | FM19: 0 | FN19: 0 | FO19: 0 | FP19: 0 | FQ19: 0 | FR19: 0 | FS19: 0 | FT19: 0 | FU19: 0 | FV19: 0 | FW19: 0 | FX19: 0 | FY19: 0 | FZ19: 0 | GA19: 0 | GB19: 0 | GC19: 0 | GD19: 0 | GE19: 0 | GF19: 0 | GG19: 0 | GH19: 0 | GI19: 0 | GJ19: 0 | GK19: 0 | GL19: 0 | GM19: 0 | GN19: 0 | GO19: 0 | GP19: 0 | GQ19: =IF(AND($GG$4>0, GH19>=$GI$5), $GK$6+$GK$7+GE19, IF(AND(GG$4>0,GH19>GG$11),(GH19-GG$11)/GG$4/'MS4 BMP Sizing Calculator'!$AF$39,0)) -> 0 | GR19: =IF(IF(GH19<$GI$5, 0.66*$GK$9*(2*32.17*GQ19*0.35)^0.5, 0.66*$GK$9*(2*32.17*(GE19+(GQ19-GE19)*0.35))^0.5)> 'MS4 BMP Sizing Calculator'!$U$55*IF(GQ19>0, (GQ19/IF(GQ19>$GK$6+$GK$7,$GK$6+$GK$7, GQ19)), 0)*$GG$4/12/3600, 'MS4 BMP Sizing Calculator'!$U$55*IF(GQ19>0, (GQ19/IF(GQ19>$GK$6+$GK$7,$GK$6+$GK$7, GQ19)), 0)*$GG$4/12/3600, IF(GH19<$GI$5, 0.66*$GK$9*(2*32.17*GQ19*0.35)^0.5, 0.66*$GK$9*(2*32.17*(GE19+(GQ19-GE19)*0.35))^0.5)) -> 0 | GS19: 0 | GT19: 0 | GU19: 0 | GV19: 0 | GW19: 0 | GX19: 0 | GY19: 0 | GZ19: 0 | HA19: 0 | HB19: 0 | HC19: 0 | HD19: 0 | HE19: 0 | HF19: 0 | HG19: 0 | HH19: 0 | HI19: 0 | HJ19: 0 | HK19: 0 | HL19: 0 | HM19: 0 | HN19: 0 | HO19: 0 | HP19: 0 | HQ19: 0 | HR19: 0 | HS19: 0 | HT19: 0 | HU19: =IF($HN$5>0,(HL19-SUM(HM19:HN19))/$HN$5/'MS4 BMP Sizing Calculator'!$AF$37,0) -> 0 | HV19: =IF('MS4 BMP Sizing Calculator'!$AB$59='MS4 BMP Sizing Calculator'!$AA$59,'MS4 BMP Sizing Calculator'!$U$59*IF(HU19>0, (HU19/IF(HU19>$HN$9+$HN$10,$HN$9+$HN$10, HU19)), 0)*HN$5/12/3600,0.66*$HP$3*(2*32.17*(HU19+$HP$5))^0.5) -> 0 | HW19: 0 | HX19: 0 | HY19: 0 | HZ19: 0 | IA19: 0 | IC19: 0 | ID19: 0 | IE19: 0 | IF19: 0 | IG19: 0 | II19: 0 | IJ19: 0 | IK19: 0
A20: 00:20:00 | D20: =SUM(C$16:C20) ->  | M20: 0 | N20: 0 | X20: 0 | Y20: 0 | Z20: 0 | AA20: 0 | AB20: 0 | AC20: 0 | AD20: 0 | AE20: 0 | AF20: 0 | AG20: 0 | AH20: 0 | AI20: 0 | AJ20: 0 | AK20: 0 | AL20: 0 | AM20: 0 | AN20: 0 | AO20: 0 | AP20: 0 | AQ20: 0 | AR20: 0 | AS20: 0 | AT20: 0 | AU20: 0 | AV20: 0 | AW20: 0 | AX20: 0 | AY20: 0 | AZ20: 0 | BA20: =IF(AZ20>'MS4 BMP Sizing Calculator'!$K$44, 0.66*(PI()*(IF('MS4 BMP Sizing Calculator'!$N$44="--", 0,'MS4 BMP Sizing Calculator'!$N$44)/2/12)^2)*(2*32.2*(AZ20-'MS4 BMP Sizing Calculator'!$K$44))^0.5,0) -> 0 | BB20: 0 | BC20: 0 | BD20: 0 | BE20: 0 | BF20: 0 | BG20: 0 | BH20: 0 | BI20: 0 | BJ20: 0 | BK20: 0 | BL20: 0 | BM20: 0 | BN20: 0 | BO20: 0 | BP20: 0 | BQ20: 0 | BR20: 0 | BS20: 0 | BT20: 0 | BU20: 0 | BV20: 0 | BW20: 0 | BX20: 0 | BY20: 0 | BZ20: 0 | CA20: 0 | CB20: 0 | CC20: 0 | CD20: 0 | CE20: 0 | CF20: 0 | CG20: 0 | CH20: 0 | CI20: 0 | CJ20: 0 | CK20: 0 | CL20: 0 | CM20: 0 | CN20: 0 | CO20: 0 | CP20: 0 | CQ20: 0 | CR20: 0 | CS20: 0 | CT20: 0 | CU20: 0 | CV20: 0 | CW20: 0 | CX20: 0 | CY20: =IF(AND($CO$5>0, CP20>=$CT$9), $CT$5+$CT$6+CM20, IF(AND(CO$5>0,CP20>CO$11),(CP20-CO$11)/CO$5/'MS4 BMP Sizing Calculator'!$AF$31,0)) -> 0 | CZ20: =IF(IF(CP20<$CT$9,0.66*$CR$8*(2*32.17*CY20*0.35)^0.5, 0.66*CR$8*(2*32.17*(CM20+(CY20-CM20)*0.35))^0.5)> 'MS4 BMP Sizing Calculator'!$U$53*IF(CY20>0, (CY20/IF(CY20>$CT$6+$CT$5,$CT$6+$CT$5, CY20)), 0)*$CO$5/12/3600, 'MS4 BMP Sizing Calculator'!$U$53*IF(CY20>0, (CY20/IF(CY20>$CT$6+$CT$5,$CT$6+$CT$5, CY20)), 0)*$CO$5/12/3600, IF(CP20<$CT$9,0.66*$CR$8*(2*32.17*CY20*0.35)^0.5, 0.66*CR$8*(2*32.17*(CM20+(CY20-CM20)*0.35))^0.5)) -> 0 | DA20: 0 | DB20: 0 | DC20: 0 | DD20: 0 | DE20: 0 | DF20: 0 | DG20: 0 | DH20: 0 | DI20: 0 | DJ20: 0 | DK20: 0 | DL20: 0 | DM20: 0 | DN20: 0 | DO20: 0 | DP20: 0 | DQ20: =IF(AND($DG$5>0, DH20>=$DL$9), $DL$5+$DL$6+DE20, IF(AND(DG$5>0,DH20>DG$11),(DH20-DG$11)/DG$5/'MS4 BMP Sizing Calculator'!$AF$32,0)) -> 0 | DR20: =IF(IF(DH20<$DL$9, 0.66*$DJ$8*(2*32.17*D20*0.35)^0.5, 0.66*$DJ$8*(2*32.17*(DE20+(DQ20-DE20)*0.35))^0.5)> 'MS4 BMP Sizing Calculator'!$U$54*IF(DQ20>0, (DQ20/IF(DQ20>$DL$6+$DL$5,$DL$6+$DL$5, DQ20)), 0)*$DG$5/12/3600, 'MS4 BMP Sizing Calculator'!$U$54*IF(DQ20>0, (DQ20/IF(DQ20>$DL$6+$DL$5,$DL$6+$DL$5, DQ20)), 0)*$DG$5/12/3600, IF(DH20<$DL$9, 0.66*$DJ$8*(2*32.17*D20*0.35)^0.5, 0.66*$DJ$8*(2*32.17*(DE20+(DQ20-DE20)*0.35))^0.5)) -> 0 | DS20: 0 | DT20: 0 | DU20: 0 | DV20: 0 | DW20: 0 | DX20: 0 | DY20: 0 | DZ20: 0 | EA20: 0 | EB20: 0 | EC20: 0 | ED20: 0 | EE20: 0 | EF20: 0 | EG20: 0 | EH20: =IF(DX$5>0,(DZ20-SUM(EB20:EC20))/DX$5/'MS4 BMP Sizing Calculator'!$AF$34,0) -> 0 | EI20: ='MS4 BMP Sizing Calculator'!$V$51*(IF(EH20>0,EH20/IF(EH20>'MS4 BMP Sizing Calculator'!$J$51,'MS4 BMP Sizing Calculator'!$J$51,EH20))*DX$5/12/3600) -> 0 | EJ20: 0 | EK20: 0 | EL20: 0 | EM20: 0 | EN20: 0 | EO20: 0 | EP20: 0 | EQ20: 0 | ER20: 0 | ES20: 0 | ET20: 0 | EU20: 0 | EV20: =IF(AND(EO$5>0,EN20-EO20>EO$11),(EN20-EO20-EO$11)/EO$5/'MS4 BMP Sizing Calculator'!$AF$35,0) -> 0 | EW20: =0.66*'MS4 BMP Sizing Calculator'!$X$50*(2*32.2*EV20*0.41)^0.5 -> 0 | EX20: 0 | EY20: 0 | EZ20: 0 | FA20: 0 | FB20: 0 | FC20: 0 | FD20: 0 | FE20: 0 | FF20: 0 | FG20: 0 | FH20: 0 | FI20: 0 | FJ20: 0 | FK20: =0.66*'MS4 BMP Sizing Calculator'!$X$56*(2*32.2*FJ20)^0.5 -> 0 | FL20: 0 | FM20: 0 | FN20: 0 | FO20: 0 | FP20: 0 | FQ20: 0 | FR20: 0 | FS20: 0 | FT20: 0 | FU20: 0 | FV20: 0 | FW20: 0 | FX20: 0 | FY20: 0 | FZ20: 0 | GA20: 0 | GB20: 0 | GC20: 0 | GD20: 0 | GE20: 0 | GF20: 0 | GG20: 0 | GH20: 0 | GI20: 0 | GJ20: 0 | GK20: 0 | GL20: 0 | GM20: 0 | GN20: 0 | GO20: 0 | GP20: 0 | GQ20: =IF(AND($GG$4>0, GH20>=$GI$5), $GK$6+$GK$7+GE20, IF(AND(GG$4>0,GH20>GG$11),(GH20-GG$11)/GG$4/'MS4 BMP Sizing Calculator'!$AF$39,0)) -> 0 | GR20: =IF(IF(GH20<$GI$5, 0.66*$GK$9*(2*32.17*GQ20*0.35)^0.5, 0.66*$GK$9*(2*32.17*(GE20+(GQ20-GE20)*0.35))^0.5)> 'MS4 BMP Sizing Calculator'!$U$55*IF(GQ20>0, (GQ20/IF(GQ20>$GK$6+$GK$7,$GK$6+$GK$7, GQ20)), 0)*$GG$4/12/3600, 'MS4 BMP Sizing Calculator'!$U$55*IF(GQ20>0, (GQ20/IF(GQ20>$GK$6+$GK$7,$GK$6+$GK$7, GQ20)), 0)*$GG$4/12/3600, IF(GH20<$GI$5, 0.66*$GK$9*(2*32.17*GQ20*0.35)^0.5, 0.66*$GK$9*(2*32.17*(GE20+(GQ20-GE20)*0.35))^0.5)) -> 0 | GS20: 0 | GT20: 0 | GU20: 0 | GV20: 0 | GW20: 0 | GX20: 0 | GY20: 0 | GZ20: 0 | HA20: 0 | HB20: 0 | HC20: 0 | HD20: 0 | HE20: 0 | HF20: 0 | HG20: 0 | HH20: 0 | HI20: 0 | HJ20: 0 | HK20: 0 | HL20: 0 | HM20: 0 | HN20: 0 | HO20: 0 | HP20: 0 | HQ20: 0 | HR20: 0 | HS20: 0 | HT20: 0 | HU20: =IF($HN$5>0,(HL20-SUM(HM20:HN20))/$HN$5/'MS4 BMP Sizing Calculator'!$AF$37,0) -> 0 | HV20: =IF('MS4 BMP Sizing Calculator'!$AB$59='MS4 BMP Sizing Calculator'!$AA$59,'MS4 BMP Sizing Calculator'!$U$59*IF(HU20>0, (HU20/IF(HU20>$HN$9+$HN$10,$HN$9+$HN$10, HU20)), 0)*HN$5/12/3600,0.66*$HP$3*(2*32.17*(HU20+$HP$5))^0.5) -> 0 | HW20: 0 | HX20: 0 | HY20: 0 | HZ20: =HY20+HX20 -> 0 | IA20: 0 | IC20: 0 | ID20: 0 | IE20: 0 | IF20: 0 | IG20: 0 | II20: 0 | IJ20: 0 | IK20: 0
A21: 00:25:00 | D21: =SUM(C$16:C21) ->  | M21: 0 | N21: 0 | X21: 0 | Y21: 0 | Z21: 0 | AA21: 0 | AB21: 0 | AC21: 0 | AD21: 0 | AE21: 0 | AF21: 0 | AG21: 0 | AH21: 0 | AI21: 0 | AJ21: 0 | AK21: 0 | AL21: 0 | AM21: 0 | AN21: 0 | AO21: 0 | AP21: 0 | AQ21: 0 | AR21: 0 | AS21: 0 | AT21: 0 | AU21: 0 | AV21: 0 | AW21: 0 | AX21: 0 | AY21: 0 | AZ21: 0 | BA21: =IF(AZ21>'MS4 BMP Sizing Calculator'!$K$44, 0.66*(PI()*(IF('MS4 BMP Sizing Calculator'!$N$44="--", 0,'MS4 BMP Sizing Calculator'!$N$44)/2/12)^2)*(2*32.2*(AZ21-'MS4 BMP Sizing Calculator'!$K$44))^0.5,0) -> 0 | BB21: 0 | BC21: 0 | BD21: 0 | BE21: 0 | BF21: 0 | BG21: 0 | BH21: 0 | BI21: 0 | BJ21: 0 | BK21: 0 | BL21: 0 | BM21: 0 | BN21: 0 | BO21: 0 | BP21: 0 | BQ21: 0 | BR21: 0 | BS21: 0 | BT21: 0 | BU21: 0 | BV21: 0 | BW21: 0 | BX21: 0 | BY21: 0 | BZ21: 0 | CA21: 0 | CB21: 0 | CC21: 0 | CD21: 0 | CE21: 0 | CF21: 0 | CG21: 0 | CH21: 0 | CI21: 0 | CJ21: 0 | CK21: 0 | CL21: 0 | CM21: 0 | CN21: 0 | CO21: 0 | CP21: 0 | CQ21: 0 | CR21: 0 | CS21: 0 | CT21: 0 | CU21: 0 | CV21: 0 | CW21: 0 | CX21: 0 | CY21: =IF(AND($CO$5>0, CP21>=$CT$9), $CT$5+$CT$6+CM21, IF(AND(CO$5>0,CP21>CO$11),(CP21-CO$11)/CO$5/'MS4 BMP Sizing Calculator'!$AF$31,0)) -> 0 | CZ21: =IF(IF(CP21<$CT$9,0.66*$CR$8*(2*32.17*CY21*0.35)^0.5, 0.66*CR$8*(2*32.17*(CM21+(CY21-CM21)*0.35))^0.5)> 'MS4 BMP Sizing Calculator'!$U$53*IF(CY21>0, (CY21/IF(CY21>$CT$6+$CT$5,$CT$6+$CT$5, CY21)), 0)*$CO$5/12/3600, 'MS4 BMP Sizing Calculator'!$U$53*IF(CY21>0, (CY21/IF(CY21>$CT$6+$CT$5,$CT$6+$CT$5, CY21)), 0)*$CO$5/12/3600, IF(CP21<$CT$9,0.66*$CR$8*(2*32.17*CY21*0.35)^0.5, 0.66*CR$8*(2*32.17*(CM21+(CY21-CM21)*0.35))^0.5)) -> 0 | DA21: 0 | DB21: 0 | DC21: 0 | DD21: 0 | DE21: 0 | DF21: 0 | DG21: 0 | DH21: 0 | DI21: 0 | DJ21: 0 | DK21: 0 | DL21: 0 | DM21: 0 | DN21: 0 | DO21: 0 | DP21: 0 | DQ21: =IF(AND($DG$5>0, DH21>=$DL$9), $DL$5+$DL$6+DE21, IF(AND(DG$5>0,DH21>DG$11),(DH21-DG$11)/DG$5/'MS4 BMP Sizing Calculator'!$AF$32,0)) -> 0 | DR21: =IF(IF(DH21<$DL$9, 0.66*$DJ$8*(2*32.17*D21*0.35)^0.5, 0.66*$DJ$8*(2*32.17*(DE21+(DQ21-DE21)*0.35))^0.5)> 'MS4 BMP Sizing Calculator'!$U$54*IF(DQ21>0, (DQ21/IF(DQ21>$DL$6+$DL$5,$DL$6+$DL$5, DQ21)), 0)*$DG$5/12/3600, 'MS4 BMP Sizing Calculator'!$U$54*IF(DQ21>0, (DQ21/IF(DQ21>$DL$6+$DL$5,$DL$6+$DL$5, DQ21)), 0)*$DG$5/12/3600, IF(DH21<$DL$9, 0.66*$DJ$8*(2*32.17*D21*0.35)^0.5, 0.66*$DJ$8*(2*32.17*(DE21+(DQ21-DE21)*0.35))^0.5)) -> 0 | DS21: 0 | DT21: 0 | DU21: 0 | DV21: 0 | DW21: 0 | DX21: 0 | DY21: 0 | DZ21: 0 | EA21: 0 | EB21: 0 | EC21: 0 | ED21: 0 | EE21: 0 | EF21: 0 | EG21: 0 | EH21: =IF(DX$5>0,(DZ21-SUM(EB21:EC21))/DX$5/'MS4 BMP Sizing Calculator'!$AF$34,0) -> 0 | EI21: ='MS4 BMP Sizing Calculator'!$V$51*(IF(EH21>0,EH21/IF(EH21>'MS4 BMP Sizing Calculator'!$J$51,'MS4 BMP Sizing Calculator'!$J$51,EH21))*DX$5/12/3600) -> 0 | EJ21: 0 | EK21: 0 | EL21: 0 | EM21: 0 | EN21: 0 | EO21: 0 | EP21: 0 | EQ21: 0 | ER21: 0 | ES21: 0 | ET21: 0 | EU21: 0 | EV21: =IF(AND(EO$5>0,EN21-EO21>EO$11),(EN21-EO21-EO$11)/EO$5/'MS4 BMP Sizing Calculator'!$AF$35,0) -> 0 | EW21: =0.66*'MS4 BMP Sizing Calculator'!$X$50*(2*32.2*EV21*0.41)^0.5 -> 0 | EX21: 0 | EY21: 0 | EZ21: 0 | FA21: 0 | FB21: 0 | FC21: 0 | FD21: 0 | FE21: 0 | FF21: 0 | FG21: 0 | FH21: 0 | FI21: 0 | FJ21: 0 | FK21: =0.66*'MS4 BMP Sizing Calculator'!$X$56*(2*32.2*FJ21)^0.5 -> 0 | FL21: 0 | FM21: 0 | FN21: 0 | FO21: 0 | FP21: 0 | FQ21: 0 | FR21: 0 | FS21: 0 | FT21: 0 | FU21: 0 | FV21: 0 | FW21: 0 | FX21: 0 | FY21: 0 | FZ21: 0 | GA21: 0 | GB21: 0 | GC21: 0 | GD21: 0 | GE21: 0 | GF21: 0 | GG21: 0 | GH21: 0 | GI21: 0 | GJ21: 0 | GK21: 0 | GL21: 0 | GM21: 0 | GN21: 0 | GO21: 0 | GP21: 0 | GQ21: =IF(AND($GG$4>0, GH21>=$GI$5), $GK$6+$GK$7+GE21, IF(AND(GG$4>0,GH21>GG$11),(GH21-GG$11)/GG$4/'MS4 BMP Sizing Calculator'!$AF$39,0)) -> 0 | GR21: =IF(IF(GH21<$GI$5, 0.66*$GK$9*(2*32.17*GQ21*0.35)^0.5, 0.66*$GK$9*(2*32.17*(GE21+(GQ21-GE21)*0.35))^0.5)> 'MS4 BMP Sizing Calculator'!$U$55*IF(GQ21>0, (GQ21/IF(GQ21>$GK$6+$GK$7,$GK$6+$GK$7, GQ21)), 0)*$GG$4/12/3600, 'MS4 BMP Sizing Calculator'!$U$55*IF(GQ21>0, (GQ21/IF(GQ21>$GK$6+$GK$7,$GK$6+$GK$7, GQ21)), 0)*$GG$4/12/3600, IF(GH21<$GI$5, 0.66*$GK$9*(2*32.17*GQ21*0.35)^0.5, 0.66*$GK$9*(2*32.17*(GE21+(GQ21-GE21)*0.35))^0.5)) -> 0 | GS21: 0 | GT21: 0 | GU21: 0 | GV21: 0 | GW21: 0 | GX21: 0 | GY21: 0 | GZ21: 0 | HA21: 0 | HB21: 0 | HC21: 0 | HD21: 0 | HE21: 0 | HF21: 0 | HG21: 0 | HH21: 0 | HI21: 0 | HJ21: 0 | HK21: 0 | HL21: 0 | HM21: 0 | HN21: 0 | HO21: 0 | HP21: 0 | HQ21: 0 | HR21: 0 | HS21: 0 | HT21: 0 | HU21: =IF($HN$5>0,(HL21-SUM(HM21:HN21))/$HN$5/'MS4 BMP Sizing Calculator'!$AF$37,0) -> 0 | HV21: =IF('MS4 BMP Sizing Calculator'!$AB$59='MS4 BMP Sizing Calculator'!$AA$59,'MS4 BMP Sizing Calculator'!$U$59*IF(HU21>0, (HU21/IF(HU21>$HN$9+$HN$10,$HN$9+$HN$10, HU21)), 0)*HN$5/12/3600,0.66*$HP$3*(2*32.17*(HU21+$HP$5))^0.5) -> 0 | HW21: 0 | HX21: 0 | HY21: 0 | HZ21: 0 | IA21: 0 | IC21: 0 | ID21: 0 | IE21: 0 | IF21: 0 | IG21: 0 | II21: 0 | IJ21: 0 | IK21: 0
A22: 00:30:00 | D22: =SUM(C$16:C22) ->  | M22: 0 | N22: 0 | X22: 0 | Y22: 0 | Z22: 0 | AA22: 0 | AB22: 0 | AC22: 0 | AD22: 0 | AE22: 0 | AF22: 0 | AG22: 0 | AH22: 0 | AI22: 0 | AJ22: 0 | AK22: 0 | AL22: 0 | AM22: 0 | AN22: 0 | AO22: 0 | AP22: 0 | AQ22: 0 | AR22: 0 | AS22: 0 | AT22: 0 | AU22: 0 | AV22: 0 | AW22: 0 | AX22: 0 | AY22: 0 | AZ22: 0 | BA22: =IF(AZ22>'MS4 BMP Sizing Calculator'!$K$44, 0.66*(PI()*(IF('MS4 BMP Sizing Calculator'!$N$44="--", 0,'MS4 BMP Sizing Calculator'!$N$44)/2/12)^2)*(2*32.2*(AZ22-'MS4 BMP Sizing Calculator'!$K$44))^0.5,0) -> 0 | BB22: 0 | BC22: 0 | BD22: 0 | BE22: 0 | BF22: 0 | BG22: 0 | BH22: 0 | BI22: 0 | BJ22: 0 | BK22: 0 | BL22: 0 | BM22: 0 | BN22: 0 | BO22: 0 | BP22: 0 | BQ22: 0 | BR22: 0 | BS22: 0 | BT22: 0 | BU22: 0 | BV22: 0 | BW22: 0 | BX22: 0 | BY22: 0 | BZ22: 0 | CA22: 0 | CB22: 0 | CC22: 0 | CD22: 0 | CE22: 0 | CF22: 0 | CG22: 0 | CH22: 0 | CI22: 0 | CJ22: 0 | CK22: 0 | CL22: 0 | CM22: 0 | CN22: 0 | CO22: 0 | CP22: 0 | CQ22: 0 | CR22: 0 | CS22: 0 | CT22: 0 | CU22: 0 | CV22: 0 | CW22: 0 | CX22: 0 | CY22: =IF(AND($CO$5>0, CP22>=$CT$9), $CT$5+$CT$6+CM22, IF(AND(CO$5>0,CP22>CO$11),(CP22-CO$11)/CO$5/'MS4 BMP Sizing Calculator'!$AF$31,0)) -> 0 | CZ22: =IF(IF(CP22<$CT$9,0.66*$CR$8*(2*32.17*CY22*0.35)^0.5, 0.66*CR$8*(2*32.17*(CM22+(CY22-CM22)*0.35))^0.5)> 'MS4 BMP Sizing Calculator'!$U$53*IF(CY22>0, (CY22/IF(CY22>$CT$6+$CT$5,$CT$6+$CT$5, CY22)), 0)*$CO$5/12/3600, 'MS4 BMP Sizing Calculator'!$U$53*IF(CY22>0, (CY22/IF(CY22>$CT$6+$CT$5,$CT$6+$CT$5, CY22)), 0)*$CO$5/12/3600, IF(CP22<$CT$9,0.66*$CR$8*(2*32.17*CY22*0.35)^0.5, 0.66*CR$8*(2*32.17*(CM22+(CY22-CM22)*0.35))^0.5)) -> 0 | DA22: 0 | DB22: 0 | DC22: 0 | DD22: 0 | DE22: 0 | DF22: 0 | DG22: 0 | DH22: 0 | DI22: 0 | DJ22: 0 | DK22: 0 | DL22: 0 | DM22: 0 | DN22: 0 | DO22: 0 | DP22: 0 | DQ22: =IF(AND($DG$5>0, DH22>=$DL$9), $DL$5+$DL$6+DE22, IF(AND(DG$5>0,DH22>DG$11),(DH22-DG$11)/DG$5/'MS4 BMP Sizing Calculator'!$AF$32,0)) -> 0 | DR22: =IF(IF(DH22<$DL$9, 0.66*$DJ$8*(2*32.17*D22*0.35)^0.5, 0.66*$DJ$8*(2*32.17*(DE22+(DQ22-DE22)*0.35))^0.5)> 'MS4 BMP Sizing Calculator'!$U$54*IF(DQ22>0, (DQ22/IF(DQ22>$DL$6+$DL$5,$DL$6+$DL$5, DQ22)), 0)*$DG$5/12/3600, 'MS4 BMP Sizing Calculator'!$U$54*IF(DQ22>0, (DQ22/IF(DQ22>$DL$6+$DL$5,$DL$6+$DL$5, DQ22)), 0)*$DG$5/12/3600, IF(DH22<$DL$9, 0.66*$DJ$8*(2*32.17*D22*0.35)^0.5, 0.66*$DJ$8*(2*32.17*(DE22+(DQ22-DE22)*0.35))^0.5)) -> 0 | DS22: 0 | DT22: 0 | DU22: 0 | DV22: 0 | DW22: 0 | DX22: 0 | DY22: 0 | DZ22: 0 | EA22: 0 | EB22: 0 | EC22: 0 | ED22: 0 | EE22: 0 | EF22: 0 | EG22: 0 | EH22: =IF(DX$5>0,(DZ22-SUM(EB22:EC22))/DX$5/'MS4 BMP Sizing Calculator'!$AF$34,0) -> 0 | EI22: ='MS4 BMP Sizing Calculator'!$V$51*(IF(EH22>0,EH22/IF(EH22>'MS4 BMP Sizing Calculator'!$J$51,'MS4 BMP Sizing Calculator'!$J$51,EH22))*DX$5/12/3600) -> 0 | EJ22: 0 | EK22: 0 | EL22: 0 | EM22: 0 | EN22: 0 | EO22: 0 | EP22: 0 | EQ22: 0 | ER22: 0 | ES22: 0 | ET22: 0 | EU22: 0 | EV22: =IF(AND(EO$5>0,EN22-EO22>EO$11),(EN22-EO22-EO$11)/EO$5/'MS4 BMP Sizing Calculator'!$AF$35,0) -> 0 | EW22: =0.66*'MS4 BMP Sizing Calculator'!$X$50*(2*32.2*EV22*0.41)^0.5 -> 0 | EX22: 0 | EY22: 0 | EZ22: 0 | FA22: 0 | FB22: 0 | FC22: 0 | FD22: 0 | FE22: 0 | FF22: 0 | FG22: 0 | FH22: 0 | FI22: 0 | FJ22: 0 | FK22: =0.66*'MS4 BMP Sizing Calculator'!$X$56*(2*32.2*FJ22)^0.5 -> 0 | FL22: 0 | FM22: 0 | FN22: 0 | FO22: 0 | FP22: 0 | FQ22: 0 | FR22: 0 | FS22: 0 | FT22: 0 | FU22: 0 | FV22: 0 | FW22: 0 | FX22: 0 | FY22: 0 | FZ22: 0 | GA22: 0 | GB22: 0 | GC22: 0 | GD22: 0 | GE22: 0 | GF22: 0 | GG22: 0 | GH22: 0 | GI22: 0 | GJ22: 0 | GK22: 0 | GL22: 0 | GM22: 0 | GN22: 0 | GO22: 0 | GP22: 0 | GQ22: =IF(AND($GG$4>0, GH22>=$GI$5), $GK$6+$GK$7+GE22, IF(AND(GG$4>0,GH22>GG$11),(GH22-GG$11)/GG$4/'MS4 BMP Sizing Calculator'!$AF$39,0)) -> 0 | GR22: =IF(IF(GH22<$GI$5, 0.66*$GK$9*(2*32.17*GQ22*0.35)^0.5, 0.66*$GK$9*(2*32.17*(GE22+(GQ22-GE22)*0.35))^0.5)> 'MS4 BMP Sizing Calculator'!$U$55*IF(GQ22>0, (GQ22/IF(GQ22>$GK$6+$GK$7,$GK$6+$GK$7, GQ22)), 0)*$GG$4/12/3600, 'MS4 BMP Sizing Calculator'!$U$55*IF(GQ22>0, (GQ22/IF(GQ22>$GK$6+$GK$7,$GK$6+$GK$7, GQ22)), 0)*$GG$4/12/3600, IF(GH22<$GI$5, 0.66*$GK$9*(2*32.17*GQ22*0.35)^0.5, 0.66*$GK$9*(2*32.17*(GE22+(GQ22-GE22)*0.35))^0.5)) -> 0 | GS22: 0 | GT22: 0 | GU22: 0 | GV22: 0 | GW22: 0 | GX22: 0 | GY22: 0 | GZ22: 0 | HA22: 0 | HB22: 0 | HC22: 0 | HD22: 0 | HE22: 0 | HF22: 0 | HG22: 0 | HH22: 0 | HI22: 0 | HJ22: 0 | HK22: 0 | HL22: 0 | HM22: 0 | HN22: 0 | HO22: 0 | HP22: 0 | HQ22: 0 | HR22: 0 | HS22: 0 | HT22: 0 | HU22: =IF($HN$5>0,(HL22-SUM(HM22:HN22))/$HN$5/'MS4 BMP Sizing Calculator'!$AF$37,0) -> 0 | HV22: =IF('MS4 BMP Sizing Calculator'!$AB$59='MS4 BMP Sizing Calculator'!$AA$59,'MS4 BMP Sizing Calculator'!$U$59*IF(HU22>0, (HU22/IF(HU22>$HN$9+$HN$10,$HN$9+$HN$10, HU22)), 0)*HN$5/12/3600,0.66*$HP$3*(2*32.17*(HU22+$HP$5))^0.5) -> 0 | HW22: 0 | HX22: 0 | HY22: 0 | HZ22: 0 | IA22: 0 | IC22: 0 | ID22: 0 | IE22: 0 | IF22: 0 | IG22: 0 | II22: 0 | IJ22: 0 | IK22: 0
A23: 00:35:00 | D23: =SUM(C$16:C23) ->  | M23: 0 | N23: 0 | X23: 0 | Y23: 0 | Z23: 0 | AA23: 0 | AB23: 0 | AC23: 0 | AD23: 0 | AE23: 0 | AF23: 0 | AG23: 0 | AH23: 0 | AI23: 0 | AJ23: 0 | AK23: 0 | AL23: 0 | AM23: 0 | AN23: 0 | AO23: 0 | AP23: 0 | AQ23: 0 | AR23: 0 | AS23: 0 | AT23: 0 | AU23: 0 | AV23: 0 | AW23: 0 | AX23: 0 | AY23: 0 | AZ23: 0 | BA23: =IF(AZ23>'MS4 BMP Sizing Calculator'!$K$44, 0.66*(PI()*(IF('MS4 BMP Sizing Calculator'!$N$44="--", 0,'MS4 BMP Sizing Calculator'!$N$44)/2/12)^2)*(2*32.2*(AZ23-'MS4 BMP Sizing Calculator'!$K$44))^0.5,0) -> 0 | BB23: 0 | BC23: 0 | BD23: 0 | BE23: 0 | BF23: 0 | BG23: 0 | BH23: 0 | BI23: 0 | BJ23: 0 | BK23: 0 | BL23: 0 | BM23: 0 | BN23: 0 | BO23: 0 | BP23: 0 | BQ23: 0 | BR23: 0 | BS23: 0 | BT23: 0 | BU23: 0 | BV23: 0 | BW23: 0 | BX23: 0 | BY23: 0 | BZ23: 0 | CA23: 0 | CB23: 0 | CC23: 0 | CD23: 0 | CE23: 0 | CF23: 0 | CG23: 0 | CH23: 0 | CI23: 0 | CJ23: 0 | CK23: 0 | CL23: 0 | CM23: 0 | CN23: 0 | CO23: 0 | CP23: 0 | CQ23: 0 | CR23: 0 | CS23: 0 | CT23: 0 | CU23: 0 | CV23: 0 | CW23: 0 | CX23: 0 | CY23: =IF(AND($CO$5>0, CP23>=$CT$9), $CT$5+$CT$6+CM23, IF(AND(CO$5>0,CP23>CO$11),(CP23-CO$11)/CO$5/'MS4 BMP Sizing Calculator'!$AF$31,0)) -> 0 | CZ23: =IF(IF(CP23<$CT$9,0.66*$CR$8*(2*32.17*CY23*0.35)^0.5, 0.66*CR$8*(2*32.17*(CM23+(CY23-CM23)*0.35))^0.5)> 'MS4 BMP Sizing Calculator'!$U$53*IF(CY23>0, (CY23/IF(CY23>$CT$6+$CT$5,$CT$6+$CT$5, CY23)), 0)*$CO$5/12/3600, 'MS4 BMP Sizing Calculator'!$U$53*IF(CY23>0, (CY23/IF(CY23>$CT$6+$CT$5,$CT$6+$CT$5, CY23)), 0)*$CO$5/12/3600, IF(CP23<$CT$9,0.66*$CR$8*(2*32.17*CY23*0.35)^0.5, 0.66*CR$8*(2*32.17*(CM23+(CY23-CM23)*0.35))^0.5)) -> 0 | DA23: 0 | DB23: 0 | DC23: 0 | DD23: 0 | DE23: 0 | DF23: 0 | DG23: 0 | DH23: 0 | DI23: 0 | DJ23: 0 | DK23: 0 | DL23: 0 | DM23: 0 | DN23: 0 | DO23: 0 | DP23: 0 | DQ23: =IF(AND($DG$5>0, DH23>=$DL$9), $DL$5+$DL$6+DE23, IF(AND(DG$5>0,DH23>DG$11),(DH23-DG$11)/DG$5/'MS4 BMP Sizing Calculator'!$AF$32,0)) -> 0 | DR23: =IF(IF(DH23<$DL$9, 0.66*$DJ$8*(2*32.17*D23*0.35)^0.5, 0.66*$DJ$8*(2*32.17*(DE23+(DQ23-DE23)*0.35))^0.5)> 'MS4 BMP Sizing Calculator'!$U$54*IF(DQ23>0, (DQ23/IF(DQ23>$DL$6+$DL$5,$DL$6+$DL$5, DQ23)), 0)*$DG$5/12/3600, 'MS4 BMP Sizing Calculator'!$U$54*IF(DQ23>0, (DQ23/IF(DQ23>$DL$6+$DL$5,$DL$6+$DL$5, DQ23)), 0)*$DG$5/12/3600, IF(DH23<$DL$9, 0.66*$DJ$8*(2*32.17*D23*0.35)^0.5, 0.66*$DJ$8*(2*32.17*(DE23+(DQ23-DE23)*0.35))^0.5)) -> 0 | DS23: 0 | DT23: 0 | DU23: 0 | DV23: 0 | DW23: 0 | DX23: 0 | DY23: 0 | DZ23: 0 | EA23: 0 | EB23: 0 | EC23: 0 | ED23: 0 | EE23: 0 | EF23: 0 | EG23: 0 | EH23: =IF(DX$5>0,(DZ23-SUM(EB23:EC23))/DX$5/'MS4 BMP Sizing Calculator'!$AF$34,0) -> 0 | EI23: ='MS4 BMP Sizing Calculator'!$V$51*(IF(EH23>0,EH23/IF(EH23>'MS4 BMP Sizing Calculator'!$J$51,'MS4 BMP Sizing Calculator'!$J$51,EH23))*DX$5/12/3600) -> 0 | EJ23: 0 | EK23: 0 | EL23: 0 | EM23: 0 | EN23: 0 | EO23: 0 | EP23: 0 | EQ23: 0 | ER23: 0 | ES23: 0 | ET23: 0 | EU23: 0 | EV23: =IF(AND(EO$5>0,EN23-EO23>EO$11),(EN23-EO23-EO$11)/EO$5/'MS4 BMP Sizing Calculator'!$AF$35,0) -> 0 | EW23: =0.66*'MS4 BMP Sizing Calculator'!$X$50*(2*32.2*EV23*0.41)^0.5 -> 0 | EX23: 0 | EY23: 0 | EZ23: 0 | FA23: 0 | FB23: 0 | FC23: 0 | FD23: 0 | FE23: 0 | FF23: 0 | FG23: 0 | FH23: 0 | FI23: 0 | FJ23: 0 | FK23: =0.66*'MS4 BMP Sizing Calculator'!$X$56*(2*32.2*FJ23)^0.5 -> 0 | FL23: 0 | FM23: 0 | FN23: 0 | FO23: 0 | FP23: 0 | FQ23: 0 | FR23: 0 | FS23: 0 | FT23: 0 | FU23: 0 | FV23: 0 | FW23: 0 | FX23: 0 | FY23: 0 | FZ23: 0 | GA23: 0 | GB23: 0 | GC23: 0 | GD23: =GC23+GB23 -> 0 | GE23: 0 | GF23: 0 | GG23: 0 | GH23: 0 | GI23: 0 | GJ23: 0 | GK23: 0 | GL23: 0 | GM23: 0 | GN23: 0 | GO23: 0 | GP23: 0 | GQ23: =IF(AND($GG$4>0, GH23>=$GI$5), $GK$6+$GK$7+GE23, IF(AND(GG$4>0,GH23>GG$11),(GH23-GG$11)/GG$4/'MS4 BMP Sizing Calculator'!$AF$39,0)) -> 0 | GR23: =IF(IF(GH23<$GI$5, 0.66*$GK$9*(2*32.17*GQ23*0.35)^0.5, 0.66*$GK$9*(2*32.17*(GE23+(GQ23-GE23)*0.35))^0.5)> 'MS4 BMP Sizing Calculator'!$U$55*IF(GQ23>0, (GQ23/IF(GQ23>$GK$6+$GK$7,$GK$6+$GK$7, GQ23)), 0)*$GG$4/12/3600, 'MS4 BMP Sizing Calculator'!$U$55*IF(GQ23>0, (GQ23/IF(GQ23>$GK$6+$GK$7,$GK$6+$GK$7, GQ23)), 0)*$GG$4/12/3600, IF(GH23<$GI$5, 0.66*$GK$9*(2*32.17*GQ23*0.35)^0.5, 0.66*$GK$9*(2*32.17*(GE23+(GQ23-GE23)*0.35))^0.5)) -> 0 | GS23: 0 | GT23: 0 | GU23: 0 | GV23: 0 | GW23: 0 | GX23: 0 | GY23: 0 | GZ23: 0 | HA23: 0 | HB23: 0 | HC23: 0 | HD23: 0 | HE23: 0 | HF23: 0 | HG23: 0 | HH23: 0 | HI23: 0 | HJ23: 0 | HK23: 0 | HL23: 0 | HM23: 0 | HN23: 0 | HO23: 0 | HP23: 0 | HQ23: 0 | HR23: 0 | HS23: 0 | HT23: 0 | HU23: =IF($HN$5>0,(HL23-SUM(HM23:HN23))/$HN$5/'MS4 BMP Sizing Calculator'!$AF$37,0) -> 0 | HV23: =IF('MS4 BMP Sizing Calculator'!$AB$59='MS4 BMP Sizing Calculator'!$AA$59,'MS4 BMP Sizing Calculator'!$U$59*IF(HU23>0, (HU23/IF(HU23>$HN$9+$HN$10,$HN$9+$HN$10, HU23)), 0)*HN$5/12/3600,0.66*$HP$3*(2*32.17*(HU23+$HP$5))^0.5) -> 0 | HW23: 0 | HX23: 0 | HY23: 0 | HZ23: 0 | IA23: 0 | IC23: 0 | ID23: 0 | IE23: 0 | IF23: 0 | IG23: 0 | II23: 0 | IJ23: 0 | IK23: 0
A24: 00:40:00 | D24: =SUM(C$16:C24) ->  | M24: 0 | N24: 0 | X24: 0 | Y24: 0 | Z24: 0 | AA24: 0 | AB24: 0 | AC24: 0 | AD24: 0 | AE24: 0 | AF24: 0 | AG24: 0 | AH24: 0 | AI24: 0 | AJ24: 0 | AK24: 0 | AL24: 0 | AM24: 0 | AN24: 0 | AO24: 0 | AP24: 0 | AQ24: 0 | AR24: 0 | AS24: 0 | AT24: 0 | AU24: 0 | AV24: 0 | AW24: 0 | AX24: 0 | AY24: 0 | AZ24: 0 | BA24: =IF(AZ24>'MS4 BMP Sizing Calculator'!$K$44, 0.66*(PI()*(IF('MS4 BMP Sizing Calculator'!$N$44="--", 0,'MS4 BMP Sizing Calculator'!$N$44)/2/12)^2)*(2*32.2*(AZ24-'MS4 BMP Sizing Calculator'!$K$44))^0.5,0) -> 0 | BB24: 0 | BC24: 0 | BD24: 0 | BE24: 0 | BF24: 0 | BG24: 0 | BH24: 0 | BI24: 0 | BJ24: 0 | BK24: 0 | BL24: 0 | BM24: 0 | BN24: 0 | BO24: 0 | BP24: 0 | BQ24: 0 | BR24: 0 | BS24: 0 | BT24: 0 | BU24: 0 | BV24: 0 | BW24: 0 | BX24: 0 | BY24: 0 | BZ24: 0 | CA24: 0 | CB24: 0 | CC24: 0 | CD24: 0 | CE24: 0 | CF24: 0 | CG24: 0 | CH24: 0 | CI24: 0 | CJ24: 0 | CK24: 0 | CL24: 0 | CM24: 0 | CN24: 0 | CO24: 0 | CP24: 0 | CQ24: 0 | CR24: 0 | CS24: 0 | CT24: 0 | CU24: 0 | CV24: 0 | CW24: 0 | CX24: 0 | CY24: =IF(AND($CO$5>0, CP24>=$CT$9), $CT$5+$CT$6+CM24, IF(AND(CO$5>0,CP24>CO$11),(CP24-CO$11)/CO$5/'MS4 BMP Sizing Calculator'!$AF$31,0)) -> 0 | CZ24: =IF(IF(CP24<$CT$9,0.66*$CR$8*(2*32.17*CY24*0.35)^0.5, 0.66*CR$8*(2*32.17*(CM24+(CY24-CM24)*0.35))^0.5)> 'MS4 BMP Sizing Calculator'!$U$53*IF(CY24>0, (CY24/IF(CY24>$CT$6+$CT$5,$CT$6+$CT$5, CY24)), 0)*$CO$5/12/3600, 'MS4 BMP Sizing Calculator'!$U$53*IF(CY24>0, (CY24/IF(CY24>$CT$6+$CT$5,$CT$6+$CT$5, CY24)), 0)*$CO$5/12/3600, IF(CP24<$CT$9,0.66*$CR$8*(2*32.17*CY24*0.35)^0.5, 0.66*CR$8*(2*32.17*(CM24+(CY24-CM24)*0.35))^0.5)) -> 0 | DA24: 0 | DB24: 0 | DC24: 0 | DD24: 0 | DE24: 0 | DF24: 0 | DG24: 0 | DH24: 0 | DI24: 0 | DJ24: 0 | DK24: 0 | DL24: 0 | DM24: 0 | DN24: 0 | DO24: 0 | DP24: 0 | DQ24: =IF(AND($DG$5>0, DH24>=$DL$9), $DL$5+$DL$6+DE24, IF(AND(DG$5>0,DH24>DG$11),(DH24-DG$11)/DG$5/'MS4 BMP Sizing Calculator'!$AF$32,0)) -> 0 | DR24: =IF(IF(DH24<$DL$9, 0.66*$DJ$8*(2*32.17*D24*0.35)^0.5, 0.66*$DJ$8*(2*32.17*(DE24+(DQ24-DE24)*0.35))^0.5)> 'MS4 BMP Sizing Calculator'!$U$54*IF(DQ24>0, (DQ24/IF(DQ24>$DL$6+$DL$5,$DL$6+$DL$5, DQ24)), 0)*$DG$5/12/3600, 'MS4 BMP Sizing Calculator'!$U$54*IF(DQ24>0, (DQ24/IF(DQ24>$DL$6+$DL$5,$DL$6+$DL$5, DQ24)), 0)*$DG$5/12/3600, IF(DH24<$DL$9, 0.66*$DJ$8*(2*32.17*D24*0.35)^0.5, 0.66*$DJ$8*(2*32.17*(DE24+(DQ24-DE24)*0.35))^0.5)) -> 0 | DS24: 0 | DT24: 0 | DU24: 0 | DV24: 0 | DW24: 0 | DX24: 0 | DY24: 0 | DZ24: 0 | EA24: 0 | EB24: 0 | EC24: 0 | ED24: 0 | EE24: 0 | EF24: 0 | EG24: 0 | EH24: =IF(DX$5>0,(DZ24-SUM(EB24:EC24))/DX$5/'MS4 BMP Sizing Calculator'!$AF$34,0) -> 0 | EI24: ='MS4 BMP Sizing Calculator'!$V$51*(IF(EH24>0,EH24/IF(EH24>'MS4 BMP Sizing Calculator'!$J$51,'MS4 BMP Sizing Calculator'!$J$51,EH24))*DX$5/12/3600) -> 0 | EJ24: 0 | EK24: 0 | EL24: 0 | EM24: 0 | EN24: 0 | EO24: 0 | EP24: 0 | EQ24: 0 | ER24: 0 | ES24: 0 | ET24: 0 | EU24: 0 | EV24: =IF(AND(EO$5>0,EN24-EO24>EO$11),(EN24-EO24-EO$11)/EO$5/'MS4 BMP Sizing Calculator'!$AF$35,0) -> 0 | EW24: =0.66*'MS4 BMP Sizing Calculator'!$X$50*(2*32.2*EV24*0.41)^0.5 -> 0 | EX24: 0 | EY24: 0 | EZ24: 0 | FA24: 0 | FB24: 0 | FC24: 0 | FD24: 0 | FE24: 0 | FF24: 0 | FG24: 0 | FH24: 0 | FI24: 0 | FJ24: 0 | FK24: =0.66*'MS4 BMP Sizing Calculator'!$X$56*(2*32.2*FJ24)^0.5 -> 0 | FL24: 0 | FM24: 0 | FN24: 0 | FO24: 0 | FP24: 0 | FQ24: 0 | FR24: 0 | FS24: 0 | FT24: 0 | FU24: 0 | FV24: 0 | FW24: 0 | FX24: 0 | FY24: 0 | FZ24: 0 | GA24: 0 | GB24: =IF($Q$4>0,$S24/$Q$4*GG$2,0) -> 0 | GC24: 0 | GD24: 0 | GE24: 0 | GF24: 0 | GG24: 0 | GH24: 0 | GI24: 0 | GJ24: 0 | GK24: 0 | GL24: 0 | GM24: 0 | GN24: 0 | GO24: 0 | GP24: 0 | GQ24: =IF(AND($GG$4>0, GH24>=$GI$5), $GK$6+$GK$7+GE24, IF(AND(GG$4>0,GH24>GG$11),(GH24-GG$11)/GG$4/'MS4 BMP Sizing Calculator'!$AF$39,0)) -> 0 | GR24: =IF(IF(GH24<$GI$5, 0.66*$GK$9*(2*32.17*GQ24*0.35)^0.5, 0.66*$GK$9*(2*32.17*(GE24+(GQ24-GE24)*0.35))^0.5)> 'MS4 BMP Sizing Calculator'!$U$55*IF(GQ24>0, (GQ24/IF(GQ24>$GK$6+$GK$7,$GK$6+$GK$7, GQ24)), 0)*$GG$4/12/3600, 'MS4 BMP Sizing Calculator'!$U$55*IF(GQ24>0, (GQ24/IF(GQ24>$GK$6+$GK$7,$GK$6+$GK$7, GQ24)), 0)*$GG$4/12/3600, IF(GH24<$GI$5, 0.66*$GK$9*(2*32.17*GQ24*0.35)^0.5, 0.66*$GK$9*(2*32.17*(GE24+(GQ24-GE24)*0.35))^0.5)) -> 0 | GS24: 0 | GT24: 0 | GU24: 0 | GV24: 0 | GW24: 0 | GX24: 0 | GY24: 0 | GZ24: 0 | HA24: 0 | HB24: 0 | HC24: 0 | HD24: 0 | HE24: 0 | HF24: 0 | HG24: 0 | HH24: 0 | HI24: 0 | HJ24: 0 | HK24: 0 | HL24: 0 | HM24: 0 | HN24: 0 | HO24: 0 | HP24: 0 | HQ24: 0 | HR24: 0 | HS24: 0 | HT24: 0 | HU24: =IF($HN$5>0,(HL24-SUM(HM24:HN24))/$HN$5/'MS4 BMP Sizing Calculator'!$AF$37,0) -> 0 | HV24: =IF('MS4 BMP Sizing Calculator'!$AB$59='MS4 BMP Sizing Calculator'!$AA$59,'MS4 BMP Sizing Calculator'!$U$59*IF(HU24>0, (HU24/IF(HU24>$HN$9+$HN$10,$HN$9+$HN$10, HU24)), 0)*HN$5/12/3600,0.66*$HP$3*(2*32.17*(HU24+$HP$5))^0.5) -> 0 | HW24: 0 | HX24: 0 | HY24: 0 | HZ24: 0 | IA24: 0 | IC24: 0 | ID24: 0 | IE24: 0 | IF24: 0 | IG24: 0 | II24: 0 | IJ24: 0 | IK24: 0
A25: 00:45:00 | D25: =SUM(C$16:C25) ->  | M25: 0 | N25: 0 | X25: 0 | Y25: 0 | Z25: 0 | AA25: 0 | AB25: 0 | AC25: 0 | AD25: 0 | AE25: 0 | AF25: 0 | AG25: 0 | AH25: 0 | AI25: 0 | AJ25: 0 | AK25: 0 | AL25: 0 | AM25: 0 | AN25: 0 | AO25: 0 | AP25: 0 | AQ25: 0 | AR25: 0 | AS25: 0 | AT25: 0 | AU25: 0 | AV25: 0 | AW25: 0 | AX25: 0 | AY25: 0 | AZ25: 0 | BA25: =IF(AZ25>'MS4 BMP Sizing Calculator'!$K$44, 0.66*(PI()*(IF('MS4 BMP Sizing Calculator'!$N$44="--", 0,'MS4 BMP Sizing Calculator'!$N$44)/2/12)^2)*(2*32.2*(AZ25-'MS4 BMP Sizing Calculator'!$K$44))^0.5,0) -> 0 | BB25: 0 | BC25: 0 | BD25: 0 | BE25: 0 | BF25: 0 | BG25: 0 | BH25: 0 | BI25: 0 | BJ25: 0 | BK25: 0 | BL25: 0 | BM25: 0 | BN25: 0 | BO25: 0 | BP25: 0 | BQ25: 0 | BR25: 0 | BS25: 0 | BT25: 0 | BU25: 0 | BV25: 0 | BW25: 0 | BX25: 0 | BY25: 0 | BZ25: 0 | CA25: 0 | CB25: 0 | CC25: 0 | CD25: 0 | CE25: 0 | CF25: 0 | CG25: 0 | CH25: 0 | CI25: 0 | CJ25: 0 | CK25: 0 | CL25: 0 | CM25: 0 | CN25: 0 | CO25: 0 | CP25: 0 | CQ25: 0 | CR25: 0 | CS25: 0 | CT25: 0 | CU25: 0 | CV25: 0 | CW25: 0 | CX25: 0 | CY25: =IF(AND($CO$5>0, CP25>=$CT$9), $CT$5+$CT$6+CM25, IF(AND(CO$5>0,CP25>CO$11),(CP25-CO$11)/CO$5/'MS4 BMP Sizing Calculator'!$AF$31,0)) -> 0 | CZ25: =IF(IF(CP25<$CT$9,0.66*$CR$8*(2*32.17*CY25*0.35)^0.5, 0.66*CR$8*(2*32.17*(CM25+(CY25-CM25)*0.35))^0.5)> 'MS4 BMP Sizing Calculator'!$U$53*IF(CY25>0, (CY25/IF(CY25>$CT$6+$CT$5,$CT$6+$CT$5, CY25)), 0)*$CO$5/12/3600, 'MS4 BMP Sizing Calculator'!$U$53*IF(CY25>0, (CY25/IF(CY25>$CT$6+$CT$5,$CT$6+$CT$5, CY25)), 0)*$CO$5/12/3600, IF(CP25<$CT$9,0.66*$CR$8*(2*32.17*CY25*0.35)^0.5, 0.66*CR$8*(2*32.17*(CM25+(CY25-CM25)*0.35))^0.5)) -> 0 | DA25: 0 | DB25: 0 | DC25: 0 | DD25: 0 | DE25: 0 | DF25: 0 | DG25: 0 | DH25: 0 | DI25: 0 | DJ25: 0 | DK25: 0 | DL25: 0 | DM25: 0 | DN25: 0 | DO25: 0 | DP25: 0 | DQ25: =IF(AND($DG$5>0, DH25>=$DL$9), $DL$5+$DL$6+DE25, IF(AND(DG$5>0,DH25>DG$11),(DH25-DG$11)/DG$5/'MS4 BMP Sizing Calculator'!$AF$32,0)) -> 0 | DR25: =IF(IF(DH25<$DL$9, 0.66*$DJ$8*(2*32.17*D25*0.35)^0.5, 0.66*$DJ$8*(2*32.17*(DE25+(DQ25-DE25)*0.35))^0.5)> 'MS4 BMP Sizing Calculator'!$U$54*IF(DQ25>0, (DQ25/IF(DQ25>$DL$6+$DL$5,$DL$6+$DL$5, DQ25)), 0)*$DG$5/12/3600, 'MS4 BMP Sizing Calculator'!$U$54*IF(DQ25>0, (DQ25/IF(DQ25>$DL$6+$DL$5,$DL$6+$DL$5, DQ25)), 0)*$DG$5/12/3600, IF(DH25<$DL$9, 0.66*$DJ$8*(2*32.17*D25*0.35)^0.5, 0.66*$DJ$8*(2*32.17*(DE25+(DQ25-DE25)*0.35))^0.5)) -> 0 | DS25: 0 | DT25: 0 | DU25: 0 | DV25: 0 | DW25: 0 | DX25: 0 | DY25: 0 | DZ25: 0 | EA25: 0 | EB25: 0 | EC25: 0 | ED25: 0 | EE25: 0 | EF25: 0 | EG25: 0 | EH25: =IF(DX$5>0,(DZ25-SUM(EB25:EC25))/DX$5/'MS4 BMP Sizing Calculator'!$AF$34,0) -> 0 | EI25: ='MS4 BMP Sizing Calculator'!$V$51*(IF(EH25>0,EH25/IF(EH25>'MS4 BMP Sizing Calculator'!$J$51,'MS4 BMP Sizing Calculator'!$J$51,EH25))*DX$5/12/3600) -> 0 | EJ25: 0 | EK25: 0 | EL25: 0 | EM25: 0 | EN25: 0 | EO25: 0 | EP25: 0 | EQ25: 0 | ER25: 0 | ES25: 0 | ET25: 0 | EU25: 0 | EV25: =IF(AND(EO$5>0,EN25-EO25>EO$11),(EN25-EO25-EO$11)/EO$5/'MS4 BMP Sizing Calculator'!$AF$35,0) -> 0 | EW25: =0.66*'MS4 BMP Sizing Calculator'!$X$50*(2*32.2*EV25*0.41)^0.5 -> 0 | EX25: 0 | EY25: 0 | EZ25: 0 | FA25: 0 | FB25: 0 | FC25: 0 | FD25: 0 | FE25: 0 | FF25: 0 | FG25: 0 | FH25: 0 | FI25: 0 | FJ25: 0 | FK25: =0.66*'MS4 BMP Sizing Calculator'!$X$56*(2*32.2*FJ25)^0.5 -> 0 | FL25: 0 | FM25: 0 | FN25: 0 | FO25: 0 | FP25: 0 | FQ25: 0 | FR25: 0 | FS25: 0 | FT25: 0 | FU25: 0 | FV25: 0 | FW25: 0 | FX25: 0 | FY25: 0 | FZ25: 0 | GA25: 0 | GB25: 0 | GC25: 0 | GD25: 0 | GE25: 0 | GF25: 0 | GG25: 0 | GH25: 0 | GI25: 0 | GJ25: 0 | GK25: 0 | GL25: 0 | GM25: 0 | GN25: 0 | GO25: 0 | GP25: 0 | GQ25: =IF(AND($GG$4>0, GH25>=$GI$5), $GK$6+$GK$7+GE25, IF(AND(GG$4>0,GH25>GG$11),(GH25-GG$11)/GG$4/'MS4 BMP Sizing Calculator'!$AF$39,0)) -> 0 | GR25: =IF(IF(GH25<$GI$5, 0.66*$GK$9*(2*32.17*GQ25*0.35)^0.5, 0.66*$GK$9*(2*32.17*(GE25+(GQ25-GE25)*0.35))^0.5)> 'MS4 BMP Sizing Calculator'!$U$55*IF(GQ25>0, (GQ25/IF(GQ25>$GK$6+$GK$7,$GK$6+$GK$7, GQ25)), 0)*$GG$4/12/3600, 'MS4 BMP Sizing Calculator'!$U$55*IF(GQ25>0, (GQ25/IF(GQ25>$GK$6+$GK$7,$GK$6+$GK$7, GQ25)), 0)*$GG$4/12/3600, IF(GH25<$GI$5, 0.66*$GK$9*(2*32.17*GQ25*0.35)^0.5, 0.66*$GK$9*(2*32.17*(GE25+(GQ25-GE25)*0.35))^0.5)) -> 0 | GS25: 0 | GT25: 0 | GU25: 0 | GV25: 0 | GW25: 0 | GX25: 0 | GY25: 0 | GZ25: 0 | HA25: 0 | HB25: 0 | HC25: 0 | HD25: 0 | HE25: 0 | HF25: 0 | HG25: 0 | HH25: 0 | HI25: 0 | HJ25: 0 | HK25: 0 | HL25: 0 | HM25: 0 | HN25: 0 | HO25: 0 | HP25: 0 | HQ25: 0 | HR25: 0 | HS25: 0 | HT25: 0 | HU25: =IF($HN$5>0,(HL25-SUM(HM25:HN25))/$HN$5/'MS4 BMP Sizing Calculator'!$AF$37,0) -> 0 | HV25: =IF('MS4 BMP Sizing Calculator'!$AB$59='MS4 BMP Sizing Calculator'!$AA$59,'MS4 BMP Sizing Calculator'!$U$59*IF(HU25>0, (HU25/IF(HU25>$HN$9+$HN$10,$HN$9+$HN$10, HU25)), 0)*HN$5/12/3600,0.66*$HP$3*(2*32.17*(HU25+$HP$5))^0.5) -> 0 | HW25: 0 | HX25: 0 | HY25: 0 | HZ25: 0 | IA25: 0 | IC25: 0 | ID25: 0 | IE25: 0 | IF25: 0 | IG25: 0 | II25: 0 | IJ25: 0 | IK25: 0
A26: 00:50:00 | D26: =SUM(C$16:C26) ->  | M26: 0 | N26: 0 | X26: 0 | Y26: 0 | Z26: 0 | AA26: 0 | AB26: 0 | AC26: 0 | AD26: 0 | AE26: 0 | AF26: 0 | AG26: 0 | AH26: 0 | AI26: 0 | AJ26: 0 | AK26: 0 | AL26: 0 | AM26: 0 | AN26: 0 | AO26: 0 | AP26: 0 | AQ26: 0 | AR26: 0 | AS26: 0 | AT26: 0 | AU26: 0 | AV26: 0 | AW26: 0 | AX26: 0 | AY26: 0 | AZ26: 0 | BA26: =IF(AZ26>'MS4 BMP Sizing Calculator'!$K$44, 0.66*(PI()*(IF('MS4 BMP Sizing Calculator'!$N$44="--", 0,'MS4 BMP Sizing Calculator'!$N$44)/2/12)^2)*(2*32.2*(AZ26-'MS4 BMP Sizing Calculator'!$K$44))^0.5,0) -> 0 | BB26: 0 | BC26: 0 | BD26: 0 | BE26: 0 | BF26: 0 | BG26: 0 | BH26: 0 | BI26: 0 | BJ26: 0 | BK26: 0 | BL26: 0 | BM26: 0 | BN26: 0 | BO26: 0 | BP26: 0 | BQ26: 0 | BR26: 0 | BS26: 0 | BT26: 0 | BU26: 0 | BV26: 0 | BW26: 0 | BX26: 0 | BY26: 0 | BZ26: 0 | CA26: 0 | CB26: 0 | CC26: 0 | CD26: 0 | CE26: 0 | CF26: 0 | CG26: 0 | CH26: 0 | CI26: 0 | CJ26: 0 | CK26: 0 | CL26: 0 | CM26: 0 | CN26: 0 | CO26: 0 | CP26: 0 | CQ26: 0 | CR26: 0 | CS26: 0 | CT26: 0 | CU26: 0 | CV26: 0 | CW26: 0 | CX26: 0 | CY26: =IF(AND($CO$5>0, CP26>=$CT$9), $CT$5+$CT$6+CM26, IF(AND(CO$5>0,CP26>CO$11),(CP26-CO$11)/CO$5/'MS4 BMP Sizing Calculator'!$AF$31,0)) -> 0 | CZ26: =IF(IF(CP26<$CT$9,0.66*$CR$8*(2*32.17*CY26*0.35)^0.5, 0.66*CR$8*(2*32.17*(CM26+(CY26-CM26)*0.35))^0.5)> 'MS4 BMP Sizing Calculator'!$U$53*IF(CY26>0, (CY26/IF(CY26>$CT$6+$CT$5,$CT$6+$CT$5, CY26)), 0)*$CO$5/12/3600, 'MS4 BMP Sizing Calculator'!$U$53*IF(CY26>0, (CY26/IF(CY26>$CT$6+$CT$5,$CT$6+$CT$5, CY26)), 0)*$CO$5/12/3600, IF(CP26<$CT$9,0.66*$CR$8*(2*32.17*CY26*0.35)^0.5, 0.66*CR$8*(2*32.17*(CM26+(CY26-CM26)*0.35))^0.5)) -> 0 | DA26: 0 | DB26: 0 | DC26: 0 | DD26: 0 | DE26: 0 | DF26: 0 | DG26: 0 | DH26: 0 | DI26: 0 | DJ26: 0 | DK26: 0 | DL26: 0 | DM26: 0 | DN26: 0 | DO26: 0 | DP26: 0 | DQ26: =IF(AND($DG$5>0, DH26>=$DL$9), $DL$5+$DL$6+DE26, IF(AND(DG$5>0,DH26>DG$11),(DH26-DG$11)/DG$5/'MS4 BMP Sizing Calculator'!$AF$32,0)) -> 0 | DR26: =IF(IF(DH26<$DL$9, 0.66*$DJ$8*(2*32.17*D26*0.35)^0.5, 0.66*$DJ$8*(2*32.17*(DE26+(DQ26-DE26)*0.35))^0.5)> 'MS4 BMP Sizing Calculator'!$U$54*IF(DQ26>0, (DQ26/IF(DQ26>$DL$6+$DL$5,$DL$6+$DL$5, DQ26)), 0)*$DG$5/12/3600, 'MS4 BMP Sizing Calculator'!$U$54*IF(DQ26>0, (DQ26/IF(DQ26>$DL$6+$DL$5,$DL$6+$DL$5, DQ26)), 0)*$DG$5/12/3600, IF(DH26<$DL$9, 0.66*$DJ$8*(2*32.17*D26*0.35)^0.5, 0.66*$DJ$8*(2*32.17*(DE26+(DQ26-DE26)*0.35))^0.5)) -> 0 | DS26: 0 | DT26: 0 | DU26: 0 | DV26: 0 | DW26: 0 | DX26: 0 | DY26: 0 | DZ26: 0 | EA26: 0 | EB26: 0 | EC26: 0 | ED26: 0 | EE26: 0 | EF26: 0 | EG26: 0 | EH26: =IF(DX$5>0,(DZ26-SUM(EB26:EC26))/DX$5/'MS4 BMP Sizing Calculator'!$AF$34,0) -> 0 | EI26: ='MS4 BMP Sizing Calculator'!$V$51*(IF(EH26>0,EH26/IF(EH26>'MS4 BMP Sizing Calculator'!$J$51,'MS4 BMP Sizing Calculator'!$J$51,EH26))*DX$5/12/3600) -> 0 | EJ26: 0 | EK26: 0 | EL26: 0 | EM26: 0 | EN26: 0 | EO26: 0 | EP26: 0 | EQ26: 0 | ER26: 0 | ES26: 0 | ET26: 0 | EU26: 0 | EV26: =IF(AND(EO$5>0,EN26-EO26>EO$11),(EN26-EO26-EO$11)/EO$5/'MS4 BMP Sizing Calculator'!$AF$35,0) -> 0 | EW26: =0.66*'MS4 BMP Sizing Calculator'!$X$50*(2*32.2*EV26*0.41)^0.5 -> 0 | EX26: 0 | EY26: 0 | EZ26: 0 | FA26: 0 | FB26: 0 | FC26: 0 | FD26: 0 | FE26: 0 | FF26: 0 | FG26: 0 | FH26: 0 | FI26: 0 | FJ26: 0 | FK26: =0.66*'MS4 BMP Sizing Calculator'!$X$56*(2*32.2*FJ26)^0.5 -> 0 | FL26: 0 | FM26: 0 | FN26: 0 | FO26: 0 | FP26: 0 | FQ26: 0 | FR26: 0 | FS26: 0 | FT26: 0 | FU26: 0 | FV26: 0 | FW26: 0 | FX26: 0 | FY26: 0 | FZ26: 0 | GA26: 0 | GB26: 0 | GC26: 0 | GD26: 0 | GE26: 0 | GF26: 0 | GG26: 0 | GH26: 0 | GI26: 0 | GJ26: 0 | GK26: 0 | GL26: 0 | GM26: 0 | GN26: 0 | GO26: 0 | GP26: 0 | GQ26: =IF(AND($GG$4>0, GH26>=$GI$5), $GK$6+$GK$7+GE26, IF(AND(GG$4>0,GH26>GG$11),(GH26-GG$11)/GG$4/'MS4 BMP Sizing Calculator'!$AF$39,0)) -> 0 | GR26: =IF(IF(GH26<$GI$5, 0.66*$GK$9*(2*32.17*GQ26*0.35)^0.5, 0.66*$GK$9*(2*32.17*(GE26+(GQ26-GE26)*0.35))^0.5)> 'MS4 BMP Sizing Calculator'!$U$55*IF(GQ26>0, (GQ26/IF(GQ26>$GK$6+$GK$7,$GK$6+$GK$7, GQ26)), 0)*$GG$4/12/3600, 'MS4 BMP Sizing Calculator'!$U$55*IF(GQ26>0, (GQ26/IF(GQ26>$GK$6+$GK$7,$GK$6+$GK$7, GQ26)), 0)*$GG$4/12/3600, IF(GH26<$GI$5, 0.66*$GK$9*(2*32.17*GQ26*0.35)^0.5, 0.66*$GK$9*(2*32.17*(GE26+(GQ26-GE26)*0.35))^0.5)) -> 0 | GS26: 0 | GT26: 0 | GU26: 0 | GV26: 0 | GW26: 0 | GX26: 0 | GY26: 0 | GZ26: 0 | HA26: 0 | HB26: 0 | HC26: 0 | HD26: 0 | HE26: 0 | HF26: 0 | HG26: 0 | HH26: 0 | HI26: 0 | HJ26: 0 | HK26: 0 | HL26: 0 | HM26: 0 | HN26: 0 | HO26: 0 | HP26: 0 | HQ26: 0 | HR26: 0 | HS26: 0 | HT26: 0 | HU26: =IF($HN$5>0,(HL26-SUM(HM26:HN26))/$HN$5/'MS4 BMP Sizing Calculator'!$AF$37,0) -> 0 | HV26: =IF('MS4 BMP Sizing Calculator'!$AB$59='MS4 BMP Sizing Calculator'!$AA$59,'MS4 BMP Sizing Calculator'!$U$59*IF(HU26>0, (HU26/IF(HU26>$HN$9+$HN$10,$HN$9+$HN$10, HU26)), 0)*HN$5/12/3600,0.66*$HP$3*(2*32.17*(HU26+$HP$5))^0.5) -> 0 | HW26: 0 | HX26: 0 | HY26: 0 | HZ26: 0 | IA26: 0 | IC26: 0 | ID26: 0 | IE26: 0 | IF26: 0 | IG26: 0 | II26: 0 | IJ26: 0 | IK26: 0
A27: 00:55:00 | D27: =SUM(C$16:C27) ->  | M27: 0 | N27: 0 | X27: 0 | Y27: 0 | Z27: 0 | AA27: 0 | AB27: 0 | AC27: 0 | AD27: 0 | AE27: 0 | AF27: 0 | AG27: 0 | AH27: 0 | AI27: 0 | AJ27: 0 | AK27: 0 | AL27: 0 | AM27: 0 | AN27: 0 | AO27: 0 | AP27: 0 | AQ27: 0 | AR27: 0 | AS27: 0 | AT27: 0 | AU27: 0 | AV27: 0 | AW27: 0 | AX27: 0 | AY27: 0 | AZ27: 0 | BA27: =IF(AZ27>'MS4 BMP Sizing Calculator'!$K$44, 0.66*(PI()*(IF('MS4 BMP Sizing Calculator'!$N$44="--", 0,'MS4 BMP Sizing Calculator'!$N$44)/2/12)^2)*(2*32.2*(AZ27-'MS4 BMP Sizing Calculator'!$K$44))^0.5,0) -> 0 | BB27: 0 | BC27: 0 | BD27: 0 | BE27: 0 | BF27: 0 | BG27: 0 | BH27: 0 | BI27: 0 | BJ27: 0 | BK27: 0 | BL27: 0 | BM27: 0 | BN27: 0 | BO27: 0 | BP27: 0 | BQ27: 0 | BR27: 0 | BS27: 0 | BT27: 0 | BU27: 0 | BV27: 0 | BW27: 0 | BX27: 0 | BY27: 0 | BZ27: 0 | CA27: 0 | CB27: 0 | CC27: 0 | CD27: 0 | CE27: 0 | CF27: 0 | CG27: 0 | CH27: 0 | CI27: 0 | CJ27: 0 | CK27: 0 | CL27: 0 | CM27: 0 | CN27: 0 | CO27: 0 | CP27: 0 | CQ27: 0 | CR27: 0 | CS27: 0 | CT27: 0 | CU27: 0 | CV27: 0 | CW27: 0 | CX27: 0 | CY27: =IF(AND($CO$5>0, CP27>=$CT$9), $CT$5+$CT$6+CM27, IF(AND(CO$5>0,CP27>CO$11),(CP27-CO$11)/CO$5/'MS4 BMP Sizing Calculator'!$AF$31,0)) -> 0 | CZ27: =IF(IF(CP27<$CT$9,0.66*$CR$8*(2*32.17*CY27*0.35)^0.5, 0.66*CR$8*(2*32.17*(CM27+(CY27-CM27)*0.35))^0.5)> 'MS4 BMP Sizing Calculator'!$U$53*IF(CY27>0, (CY27/IF(CY27>$CT$6+$CT$5,$CT$6+$CT$5, CY27)), 0)*$CO$5/12/3600, 'MS4 BMP Sizing Calculator'!$U$53*IF(CY27>0, (CY27/IF(CY27>$CT$6+$CT$5,$CT$6+$CT$5, CY27)), 0)*$CO$5/12/3600, IF(CP27<$CT$9,0.66*$CR$8*(2*32.17*CY27*0.35)^0.5, 0.66*CR$8*(2*32.17*(CM27+(CY27-CM27)*0.35))^0.5)) -> 0 | DA27: 0 | DB27: 0 | DC27: 0 | DD27: 0 | DE27: 0 | DF27: 0 | DG27: 0 | DH27: 0 | DI27: 0 | DJ27: 0 | DK27: 0 | DL27: 0 | DM27: 0 | DN27: 0 | DO27: 0 | DP27: 0 | DQ27: =IF(AND($DG$5>0, DH27>=$DL$9), $DL$5+$DL$6+DE27, IF(AND(DG$5>0,DH27>DG$11),(DH27-DG$11)/DG$5/'MS4 BMP Sizing Calculator'!$AF$32,0)) -> 0 | DR27: =IF(IF(DH27<$DL$9, 0.66*$DJ$8*(2*32.17*D27*0.35)^0.5, 0.66*$DJ$8*(2*32.17*(DE27+(DQ27-DE27)*0.35))^0.5)> 'MS4 BMP Sizing Calculator'!$U$54*IF(DQ27>0, (DQ27/IF(DQ27>$DL$6+$DL$5,$DL$6+$DL$5, DQ27)), 0)*$DG$5/12/3600, 'MS4 BMP Sizing Calculator'!$U$54*IF(DQ27>0, (DQ27/IF(DQ27>$DL$6+$DL$5,$DL$6+$DL$5, DQ27)), 0)*$DG$5/12/3600, IF(DH27<$DL$9, 0.66*$DJ$8*(2*32.17*D27*0.35)^0.5, 0.66*$DJ$8*(2*32.17*(DE27+(DQ27-DE27)*0.35))^0.5)) -> 0 | DS27: 0 | DT27: 0 | DU27: 0 | DV27: 0 | DW27: 0 | DX27: 0 | DY27: 0 | DZ27: 0 | EA27: 0 | EB27: 0 | EC27: 0 | ED27: 0 | EE27: 0 | EF27: 0 | EG27: 0 | EH27: =IF(DX$5>0,(DZ27-SUM(EB27:EC27))/DX$5/'MS4 BMP Sizing Calculator'!$AF$34,0) -> 0 | EI27: ='MS4 BMP Sizing Calculator'!$V$51*(IF(EH27>0,EH27/IF(EH27>'MS4 BMP Sizing Calculator'!$J$51,'MS4 BMP Sizing Calculator'!$J$51,EH27))*DX$5/12/3600) -> 0 | EJ27: 0 | EK27: 0 | EL27: 0 | EM27: 0 | EN27: 0 | EO27: 0 | EP27: 0 | EQ27: 0 | ER27: 0 | ES27: 0 | ET27: 0 | EU27: 0 | EV27: =IF(AND(EO$5>0,EN27-EO27>EO$11),(EN27-EO27-EO$11)/EO$5/'MS4 BMP Sizing Calculator'!$AF$35,0) -> 0 | EW27: =0.66*'MS4 BMP Sizing Calculator'!$X$50*(2*32.2*EV27*0.41)^0.5 -> 0 | EX27: 0 | EY27: 0 | EZ27: 0 | FA27: 0 | FB27: 0 | FC27: 0 | FD27: 0 | FE27: 0 | FF27: 0 | FG27: 0 | FH27: 0 | FI27: 0 | FJ27: 0 | FK27: =0.66*'MS4 BMP Sizing Calculator'!$X$56*(2*32.2*FJ27)^0.5 -> 0 | FL27: 0 | FM27: 0 | FN27: 0 | FO27: 0 | FP27: 0 | FQ27: 0 | FR27: 0 | FS27: 0 | FT27: 0 | FU27: 0 | FV27: 0 | FW27: 0 | FX27: 0 | FY27: 0 | FZ27: 0 | GA27: 0 | GB27: 0 | GC27: 0 | GD27: 0 | GE27: 0 | GF27: 0 | GG27: 0 | GH27: 0 | GI27: 0 | GJ27: 0 | GK27: 0 | GL27: 0 | GM27: 0 | GN27: 0 | GO27: 0 | GP27: 0 | GQ27: =IF(AND($GG$4>0, GH27>=$GI$5), $GK$6+$GK$7+GE27, IF(AND(GG$4>0,GH27>GG$11),(GH27-GG$11)/GG$4/'MS4 BMP Sizing Calculator'!$AF$39,0)) -> 0 | GR27: =IF(IF(GH27<$GI$5, 0.66*$GK$9*(2*32.17*GQ27*0.35)^0.5, 0.66*$GK$9*(2*32.17*(GE27+(GQ27-GE27)*0.35))^0.5)> 'MS4 BMP Sizing Calculator'!$U$55*IF(GQ27>0, (GQ27/IF(GQ27>$GK$6+$GK$7,$GK$6+$GK$7, GQ27)), 0)*$GG$4/12/3600, 'MS4 BMP Sizing Calculator'!$U$55*IF(GQ27>0, (GQ27/IF(GQ27>$GK$6+$GK$7,$GK$6+$GK$7, GQ27)), 0)*$GG$4/12/3600, IF(GH27<$GI$5, 0.66*$GK$9*(2*32.17*GQ27*0.35)^0.5, 0.66*$GK$9*(2*32.17*(GE27+(GQ27-GE27)*0.35))^0.5)) -> 0 | GS27: 0 | GT27: 0 | GU27: 0 | GV27: 0 | GW27: 0 | GX27: 0 | GY27: 0 | GZ27: 0 | HA27: 0 | HB27: 0 | HC27: 0 | HD27: 0 | HE27: 0 | HF27: 0 | HG27: 0 | HH27: 0 | HI27: 0 | HJ27: 0 | HK27: 0 | HL27: 0 | HM27: 0 | HN27: 0 | HO27: 0 | HP27: 0 | HQ27: 0 | HR27: 0 | HS27: 0 | HT27: 0 | HU27: =IF($HN$5>0,(HL27-SUM(HM27:HN27))/$HN$5/'MS4 BMP Sizing Calculator'!$AF$37,0) -> 0 | HV27: =IF('MS4 BMP Sizing Calculator'!$AB$59='MS4 BMP Sizing Calculator'!$AA$59,'MS4 BMP Sizing Calculator'!$U$59*IF(HU27>0, (HU27/IF(HU27>$HN$9+$HN$10,$HN$9+$HN$10, HU27)), 0)*HN$5/12/3600,0.66*$HP$3*(2*32.17*(HU27+$HP$5))^0.5) -> 0 | HW27: 0 | HX27: 0 | HY27: 0 | HZ27: 0 | IA27: 0 | IC27: 0 | ID27: 0 | IE27: 0 | IF27: 0 | IG27: 0 | II27: 0 | IJ27: 0 | IK27: 0
A28: 01:00:00 | D28: =SUM(C$16:C28) ->  | M28: 0 | N28: 0 | X28: 0 | Y28: 0 | Z28: 0 | AA28: 0 | AB28: 0 | AC28: 0 | AD28: 0 | AE28: 0 | AF28: 0 | AG28: 0 | AH28: 0 | AI28: 0 | AJ28: 0 | AK28: 0 | AL28: 0 | AM28: 0 | AN28: 0 | AO28: 0 | AP28: 0 | AQ28: 0 | AR28: 0 | AS28: 0 | AT28: 0 | AU28: 0 | AV28: 0 | AW28: 0 | AX28: 0 | AY28: 0 | AZ28: 0 | BA28: =IF(AZ28>'MS4 BMP Sizing Calculator'!$K$44, 0.66*(PI()*(IF('MS4 BMP Sizing Calculator'!$N$44="--", 0,'MS4 BMP Sizing Calculator'!$N$44)/2/12)^2)*(2*32.2*(AZ28-'MS4 BMP Sizing Calculator'!$K$44))^0.5,0) -> 0 | BB28: 0 | BC28: 0 | BD28: 0 | BE28: 0 | BF28: 0 | BG28: 0 | BH28: 0 | BI28: 0 | BJ28: 0 | BK28: 0 | BL28: 0 | BM28: 0 | BN28: 0 | BO28: 0 | BP28: 0 | BQ28: 0 | BR28: 0 | BS28: 0 | BT28: 0 | BU28: 0 | BV28: 0 | BW28: 0 | BX28: 0 | BY28: 0 | BZ28: 0 | CA28: 0 | CB28: 0 | CC28: 0 | CD28: 0 | CE28: 0 | CF28: 0 | CG28: 0 | CH28: 0 | CI28: 0 | CJ28: 0 | CK28: 0 | CL28: 0 | CM28: 0 | CN28: 0 | CO28: 0 | CP28: 0 | CQ28: 0 | CR28: 0 | CS28: 0 | CT28: 0 | CU28: 0 | CV28: 0 | CW28: 0 | CX28: 0 | CY28: =IF(AND($CO$5>0, CP28>=$CT$9), $CT$5+$CT$6+CM28, IF(AND(CO$5>0,CP28>CO$11),(CP28-CO$11)/CO$5/'MS4 BMP Sizing Calculator'!$AF$31,0)) -> 0 | CZ28: =IF(IF(CP28<$CT$9,0.66*$CR$8*(2*32.17*CY28*0.35)^0.5, 0.66*CR$8*(2*32.17*(CM28+(CY28-CM28)*0.35))^0.5)> 'MS4 BMP Sizing Calculator'!$U$53*IF(CY28>0, (CY28/IF(CY28>$CT$6+$CT$5,$CT$6+$CT$5, CY28)), 0)*$CO$5/12/3600, 'MS4 BMP Sizing Calculator'!$U$53*IF(CY28>0, (CY28/IF(CY28>$CT$6+$CT$5,$CT$6+$CT$5, CY28)), 0)*$CO$5/12/3600, IF(CP28<$CT$9,0.66*$CR$8*(2*32.17*CY28*0.35)^0.5, 0.66*CR$8*(2*32.17*(CM28+(CY28-CM28)*0.35))^0.5)) -> 0 | DA28: 0 | DB28: 0 | DC28: 0 | DD28: 0 | DE28: 0 | DF28: 0 | DG28: 0 | DH28: 0 | DI28: 0 | DJ28: 0 | DK28: 0 | DL28: 0 | DM28: 0 | DN28: 0 | DO28: 0 | DP28: 0 | DQ28: =IF(AND($DG$5>0, DH28>=$DL$9), $DL$5+$DL$6+DE28, IF(AND(DG$5>0,DH28>DG$11),(DH28-DG$11)/DG$5/'MS4 BMP Sizing Calculator'!$AF$32,0)) -> 0 | DR28: =IF(IF(DH28<$DL$9, 0.66*$DJ$8*(2*32.17*D28*0.35)^0.5, 0.66*$DJ$8*(2*32.17*(DE28+(DQ28-DE28)*0.35))^0.5)> 'MS4 BMP Sizing Calculator'!$U$54*IF(DQ28>0, (DQ28/IF(DQ28>$DL$6+$DL$5,$DL$6+$DL$5, DQ28)), 0)*$DG$5/12/3600, 'MS4 BMP Sizing Calculator'!$U$54*IF(DQ28>0, (DQ28/IF(DQ28>$DL$6+$DL$5,$DL$6+$DL$5, DQ28)), 0)*$DG$5/12/3600, IF(DH28<$DL$9, 0.66*$DJ$8*(2*32.17*D28*0.35)^0.5, 0.66*$DJ$8*(2*32.17*(DE28+(DQ28-DE28)*0.35))^0.5)) -> 0 | DS28: 0 | DT28: 0 | DU28: 0 | DV28: 0 | DW28: 0 | DX28: 0 | DY28: 0 | DZ28: 0 | EA28: 0 | EB28: 0 | EC28: 0 | ED28: 0 | EE28: 0 | EF28: 0 | EG28: 0 | EH28: =IF(DX$5>0,(DZ28-SUM(EB28:EC28))/DX$5/'MS4 BMP Sizing Calculator'!$AF$34,0) -> 0 | EI28: ='MS4 BMP Sizing Calculator'!$V$51*(IF(EH28>0,EH28/IF(EH28>'MS4 BMP Sizing Calculator'!$J$51,'MS4 BMP Sizing Calculator'!$J$51,EH28))*DX$5/12/3600) -> 0 | EJ28: 0 | EK28: 0 | EL28: 0 | EM28: 0 | EN28: 0 | EO28: 0 | EP28: 0 | EQ28: 0 | ER28: 0 | ES28: 0 | ET28: 0 | EU28: 0 | EV28: =IF(AND(EO$5>0,EN28-EO28>EO$11),(EN28-EO28-EO$11)/EO$5/'MS4 BMP Sizing Calculator'!$AF$35,0) -> 0 | EW28: =0.66*'MS4 BMP Sizing Calculator'!$X$50*(2*32.2*EV28*0.41)^0.5 -> 0 | EX28: 0 | EY28: 0 | EZ28: 0 | FA28: 0 | FB28: 0 | FC28: 0 | FD28: 0 | FE28: 0 | FF28: 0 | FG28: 0 | FH28: 0 | FI28: 0 | FJ28: 0 | FK28: =0.66*'MS4 BMP Sizing Calculator'!$X$56*(2*32.2*FJ28)^0.5 -> 0 | FL28: 0 | FM28: 0 | FN28: 0 | FO28: 0 | FP28: 0 | FQ28: 0 | FR28: 0 | FS28: 0 | FT28: 0 | FU28: 0 | FV28: 0 | FW28: 0 | FX28: 0 | FY28: 0 | FZ28: 0 | GA28: 0 | GB28: 0 | GC28: 0 | GD28: 0 | GE28: 0 | GF28: 0 | GG28: 0 | GH28: 0 | GI28: 0 | GJ28: 0 | GK28: 0 | GL28: 0 | GM28: 0 | GN28: 0 | GO28: 0 | GP28: 0 | GQ28: =IF(AND($GG$4>0, GH28>=$GI$5), $GK$6+$GK$7+GE28, IF(AND(GG$4>0,GH28>GG$11),(GH28-GG$11)/GG$4/'MS4 BMP Sizing Calculator'!$AF$39,0)) -> 0 | GR28: =IF(IF(GH28<$GI$5, 0.66*$GK$9*(2*32.17*GQ28*0.35)^0.5, 0.66*$GK$9*(2*32.17*(GE28+(GQ28-GE28)*0.35))^0.5)> 'MS4 BMP Sizing Calculator'!$U$55*IF(GQ28>0, (GQ28/IF(GQ28>$GK$6+$GK$7,$GK$6+$GK$7, GQ28)), 0)*$GG$4/12/3600, 'MS4 BMP Sizing Calculator'!$U$55*IF(GQ28>0, (GQ28/IF(GQ28>$GK$6+$GK$7,$GK$6+$GK$7, GQ28)), 0)*$GG$4/12/3600, IF(GH28<$GI$5, 0.66*$GK$9*(2*32.17*GQ28*0.35)^0.5, 0.66*$GK$9*(2*32.17*(GE28+(GQ28-GE28)*0.35))^0.5)) -> 0 | GS28: 0 | GT28: 0 | GU28: 0 | GV28: 0 | GW28: 0 | GX28: 0 | GY28: 0 | GZ28: 0 | HA28: 0 | HB28: 0 | HC28: 0 | HD28: 0 | HE28: 0 | HF28: 0 | HG28: 0 | HH28: 0 | HI28: 0 | HJ28: 0 | HK28: 0 | HL28: 0 | HM28: 0 | HN28: 0 | HO28: 0 | HP28: 0 | HQ28: 0 | HR28: 0 | HS28: 0 | HT28: 0 | HU28: =IF($HN$5>0,(HL28-SUM(HM28:HN28))/$HN$5/'MS4 BMP Sizing Calculator'!$AF$37,0) -> 0 | HV28: =IF('MS4 BMP Sizing Calculator'!$AB$59='MS4 BMP Sizing Calculator'!$AA$59,'MS4 BMP Sizing Calculator'!$U$59*IF(HU28>0, (HU28/IF(HU28>$HN$9+$HN$10,$HN$9+$HN$10, HU28)), 0)*HN$5/12/3600,0.66*$HP$3*(2*32.17*(HU28+$HP$5))^0.5) -> 0 | HW28: 0 | HX28: 0 | HY28: 0 | HZ28: 0 | IA28: 0 | IC28: 0 | ID28: 0 | IE28: 0 | IF28: 0 | IG28: 0 | II28: 0 | IJ28: 0 | IK28: 0
